Workbook

Sheet Qualifications
A2: SOA MI Trends
A3: Detailed model parameter results
A4: Qualifications
B6: Oliver Wyman was commissioned by the Society of Actuaries to identify how mortality improvement varies by key drivers. The primary audience for this report includes actuaries and members of the public interested in how mortality is changing over time. There are no third party beneficiaries with respect to this documents, and Oliver Wyman does not accept any liability to any third party.
B10: Information furnished by others, upon which all or portions of this documents are based, is believed to be reliable but has not been independently verified, unless otherwise expressly indicated. Public information and industry and statistical data are from sources we deem to be reliable; however, we make no representation as to the accuracy or completeness of such information. Any predictions based on this documents are subject to inherent risks and uncertainties. Oliver Wyman accepts no responsibility for actual results or future events.
B15: Oliver Wyman shall not have any liability to any third party in respect of this report or any actions taken or decisions made as a consequence of the results, advice or recommendations set forth herein.
B18: The opinions expressed in this document are valid only for the purpose stated herein and as of the date of this document. No obligation is assumed to revise this report to reflect changes, events, or conditions, which occur subsequent to the date hereof.
B21: This document does not represent investment advice nor does it provide an opinion regarding the fairness of any transaction to any and all parties. In addition, this document does not represent legal, medical, accounting, safety, or other specialized advice. For any such advice, Oliver Wyman recommends seeking and obtaining advice from a qualified professional.
B25: Any opinions and conclusions expressed herein are those of the authors and do not necessarily reflect the views of the U.S. Census Bureau. All results have been reviewed to ensure that no confidential information is disclosed. The statistical summaries reported in this document have been cleared by the Census Bureau's Disclosure Review Board release authorization numbers CBDRB-FY22-CES004-012, CBDRB-FY22-CES004-014, CBDRB-FY22-CES004-015, CBDRB-FY22-CES004-016, CBDRB-FY22-CES004-037, and CBDRB-FY22-CES004-038.

Sheet Overview
A2: SOA MI Trends
A3: Detailed model parameter results
A4: Overview
B6: User input
B8: Sex | C8: Male | D8: sex
B9: Smoker Status | C9: Not Asked | D9: smoker_status
B10: Income Decile | C10: 10 | D10: income_decile
B11: Education | C11: High School diploma | D11: education
B12: Race/Ethnicity | C12: White Non-Hispanic | D12: race
B13: Employment Status | C13: Employed | D13: employment_status
B14: Marital Status | C14: Married | D14: marital_status
B15: Occupation | C15: Professional | D15: occupation
B16: Cause of Death | C16: All cause | D16: cause_of_death
B19: Tab | C19: Description
B20: Qualifications | C20: Legal
B21: Overview | C21: User input and description of conents
B22: Results | C22: Output with the following exhibits: 1. Smoothed mortality for each regression 2. Mortality improvement between each regression 3. Annualized mortality improvement 4. 75% confidence interval radii for each mortality improvement point estimate
B23: Calculations--> | C23: Spacer
B24: Calculation | C24: Dynamic processing tab that selects regression parameters based on user input and translates them to smoothed mortality and mortality improvement. For more detail on the calculations, see the accompanying report. Password protected to prevent inadvertent edits. Password = SOAMI2022
B25: Variance | C25: Dynamic processing tab used to populate static tables representing the 75% confidence interval for each mortality improvement point estimate Password protected to prevent inadvertent edits. Password = SOAMI2022
B26: Lookup | C26: Support tab
B27: Regression parameter results--> | C27: Spacer
B28: All cause parameters | C28: Parameters provided by the US Census
B29: Cancer parameters
B30: Heart parameters
B31: Pulmonary parameters
B32: Stroke parameters
B33: Means parameters
B34: Deaths and Exposures
B35: Death counts--> | C35: Spacer
B36: 1980-1983 | C36: Death counts provided by the US Census
B37: 1984-1987
B38: 1988-1991
B39: 1992-1995
B40: 1996-1999
B41: 2000-2003
B42: 2004-2007
B43: 2008-11 (NLMS)
B44: 2008-11 (MDAC)

Sheet Results
A2: SOA MI Trends
A3: Detailed model parameter results
A4: Results
B6: User selections
B7: =Overview!B8 -> Sex | C7: =Overview!C8 -> Male
B8: =Overview!B9 -> Smoker Status | C8: =Overview!C9 -> Not Asked
B9: =Overview!B10 -> Income Decile | C9: =Overview!C10 -> 10
B10: =Overview!B11 -> Education | C10: =Overview!C11 -> High School diploma
B11: =Overview!B12 -> Race/Ethnicity | C11: =Overview!C12 -> White Non-Hispanic
B12: =Overview!B13 -> Employment Status | C12: =Overview!C13 -> Employed
B13: =Overview!B14 -> Marital Status | C13: =Overview!C14 -> Married
B14: =Overview!B15 -> Occupation | C14: =Overview!C15 -> Professional
B15: =Overview!B16 -> Cause of Death | C15: =Overview!C16 -> All cause
B17: =Calculation!CF6 -> Smoothed mortality (all cause, cancer, and heart)
C18: =Calculation!CG7 -> 1980-1983 | D18: =Calculation!CH7 -> 1984-1987 | E18: =Calculation!CI7 -> 1988-1991 | F18: =Calculation!CJ7 -> 1992-1995 | G18: =Calculation!CK7 -> 1996-1999 | H18: =Calculation!CL7 -> 2000-2003 | I18: =Calculation!CM7 -> 2004-2007 | J18: =Calculation!CN7 -> 2008-11 (NLMS) | K18: =Calculation!CO7 -> 2008-11 (MDAC)
B19: 40-44 | C19: =Calculation!CG8 -> 0.005175969012 | D19: =Calculation!CH8 -> 0.005112283949 | E19: =Calculation!CI8 -> 0.004938953511 | F19: =Calculation!CJ8 -> 0.004680425243 | G19: =Calculation!CK8 -> 0.00438304878 | H19: =Calculation!CL8 -> 0.004099546226 | I19: =Calculation!CM8 -> 0.003867806062 | J19: =Calculation!CN8 -> 0.003712209315 | K19: =Calculation!CO8 -> 0.003637435745
B20: 45-49 | C20: =Calculation!CG9 -> 0.008036138626 | D20: =Calculation!CH9 -> 0.007846023921 | E20: =Calculation!CI9 -> 0.007515654053 | F20: =Calculation!CJ9 -> 0.007069736883 | G20: =Calculation!CK9 -> 0.00656987121 | H20: =Calculation!CL9 -> 0.006093812027 | I20: =Calculation!CM9 -> 0.005705025033 | J20: =Calculation!CN9 -> 0.005444232659 | K20: =Calculation!CO9 -> 0.005324836045
B21: 50-54 | C21: =Calculation!CG10 -> 0.01267364123 | D21: =Calculation!CH10 -> 0.01225794396 | E21: =Calculation!CI10 -> 0.01156849372 | F21: =Calculation!CJ10 -> 0.0106709533 | G21: =Calculation!CK10 -> 0.009693919784 | H21: =Calculation!CL10 -> 0.008813036799 | I21: =Calculation!CM10 -> 0.008170975333 | J21: =Calculation!CN10 -> 0.007854918932 | K21: =Calculation!CO10 -> 0.00789689447
B22: 55-59 | C22: =Calculation!CG11 -> 0.01846409483 | D22: =Calculation!CH11 -> 0.01810651752 | E22: =Calculation!CI11 -> 0.01722720992 | F22: =Calculation!CJ11 -> 0.01592946287 | G22: =Calculation!CK11 -> 0.01442491092 | H22: =Calculation!CL11 -> 0.01298213943 | I22: =Calculation!CM11 -> 0.011831332 | J22: =Calculation!CN11 -> 0.01111248821 | K22: =Calculation!CO11 -> 0.01086998908
B23: 60-64 | C23: =Calculation!CG12 -> 0.02487864907 | D23: =Calculation!CH12 -> 0.02430590343 | E23: =Calculation!CI12 -> 0.02301699119 | F23: =Calculation!CJ12 -> 0.02113928853 | G23: =Calculation!CK12 -> 0.0189516645 | H23: =Calculation!CL12 -> 0.01685134603 | I23: =Calculation!CM12 -> 0.01519616821 | J23: =Calculation!CN12 -> 0.01420764848 | K23: =Calculation!CO12 -> 0.01396136244
B24: 65-69 | C24: =Calculation!CG13 -> 0.0309464303 | D24: =Calculation!CH13 -> 0.03103086309 | E24: =Calculation!CI13 -> 0.0300328337 | F24: =Calculation!CJ13 -> 0.02809040157 | G24: =Calculation!CK13 -> 0.02551701014 | H24: =Calculation!CL13 -> 0.022822457 | I24: =Calculation!CM13 -> 0.02050526508 | J24: =Calculation!CN13 -> 0.01890046487 | K24: =Calculation!CO13 -> 0.0181298025
B25: 70-74 | C25: =Calculation!CG14 -> 0.04277700533 | D25: =Calculation!CH14 -> 0.04359113954 | E25: =Calculation!CI14 -> 0.04273840409 | F25: =Calculation!CJ14 -> 0.0404251133 | G25: =Calculation!CK14 -> 0.03708017692 | H25: =Calculation!CL14 -> 0.03336291036 | I25: =Calculation!CM14 -> 0.02991540663 | J25: =Calculation!CN14 -> 0.02717304754 | K25: =Calculation!CO14 -> 0.02529298238
B26: 75-79 | C26: =Calculation!CG15 -> 0.06212017983 | D26: =Calculation!CH15 -> 0.06381213254 | E26: =Calculation!CI15 -> 0.06289586921 | F26: =Calculation!CJ15 -> 0.05965601001 | G26: =Calculation!CK15 -> 0.05475998389 | H26: =Calculation!CL15 -> 0.04936565687 | I26: =Calculation!CM15 -> 0.04462986847 | J26: =Calculation!CN15 -> 0.04135406147 | K26: =Calculation!CO15 -> 0.03983622995
B27: 80-84 | C27: =Calculation!CG16 -> 0.08982963576 | D27: =Calculation!CH16 -> 0.09337541906 | E27: =Calculation!CI16 -> 0.09259182636 | F27: =Calculation!CJ16 -> 0.08807340131 | G27: =Calculation!CK16 -> 0.08105668457 | H27: =Calculation!CL16 -> 0.07344730194 | I27: =Calculation!CM16 -> 0.06708572759 | J27: =Calculation!CN16 -> 0.06326147141 | K27: =Calculation!CO16 -> 0.06247081417
B28: 85+ | C28: =Calculation!CG17 -> 0.1317073303 | D28: =Calculation!CH17 -> 0.1351566894 | E28: =Calculation!CI17 -> 0.1334622062 | F28: =Calculation!CJ17 -> 0.1274506535 | G28: =Calculation!CK17 -> 0.1189984913 | H28: =Calculation!CL17 -> 0.1108937239 | I28: =Calculation!CM17 -> 0.105698586 | J28: =Calculation!CN17 -> 0.1050923883 | K28: =Calculation!CO17 -> 0.1097060662
B30: =Calculation!CF20 -> Smoothed mortality (pulmonary and stroke)
C31: =Calculation!CG21 -> 1980-1983 | D31: =Calculation!CH21 -> 1984-1987 | E31: =Calculation!CI21 -> 1988-1991 | F31: =Calculation!CJ21 -> 1992-1995 | G31: =Calculation!CK21 -> 1996-1999 | H31: =Calculation!CL21 -> 2000-2003 | I31: =Calculation!CM21 -> 2008-11 (MDAC)
B32: 40-44 | C32: =Calculation!CG22 -> 0.005133041037 | D32: =Calculation!CH22 -> 0.005144209179 | E32: =Calculation!CI22 -> 0.005027613604 | F32: =Calculation!CJ22 -> 0.004798019885 | G32: =Calculation!CK22 -> 0.004478992496 | H32: =Calculation!CL22 -> 0.0040902035 | I32: =Calculation!CM22 -> 0.003636011844
B33: 45-49 | C33: =Calculation!CG23 -> 0.007969031554 | D33: =Calculation!CH23 -> 0.007896180078 | E33: =Calculation!CI23 -> 0.007651347804 | F33: =Calculation!CJ23 -> 0.00724646749 | G33: =Calculation!CK23 -> 0.006709427935 | H33: =Calculation!CL23 -> 0.006067038769 | I33: =Calculation!CM23 -> 0.005328931191
B34: 50-54 | C34: =Calculation!CG24 -> 0.01256258166 | D34: =Calculation!CH24 -> 0.01230494007 | E34: =Calculation!CI24 -> 0.01176682493 | F34: =Calculation!CJ24 -> 0.01098842889 | G34: =Calculation!CK24 -> 0.01003616117 | H34: =Calculation!CL24 -> 0.008986739366 | I34: =Calculation!CM24 -> 0.00787443175
B35: 55-59 | C35: =Calculation!CG25 -> 0.01824984199 | D35: =Calculation!CH25 -> 0.01824524958 | E35: =Calculation!CI25 -> 0.01764683878 | F35: =Calculation!CJ25 -> 0.01651284948 | G35: =Calculation!CK25 -> 0.0149436396 | H35: =Calculation!CL25 -> 0.01303786894 | I35: =Calculation!CM25 -> 0.01084194781
B36: 60-64 | C36: =Calculation!CG26 -> 0.0245585906 | D36: =Calculation!CH26 -> 0.0244963128 | E36: =Calculation!CI26 -> 0.02362665428 | F36: =Calculation!CJ26 -> 0.02201439618 | G36: =Calculation!CK26 -> 0.01977787666 | H36: =Calculation!CL26 -> 0.01705796204 | I36: =Calculation!CM26 -> 0.01392849211
B37: 65-69 | C37: =Calculation!CG27 -> 0.03044055015 | D37: =Calculation!CH27 -> 0.03137224206 | E37: =Calculation!CI27 -> 0.03101736947 | F37: =Calculation!CJ27 -> 0.02942610844 | G37: =Calculation!CK27 -> 0.02668237129 | H37: =Calculation!CL27 -> 0.02291818953 | I37: =Calculation!CM27 -> 0.01820707958
B38: 70-74 | C38: =Calculation!CG28 -> 0.04203519546 | D38: =Calculation!CH28 -> 0.04419463656 | E38: =Calculation!CI28 -> 0.04426050444 | F38: =Calculation!CJ28 -> 0.04230956774 | G38: =Calculation!CK28 -> 0.03844450376 | H38: =Calculation!CL28 -> 0.03280456616 | I38: =Calculation!CM28 -> 0.02546087573
B39: 75-79 | C39: =Calculation!CG29 -> 0.06096564747 | D39: =Calculation!CH29 -> 0.06453160105 | E39: =Calculation!CI29 -> 0.06509170992 | F39: =Calculation!CJ29 -> 0.06273534659 | G39: =Calculation!CK29 -> 0.0576115842 | H39: =Calculation!CL29 -> 0.05000616353 | I39: =Calculation!CM29 -> 0.0400799795
B40: 80-84 | C40: =Calculation!CG30 -> 0.08817006206 | D40: =Calculation!CH30 -> 0.09415690154 | E40: =Calculation!CI30 -> 0.09556650779 | F40: =Calculation!CJ30 -> 0.09268037357 | G40: =Calculation!CK30 -> 0.08592928413 | H40: =Calculation!CL30 -> 0.07587821812 | I40: =Calculation!CM30 -> 0.06281624234
B41: 85+ | C41: =Calculation!CG31 -> 0.1300814607 | D41: =Calculation!CH31 -> 0.1351219652 | E41: =Calculation!CI31 -> 0.1357993068 | F41: =Calculation!CJ31 -> 0.1325908839 | G41: =Calculation!CK31 -> 0.1264288506 | H41: =Calculation!CL31 -> 0.1184847016 | I41: =Calculation!CM31 -> 0.1093895641
B43: =Calculation!CQ6 -> Mortality improvement (all cause, cancer, heart)
C44: 1987.5-1991.5 | D44: 1991.5-1995.5 | E44: 1995.5-1999.5 | F44: 1999.5-2003.5 | G44: 2003.5-2006 | H44: 2006-2008 | I44: 2008-2010 | J44: 2010-2012
B45: 40-44 | C45: =Calculation!CR8 -> 0.00309029251 | D45: =Calculation!CS8 -> 0.008586124902 | E45: =Calculation!CT8 -> 0.01335119627 | F45: =Calculation!CU8 -> 0.01627717616 | G45: =Calculation!CV8 -> 0.0263927628 | H45: =Calculation!CW8 -> 0.02867525908 | I45: =Calculation!CX8 -> 0.02032080958 | J45: =Calculation!CY8 -> 0.0101225359
B46: 45-49 | C46: =Calculation!CR9 -> 0.005967573079 | D46: =Calculation!CS9 -> 0.01069708593 | E46: =Calculation!CT9 -> 0.01517488055 | F46: =Calculation!CU9 -> 0.01816524471 | G46: =Calculation!CV9 -> 0.02964001523 | H46: =Calculation!CW9 -> 0.03242586494 | I46: =Calculation!CX9 -> 0.02312372758 | J46: =Calculation!CY9 -> 0.01102621037
B47: 50-54 | C47: =Calculation!CR10 -> 0.008302871574 | D47: =Calculation!CS10 -> 0.01436799807 | E47: =Calculation!CT10 -> 0.01998753173 | F47: =Calculation!CU10 -> 0.02372076859 | G47: =Calculation!CV10 -> 0.03738978777 | H47: =Calculation!CW10 -> 0.03711558375 | I47: =Calculation!CX10 -> 0.01953091655 | J47: =Calculation!CY10 -> -0.002668366789
B48: 55-59 | C48: =Calculation!CR11 -> 0.004877085482 | D48: =Calculation!CS11 -> 0.01236833836 | E48: =Calculation!CT11 -> 0.01938948341 | F48: =Calculation!CU11 -> 0.02449836422 | G48: =Calculation!CV11 -> 0.0412767674 | H48: =Calculation!CW11 -> 0.04535107896 | I48: =Calculation!CX11 -> 0.03085482904 | J48: =Calculation!CY11 -> 0.01097129325
B49: 60-64 | C49: =Calculation!CR12 -> 0.005805758164 | D49: =Calculation!CS12 -> 0.01352928773 | E49: =Calculation!CT12 -> 0.02105012836 | F49: =Calculation!CU12 -> 0.0269408334 | G49: =Calculation!CV12 -> 0.04589780524 | H49: =Calculation!CW12 -> 0.05038022936 | I49: =Calculation!CX12 -> 0.03307218057 | J49: =Calculation!CY12 -> 0.008705265798
B50: 65-69 | C50: =Calculation!CR13 -> -0.0006813915889 | D50: =Calculation!CS13 -> 0.008139457045 | E50: =Calculation!CT13 -> 0.01657689155 | F50: =Calculation!CU13 -> 0.02373446077 | G50: =Calculation!CV13 -> 0.04365840679 | H50: =Calculation!CW13 -> 0.05212406978 | I50: =Calculation!CX13 -> 0.0399285632 | J50: =Calculation!CY13 -> 0.02059956293
B51: 70-74 | C51: =Calculation!CR14 -> -0.004724427219 | D51: =Calculation!CS14 -> 0.004926822882 | E51: =Calculation!CT14 -> 0.01381535513 | F51: =Calculation!CU14 -> 0.02136073179 | G51: =Calculation!CV14 -> 0.0413747757 | H51: =Calculation!CW14 -> 0.05307519993 | I51: =Calculation!CX14 -> 0.04693675979 | J51: =Calculation!CY14 -> 0.03521432509
B52: 75-79 | C52: =Calculation!CR15 -> -0.006740728219 | D52: =Calculation!CS15 -> 0.003609183259 | E52: =Calculation!CT15 -> 0.01313437902 | F52: =Calculation!CU15 -> 0.02118125636 | G52: =Calculation!CV15 -> 0.04063329216 | H52: =Calculation!CW15 -> 0.04917554451 | I52: =Calculation!CX15 -> 0.03739906094 | J52: =Calculation!CY15 -> 0.01852321683
B53: 80-84 | C53: =Calculation!CR16 -> -0.009725283901 | D53: =Calculation!CS16 -> 0.00210459768 | E53: =Calculation!CT16 -> 0.01242967963 | F53: =Calculation!CU16 -> 0.02054155118 | G53: =Calculation!CV16 -> 0.0386648892 | H53: =Calculation!CW16 -> 0.04428776955 | I53: =Calculation!CX16 -> 0.02892096665 | J53: =Calculation!CY16 -> 0.006268770259
B54: 85+ | C54: =Calculation!CR17 -> -0.006484056312 | D54: =Calculation!CS17 -> 0.003149138295 | E54: =Calculation!CT17 -> 0.01145614285 | F54: =Calculation!CU17 -> 0.01700830834 | G54: =Calculation!CV17 -> 0.0278210686 | H54: =Calculation!CW17 -> 0.02370491051 | I54: =Calculation!CX17 -> 0.002871700727 | J54: =Calculation!CY17 -> -0.0217148142
B56: =Calculation!CQ20 -> Mortality improvement (Pulmonary and Stroke)
C57: 1987.5-1991.5 | D57: 1991.5-1995.5 | E57: 1995.5-1999.5 | F57: 1999.5-2003.5 | G57: 2003.5-2006 | H57: 2006-2012
B58: 40-44 | C58: =Calculation!CR22 -> -0.0005434907547 | D58: =Calculation!CS22 -> 0.005715158923 | E58: =Calculation!CT22 -> 0.01161752187 | F58: =Calculation!CU22 -> 0.01705419663 | G58: =Calculation!CV22 -> 0.03566965636 | H58: =Calculation!CW22 -> 0.01942670337
B59: 45-49 | C59: =Calculation!CR23 -> 0.002293332781 | D59: =Calculation!CS23 -> 0.007843401801 | E59: =Calculation!CT23 -> 0.01349997395 | F59: =Calculation!CU23 -> 0.01906600384 | G59: =Calculation!CV23 -> 0.03945766434 | H59: =Calculation!CW23 -> 0.02138795457
B60: 50-54 | C60: =Calculation!CR24 -> 0.005167072678 | D60: =Calculation!CS24 -> 0.01111691733 | E60: =Calculation!CT24 -> 0.01696478094 | F60: =Calculation!CU24 -> 0.02240717306 | G60: =Calculation!CV24 -> 0.04321621243 | H60: =Calculation!CW24 -> 0.02178080727
B61: 55-59 | C61: =Calculation!CR25 -> 6.291622391e-05 | D61: =Calculation!CS25 -> 0.008302365315 | E61: =Calculation!CT25 -> 0.01646736274 | F61: =Calculation!CU25 -> 0.02465426165 | G61: =Calculation!CV25 -> 0.05310877798 | H61: =Calculation!CW25 -> 0.03027159533
B62: 60-64 | C62: =Calculation!CR26 -> 0.0006345754103 | D62: =Calculation!CS26 -> 0.008996069678 | E62: =Calculation!CT26 -> 0.01751452645 | F62: =Calculation!CU26 -> 0.02642767166 | G62: =Calculation!CV26 -> 0.05746173262 | H62: =Calculation!CW26 -> 0.03321591359
B63: 65-69 | C63: =Calculation!CR27 -> -0.00756544576 | D63: =Calculation!CS27 -> 0.002839994114 | E63: =Calculation!CT27 -> 0.01307996161 | F63: =Calculation!CU27 -> 0.02417284797 | G63: =Calculation!CV27 -> 0.05901575207 | H63: =Calculation!CW27 -> 0.03762722042
B64: 70-74 | C64: =Calculation!CR28 -> -0.01260279994 | D64: =Calculation!CS28 -> -0.0003723929888 | E64: =Calculation!CT28 -> 0.01120660376 | F64: =Calculation!CU28 -> 0.02366486642 | G64: =Calculation!CV28 -> 0.06148759861 | H64: =Calculation!CW28 -> 0.04135788067
B65: 75-79 | C65: =Calculation!CR29 -> -0.01431258138 | D65: =Calculation!CS29 -> -0.002162874361 | E65: =Calculation!CT29 -> 0.00917568589 | F65: =Calculation!CU29 -> 0.02107509188 | G65: =Calculation!CV29 -> 0.0550572709 | H65: =Calculation!CW29 -> 0.03620650152
B66: 80-84 | C66: =Calculation!CR30 -> -0.0165593823 | D66: =Calculation!CS30 -> -0.003721875472 | E66: =Calculation!CT30 -> 0.007637110801 | F66: =Calculation!CU30 -> 0.01873037735 | G66: =Calculation!CV30 -> 0.04854035717 | H66: =Calculation!CW30 -> 0.03099547529
B67: 85+ | C67: =Calculation!CR31 -> -0.009549543887 | D67: =Calculation!CS31 -> -0.001250855193 | E67: =Calculation!CT31 -> 0.005959616515 | F67: =Calculation!CU31 -> 0.01182666431 | G67: =Calculation!CV31 -> 0.02562431971 | H67: =Calculation!CW31 -> 0.0132231882
B69: Annualized mortality improvement
C70: Annualized MI | D70: Annualized MI (smoothed)
B71: 40-44 | C71: =1-(Calculation!CD8/Calculation!BV8)^(1/24.5) -> 0.01290757439 | D71: =IF(OR(cause_of_death="Pulmonary",cause_of_death="Stroke"),1-(Calculation!CM22/Calculation!CG22)^(1/24.5),1-(Calculation!CO8/Calculation!CG8)^(1/24.5)) -> 0.01429470778
B72: 45-49 | C72: =1-(Calculation!CD9/Calculation!BV9)^(1/24.5) -> 0.01560328235 | D72: =IF(OR(cause_of_death="Pulmonary",cause_of_death="Stroke"),1-(Calculation!CM23/Calculation!CG23)^(1/24.5),1-(Calculation!CO9/Calculation!CG9)^(1/24.5)) -> 0.01665833347
B73: 50-54 | C73: =1-(Calculation!CD10/Calculation!BV10)^(1/24.5) -> 0.01735755967 | D73: =IF(OR(cause_of_death="Pulmonary",cause_of_death="Stroke"),1-(Calculation!CM24/Calculation!CG24)^(1/24.5),1-(Calculation!CO10/Calculation!CG10)^(1/24.5)) -> 0.01912314541
B74: 55-59 | C74: =1-(Calculation!CD11/Calculation!BV11)^(1/24.5) -> 0.01951699678 | D74: =IF(OR(cause_of_death="Pulmonary",cause_of_death="Stroke"),1-(Calculation!CM25/Calculation!CG25)^(1/24.5),1-(Calculation!CO11/Calculation!CG11)^(1/24.5)) -> 0.02139324869
B75: 60-64 | C75: =1-(Calculation!CD12/Calculation!BV12)^(1/24.5) -> 0.02143606256 | D75: =IF(OR(cause_of_death="Pulmonary",cause_of_death="Stroke"),1-(Calculation!CM26/Calculation!CG26)^(1/24.5),1-(Calculation!CO12/Calculation!CG12)^(1/24.5)) -> 0.02330441448
B76: 65-69 | C76: =1-(Calculation!CD13/Calculation!BV13)^(1/24.5) -> 0.0197730895 | D76: =IF(OR(cause_of_death="Pulmonary",cause_of_death="Stroke"),1-(Calculation!CM27/Calculation!CG27)^(1/24.5),1-(Calculation!CO13/Calculation!CG13)^(1/24.5)) -> 0.02158807964
B77: 70-74 | C77: =1-(Calculation!CD14/Calculation!BV14)^(1/24.5) -> 0.01935290222 | D77: =IF(OR(cause_of_death="Pulmonary",cause_of_death="Stroke"),1-(Calculation!CM28/Calculation!CG28)^(1/24.5),1-(Calculation!CO14/Calculation!CG14)^(1/24.5)) -> 0.02121953612
B78: 75-79 | C78: =1-(Calculation!CD15/Calculation!BV15)^(1/24.5) -> 0.01604515718 | D78: =IF(OR(cause_of_death="Pulmonary",cause_of_death="Stroke"),1-(Calculation!CM29/Calculation!CG29)^(1/24.5),1-(Calculation!CO15/Calculation!CG15)^(1/24.5)) -> 0.01797101311
B79: 80-84 | C79: =1-(Calculation!CD16/Calculation!BV16)^(1/24.5) -> 0.01218209716 | D79: =IF(OR(cause_of_death="Pulmonary",cause_of_death="Stroke"),1-(Calculation!CM30/Calculation!CG30)^(1/24.5),1-(Calculation!CO16/Calculation!CG16)^(1/24.5)) -> 0.01471577001
B80: 85+ | C80: =1-(Calculation!CD17/Calculation!BV17)^(1/24.5) -> 0.00518220838 | D80: =IF(OR(cause_of_death="Pulmonary",cause_of_death="Stroke"),1-(Calculation!CM31/Calculation!CG31)^(1/24.5),1-(Calculation!CO17/Calculation!CG17)^(1/24.5)) -> 0.007432551263
B82: 75% confidence interval radius (all cause)
C83: 1987.5-1991.5 | D83: 1991.5-1995.5 | E83: 1995.5-1999.5 | F83: 1999.5-2003.5 | G83: 2003.5-2006 | H83: 2006-2008 | I83: 2008-2010 | J83: 2010-2012
B84: age 40-44 | C84: =IFERROR(Variance!W123,"N/A") -> 0.04765505995 | D84: =IFERROR(Variance!X123,"N/A") -> 0.05580431796 | E84: =IFERROR(Variance!Y123,"N/A") -> 0.05223287359 | F84: =IFERROR(Variance!Z123,"N/A") -> 0.05064659654 | G84: =IFERROR(Variance!AA123,"N/A") -> 0.04921777061 | H84: =IFERROR(Variance!AB123,"N/A") -> 0.05049985674 | I84: =IFERROR(Variance!AC123,"N/A") -> 0.08223558273 | J84: =IFERROR(Variance!AD123,"N/A") -> 0.07543915237
B85: age 45-49 | C85: =IFERROR(Variance!W124,"N/A") -> 0.04121442346 | D85: =IFERROR(Variance!X124,"N/A") -> 0.0494891484 | E85: =IFERROR(Variance!Y124,"N/A") -> 0.04667589804 | F85: =IFERROR(Variance!Z124,"N/A") -> 0.04353240863 | G85: =IFERROR(Variance!AA124,"N/A") -> 0.04174297243 | H85: =IFERROR(Variance!AB124,"N/A") -> 0.04326949594 | I85: =IFERROR(Variance!AC124,"N/A") -> 0.06469451776 | J85: =IFERROR(Variance!AD124,"N/A") -> 0.05836853414
B86: age 50-54 | C86: =IFERROR(Variance!W125,"N/A") -> 0.0321842512 | D86: =IFERROR(Variance!X125,"N/A") -> 0.0404513556 | E86: =IFERROR(Variance!Y125,"N/A") -> 0.03913816321 | F86: =IFERROR(Variance!Z125,"N/A") -> 0.03800273149 | G86: =IFERROR(Variance!AA125,"N/A") -> 0.03758069423 | H86: =IFERROR(Variance!AB125,"N/A") -> 0.03793958274 | I86: =IFERROR(Variance!AC125,"N/A") -> 0.06326174008 | J86: =IFERROR(Variance!AD125,"N/A") -> 0.05956091739
B87: age 55-59 | C87: =IFERROR(Variance!W126,"N/A") -> 0.02611648497 | D87: =IFERROR(Variance!X126,"N/A") -> 0.03290198861 | E87: =IFERROR(Variance!Y126,"N/A") -> 0.03340517114 | F87: =IFERROR(Variance!Z126,"N/A") -> 0.03409374367 | G87: =IFERROR(Variance!AA126,"N/A") -> 0.03457943763 | H87: =IFERROR(Variance!AB126,"N/A") -> 0.03468269545 | I87: =IFERROR(Variance!AC126,"N/A") -> 0.05045793787 | J87: =IFERROR(Variance!AD126,"N/A") -> 0.04598373003
B88: age 60-64 | C88: =IFERROR(Variance!W127,"N/A") -> 0.02240673387 | D88: =IFERROR(Variance!X127,"N/A") -> 0.02713048346 | E88: =IFERROR(Variance!Y127,"N/A") -> 0.02740339131 | F88: =IFERROR(Variance!Z127,"N/A") -> 0.0287376257 | G88: =IFERROR(Variance!AA127,"N/A") -> 0.02998379116 | H88: =IFERROR(Variance!AB127,"N/A") -> 0.0319576151 | I88: =IFERROR(Variance!AC127,"N/A") -> 0.0475491987 | J88: =IFERROR(Variance!AD127,"N/A") -> 0.04347010898
B89: age 65-69 (age group) | C89: =IFERROR(Variance!W128,"N/A") -> 0.02054059548 | D89: =IFERROR(Variance!X128,"N/A") -> 0.02422407711 | E89: =IFERROR(Variance!Y128,"N/A") -> 0.02369286775 | F89: =IFERROR(Variance!Z128,"N/A") -> 0.02418352056 | G89: =IFERROR(Variance!AA128,"N/A") -> 0.02594366602 | H89: =IFERROR(Variance!AB128,"N/A") -> 0.02903756787 | I89: =IFERROR(Variance!AC128,"N/A") -> 0.04418556964 | J89: =IFERROR(Variance!AD128,"N/A") -> 0.04020455123
B90: age 70-74 | C90: =IFERROR(Variance!W129,"N/A") -> 0.01991268614 | D90: =IFERROR(Variance!X129,"N/A") -> 0.02330940406 | E90: =IFERROR(Variance!Y129,"N/A") -> 0.02211317863 | F90: =IFERROR(Variance!Z129,"N/A") -> 0.02146039913 | G90: =IFERROR(Variance!AA129,"N/A") -> 0.02258887105 | H90: =IFERROR(Variance!AB129,"N/A") -> 0.02572586043 | I90: =IFERROR(Variance!AC129,"N/A") -> 0.04100568142 | J90: =IFERROR(Variance!AD129,"N/A") -> 0.03716421916
B91: age 75-79 | C91: =IFERROR(Variance!W130,"N/A") -> 0.0211150582 | D91: =IFERROR(Variance!X130,"N/A") -> 0.02446771867 | E91: =IFERROR(Variance!Y130,"N/A") -> 0.02254903529 | F91: =IFERROR(Variance!Z130,"N/A") -> 0.02109448852 | G91: =IFERROR(Variance!AA130,"N/A") -> 0.02131850978 | H91: =IFERROR(Variance!AB130,"N/A") -> 0.02321898699 | I91: =IFERROR(Variance!AC130,"N/A") -> 0.03700477209 | J91: =IFERROR(Variance!AD130,"N/A") -> 0.03412761306
B92: age 80-84 | C92: =IFERROR(Variance!W131,"N/A") -> 0.02465808028 | D92: =IFERROR(Variance!X131,"N/A") -> 0.02835475659 | E92: =IFERROR(Variance!Y131,"N/A") -> 0.02547622548 | F92: =IFERROR(Variance!Z131,"N/A") -> 0.02331550846 | G92: =IFERROR(Variance!AA131,"N/A") -> 0.02252329801 | H92: =IFERROR(Variance!AB131,"N/A") -> 0.02362876798 | I92: =IFERROR(Variance!AC131,"N/A") -> 0.03690939148 | J92: =IFERROR(Variance!AD131,"N/A") -> 0.03384935522
B93: age 85+ | C93: =IFERROR(Variance!W132,"N/A") -> 0.02868073479 | D93: =IFERROR(Variance!X132,"N/A") -> 0.0334179239 | E93: =IFERROR(Variance!Y132,"N/A") -> 0.03004052354 | F93: =IFERROR(Variance!Z132,"N/A") -> 0.02684797507 | G93: =IFERROR(Variance!AA132,"N/A") -> 0.0284265279 | H93: =IFERROR(Variance!AB132,"N/A") -> 0.0277141809 | I93: =IFERROR(Variance!AC132,"N/A") -> 0.03329580776 | J93: =IFERROR(Variance!AD132,"N/A") -> 0.02983530203
B94: Male (Sex) | C94: =IFERROR(Variance!W133,"N/A") -> 0.01026991795 | D94: =IFERROR(Variance!X133,"N/A") -> 0.01232977011 | E94: =IFERROR(Variance!Y133,"N/A") -> 0.01195813518 | F94: =IFERROR(Variance!Z133,"N/A") -> 0.01172896549 | G94: =IFERROR(Variance!AA133,"N/A") -> 0.01171798448 | H94: =IFERROR(Variance!AB133,"N/A") -> 0.01229223358 | I94: =IFERROR(Variance!AC133,"N/A") -> 0.01897633101 | J94: =IFERROR(Variance!AD133,"N/A") -> 0.0174213921
B95: Female | C95: =IFERROR(Variance!W134,"N/A") -> 0.01160585701 | D95: =IFERROR(Variance!X134,"N/A") -> 0.01348541407 | E95: =IFERROR(Variance!Y134,"N/A") -> 0.01255783882 | F95: =IFERROR(Variance!Z134,"N/A") -> 0.01204256338 | G95: =IFERROR(Variance!AA134,"N/A") -> 0.01199490062 | H95: =IFERROR(Variance!AB134,"N/A") -> 0.01254775477 | I95: =IFERROR(Variance!AC134,"N/A") -> 0.01945295448 | J95: =IFERROR(Variance!AD134,"N/A") -> 0.01750195515
B96: 1-Never | C96: N/A | D96: N/A | E96: N/A | F96: =IFERROR(Variance!Z135,"N/A") -> 0.01675434487 | G96: =IFERROR(Variance!AA135,"N/A") -> 0.01485723904 | H96: =IFERROR(Variance!AB135,"N/A") -> 0.02037760318 | I96: =IFERROR(Variance!AC135,"N/A") -> 0.04725260199 | J96: N/A
B97: 2-Current | C97: N/A | D97: N/A | E97: N/A | F97: =IFERROR(Variance!Z136,"N/A") -> 0.02761818048 | G97: =IFERROR(Variance!AA136,"N/A") -> 0.02368531554 | H97: =IFERROR(Variance!AB136,"N/A") -> 0.03068378104 | I97: =IFERROR(Variance!AC136,"N/A") -> 0.06574282155 | J97: N/A
B98: 3-Former | C98: N/A | D98: N/A | E98: N/A | F98: =IFERROR(Variance!Z137,"N/A") -> 0.01904580565 | G98: =IFERROR(Variance!AA137,"N/A") -> 0.01658555109 | H98: =IFERROR(Variance!AB137,"N/A") -> 0.02280544829 | I98: =IFERROR(Variance!AC137,"N/A") -> 0.05249970748 | J98: N/A
B99: 4-Not_Asked (smoker) | C99: =IFERROR(Variance!W138,"N/A") -> 0.007433175783 | D99: =IFERROR(Variance!X138,"N/A") -> 0.008845329071 | E99: =IFERROR(Variance!Y138,"N/A") -> 0.009802502168 | F99: =IFERROR(Variance!Z138,"N/A") -> 0.01202091209 | G99: =IFERROR(Variance!AA138,"N/A") -> 0.01512655019 | H99: =IFERROR(Variance!AB138,"N/A") -> 0.01430376573 | I99: =IFERROR(Variance!AC138,"N/A") -> 0.01538506026 | J99: =IFERROR(Variance!AD138,"N/A") -> 0.01384454413
B100: 1-Married (marital status) | C100: =IFERROR(Variance!W139,"N/A") -> 0.009752264623 | D100: =IFERROR(Variance!X139,"N/A") -> 0.01166123483 | E100: =IFERROR(Variance!Y139,"N/A") -> 0.01131960478 | F100: =IFERROR(Variance!Z139,"N/A") -> 0.0112687391 | G100: =IFERROR(Variance!AA139,"N/A") -> 0.0114006282 | H100: =IFERROR(Variance!AB139,"N/A") -> 0.01235924774 | I100: =IFERROR(Variance!AC139,"N/A") -> 0.02007598215 | J100: =IFERROR(Variance!AD139,"N/A") -> 0.01849925577
B101: 2-Widowed | C101: =IFERROR(Variance!W140,"N/A") -> 0.0139109082 | D101: =IFERROR(Variance!X140,"N/A") -> 0.01655276363 | E101: =IFERROR(Variance!Y140,"N/A") -> 0.01564137903 | F101: =IFERROR(Variance!Z140,"N/A") -> 0.01509565031 | G101: =IFERROR(Variance!AA140,"N/A") -> 0.01553067896 | H101: =IFERROR(Variance!AB140,"N/A") -> 0.01664026344 | I101: =IFERROR(Variance!AC140,"N/A") -> 0.02589626454 | J101: =IFERROR(Variance!AD140,"N/A") -> 0.02470234476
B102: 3-Divorced | C102: =IFERROR(Variance!W141,"N/A") -> 0.03048185855 | D102: =IFERROR(Variance!X141,"N/A") -> 0.03474096832 | E102: =IFERROR(Variance!Y141,"N/A") -> 0.03117682431 | F102: =IFERROR(Variance!Z141,"N/A") -> 0.0280568491 | G102: =IFERROR(Variance!AA141,"N/A") -> 0.02630314244 | H102: =IFERROR(Variance!AB141,"N/A") -> 0.02645757327 | I102: =IFERROR(Variance!AC141,"N/A") -> 0.04019610028 | J102: =IFERROR(Variance!AD141,"N/A") -> 0.03786352283
B103: 4-Separated | C103: =IFERROR(Variance!W142,"N/A") -> 0.05776990845 | D103: =IFERROR(Variance!X142,"N/A") -> 0.06861241293 | E103: =IFERROR(Variance!Y142,"N/A") -> 0.06410972524 | F103: =IFERROR(Variance!Z142,"N/A") -> 0.06304760561 | G103: =IFERROR(Variance!AA142,"N/A") -> 0.06530394864 | H103: =IFERROR(Variance!AB142,"N/A") -> 0.06549311829 | I103: =IFERROR(Variance!AC142,"N/A") -> 0.09914433647 | J103: =IFERROR(Variance!AD142,"N/A") -> 0.09447317273
B104: 5-NeverMar. | C104: =IFERROR(Variance!W143,"N/A") -> 0.03008165721 | D104: =IFERROR(Variance!X143,"N/A") -> 0.03682945556 | E104: =IFERROR(Variance!Y143,"N/A") -> 0.03571433795 | F104: =IFERROR(Variance!Z143,"N/A") -> 0.03484366564 | G104: =IFERROR(Variance!AA143,"N/A") -> 0.03462341185 | H104: =IFERROR(Variance!AB143,"N/A") -> 0.03482624407 | I104: =IFERROR(Variance!AC143,"N/A") -> 0.05147952977 | J104: =IFERROR(Variance!AD143,"N/A") -> 0.04791571903
B105: 1-Lowest inc. | C105: =IFERROR(Variance!W144,"N/A") -> 0.01733898122 | D105: =IFERROR(Variance!X144,"N/A") -> 0.02159783668 | E105: =IFERROR(Variance!Y144,"N/A") -> 0.02015795939 | F105: =IFERROR(Variance!Z144,"N/A") -> 0.01941508299 | G105: =IFERROR(Variance!AA144,"N/A") -> 0.02003038366 | H105: =IFERROR(Variance!AB144,"N/A") -> 0.02065143775 | I105: =IFERROR(Variance!AC144,"N/A") -> 0.03121899169 | J105: =IFERROR(Variance!AD144,"N/A") -> 0.0298444895
B106: 2-Second dec. | C106: =IFERROR(Variance!W145,"N/A") -> 0.01646294345 | D106: =IFERROR(Variance!X145,"N/A") -> 0.02040473195 | E106: =IFERROR(Variance!Y145,"N/A") -> 0.01918398633 | F106: =IFERROR(Variance!Z145,"N/A") -> 0.01846397746 | G106: =IFERROR(Variance!AA145,"N/A") -> 0.01868025468 | H106: =IFERROR(Variance!AB145,"N/A") -> 0.02006663664 | I106: =IFERROR(Variance!AC145,"N/A") -> 0.03165281267 | J106: =IFERROR(Variance!AD145,"N/A") -> 0.02983020452
B107: 3-Third dec. | C107: =IFERROR(Variance!W146,"N/A") -> 0.0205668754 | D107: =IFERROR(Variance!X146,"N/A") -> 0.02291211994 | E107: =IFERROR(Variance!Y146,"N/A") -> 0.02155412374 | F107: =IFERROR(Variance!Z146,"N/A") -> 0.02084038969 | G107: =IFERROR(Variance!AA146,"N/A") -> 0.02132901605 | H107: =IFERROR(Variance!AB146,"N/A") -> 0.02260802305 | I107: =IFERROR(Variance!AC146,"N/A") -> 0.03682292149 | J107: =IFERROR(Variance!AD146,"N/A") -> 0.03482199725
B108: 4-Fourth dec. | C108: =IFERROR(Variance!W147,"N/A") -> 0.02218028188 | D108: =IFERROR(Variance!X147,"N/A") -> 0.02584686853 | E108: =IFERROR(Variance!Y147,"N/A") -> 0.02489671946 | F108: =IFERROR(Variance!Z147,"N/A") -> 0.02435754147 | G108: =IFERROR(Variance!AA147,"N/A") -> 0.02441296632 | H108: =IFERROR(Variance!AB147,"N/A") -> 0.0265411801 | I108: =IFERROR(Variance!AC147,"N/A") -> 0.04396144212 | J108: =IFERROR(Variance!AD147,"N/A") -> 0.04100711731
B109: 5-Fifth dec. | C109: =IFERROR(Variance!W148,"N/A") -> 0.02506572874 | D109: =IFERROR(Variance!X148,"N/A") -> 0.02985946003 | E109: =IFERROR(Variance!Y148,"N/A") -> 0.02838392337 | F109: =IFERROR(Variance!Z148,"N/A") -> 0.02804830678 | G109: =IFERROR(Variance!AA148,"N/A") -> 0.02800263354 | H109: =IFERROR(Variance!AB148,"N/A") -> 0.03054061133 | I109: =IFERROR(Variance!AC148,"N/A") -> 0.04918021844 | J109: =IFERROR(Variance!AD148,"N/A") -> 0.04513934636
B110: 6-Sixth dec. | C110: =IFERROR(Variance!W149,"N/A") -> 0.02769336926 | D110: =IFERROR(Variance!X149,"N/A") -> 0.03215974101 | E110: =IFERROR(Variance!Y149,"N/A") -> 0.03127083347 | F110: =IFERROR(Variance!Z149,"N/A") -> 0.03091446635 | G110: =IFERROR(Variance!AA149,"N/A") -> 0.03125483744 | H110: =IFERROR(Variance!AB149,"N/A") -> 0.0338495226 | I110: =IFERROR(Variance!AC149,"N/A") -> 0.05521800817 | J110: =IFERROR(Variance!AD149,"N/A") -> 0.05168314109
B111: 7-Seventh dec. | C111: =IFERROR(Variance!W150,"N/A") -> 0.03795934678 | D111: =IFERROR(Variance!X150,"N/A") -> 0.03492917597 | E111: =IFERROR(Variance!Y150,"N/A") -> 0.03457675368 | F111: =IFERROR(Variance!Z150,"N/A") -> 0.03381808471 | G111: =IFERROR(Variance!AA150,"N/A") -> 0.03293823367 | H111: =IFERROR(Variance!AB150,"N/A") -> 0.03513660548 | I111: =IFERROR(Variance!AC150,"N/A") -> 0.05592708151 | J111: =IFERROR(Variance!AD150,"N/A") -> 0.05138814776
B112: 8-Eighth dec. | C112: =IFERROR(Variance!W151,"N/A") -> 0.03093374768 | D112: =IFERROR(Variance!X151,"N/A") -> 0.03934036289 | E112: =IFERROR(Variance!Y151,"N/A") -> 0.03883435672 | F112: =IFERROR(Variance!Z151,"N/A") -> 0.03881613239 | G112: =IFERROR(Variance!AA151,"N/A") -> 0.03821478321 | H112: =IFERROR(Variance!AB151,"N/A") -> 0.04125498281 | I112: =IFERROR(Variance!AC151,"N/A") -> 0.06251051 | J112: =IFERROR(Variance!AD151,"N/A") -> 0.05631537008
B113: 9-Ninth dec. | C113: =IFERROR(Variance!W152,"N/A") -> 0.04395404385 | D113: =IFERROR(Variance!X152,"N/A") -> 0.03865174678 | E113: =IFERROR(Variance!Y152,"N/A") -> 0.03865846334 | F113: =IFERROR(Variance!Z152,"N/A") -> 0.03811114226 | G113: =IFERROR(Variance!AA152,"N/A") -> 0.03632615172 | H113: =IFERROR(Variance!AB152,"N/A") -> 0.03767480948 | I113: =IFERROR(Variance!AC152,"N/A") -> 0.05583228694 | J113: =IFERROR(Variance!AD152,"N/A") -> 0.05002624872
B114: 10-Highest dec. (family income in 2008$) | C114: =IFERROR(Variance!W153,"N/A") -> 0.03859828736 | D114: =IFERROR(Variance!X153,"N/A") -> 0.041994862 | E114: =IFERROR(Variance!Y153,"N/A") -> 0.04039041112 | F114: =IFERROR(Variance!Z153,"N/A") -> 0.03917207733 | G114: =IFERROR(Variance!AA153,"N/A") -> 0.03718321594 | H114: =IFERROR(Variance!AB153,"N/A") -> 0.03842654306 | I114: =IFERROR(Variance!AC153,"N/A") -> 0.06103342281 | J114: =IFERROR(Variance!AD153,"N/A") -> 0.05626768739
B115: 1-Dropout | C115: =IFERROR(Variance!W154,"N/A") -> 0.01035058752 | D115: =IFERROR(Variance!X154,"N/A") -> 0.01288472566 | E115: =IFERROR(Variance!Y154,"N/A") -> 0.01292851852 | F115: =IFERROR(Variance!Z154,"N/A") -> 0.01339099749 | G115: =IFERROR(Variance!AA154,"N/A") -> 0.01418088679 | H115: =IFERROR(Variance!AB154,"N/A") -> 0.01562225372 | I115: =IFERROR(Variance!AC154,"N/A") -> 0.02549444357 | J115: =IFERROR(Variance!AD154,"N/A") -> 0.02377025519
B116: 2-H.S.Diploma (education) | C116: =IFERROR(Variance!W155,"N/A") -> 0.01386552287 | D116: =IFERROR(Variance!X155,"N/A") -> 0.01574414514 | E116: =IFERROR(Variance!Y155,"N/A") -> 0.01474772948 | F116: =IFERROR(Variance!Z155,"N/A") -> 0.014257951 | G116: =IFERROR(Variance!AA155,"N/A") -> 0.01402401255 | H116: =IFERROR(Variance!AB155,"N/A") -> 0.01459332912 | I116: =IFERROR(Variance!AC155,"N/A") -> 0.02227572249 | J116: =IFERROR(Variance!AD155,"N/A") -> 0.02042132776
B117: 3-SomeColl/AA | C117: =IFERROR(Variance!W156,"N/A") -> 0.02308026352 | D117: =IFERROR(Variance!X156,"N/A") -> 0.02664624 | E117: =IFERROR(Variance!Y156,"N/A") -> 0.02331895545 | F117: =IFERROR(Variance!Z156,"N/A") -> 0.0201319742 | G117: =IFERROR(Variance!AA156,"N/A") -> 0.0193695811 | H117: =IFERROR(Variance!AB156,"N/A") -> 0.01987984068 | I117: =IFERROR(Variance!AC156,"N/A") -> 0.0305214079 | J117: =IFERROR(Variance!AD156,"N/A") -> 0.02806340304
B118: 4-4yr.Degree | C118: =IFERROR(Variance!W157,"N/A") -> 0.03184063748 | D118: =IFERROR(Variance!X157,"N/A") -> 0.03644945393 | E118: =IFERROR(Variance!Y157,"N/A") -> 0.03275642644 | F118: =IFERROR(Variance!Z157,"N/A") -> 0.02889236087 | G118: =IFERROR(Variance!AA157,"N/A") -> 0.02712174064 | H118: =IFERROR(Variance!AB157,"N/A") -> 0.02786333889 | I118: =IFERROR(Variance!AC157,"N/A") -> 0.04362545497 | J118: =IFERROR(Variance!AD157,"N/A") -> 0.04030783501
B119: 5-Grad.Degree | C119: =IFERROR(Variance!W158,"N/A") -> 0.03937885027 | D119: =IFERROR(Variance!X158,"N/A") -> 0.04350926639 | E119: =IFERROR(Variance!Y158,"N/A") -> 0.03992386636 | F119: =IFERROR(Variance!Z158,"N/A") -> 0.03852543786 | G119: =IFERROR(Variance!AA158,"N/A") -> 0.03671942133 | H119: =IFERROR(Variance!AB158,"N/A") -> 0.03696584742 | I119: =IFERROR(Variance!AC158,"N/A") -> 0.05845579662 | J119: =IFERROR(Variance!AD158,"N/A") -> 0.05449483572
B120: 1-White NH (ethnic/race) | C120: =IFERROR(Variance!W159,"N/A") -> 0.01030714976 | D120: =IFERROR(Variance!X159,"N/A") -> 0.0115004257 | E120: =IFERROR(Variance!Y159,"N/A") -> 0.009380185738 | F120: =IFERROR(Variance!Z159,"N/A") -> 0.009201258807 | G120: =IFERROR(Variance!AA159,"N/A") -> 0.009387812041 | H120: =IFERROR(Variance!AB159,"N/A") -> 0.01021040302 | I120: =IFERROR(Variance!AC159,"N/A") -> 0.01620302082 | J120: =IFERROR(Variance!AD159,"N/A") -> 0.01492018779
B121: 2-Black NH | C121: =IFERROR(Variance!W160,"N/A") -> 0.02946733918 | D121: =IFERROR(Variance!X160,"N/A") -> 0.03423291383 | E121: =IFERROR(Variance!Y160,"N/A") -> 0.02887389035 | F121: =IFERROR(Variance!Z160,"N/A") -> 0.02738963217 | G121: =IFERROR(Variance!AA160,"N/A") -> 0.0262267522 | H121: =IFERROR(Variance!AB160,"N/A") -> 0.02368549616 | I121: =IFERROR(Variance!AC160,"N/A") -> 0.03317996253 | J121: =IFERROR(Variance!AD160,"N/A") -> 0.03094946084
B122: 3-Asian NH | C122: =IFERROR(Variance!W161,"N/A") -> 0.09736151145 | D122: =IFERROR(Variance!X161,"N/A") -> 0.1074836485 | E122: =IFERROR(Variance!Y161,"N/A") -> 0.08112510436 | F122: =IFERROR(Variance!Z161,"N/A") -> 0.07278440416 | G122: =IFERROR(Variance!AA161,"N/A") -> 0.06462154323 | H122: =IFERROR(Variance!AB161,"N/A") -> 0.05683458669 | I122: =IFERROR(Variance!AC161,"N/A") -> 0.08657429304 | J122: =IFERROR(Variance!AD161,"N/A") -> 0.08350360871
B123: 4-Hispanic | C123: =IFERROR(Variance!W162,"N/A") -> 0.04113558108 | D123: =IFERROR(Variance!X162,"N/A") -> 0.043085136 | E123: =IFERROR(Variance!Y162,"N/A") -> 0.03757737069 | F123: =IFERROR(Variance!Z162,"N/A") -> 0.03295328445 | G123: =IFERROR(Variance!AA162,"N/A") -> 0.03050011226 | H123: =IFERROR(Variance!AB162,"N/A") -> 0.03193250113 | I123: =IFERROR(Variance!AC162,"N/A") -> 0.05160224273 | J123: =IFERROR(Variance!AD162,"N/A") -> 0.04937745744
B124: 5-Other NH | C124: =IFERROR(Variance!W163,"N/A") -> 0.0264245317 | D124: =IFERROR(Variance!X163,"N/A") -> 0.03037179385 | E124: =IFERROR(Variance!Y163,"N/A") -> 0.03992945785 | F124: =IFERROR(Variance!Z163,"N/A") -> 0.04078968838 | G124: =IFERROR(Variance!AA163,"N/A") -> 0.03994673637 | H124: =IFERROR(Variance!AB163,"N/A") -> 0.04450285957 | I124: =IFERROR(Variance!AC163,"N/A") -> 0.07734503064 | J124: =IFERROR(Variance!AD163,"N/A") -> 0.07219592445
B125: 1-Employed (Labor force) | C125: =IFERROR(Variance!W164,"N/A") -> 0.01599141257 | D125: =IFERROR(Variance!X164,"N/A") -> 0.01927566454 | E125: =IFERROR(Variance!Y164,"N/A") -> 0.01892874468 | F125: =IFERROR(Variance!Z164,"N/A") -> 0.0188137096 | G125: =IFERROR(Variance!AA164,"N/A") -> 0.01836612752 | H125: =IFERROR(Variance!AB164,"N/A") -> 0.01982528574 | I125: =IFERROR(Variance!AC164,"N/A") -> 0.03447631003 | J125: =IFERROR(Variance!AD164,"N/A") -> 0.03233966828
B126: 2-Unemployed | C126: =IFERROR(Variance!W165,"N/A") -> 0.06597234432 | D126: =IFERROR(Variance!X165,"N/A") -> 0.08561721965 | E126: =IFERROR(Variance!Y165,"N/A") -> 0.08255778138 | F126: =IFERROR(Variance!Z165,"N/A") -> 0.08449035829 | G126: =IFERROR(Variance!AA165,"N/A") -> 0.08743120688 | H126: =IFERROR(Variance!AB165,"N/A") -> 0.08613626801 | I126: =IFERROR(Variance!AC165,"N/A") -> 0.1268892286 | J126: =IFERROR(Variance!AD165,"N/A") -> 0.1125122979
B127: 3-NILF | C127: =IFERROR(Variance!W166,"N/A") -> 0.008683697933 | D127: =IFERROR(Variance!X166,"N/A") -> 0.01034483941 | E127: =IFERROR(Variance!Y166,"N/A") -> 0.009871279722 | F127: =IFERROR(Variance!Z166,"N/A") -> 0.0096079185 | G127: =IFERROR(Variance!AA166,"N/A") -> 0.009728084141 | H127: =IFERROR(Variance!AB166,"N/A") -> 0.01019218235 | I127: =IFERROR(Variance!AC166,"N/A") -> 0.01529132264 | J127: =IFERROR(Variance!AD166,"N/A") -> 0.01357115881
B128: 1-Prof./Managerial (occ.) | C128: =IFERROR(Variance!W167,"N/A") -> 0.04480473661 | D128: =IFERROR(Variance!X167,"N/A") -> 0.05199676202 | E128: =IFERROR(Variance!Y167,"N/A") -> 0.05006280665 | F128: =IFERROR(Variance!Z167,"N/A") -> 0.04952200325 | G128: =IFERROR(Variance!AA167,"N/A") -> 0.04769503177 | H128: =IFERROR(Variance!AB167,"N/A") -> 0.0506790946 | I128: =IFERROR(Variance!AC167,"N/A") -> 0.0797478856 | J128: =IFERROR(Variance!AD167,"N/A") -> 0.07241031785
B129: 2-Sklld/Sales | C129: =IFERROR(Variance!W168,"N/A") -> 0.02702802002 | D129: =IFERROR(Variance!X168,"N/A") -> 0.03237554284 | E129: =IFERROR(Variance!Y168,"N/A") -> 0.03206905852 | F129: =IFERROR(Variance!Z168,"N/A") -> 0.03264759147 | G129: =IFERROR(Variance!AA168,"N/A") -> 0.03302804283 | H129: =IFERROR(Variance!AB168,"N/A") -> 0.03896634819 | I129: =IFERROR(Variance!AC168,"N/A") -> 0.06960578517 | J129: =IFERROR(Variance!AD168,"N/A") -> 0.06513419213
B130: 3-BlueCol.Lgt | C130: =IFERROR(Variance!W169,"N/A") -> 0.0320137728 | D130: =IFERROR(Variance!X169,"N/A") -> 0.03913047076 | E130: =IFERROR(Variance!Y169,"N/A") -> 0.03881529533 | F130: =IFERROR(Variance!Z169,"N/A") -> 0.04059658449 | G130: =IFERROR(Variance!AA169,"N/A") -> 0.04043078779 | H130: =IFERROR(Variance!AB169,"N/A") -> 0.04064889184 | I130: =IFERROR(Variance!AC169,"N/A") -> 0.06919374096 | J130: =IFERROR(Variance!AD169,"N/A") -> 0.06484463122
B131: 4-BlueCol.Hvy | C131: =IFERROR(Variance!W170,"N/A") -> 0.02335359293 | D131: =IFERROR(Variance!X170,"N/A") -> 0.02894057372 | E131: =IFERROR(Variance!Y170,"N/A") -> 0.02971382225 | F131: =IFERROR(Variance!Z170,"N/A") -> 0.03117508756 | G131: =IFERROR(Variance!AA170,"N/A") -> 0.03162556635 | H131: =IFERROR(Variance!AB170,"N/A") -> 0.03437708321 | I131: =IFERROR(Variance!AC170,"N/A") -> 0.06065149119 | J131: =IFERROR(Variance!AD170,"N/A") -> 0.05715734443
B132: 5-Medical.Occ | C132: =IFERROR(Variance!W171,"N/A") -> 0.06558171503 | D132: =IFERROR(Variance!X171,"N/A") -> 0.08132910828 | E132: =IFERROR(Variance!Y171,"N/A") -> 0.07950493104 | F132: =IFERROR(Variance!Z171,"N/A") -> 0.07622650204 | G132: =IFERROR(Variance!AA171,"N/A") -> 0.07508296637 | H132: =IFERROR(Variance!AB171,"N/A") -> 0.08326332011 | I132: =IFERROR(Variance!AC171,"N/A") -> 0.1422104593 | J132: =IFERROR(Variance!AD171,"N/A") -> 0.1323574143
B133: 6-N/A | C133: =IFERROR(Variance!W172,"N/A") -> 0.008569241878 | D133: =IFERROR(Variance!X172,"N/A") -> 0.01014330271 | E133: =IFERROR(Variance!Y172,"N/A") -> 0.009613058748 | F133: =IFERROR(Variance!Z172,"N/A") -> 0.009308235881 | G133: =IFERROR(Variance!AA172,"N/A") -> 0.009451328725 | H133: =IFERROR(Variance!AB172,"N/A") -> 0.009982397811 | I133: =IFERROR(Variance!AC172,"N/A") -> 0.01533240835 | J133: =IFERROR(Variance!AD172,"N/A") -> 0.01415563441
B135: 75% confidence interval radius (cancer)
C136: 1987.5-1991.5 | D136: 1991.5-1995.5 | E136: 1995.5-1999.5 | F136: 1999.5-2003.5 | G136: 2003.5-2006 | H136: 2006-2008 | I136: 2008-2010 | J136: 2010-2012
B137: age 40-44 | C137: =IFERROR(Variance!W176,"N/A") -> 0.08950885939 | D137: =IFERROR(Variance!X176,"N/A") -> 0.100600596 | E137: =IFERROR(Variance!Y176,"N/A") -> 0.09446320693 | F137: =IFERROR(Variance!Z176,"N/A") -> 0.09406069478 | G137: =IFERROR(Variance!AA176,"N/A") -> 0.09104912875 | H137: =IFERROR(Variance!AB176,"N/A") -> 0.10186972 | I137: =IFERROR(Variance!AC176,"N/A") -> 0.1573103367 | J137: =IFERROR(Variance!AD176,"N/A") -> 0.1394815224
B138: age 45-49 | C138: =IFERROR(Variance!W177,"N/A") -> 0.07877574738 | D138: =IFERROR(Variance!X177,"N/A") -> 0.08743816526 | E138: =IFERROR(Variance!Y177,"N/A") -> 0.07813731098 | F138: =IFERROR(Variance!Z177,"N/A") -> 0.07547228336 | G138: =IFERROR(Variance!AA177,"N/A") -> 0.07281445807 | H138: =IFERROR(Variance!AB177,"N/A") -> 0.07637632862 | I138: =IFERROR(Variance!AC177,"N/A") -> 0.123487049 | J138: =IFERROR(Variance!AD177,"N/A") -> 0.1123786742
B139: age 50-54 | C139: =IFERROR(Variance!W178,"N/A") -> 0.06149533013 | D139: =IFERROR(Variance!X178,"N/A") -> 0.0713694863 | E139: =IFERROR(Variance!Y178,"N/A") -> 0.06619894081 | F139: =IFERROR(Variance!Z178,"N/A") -> 0.06535015752 | G139: =IFERROR(Variance!AA178,"N/A") -> 0.06437628148 | H139: =IFERROR(Variance!AB178,"N/A") -> 0.06309568695 | I139: =IFERROR(Variance!AC178,"N/A") -> 0.09476177846 | J139: =IFERROR(Variance!AD178,"N/A") -> 0.08438770147
B140: age 55-59 | C140: =IFERROR(Variance!W179,"N/A") -> 0.04963334746 | D140: =IFERROR(Variance!X179,"N/A") -> 0.0595297711 | E140: =IFERROR(Variance!Y179,"N/A") -> 0.05871234448 | F140: =IFERROR(Variance!Z179,"N/A") -> 0.05675343477 | G140: =IFERROR(Variance!AA179,"N/A") -> 0.05567038286 | H140: =IFERROR(Variance!AB179,"N/A") -> 0.05610752183 | I140: =IFERROR(Variance!AC179,"N/A") -> 0.07893612286 | J140: =IFERROR(Variance!AD179,"N/A") -> 0.06856872233
B141: age 60-64 | C141: =IFERROR(Variance!W180,"N/A") -> 0.04635720736 | D141: =IFERROR(Variance!X180,"N/A") -> 0.05156238783 | E141: =IFERROR(Variance!Y180,"N/A") -> 0.04983684682 | F141: =IFERROR(Variance!Z180,"N/A") -> 0.04960700739 | G141: =IFERROR(Variance!AA180,"N/A") -> 0.04980352747 | H141: =IFERROR(Variance!AB180,"N/A") -> 0.05381715354 | I141: =IFERROR(Variance!AC180,"N/A") -> 0.07818360785 | J141: =IFERROR(Variance!AD180,"N/A") -> 0.0670097139
B142: age 65-69 (age group) | C142: =IFERROR(Variance!W181,"N/A") -> 0.04591979033 | D142: =IFERROR(Variance!X181,"N/A") -> 0.04928060359 | E142: =IFERROR(Variance!Y181,"N/A") -> 0.04578651129 | F142: =IFERROR(Variance!Z181,"N/A") -> 0.04565690793 | G142: =IFERROR(Variance!AA181,"N/A") -> 0.04754365821 | H142: =IFERROR(Variance!AB181,"N/A") -> 0.04890482154 | I142: =IFERROR(Variance!AC181,"N/A") -> 0.07593214717 | J142: =IFERROR(Variance!AD181,"N/A") -> 0.06741650595
B143: age 70-74 | C143: =IFERROR(Variance!W182,"N/A") -> 0.04819872938 | D143: =IFERROR(Variance!X182,"N/A") -> 0.05188525035 | E143: =IFERROR(Variance!Y182,"N/A") -> 0.04628970202 | F143: =IFERROR(Variance!Z182,"N/A") -> 0.04415590603 | G143: =IFERROR(Variance!AA182,"N/A") -> 0.04585682552 | H143: =IFERROR(Variance!AB182,"N/A") -> 0.04787734847 | I143: =IFERROR(Variance!AC182,"N/A") -> 0.06788166389 | J143: =IFERROR(Variance!AD182,"N/A") -> 0.05722399283
B144: age 75-79 | C144: =IFERROR(Variance!W183,"N/A") -> 0.05822476201 | D144: =IFERROR(Variance!X183,"N/A") -> 0.06111737229 | E144: =IFERROR(Variance!Y183,"N/A") -> 0.05445952625 | F144: =IFERROR(Variance!Z183,"N/A") -> 0.05053284358 | G144: =IFERROR(Variance!AA183,"N/A") -> 0.04808253956 | H144: =IFERROR(Variance!AB183,"N/A") -> 0.04859191632 | I144: =IFERROR(Variance!AC183,"N/A") -> 0.0693580959 | J144: =IFERROR(Variance!AD183,"N/A") -> 0.05908876967
B145: age 80-84 | C145: =IFERROR(Variance!W184,"N/A") -> 0.0808549333 | D145: =IFERROR(Variance!X184,"N/A") -> 0.08586131003 | E145: =IFERROR(Variance!Y184,"N/A") -> 0.07316314211 | F145: =IFERROR(Variance!Z184,"N/A") -> 0.06393379701 | G145: =IFERROR(Variance!AA184,"N/A") -> 0.0598011284 | H145: =IFERROR(Variance!AB184,"N/A") -> 0.05808784406 | I145: =IFERROR(Variance!AC184,"N/A") -> 0.08301856383 | J145: =IFERROR(Variance!AD184,"N/A") -> 0.07161431519
B146: age 85+ | C146: =IFERROR(Variance!W185,"N/A") -> 0.1004965725 | D146: =IFERROR(Variance!X185,"N/A") -> 0.1190011233 | E146: =IFERROR(Variance!Y185,"N/A") -> 0.1040653419 | F146: =IFERROR(Variance!Z185,"N/A") -> 0.08718029413 | G146: =IFERROR(Variance!AA185,"N/A") -> 0.09264000548 | H146: =IFERROR(Variance!AB185,"N/A") -> 0.08322323919 | I146: =IFERROR(Variance!AC185,"N/A") -> 0.08901649114 | J146: =IFERROR(Variance!AD185,"N/A") -> 0.07442630347
B147: Male (Sex) | C147: =IFERROR(Variance!W186,"N/A") -> 0.02444640647 | D147: =IFERROR(Variance!X186,"N/A") -> 0.02665885749 | E147: =IFERROR(Variance!Y186,"N/A") -> 0.02462011864 | F147: =IFERROR(Variance!Z186,"N/A") -> 0.0240952463 | G147: =IFERROR(Variance!AA186,"N/A") -> 0.02338231244 | H147: =IFERROR(Variance!AB186,"N/A") -> 0.02355492067 | I147: =IFERROR(Variance!AC186,"N/A") -> 0.03449098696 | J147: =IFERROR(Variance!AD186,"N/A") -> 0.02989170075
B148: Female | C148: =IFERROR(Variance!W187,"N/A") -> 0.02890266999 | D148: =IFERROR(Variance!X187,"N/A") -> 0.03029495509 | E148: =IFERROR(Variance!Y187,"N/A") -> 0.02708388795 | F148: =IFERROR(Variance!Z187,"N/A") -> 0.02586259833 | G148: =IFERROR(Variance!AA187,"N/A") -> 0.02516535124 | H148: =IFERROR(Variance!AB187,"N/A") -> 0.02555074824 | I148: =IFERROR(Variance!AC187,"N/A") -> 0.03691343836 | J148: =IFERROR(Variance!AD187,"N/A") -> 0.03133809888
B149: 1-Never | C149: N/A | D149: N/A | E149: N/A | F149: =IFERROR(Variance!Z188,"N/A") -> 0.03892399963 | G149: =IFERROR(Variance!AA188,"N/A") -> 0.03377483073 | H149: =IFERROR(Variance!AB188,"N/A") -> 0.0443783814 | I149: =IFERROR(Variance!AC188,"N/A") -> 0.102076084 | J149: N/A
B150: 2-Current | C150: N/A | D150: N/A | E150: N/A | F150: =IFERROR(Variance!Z189,"N/A") -> 0.05150686225 | G150: =IFERROR(Variance!AA189,"N/A") -> 0.04273352976 | H150: =IFERROR(Variance!AB189,"N/A") -> 0.0513623036 | I150: =IFERROR(Variance!AC189,"N/A") -> 0.1082550738 | J150: N/A
B151: 3-Former | C151: N/A | D151: N/A | E151: N/A | F151: =IFERROR(Variance!Z190,"N/A") -> 0.04040241282 | G151: =IFERROR(Variance!AA190,"N/A") -> 0.03459934669 | H151: =IFERROR(Variance!AB190,"N/A") -> 0.04296523395 | I151: =IFERROR(Variance!AC190,"N/A") -> 0.08898877935 | J151: N/A
B152: 4-Not_Asked (smoker) | C152: =IFERROR(Variance!W191,"N/A") -> 0.01778007328 | D152: =IFERROR(Variance!X191,"N/A") -> 0.01949090992 | E152: =IFERROR(Variance!Y191,"N/A") -> 0.02100118084 | F152: =IFERROR(Variance!Z191,"N/A") -> 0.02507823875 | G152: =IFERROR(Variance!AA191,"N/A") -> 0.03090717787 | H152: =IFERROR(Variance!AB191,"N/A") -> 0.02848953808 | I152: =IFERROR(Variance!AC191,"N/A") -> 0.0289434304 | J152: =IFERROR(Variance!AD191,"N/A") -> 0.02461498815
B153: 1-Married (marital status) | C153: =IFERROR(Variance!W192,"N/A") -> 0.02187221093 | D153: =IFERROR(Variance!X192,"N/A") -> 0.02415453383 | E153: =IFERROR(Variance!Y192,"N/A") -> 0.02249566588 | F153: =IFERROR(Variance!Z192,"N/A") -> 0.02208510126 | G153: =IFERROR(Variance!AA192,"N/A") -> 0.02184103991 | H153: =IFERROR(Variance!AB192,"N/A") -> 0.02264586545 | I153: =IFERROR(Variance!AC192,"N/A") -> 0.0343793682 | J153: =IFERROR(Variance!AD192,"N/A") -> 0.02988028217
B154: 2-Widowed | C154: =IFERROR(Variance!W193,"N/A") -> 0.03996716159 | D154: =IFERROR(Variance!X193,"N/A") -> 0.04234376234 | E154: =IFERROR(Variance!Y193,"N/A") -> 0.03814266557 | F154: =IFERROR(Variance!Z193,"N/A") -> 0.0365644126 | G154: =IFERROR(Variance!AA193,"N/A") -> 0.0365925712 | H154: =IFERROR(Variance!AB193,"N/A") -> 0.03653955681 | I154: =IFERROR(Variance!AC193,"N/A") -> 0.05149574043 | J154: =IFERROR(Variance!AD193,"N/A") -> 0.04659310595
B155: 3-Divorced | C155: =IFERROR(Variance!W194,"N/A") -> 0.07039512847 | D155: =IFERROR(Variance!X194,"N/A") -> 0.07406272635 | E155: =IFERROR(Variance!Y194,"N/A") -> 0.06217156442 | F155: =IFERROR(Variance!Z194,"N/A") -> 0.05534018968 | G155: =IFERROR(Variance!AA194,"N/A") -> 0.05159219775 | H155: =IFERROR(Variance!AB194,"N/A") -> 0.05061867865 | I155: =IFERROR(Variance!AC194,"N/A") -> 0.07182007735 | J155: =IFERROR(Variance!AD194,"N/A") -> 0.06436083686
B156: 4-Separated | C156: =IFERROR(Variance!W195,"N/A") -> 0.1211179884 | D156: =IFERROR(Variance!X195,"N/A") -> 0.1388194848 | E156: =IFERROR(Variance!Y195,"N/A") -> 0.1303482202 | F156: =IFERROR(Variance!Z195,"N/A") -> 0.1243260994 | G156: =IFERROR(Variance!AA195,"N/A") -> 0.1298554509 | H156: =IFERROR(Variance!AB195,"N/A") -> 0.1319574796 | I156: =IFERROR(Variance!AC195,"N/A") -> 0.1810576695 | J156: =IFERROR(Variance!AD195,"N/A") -> 0.166592557
B157: 5-NeverMar. | C157: =IFERROR(Variance!W196,"N/A") -> 0.07645169725 | D157: =IFERROR(Variance!X196,"N/A") -> 0.08947689299 | E157: =IFERROR(Variance!Y196,"N/A") -> 0.0816447799 | F157: =IFERROR(Variance!Z196,"N/A") -> 0.08104705559 | G157: =IFERROR(Variance!AA196,"N/A") -> 0.08044890846 | H157: =IFERROR(Variance!AB196,"N/A") -> 0.07380257661 | I157: =IFERROR(Variance!AC196,"N/A") -> 0.09943531981 | J157: =IFERROR(Variance!AD196,"N/A") -> 0.08728335989
B158: 1-Lowest inc. | C158: =IFERROR(Variance!W197,"N/A") -> 0.04501052968 | D158: =IFERROR(Variance!X197,"N/A") -> 0.0538132618 | E158: =IFERROR(Variance!Y197,"N/A") -> 0.04899440136 | F158: =IFERROR(Variance!Z197,"N/A") -> 0.04606001746 | G158: =IFERROR(Variance!AA197,"N/A") -> 0.04764566884 | H158: =IFERROR(Variance!AB197,"N/A") -> 0.04651834069 | I158: =IFERROR(Variance!AC197,"N/A") -> 0.06797854767 | J158: =IFERROR(Variance!AD197,"N/A") -> 0.06217544811
B159: 2-Second dec. | C159: =IFERROR(Variance!W198,"N/A") -> 0.04127159413 | D159: =IFERROR(Variance!X198,"N/A") -> 0.04845242096 | E159: =IFERROR(Variance!Y198,"N/A") -> 0.04435944659 | F159: =IFERROR(Variance!Z198,"N/A") -> 0.04250554537 | G159: =IFERROR(Variance!AA198,"N/A") -> 0.04188544508 | H159: =IFERROR(Variance!AB198,"N/A") -> 0.04258658827 | I159: =IFERROR(Variance!AC198,"N/A") -> 0.06208180216 | J159: =IFERROR(Variance!AD198,"N/A") -> 0.05508467439
B160: 3-Third dec. | C160: =IFERROR(Variance!W199,"N/A") -> 0.04881822715 | D160: =IFERROR(Variance!X199,"N/A") -> 0.051802592 | E160: =IFERROR(Variance!Y199,"N/A") -> 0.04723856366 | F160: =IFERROR(Variance!Z199,"N/A") -> 0.04650163864 | G160: =IFERROR(Variance!AA199,"N/A") -> 0.04599463995 | H160: =IFERROR(Variance!AB199,"N/A") -> 0.04597631954 | I160: =IFERROR(Variance!AC199,"N/A") -> 0.06868485741 | J160: =IFERROR(Variance!AD199,"N/A") -> 0.06070999828
B161: 4-Fourth dec. | C161: =IFERROR(Variance!W200,"N/A") -> 0.05314591855 | D161: =IFERROR(Variance!X200,"N/A") -> 0.05683112458 | E161: =IFERROR(Variance!Y200,"N/A") -> 0.05195535068 | F161: =IFERROR(Variance!Z200,"N/A") -> 0.05135712639 | G161: =IFERROR(Variance!AA200,"N/A") -> 0.05018106936 | H161: =IFERROR(Variance!AB200,"N/A") -> 0.05222922211 | I161: =IFERROR(Variance!AC200,"N/A") -> 0.08021889825 | J161: =IFERROR(Variance!AD200,"N/A") -> 0.07081415314
B162: 5-Fifth dec. | C162: =IFERROR(Variance!W201,"N/A") -> 0.05505574068 | D162: =IFERROR(Variance!X201,"N/A") -> 0.06124859258 | E162: =IFERROR(Variance!Y201,"N/A") -> 0.0559182419 | F162: =IFERROR(Variance!Z201,"N/A") -> 0.05618479613 | G162: =IFERROR(Variance!AA201,"N/A") -> 0.05659445303 | H162: =IFERROR(Variance!AB201,"N/A") -> 0.06007331318 | I162: =IFERROR(Variance!AC201,"N/A") -> 0.09676345662 | J162: =IFERROR(Variance!AD201,"N/A") -> 0.08672591728
B163: 6-Sixth dec. | C163: =IFERROR(Variance!W202,"N/A") -> 0.05737371886 | D163: =IFERROR(Variance!X202,"N/A") -> 0.06409144852 | E163: =IFERROR(Variance!Y202,"N/A") -> 0.06177993101 | F163: =IFERROR(Variance!Z202,"N/A") -> 0.06273108613 | G163: =IFERROR(Variance!AA202,"N/A") -> 0.06083123507 | H163: =IFERROR(Variance!AB202,"N/A") -> 0.06157196371 | I163: =IFERROR(Variance!AC202,"N/A") -> 0.09491121051 | J163: =IFERROR(Variance!AD202,"N/A") -> 0.08294227274
B164: 7-Seventh dec. | C164: =IFERROR(Variance!W203,"N/A") -> 0.07839097141 | D164: =IFERROR(Variance!X203,"N/A") -> 0.07036039558 | E164: =IFERROR(Variance!Y203,"N/A") -> 0.06801163039 | F164: =IFERROR(Variance!Z203,"N/A") -> 0.06506306319 | G164: =IFERROR(Variance!AA203,"N/A") -> 0.06107352 | H164: =IFERROR(Variance!AB203,"N/A") -> 0.06498053771 | I164: =IFERROR(Variance!AC203,"N/A") -> 0.1008752685 | J164: =IFERROR(Variance!AD203,"N/A") -> 0.08742462111
B165: 8-Eighth dec. | C165: =IFERROR(Variance!W204,"N/A") -> 0.05972085124 | D165: =IFERROR(Variance!X204,"N/A") -> 0.07298212666 | E165: =IFERROR(Variance!Y204,"N/A") -> 0.07364813826 | F165: =IFERROR(Variance!Z204,"N/A") -> 0.0742868909 | G165: =IFERROR(Variance!AA204,"N/A") -> 0.07017547655 | H165: =IFERROR(Variance!AB204,"N/A") -> 0.07279016718 | I165: =IFERROR(Variance!AC204,"N/A") -> 0.1138408387 | J165: =IFERROR(Variance!AD204,"N/A") -> 0.1003656131
B166: 9-Ninth dec. | C166: =IFERROR(Variance!W205,"N/A") -> 0.080572748 | D166: =IFERROR(Variance!X205,"N/A") -> 0.07034472895 | E166: =IFERROR(Variance!Y205,"N/A") -> 0.06876520494 | F166: =IFERROR(Variance!Z205,"N/A") -> 0.06849285399 | G166: =IFERROR(Variance!AA205,"N/A") -> 0.06668232658 | H166: =IFERROR(Variance!AB205,"N/A") -> 0.06750600214 | I166: =IFERROR(Variance!AC205,"N/A") -> 0.1028335148 | J166: =IFERROR(Variance!AD205,"N/A") -> 0.09023618248
B167: 10-Highest dec. (family income in 2008$) | C167: =IFERROR(Variance!W206,"N/A") -> 0.08250388065 | D167: =IFERROR(Variance!X206,"N/A") -> 0.08366622635 | E167: =IFERROR(Variance!Y206,"N/A") -> 0.07468415056 | F167: =IFERROR(Variance!Z206,"N/A") -> 0.07179449556 | G167: =IFERROR(Variance!AA206,"N/A") -> 0.06750467635 | H167: =IFERROR(Variance!AB206,"N/A") -> 0.06530440093 | I167: =IFERROR(Variance!AC206,"N/A") -> 0.09892603364 | J167: =IFERROR(Variance!AD206,"N/A") -> 0.08652803732
B168: 1-Dropout | C168: =IFERROR(Variance!W207,"N/A") -> 0.02686554393 | D168: =IFERROR(Variance!X207,"N/A") -> 0.03059586756 | E168: =IFERROR(Variance!Y207,"N/A") -> 0.0295273225 | F168: =IFERROR(Variance!Z207,"N/A") -> 0.03003088359 | G168: =IFERROR(Variance!AA207,"N/A") -> 0.03141256352 | H168: =IFERROR(Variance!AB207,"N/A") -> 0.03322505991 | I168: =IFERROR(Variance!AC207,"N/A") -> 0.05000304154 | J168: =IFERROR(Variance!AD207,"N/A") -> 0.04402541248
B169: 2-H.S.Diploma (education) | C169: =IFERROR(Variance!W208,"N/A") -> 0.0311694954 | D169: =IFERROR(Variance!X208,"N/A") -> 0.03318461039 | E169: =IFERROR(Variance!Y208,"N/A") -> 0.03038510036 | F169: =IFERROR(Variance!Z208,"N/A") -> 0.02918725553 | G169: =IFERROR(Variance!AA208,"N/A") -> 0.02808307149 | H169: =IFERROR(Variance!AB208,"N/A") -> 0.02821005782 | I169: =IFERROR(Variance!AC208,"N/A") -> 0.04050256528 | J169: =IFERROR(Variance!AD208,"N/A") -> 0.03499559928
B170: 3-SomeColl/AA | C170: =IFERROR(Variance!W209,"N/A") -> 0.05103286156 | D170: =IFERROR(Variance!X209,"N/A") -> 0.05531149844 | E170: =IFERROR(Variance!Y209,"N/A") -> 0.04765424944 | F170: =IFERROR(Variance!Z209,"N/A") -> 0.04078723121 | G170: =IFERROR(Variance!AA209,"N/A") -> 0.03793911026 | H170: =IFERROR(Variance!AB209,"N/A") -> 0.03738830804 | I170: =IFERROR(Variance!AC209,"N/A") -> 0.05419206591 | J170: =IFERROR(Variance!AD209,"N/A") -> 0.04675103334
B171: 4-4yr.Degree | C171: =IFERROR(Variance!W210,"N/A") -> 0.07862197791 | D171: =IFERROR(Variance!X210,"N/A") -> 0.07836476487 | E171: =IFERROR(Variance!Y210,"N/A") -> 0.06475496168 | F171: =IFERROR(Variance!Z210,"N/A") -> 0.05900674165 | G171: =IFERROR(Variance!AA210,"N/A") -> 0.05375324283 | H171: =IFERROR(Variance!AB210,"N/A") -> 0.05187571235 | I171: =IFERROR(Variance!AC210,"N/A") -> 0.07536413498 | J171: =IFERROR(Variance!AD210,"N/A") -> 0.06565459509
B172: 5-Grad.Degree | C172: =IFERROR(Variance!W211,"N/A") -> 0.08978860928 | D172: =IFERROR(Variance!X211,"N/A") -> 0.0915660065 | E172: =IFERROR(Variance!Y211,"N/A") -> 0.07648020477 | F172: =IFERROR(Variance!Z211,"N/A") -> 0.07367317662 | G172: =IFERROR(Variance!AA211,"N/A") -> 0.07202219711 | H172: =IFERROR(Variance!AB211,"N/A") -> 0.06951192065 | I172: =IFERROR(Variance!AC211,"N/A") -> 0.1010834112 | J172: =IFERROR(Variance!AD211,"N/A") -> 0.08880023538
B173: 1-White NH (ethnic/race) | C173: =IFERROR(Variance!W212,"N/A") -> 0.02476556407 | D173: =IFERROR(Variance!X212,"N/A") -> 0.02563330964 | E173: =IFERROR(Variance!Y212,"N/A") -> 0.01994442369 | F173: =IFERROR(Variance!Z212,"N/A") -> 0.01938616387 | G173: =IFERROR(Variance!AA212,"N/A") -> 0.01925602768 | H173: =IFERROR(Variance!AB212,"N/A") -> 0.01996337826 | I173: =IFERROR(Variance!AC212,"N/A") -> 0.02965783374 | J173: =IFERROR(Variance!AD212,"N/A") -> 0.02572916044
B174: 2-Black NH | C174: =IFERROR(Variance!W213,"N/A") -> 0.07228499198 | D174: =IFERROR(Variance!X213,"N/A") -> 0.07585648206 | E174: =IFERROR(Variance!Y213,"N/A") -> 0.05946635515 | F174: =IFERROR(Variance!Z213,"N/A") -> 0.05558920251 | G174: =IFERROR(Variance!AA213,"N/A") -> 0.0531353829 | H174: =IFERROR(Variance!AB213,"N/A") -> 0.04725338238 | I174: =IFERROR(Variance!AC213,"N/A") -> 0.06440789392 | J174: =IFERROR(Variance!AD213,"N/A") -> 0.0576228841
B175: 3-Asian NH | C175: =IFERROR(Variance!W214,"N/A") -> 0.2138492604 | D175: =IFERROR(Variance!X214,"N/A") -> 0.2270082888 | E175: =IFERROR(Variance!Y214,"N/A") -> 0.1685389059 | F175: =IFERROR(Variance!Z214,"N/A") -> 0.1461017232 | G175: =IFERROR(Variance!AA214,"N/A") -> 0.1285347513 | H175: =IFERROR(Variance!AB214,"N/A") -> 0.1211408694 | I175: =IFERROR(Variance!AC214,"N/A") -> 0.1704859264 | J175: =IFERROR(Variance!AD214,"N/A") -> 0.1542038559
B176: 4-Hispanic | C176: =IFERROR(Variance!W215,"N/A") -> 0.1061777689 | D176: =IFERROR(Variance!X215,"N/A") -> 0.1029089199 | E176: =IFERROR(Variance!Y215,"N/A") -> 0.08590383131 | F176: =IFERROR(Variance!Z215,"N/A") -> 0.07308872552 | G176: =IFERROR(Variance!AA215,"N/A") -> 0.0690182341 | H176: =IFERROR(Variance!AB215,"N/A") -> 0.06765389849 | I176: =IFERROR(Variance!AC215,"N/A") -> 0.1010066154 | J176: =IFERROR(Variance!AD215,"N/A") -> 0.09153741409
B177: 5-Other NH | C177: =IFERROR(Variance!W216,"N/A") -> 0.07124657415 | D177: =IFERROR(Variance!X216,"N/A") -> 0.06994131776 | E177: =IFERROR(Variance!Y216,"N/A") -> 0.086495862 | F177: =IFERROR(Variance!Z216,"N/A") -> 0.08394744401 | G177: =IFERROR(Variance!AA216,"N/A") -> 0.07900395274 | H177: =IFERROR(Variance!AB216,"N/A") -> 0.08256331591 | I177: =IFERROR(Variance!AC216,"N/A") -> 0.1308319047 | J177: =IFERROR(Variance!AD216,"N/A") -> 0.1157918679
B178: 1-Employed (Labor force) | C178: =IFERROR(Variance!W217,"N/A") -> 0.03201765487 | D178: =IFERROR(Variance!X217,"N/A") -> 0.03571047718 | E178: =IFERROR(Variance!Y217,"N/A") -> 0.03350774579 | F178: =IFERROR(Variance!Z217,"N/A") -> 0.03247083255 | G178: =IFERROR(Variance!AA217,"N/A") -> 0.03090778282 | H178: =IFERROR(Variance!AB217,"N/A") -> 0.03233064354 | I178: =IFERROR(Variance!AC217,"N/A") -> 0.05318288706 | J178: =IFERROR(Variance!AD217,"N/A") -> 0.04709459008
B179: 2-Unemployed | C179: =IFERROR(Variance!W218,"N/A") -> 0.1437674019 | D179: =IFERROR(Variance!X218,"N/A") -> 0.1758629095 | E179: =IFERROR(Variance!Y218,"N/A") -> 0.1611838036 | F179: =IFERROR(Variance!Z218,"N/A") -> 0.1538739696 | G179: =IFERROR(Variance!AA218,"N/A") -> 0.1580647084 | H179: =IFERROR(Variance!AB218,"N/A") -> 0.1608308439 | I179: =IFERROR(Variance!AC218,"N/A") -> N/A | J179: =IFERROR(Variance!AD218,"N/A") -> N/A
B180: 3-NILF | C180: =IFERROR(Variance!W219,"N/A") -> 0.02139758073 | D180: =IFERROR(Variance!X219,"N/A") -> 0.02403266159 | E180: =IFERROR(Variance!Y219,"N/A") -> 0.02240817113 | F180: =IFERROR(Variance!Z219,"N/A") -> 0.02197219657 | G180: =IFERROR(Variance!AA219,"N/A") -> 0.02159672676 | H180: =IFERROR(Variance!AB219,"N/A") -> 0.02131950952 | I180: =IFERROR(Variance!AC219,"N/A") -> 0.0285254572 | J180: =IFERROR(Variance!AD219,"N/A") -> 0.02227203579
B181: 1-Prof./Managerial (occ.) | C181: =IFERROR(Variance!W220,"N/A") -> 0.08588462929 | D181: =IFERROR(Variance!X220,"N/A") -> 0.09144324224 | E181: =IFERROR(Variance!Y220,"N/A") -> 0.08473826336 | F181: =IFERROR(Variance!Z220,"N/A") -> 0.08250983844 | G181: =IFERROR(Variance!AA220,"N/A") -> 0.08181979113 | H181: =IFERROR(Variance!AB220,"N/A") -> 0.0793911101 | I181: =IFERROR(Variance!AC220,"N/A") -> 0.119337068 | J181: =IFERROR(Variance!AD220,"N/A") -> 0.1054934313
B182: 2-Sklld/Sales | C182: =IFERROR(Variance!W221,"N/A") -> 0.04792227414 | D182: =IFERROR(Variance!X221,"N/A") -> 0.05593007326 | E182: =IFERROR(Variance!Y221,"N/A") -> 0.05629761471 | F182: =IFERROR(Variance!Z221,"N/A") -> 0.05781771554 | G182: =IFERROR(Variance!AA221,"N/A") -> 0.05711296474 | H182: =IFERROR(Variance!AB221,"N/A") -> 0.06132731603 | I182: =IFERROR(Variance!AC221,"N/A") -> 0.1078914405 | J182: =IFERROR(Variance!AD221,"N/A") -> 0.09847832489
B183: 3-BlueCol.Lgt | C183: =IFERROR(Variance!W222,"N/A") -> 0.05827961048 | D183: =IFERROR(Variance!X222,"N/A") -> 0.06809274672 | E183: =IFERROR(Variance!Y222,"N/A") -> 0.0671954789 | F183: =IFERROR(Variance!Z222,"N/A") -> 0.0713846394 | G183: =IFERROR(Variance!AA222,"N/A") -> 0.068859502 | H183: =IFERROR(Variance!AB222,"N/A") -> 0.06838628145 | I183: =IFERROR(Variance!AC222,"N/A") -> 0.1114352489 | J183: =IFERROR(Variance!AD222,"N/A") -> 0.1010641669
B184: 4-BlueCol.Hvy | C184: =IFERROR(Variance!W223,"N/A") -> 0.04499718258 | D184: =IFERROR(Variance!X223,"N/A") -> 0.05301417145 | E184: =IFERROR(Variance!Y223,"N/A") -> 0.05331552314 | F184: =IFERROR(Variance!Z223,"N/A") -> 0.05646514105 | G184: =IFERROR(Variance!AA223,"N/A") -> 0.05658276074 | H184: =IFERROR(Variance!AB223,"N/A") -> 0.06070270847 | I184: =IFERROR(Variance!AC223,"N/A") -> 0.1023190773 | J184: =IFERROR(Variance!AD223,"N/A") -> 0.09290917482
B185: 5-Medical.Occ | C185: =IFERROR(Variance!W224,"N/A") -> 0.1153851921 | D185: =IFERROR(Variance!X224,"N/A") -> 0.1406117753 | E185: =IFERROR(Variance!Y224,"N/A") -> 0.1366015042 | F185: =IFERROR(Variance!Z224,"N/A") -> 0.1351668001 | G185: =IFERROR(Variance!AA224,"N/A") -> 0.1323359201 | H185: =IFERROR(Variance!AB224,"N/A") -> 0.1333765698 | I185: =IFERROR(Variance!AC224,"N/A") -> 0.2252818049 | J185: =IFERROR(Variance!AD224,"N/A") -> 0.2082044647
B186: 6-N/A | C186: =IFERROR(Variance!W225,"N/A") -> 0.02097964582 | D186: =IFERROR(Variance!X225,"N/A") -> 0.0232096838 | E186: =IFERROR(Variance!Y225,"N/A") -> 0.0211249446 | F186: =IFERROR(Variance!Z225,"N/A") -> 0.020112767 | G186: =IFERROR(Variance!AA225,"N/A") -> 0.02000956549 | H186: =IFERROR(Variance!AB225,"N/A") -> 0.02067531605 | I186: =IFERROR(Variance!AC225,"N/A") -> 0.03153805114 | J186: =IFERROR(Variance!AD225,"N/A") -> 0.02941314168
B188: 75% confidence interval radius (heart)
C189: 1987.5-1991.5 | D189: 1991.5-1995.5 | E189: 1995.5-1999.5 | F189: 1999.5-2003.5 | G189: 2003.5-2006 | H189: 2006-2008 | I189: 2008-2010 | J189: 2010-2012
B190: age 40-44 | C190: =IFERROR(Variance!W229,"N/A") -> 0.07523990888 | D190: =IFERROR(Variance!X229,"N/A") -> 0.09312457886 | E190: =IFERROR(Variance!Y229,"N/A") -> 0.09512890252 | F190: =IFERROR(Variance!Z229,"N/A") -> 0.1071518645 | G190: =IFERROR(Variance!AA229,"N/A") -> 0.1067766031 | H190: =IFERROR(Variance!AB229,"N/A") -> 0.1211249675 | I190: =IFERROR(Variance!AC229,"N/A") -> 0.243053236 | J190: =IFERROR(Variance!AD229,"N/A") -> 0.2333125859
B191: age 45-49 | C191: =IFERROR(Variance!W230,"N/A") -> 0.0646548254 | D191: =IFERROR(Variance!X230,"N/A") -> 0.08079135856 | E191: =IFERROR(Variance!Y230,"N/A") -> 0.0825084851 | F191: =IFERROR(Variance!Z230,"N/A") -> 0.08335376715 | G191: =IFERROR(Variance!AA230,"N/A") -> 0.08687882658 | H191: =IFERROR(Variance!AB230,"N/A") -> 0.09780136086 | I191: =IFERROR(Variance!AC230,"N/A") -> 0.1534203852 | J191: =IFERROR(Variance!AD230,"N/A") -> 0.1413436322
B192: age 50-54 | C192: =IFERROR(Variance!W231,"N/A") -> 0.05100072753 | D192: =IFERROR(Variance!X231,"N/A") -> 0.06521736645 | E192: =IFERROR(Variance!Y231,"N/A") -> 0.06749888693 | F192: =IFERROR(Variance!Z231,"N/A") -> 0.06933040652 | G192: =IFERROR(Variance!AA231,"N/A") -> 0.07426935193 | H192: =IFERROR(Variance!AB231,"N/A") -> 0.08244496899 | I192: =IFERROR(Variance!AC231,"N/A") -> 0.135882651 | J192: =IFERROR(Variance!AD231,"N/A") -> 0.1300917507
B193: age 55-59 | C193: =IFERROR(Variance!W232,"N/A") -> 0.03911981931 | D193: =IFERROR(Variance!X232,"N/A") -> 0.0517407453 | E193: =IFERROR(Variance!Y232,"N/A") -> 0.05484545724 | F193: =IFERROR(Variance!Z232,"N/A") -> 0.05960159941 | G193: =IFERROR(Variance!AA232,"N/A") -> 0.06433480267 | H193: =IFERROR(Variance!AB232,"N/A") -> 0.07061806077 | I193: =IFERROR(Variance!AC232,"N/A") -> 0.1115543892 | J193: =IFERROR(Variance!AD232,"N/A") -> 0.1051560887
B194: age 60-64 | C194: =IFERROR(Variance!W233,"N/A") -> 0.03220960482 | D194: =IFERROR(Variance!X233,"N/A") -> 0.04085597928 | E194: =IFERROR(Variance!Y233,"N/A") -> 0.04377526011 | F194: =IFERROR(Variance!Z233,"N/A") -> 0.05118337047 | G194: =IFERROR(Variance!AA233,"N/A") -> 0.05935261238 | H194: =IFERROR(Variance!AB233,"N/A") -> 0.06952323002 | I194: =IFERROR(Variance!AC233,"N/A") -> 0.1192618797 | J194: =IFERROR(Variance!AD233,"N/A") -> 0.1173826608
B195: age 65-69 (age group) | C195: =IFERROR(Variance!W234,"N/A") -> 0.02805705801 | D195: =IFERROR(Variance!X234,"N/A") -> 0.0351670294 | E195: =IFERROR(Variance!Y234,"N/A") -> 0.03724891692 | F195: =IFERROR(Variance!Z234,"N/A") -> 0.04235598756 | G195: =IFERROR(Variance!AA234,"N/A") -> 0.04925750729 | H195: =IFERROR(Variance!AB234,"N/A") -> 0.05783824497 | I195: =IFERROR(Variance!AC234,"N/A") -> 0.100769384 | J195: =IFERROR(Variance!AD234,"N/A") -> 0.09822195115
B196: age 70-74 | C196: =IFERROR(Variance!W235,"N/A") -> 0.02656946067 | D196: =IFERROR(Variance!X235,"N/A") -> 0.03276712842 | E196: =IFERROR(Variance!Y235,"N/A") -> 0.03345012601 | F196: =IFERROR(Variance!Z235,"N/A") -> 0.03530945694 | G196: =IFERROR(Variance!AA235,"N/A") -> 0.04060586523 | H196: =IFERROR(Variance!AB235,"N/A") -> 0.05137183512 | I196: =IFERROR(Variance!AC235,"N/A") -> 0.08367889285 | J196: =IFERROR(Variance!AD235,"N/A") -> 0.07912913314
B197: age 75-79 | C197: =IFERROR(Variance!W236,"N/A") -> 0.02785289067 | D197: =IFERROR(Variance!X236,"N/A") -> 0.03380372976 | E197: =IFERROR(Variance!Y236,"N/A") -> 0.03313036618 | F197: =IFERROR(Variance!Z236,"N/A") -> 0.03375421301 | G197: =IFERROR(Variance!AA236,"N/A") -> 0.03653782632 | H197: =IFERROR(Variance!AB236,"N/A") -> 0.04423313774 | I197: =IFERROR(Variance!AC236,"N/A") -> 0.08212562845 | J197: =IFERROR(Variance!AD236,"N/A") -> 0.08124220207
B198: age 80-84 | C198: =IFERROR(Variance!W237,"N/A") -> 0.03136467257 | D198: =IFERROR(Variance!X237,"N/A") -> 0.03810281452 | E198: =IFERROR(Variance!Y237,"N/A") -> 0.03654621794 | F198: =IFERROR(Variance!Z237,"N/A") -> 0.03539169717 | G198: =IFERROR(Variance!AA237,"N/A") -> 0.03636468056 | H198: =IFERROR(Variance!AB237,"N/A") -> 0.0416836495 | I198: =IFERROR(Variance!AC237,"N/A") -> 0.07360294756 | J198: =IFERROR(Variance!AD237,"N/A") -> 0.07174432723
B199: age 85+ | C199: =IFERROR(Variance!W238,"N/A") -> 0.0355879773 | D199: =IFERROR(Variance!X238,"N/A") -> 0.04343515069 | E199: =IFERROR(Variance!Y238,"N/A") -> 0.04154513449 | F199: =IFERROR(Variance!Z238,"N/A") -> 0.03962724991 | G199: =IFERROR(Variance!AA238,"N/A") -> 0.04535164952 | H199: =IFERROR(Variance!AB238,"N/A") -> 0.04730860477 | I199: =IFERROR(Variance!AC238,"N/A") -> 0.06131195951 | J199: =IFERROR(Variance!AD238,"N/A") -> 0.05670259246
B200: Male (Sex) | C200: =IFERROR(Variance!W239,"N/A") -> 0.01394194528 | D200: =IFERROR(Variance!X239,"N/A") -> 0.01736251327 | E200: =IFERROR(Variance!Y239,"N/A") -> 0.01776262379 | F200: =IFERROR(Variance!Z239,"N/A") -> 0.01881584172 | G200: =IFERROR(Variance!AA239,"N/A") -> 0.02029353062 | H200: =IFERROR(Variance!AB239,"N/A") -> 0.02335264958 | I200: =IFERROR(Variance!AC239,"N/A") -> 0.03949404416 | J200: =IFERROR(Variance!AD239,"N/A") -> 0.03805569809
B201: Female | C201: =IFERROR(Variance!W240,"N/A") -> 0.01871996531 | D201: =IFERROR(Variance!X240,"N/A") -> 0.02135818159 | E201: =IFERROR(Variance!Y240,"N/A") -> 0.01969382666 | F201: =IFERROR(Variance!Z240,"N/A") -> 0.01902674952 | G201: =IFERROR(Variance!AA240,"N/A") -> 0.01934707346 | H201: =IFERROR(Variance!AB240,"N/A") -> 0.02117317654 | I201: =IFERROR(Variance!AC240,"N/A") -> 0.03553324325 | J201: =IFERROR(Variance!AD240,"N/A") -> 0.03604980883
B202: 1-Never | C202: N/A | D202: N/A | E202: N/A | F202: =IFERROR(Variance!Z241,"N/A") -> 0.02563735475 | G202: =IFERROR(Variance!AA241,"N/A") -> 0.02467752826 | H202: =IFERROR(Variance!AB241,"N/A") -> 0.03815085104 | I202: =IFERROR(Variance!AC241,"N/A") -> 0.08760780282 | J202: N/A
B203: 2-Current | C203: N/A | D203: N/A | E203: N/A | F203: =IFERROR(Variance!Z242,"N/A") -> 0.04872368194 | G203: =IFERROR(Variance!AA242,"N/A") -> 0.04593132566 | H203: =IFERROR(Variance!AB242,"N/A") -> 0.06963085254 | I203: =IFERROR(Variance!AC242,"N/A") -> 0.1389721734 | J203: N/A
B204: 3-Former | C204: N/A | D204: N/A | E204: N/A | F204: =IFERROR(Variance!Z243,"N/A") -> 0.03138595254 | G204: =IFERROR(Variance!AA243,"N/A") -> 0.02973223581 | H204: =IFERROR(Variance!AB243,"N/A") -> 0.04419208034 | I204: =IFERROR(Variance!AC243,"N/A") -> 0.1155206182 | J204: N/A
B205: 4-Not_Asked (smoker) | C205: =IFERROR(Variance!W244,"N/A") -> 0.01005759107 | D205: =IFERROR(Variance!X244,"N/A") -> 0.01258038077 | E205: =IFERROR(Variance!Y244,"N/A") -> 0.0149288972 | F205: =IFERROR(Variance!Z244,"N/A") -> 0.01958768564 | G205: =IFERROR(Variance!AA244,"N/A") -> 0.02672896511 | H205: =IFERROR(Variance!AB244,"N/A") -> 0.02722039091 | I205: =IFERROR(Variance!AC244,"N/A") -> 0.03231013041 | J205: =IFERROR(Variance!AD244,"N/A") -> 0.03063559577
B206: 1-Married (marital status) | C206: =IFERROR(Variance!W245,"N/A") -> 0.01347236045 | D206: =IFERROR(Variance!X245,"N/A") -> 0.01694702872 | E206: =IFERROR(Variance!Y245,"N/A") -> 0.01744542473 | F206: =IFERROR(Variance!Z245,"N/A") -> 0.01867028627 | G206: =IFERROR(Variance!AA245,"N/A") -> 0.02068968136 | H206: =IFERROR(Variance!AB245,"N/A") -> 0.02446427803 | I206: =IFERROR(Variance!AC245,"N/A") -> 0.04441043146 | J206: =IFERROR(Variance!AD245,"N/A") -> 0.0433263592
B207: 2-Widowed | C207: =IFERROR(Variance!W246,"N/A") -> 0.01812129559 | D207: =IFERROR(Variance!X246,"N/A") -> 0.02270629561 | E207: =IFERROR(Variance!Y246,"N/A") -> 0.02250626455 | F207: =IFERROR(Variance!Z246,"N/A") -> 0.02294922629 | G207: =IFERROR(Variance!AA246,"N/A") -> 0.02571768754 | H207: =IFERROR(Variance!AB246,"N/A") -> 0.03044247444 | I207: =IFERROR(Variance!AC246,"N/A") -> 0.05262170096 | J207: =IFERROR(Variance!AD246,"N/A") -> 0.05262446805
B208: 3-Divorced | C208: =IFERROR(Variance!W247,"N/A") -> 0.04495818944 | D208: =IFERROR(Variance!X247,"N/A") -> 0.05252188323 | E208: =IFERROR(Variance!Y247,"N/A") -> 0.05099912549 | F208: =IFERROR(Variance!Z247,"N/A") -> 0.0500583537 | G208: =IFERROR(Variance!AA247,"N/A") -> 0.04960658149 | H208: =IFERROR(Variance!AB247,"N/A") -> 0.05401698494 | I208: =IFERROR(Variance!AC247,"N/A") -> 0.08830136779 | J208: =IFERROR(Variance!AD247,"N/A") -> 0.08575940039
B209: 4-Separated | C209: =IFERROR(Variance!W248,"N/A") -> 0.09143019252 | D209: =IFERROR(Variance!X248,"N/A") -> 0.1149128754 | E209: =IFERROR(Variance!Y248,"N/A") -> 0.105491633 | F209: =IFERROR(Variance!Z248,"N/A") -> 0.1096812735 | G209: =IFERROR(Variance!AA248,"N/A") -> 0.1246224896 | H209: =IFERROR(Variance!AB248,"N/A") -> 0.12275023 | I209: =IFERROR(Variance!AC248,"N/A") -> 0.2118181367 | J209: =IFERROR(Variance!AD248,"N/A") -> 0.2066478647
B210: 5-NeverMar. | C210: =IFERROR(Variance!W249,"N/A") -> 0.04175884827 | D210: =IFERROR(Variance!X249,"N/A") -> 0.05275749115 | E210: =IFERROR(Variance!Y249,"N/A") -> 0.05347281703 | F210: =IFERROR(Variance!Z249,"N/A") -> 0.05398575461 | G210: =IFERROR(Variance!AA249,"N/A") -> 0.05768768953 | H210: =IFERROR(Variance!AB249,"N/A") -> 0.06650002281 | I210: =IFERROR(Variance!AC249,"N/A") -> 0.1069693182 | J210: =IFERROR(Variance!AD249,"N/A") -> 0.1039358411
... 133 more rows

Sheet Calculations-->

Sheet Calculation
A2: SOA MI Trends
A3: Detailed model parameter results | CF3: Order | CG3: 3
A4: Calculation | CF4: Balance | CG4: 10
CF5: Deaths | CG5: =INDIRECT("'"&cause_of_death&" parameters'!"&R6&"59") -> 56000 | CH5: =INDIRECT("'"&cause_of_death&" parameters'!"&S6&"59") -> 21500 | CI5: =INDIRECT("'"&cause_of_death&" parameters'!"&T6&"59") -> 20000 | CJ5: =INDIRECT("'"&cause_of_death&" parameters'!"&U6&"59") -> 22500 | CK5: =INDIRECT("'"&cause_of_death&" parameters'!"&V6&"59") -> 17500 | CL5: =INDIRECT("'"&cause_of_death&" parameters'!"&W6&"59") -> 18500 | CM5: =INDIRECT("'"&cause_of_death&" parameters'!"&X6&"59") -> 14000 | CN5: =INDIRECT("'"&cause_of_death&" parameters'!"&Y6&"59") -> 5000 | CO5: =INDIRECT("'"&cause_of_death&" parameters'!"&Z6&"59") -> 155000 | CQ5: MI years | CR5: =BL16 -> 4 | CS5: =BM16 -> 4 | CT5: 4 | CU5: 4 | CV5: 2.5 | CW5: 2 | CX5: 2 | CY5: 2
B6: Means lookup | O6: Parameter lookup | Q6: =Overview!C16 -> All cause | R6: C | S6: D | T6: E | U6: F | V6: G | W6: H | X6: I | Y6: J | Z6: K | AB6: At the means | AN6: B'X | AY6: HR(B'X) | BJ6: Intermediate mortality calculations | BN6: =cause_of_death -> All cause | BU6: Modeled mortality (all cause, cancer, and heart) | CF6: Smoothed mortality (all cause, cancer, and heart) | CQ6: Mortality improvement (all cause, cancer, heart)
B7: Variables | D7: 1980-1983 | E7: 1984-1987 | F7: 1988-1991 | G7: 1992-1995 | H7: 1996-1999 | I7: 2000-2003 | J7: 2004-2007 | K7: 2008-11 (NLMS) | L7: 2008-11 (MDAC) | Q7: Indicator | R7: 1980-1983 | S7: 1984-1987 | T7: 1988-1991 | U7: 1992-1995 | V7: 1996-1999 | W7: 2000-2003 | X7: 2004-2007 | Y7: 2008-11 (NLMS) | Z7: 2008-11 (MDAC) | AD7: 1980-1983 | AE7: 1984-1987 | AF7: 1988-1991 | AG7: 1992-1995 | AH7: 1996-1999 | AI7: 2000-2003 | AJ7: 2004-2007 | AK7: 2008-11 (NLMS) | AL7: 2008-11 (MDAC) | AO7: 1980-1983 | AP7: 1984-1987 | AQ7: 1988-1991 | AR7: 1992-1995 | AS7: 1996-1999 | AT7: 2000-2003 | AU7: 2004-2007 | AV7: 2008-11 (NLMS) | AW7: 2008-11 (MDAC) | AZ7: 1980-1983 | BA7: 1984-1987 | BB7: 1988-1991 | BC7: 1992-1995 | BD7: 1996-1999 | BE7: 2000-2003 | BF7: 2004-2007 | BG7: 2008-11 (NLMS) | BH7: 2008-11 (MDAC) | BK7: 1980-1983 | BL7: 1984-1987 | BM7: 1988-1991 | BN7: 1992-1995 | BO7: 1996-1999 | BP7: 2000-2003 | BQ7: 2004-2007 | BR7: 2008-11 (NLMS) | BS7: 2008-11 (MDAC) | BV7: 1980-1983 | BW7: 1984-1987 | BX7: 1988-1991 | BY7: 1992-1995 | BZ7: 1996-1999 | CA7: 2000-2003 | CB7: 2004-2007 | CC7: 2008-11 (NLMS) | CD7: 2008-11 (MDAC) | CG7: 1980-1983 | CH7: 1984-1987 | CI7: 1988-1991 | CJ7: 1992-1995 | CK7: 1996-1999 | CL7: 2000-2003 | CM7: 2004-2007 | CN7: 2008-11 (NLMS) | CO7: 2008-11 (MDAC) | CR7: 1987.5-1991.5 | CS7: 1991.5-1995.5 | CT7: 1995.5-1999.5 | CU7: 1999.5-2003.5 | CV7: 2003.5-2006 | CW7: 2006-2008 | CX7: 2008-2010 | CY7: 2010-2012
B8: Age | C8: 40-44 | D8: ='Means parameters'!C7 -> 14.88 | E8: ='Means parameters'!D7 -> 16.45 | F8: ='Means parameters'!E7 -> 18.36 | G8: ='Means parameters'!F7 -> 19.4 | H8: ='Means parameters'!G7 -> 19.66 | I8: ='Means parameters'!H7 -> 18.97 | J8: ='Means parameters'!I7 -> 17.07 | K8: ='Means parameters'!J7 -> 15.04 | L8: ='Means parameters'!K7 -> 17.26 | N8: 7 | O8: Age | P8: 40-44 | R8: =INDIRECT("'"&$Q$6&" parameters'!"&R$6&$N8) -> -1.79 | S8: =INDIRECT("'"&$Q$6&" parameters'!"&S$6&$N8) -> -1.771 | T8: =INDIRECT("'"&$Q$6&" parameters'!"&T$6&$N8) -> -1.768 | U8: =INDIRECT("'"&$Q$6&" parameters'!"&U$6&$N8) -> -1.897 | V8: =INDIRECT("'"&$Q$6&" parameters'!"&V$6&$N8) -> -1.829 | W8: =INDIRECT("'"&$Q$6&" parameters'!"&W$6&$N8) -> -1.588 | X8: =INDIRECT("'"&$Q$6&" parameters'!"&X$6&$N8) -> -1.624 | Y8: =INDIRECT("'"&$Q$6&" parameters'!"&Y$6&$N8) -> -1.317 | Z8: =INDIRECT("'"&$Q$6&" parameters'!"&Z$6&$N8) -> -1.619 | AB8: Age | AC8: 40-44 | AD8: =D8/100*R8 -> -0.266352 | AE8: =E8/100*S8 -> -0.2913295 | AF8: =F8/100*T8 -> -0.3246048 | AG8: =G8/100*U8 -> -0.368018 | AH8: =H8/100*V8 -> -0.3595814 | AI8: =I8/100*W8 -> -0.3012436 | AJ8: =J8/100*X8 -> -0.2772168 | AK8: =K8/100*Y8 -> -0.1980768 | AL8: =L8/100*Z8 -> -0.2794394 | AN8: 40-44 | AO8: =R$58+R8 -> -1.79 | AP8: =S$58+S8 -> -1.771 | AQ8: =T$58+T8 -> -1.768 | AR8: =U$58+U8 -> -1.897 | AS8: =V$58+V8 -> -1.829 | AT8: =W$58+W8 -> -1.588 | AU8: =X$58+X8 -> -1.624 | AV8: =Y$58+Y8 -> -1.317 | AW8: =Z$58+Z8 -> -1.619 | AY8: 40-44 | AZ8: =EXP(AO8) -> 0.1669601697 | BA8: =EXP(AP8) -> 0.170162741 | BB8: =EXP(AQ8) -> 0.1706739957 | BC8: =EXP(AR8) -> 0.1500179988 | BD8: =EXP(AS8) -> 0.1605740616 | BE8: =EXP(AT8) -> 0.2043338711 | BF8: =EXP(AU8) -> 0.1971086854 | BG8: 0.2679379112 | BH8: 0.1980966968 | BJ8: Deaths/Exposure | BK8: =INDEX('Deaths and Exposures'!$C$7:$K$11,MATCH(Calculation!$BN$6,'Deaths and Exposures'!$B$7:$B$11,0),MATCH(BK$7,'Deaths and Exposures'!$C$6:$K$6,0)) -> 0.2219 | BL8: =INDEX('Deaths and Exposures'!$C$7:$K$11,MATCH(Calculation!$BN$6,'Deaths and Exposures'!$B$7:$B$11,0),MATCH(BL$7,'Deaths and Exposures'!$C$6:$K$6,0)) -> 0.2263 | BM8: =INDEX('Deaths and Exposures'!$C$7:$K$11,MATCH(Calculation!$BN$6,'Deaths and Exposures'!$B$7:$B$11,0),MATCH(BM$7,'Deaths and Exposures'!$C$6:$K$6,0)) -> 0.2256 | BN8: =INDEX('Deaths and Exposures'!$C$7:$K$11,MATCH(Calculation!$BN$6,'Deaths and Exposures'!$B$7:$B$11,0),MATCH(BN$7,'Deaths and Exposures'!$C$6:$K$6,0)) -> 0.2002 | BO8: =INDEX('Deaths and Exposures'!$C$7:$K$11,MATCH(Calculation!$BN$6,'Deaths and Exposures'!$B$7:$B$11,0),MATCH(BO$7,'Deaths and Exposures'!$C$6:$K$6,0)) -> 0.1684 | BP8: =INDEX('Deaths and Exposures'!$C$7:$K$11,MATCH(Calculation!$BN$6,'Deaths and Exposures'!$B$7:$B$11,0),MATCH(BP$7,'Deaths and Exposures'!$C$6:$K$6,0)) -> 0.1442 | BQ8: =INDEX('Deaths and Exposures'!$C$7:$K$11,MATCH(Calculation!$BN$6,'Deaths and Exposures'!$B$7:$B$11,0),MATCH(BQ$7,'Deaths and Exposures'!$C$6:$K$6,0)) -> 0.08473 | BR8: =INDEX('Deaths and Exposures'!$C$7:$K$11,MATCH(Calculation!$BN$6,'Deaths and Exposures'!$B$7:$B$11,0),MATCH(BR$7,'Deaths and Exposures'!$C$6:$K$6,0)) -> 0.03064 | BS8: =INDEX('Deaths and Exposures'!$C$7:$K$11,MATCH(Calculation!$BN$6,'Deaths and Exposures'!$B$7:$B$11,0),MATCH(BS$7,'Deaths and Exposures'!$C$6:$K$6,0)) -> 0.08817 | BU8: 40-44 | BV8: =BK$12*AZ8/AD$59 -> 0.005015895813 | BW8: =BL$12*BA8/AE$59 -> 0.005572629554 | BX8: =BM$12*BB8/AF$59 -> 0.005176996809 | BY8: =BN$12*BC8/AG$59 -> 0.004772930459 | BZ8: =BO$12*BD8/AH$59 -> 0.003910944442 | CA8: =BP$12*BE8/AI$59 -> 0.004248590884 | CB8: =BQ$12*BF8/AJ$59 -> 0.003312166715 | CC8: =BR$12*BG8/AK$59 -> 0.00447060407 | CD8: =BS$12*BH8/AL$59 -> 0.003648506145 | CF8: 40-44 | CG8: =GRADRANGE(BV8:CD8,$CG$5:$CO$5,$CG$3,$CG$4) -> 0.005175969012 | CH8: 0.005112283949 | CI8: 0.004938953511 | CJ8: 0.004680425243 | CK8: 0.00438304878 | CL8: 0.004099546226 | CM8: 0.003867806062 | CN8: 0.003712209315 | CO8: 0.003637435745 | CQ8: 40-44 | CR8: =1-(CH8/CG8)^(1/CR$5) -> 0.00309029251 | CS8: =1-(CI8/CH8)^(1/CS$5) -> 0.008586124902 | CT8: 0.01335119627 | CU8: 0.01627717616 | CV8: 0.0263927628 | CW8: 0.02867525908 | CX8: 0.02032080958 | CY8: 0.0101225359
C9: 45-49 | D9: ='Means parameters'!C8 -> 13.71 | E9: ='Means parameters'!D8 -> 13.58 | F9: ='Means parameters'!E8 -> 14.63 | G9: ='Means parameters'!F8 -> 16.22 | H9: ='Means parameters'!G8 -> 17.09 | I9: ='Means parameters'!H8 -> 17.29 | J9: ='Means parameters'!I8 -> 17.1 | K9: ='Means parameters'!J8 -> 16.4 | L9: ='Means parameters'!K8 -> 17.89 | N9: =N8+1 -> 8 | P9: 45-49 | R9: =INDIRECT("'"&$Q$6&" parameters'!"&R$6&$N9) -> -1.339 | S9: =INDIRECT("'"&$Q$6&" parameters'!"&S$6&$N9) -> -1.402 | T9: =INDIRECT("'"&$Q$6&" parameters'!"&T$6&$N9) -> -1.318 | U9: =INDIRECT("'"&$Q$6&" parameters'!"&U$6&$N9) -> -1.482 | V9: =INDIRECT("'"&$Q$6&" parameters'!"&V$6&$N9) -> -1.383 | W9: =INDIRECT("'"&$Q$6&" parameters'!"&W$6&$N9) -> -1.24 | X9: =INDIRECT("'"&$Q$6&" parameters'!"&X$6&$N9) -> -1.169 | Y9: =INDIRECT("'"&$Q$6&" parameters'!"&Y$6&$N9) -> -1.113 | Z9: =INDIRECT("'"&$Q$6&" parameters'!"&Z$6&$N9) -> -1.235 | AC9: 45-49 | AD9: =D9/100*R9 -> -0.1835769 | AE9: -0.1903916 | AF9: -0.1928234 | AG9: -0.2403804 | AH9: -0.2363547 | AI9: -0.214396 | AJ9: -0.199899 | AK9: -0.182532 | AL9: -0.2209415 | AN9: 45-49 | AO9: =R$58+R9 -> -1.339 | AP9: -1.402 | AQ9: -1.318 | AR9: -1.482 | AS9: -1.383 | AT9: -1.24 | AU9: -1.169 | AV9: -1.113 | AW9: -1.235 | AY9: 45-49 | AZ9: 0.2621076452 | BA9: 0.2461042629 | BB9: 0.2676701072 | BC9: 0.227182868 | BD9: 0.2508249484 | BE9: 0.2893842179 | BF9: 0.3106774634 | BG9: 0.3285717657 | BH9: 0.2908347624 | BJ9: Exposure Potential | BK9: 11 | BL9: 11 | BM9: 11 | BN9: 11 | BO9: 11 | BP9: 10.04 | BQ9: 6.25 | BR9: 2.26 | BS9: 6.77 | BU9: 45-49 | BV9: =BK$12*AZ9/AD$59 -> 0.007874360949 | BW9: 0.008059625044 | BX9: 0.008119147181 | BY9: 0.007227986234 | BZ9: 0.006109096501 | CA9: 0.006016991427 | CB9: 0.005220549017 | CC9: 0.005482293516 | CD9: 0.005356537666 | CF9: 45-49 | CG9: =GRADRANGE(BV9:CD9,$CG$5:$CO$5,$CG$3,$CG$4) -> 0.008036138626 | CH9: 0.007846023921 | CI9: 0.007515654053 | CJ9: 0.007069736883 | CK9: 0.00656987121 | CL9: 0.006093812027 | CM9: 0.005705025033 | CN9: 0.005444232659 | CO9: 0.005324836045 | CQ9: 45-49 | CR9: =1-(CH9/CG9)^(1/CR$5) -> 0.005967573079 | CS9: =1-(CI9/CH9)^(1/CS$5) -> 0.01069708593 | CT9: =1-(CJ9/CI9)^(1/CT$5) -> 0.01517488055 | CU9: =1-(CK9/CJ9)^(1/CU$5) -> 0.01816524471 | CV9: =1-(CL9/CK9)^(1/CV$5) -> 0.02964001523 | CW9: =1-(CM9/CL9)^(1/CW$5) -> 0.03242586494 | CX9: =1-(CN9/CM9)^(1/CX$5) -> 0.02312372758 | CY9: =1-(CO9/CN9)^(1/CY$5) -> 0.01102621037
C10: 50-54 | D10: ='Means parameters'!C9 -> 14.26 | E10: ='Means parameters'!D9 -> 12.69 | F10: ='Means parameters'!E9 -> 12.24 | G10: ='Means parameters'!F9 -> 12.79 | H10: ='Means parameters'!G9 -> 13.69 | I10: ='Means parameters'!H9 -> 15 | J10: ='Means parameters'!I9 -> 15.35 | K10: ='Means parameters'!J9 -> 15.73 | L10: ='Means parameters'!K9 -> 16.29 | N10: =N9+1 -> 9 | P10: 50-54 | R10: =INDIRECT("'"&$Q$6&" parameters'!"&R$6&$N10) -> -0.8976 | S10: =INDIRECT("'"&$Q$6&" parameters'!"&S$6&$N10) -> -0.8918 | T10: =INDIRECT("'"&$Q$6&" parameters'!"&T$6&$N10) -> -0.9433 | U10: =INDIRECT("'"&$Q$6&" parameters'!"&U$6&$N10) -> -0.999 | V10: =INDIRECT("'"&$Q$6&" parameters'!"&V$6&$N10) -> -1.054 | W10: =INDIRECT("'"&$Q$6&" parameters'!"&W$6&$N10) -> -0.9111 | X10: =INDIRECT("'"&$Q$6&" parameters'!"&X$6&$N10) -> -0.7969 | Y10: =INDIRECT("'"&$Q$6&" parameters'!"&Y$6&$N10) -> -0.8401 | Z10: =INDIRECT("'"&$Q$6&" parameters'!"&Z$6&$N10) -> -0.8373 | AC10: 50-54 | AD10: -0.12799776 | AE10: -0.11316942 | AF10: -0.11545992 | AG10: -0.1277721 | AH10: -0.1442926 | AI10: -0.136665 | AJ10: -0.12232415 | AK10: -0.13214773 | AL10: -0.13639617 | AN10: 50-54 | AO10: -0.8976 | AP10: -0.8918 | AQ10: -0.9433 | AR10: -0.999 | AS10: -1.054 | AT10: -0.9111 | AU10: -0.7969 | AV10: -0.8401 | AW10: -0.8373 | AY10: 50-54 | AZ10: 0.4075465988 | BA10: 0.4099172373 | BB10: 0.3893408881 | BC10: 0.3682475046 | BD10: 0.3485407939 | BE10: 0.4020816908 | BF10: 0.4507240452 | BG10: 0.4316673545 | BH10: 0.4328777168 | BJ10: Survivorship n yr | BK10: =(1-BK8) -> 0.7781 | BL10: 0.7737 | BM10: 0.7744 | BN10: 0.7998 | BO10: 0.8316 | BP10: 0.8558 | BQ10: =(1-BQ8) -> 0.91527 | BR10: 0.96936 | BS10: 0.91183 | BU10: 50-54 | BV10: 0.01224370628 | BW10: 0.01342430721 | BX10: 0.01180974599 | BY10: 0.01171605904 | BZ10: 0.008489065216 | CA10: 0.008360241978 | CB10: 0.007573857932 | CC10: 0.00720246651 | CD10: 0.00797265697 | CF10: 50-54 | CG10: =GRADRANGE(BV10:CD10,$CG$5:$CO$5,$CG$3,$CG$4) -> 0.01267364123 | CH10: 0.01225794396 | CI10: 0.01156849372 | CJ10: 0.0106709533 | CK10: 0.009693919784 | CL10: 0.008813036799 | CM10: 0.008170975333 | CN10: 0.007854918932 | CO10: 0.00789689447 | CQ10: 50-54 | CR10: 0.008302871574 | CS10: 0.01436799807 | CT10: 0.01998753173 | CU10: 0.02372076859 | CV10: 0.03738978777 | CW10: 0.03711558375 | CX10: 0.01953091655 | CY10: -0.002668366789
C11: 55-59 | D11: ='Means parameters'!C10 -> 14.16 | E11: ='Means parameters'!D10 -> 13.12 | F11: ='Means parameters'!E10 -> 11.54 | G11: ='Means parameters'!F10 -> 10.66 | H11: ='Means parameters'!G10 -> 10.99 | I11: ='Means parameters'!H10 -> 11.8 | J11: ='Means parameters'!I10 -> 13.25 | K11: ='Means parameters'!J10 -> 13.71 | L11: ='Means parameters'!K10 -> 13.68 | N11: 10 | P11: 55-59 | R11: =INDIRECT("'"&$Q$6&" parameters'!"&R$6&$N11) -> -0.5241 | S11: =INDIRECT("'"&$Q$6&" parameters'!"&S$6&$N11) -> -0.5041 | T11: =INDIRECT("'"&$Q$6&" parameters'!"&T$6&$N11) -> -0.5074 | U11: =INDIRECT("'"&$Q$6&" parameters'!"&U$6&$N11) -> -0.6478 | V11: =INDIRECT("'"&$Q$6&" parameters'!"&V$6&$N11) -> -0.5892 | W11: =INDIRECT("'"&$Q$6&" parameters'!"&W$6&$N11) -> -0.5444 | X11: =INDIRECT("'"&$Q$6&" parameters'!"&X$6&$N11) -> -0.4849 | Y11: =INDIRECT("'"&$Q$6&" parameters'!"&Y$6&$N11) -> -0.3622 | Z11: =INDIRECT("'"&$Q$6&" parameters'!"&Z$6&$N11) -> -0.5177 | AC11: 55-59 | AD11: -0.07421256 | AE11: -0.06613792 | AF11: -0.05855396 | AG11: -0.06905548 | AH11: -0.06475308 | AI11: -0.0642392 | AJ11: -0.06424925 | AK11: -0.04965762 | AL11: -0.07082136 | AN11: 55-59 | AO11: -0.5241 | AP11: -0.5041 | AQ11: -0.5074 | AR11: -0.6478 | AS11: -0.5892 | AT11: -0.5444 | AU11: -0.4849 | AV11: -0.3622 | AW11: -0.5177 | AY11: 55-59 | AZ11: 0.5920880038 | BA11: 0.6040489749 | BB11: 0.6020588988 | BC11: 0.5231955417 | BD11: 0.554770924 | BE11: 0.5801897928 | BF11: 0.6157587696 | BG11: 0.6961431253 | BH11: 0.5958895189 | BJ11: Survivorship 1 yr | BK11: =BK10^(1/BK9) -> 0.9774490496 | BL11: =BL10^(1/BL9) -> 0.9769452734 | BM11: 0.9770255936 | BN11: 0.9798963213 | BO11: 0.9833757587 | BP11: =BP10^(1/BP9) -> 0.9846098396 | BQ11: =BQ10^(1/BQ9) -> 0.9859340746 | BR11: 0.9863248009 | BS11: 0.9864585905 | BU11: 55-59 | BV11: 0.01778778582 | BW11: 0.01978189321 | BX11: 0.01826204974 | BY11: 0.01664584221 | BZ11: 0.0135120096 | CA11: 0.01206353627 | CB11: 0.01034706156 | CC11: 0.01161530399 | CD11: 0.0109749764 | CF11: 55-59 | CG11: =GRADRANGE(BV11:CD11,$CG$5:$CO$5,$CG$3,$CG$4) -> 0.01846409483 | CH11: 0.01810651752 | CI11: 0.01722720992 | CJ11: 0.01592946287 | CK11: 0.01442491092 | CL11: 0.01298213943 | CM11: 0.011831332 | CN11: 0.01111248821 | CO11: 0.01086998908 | CQ11: 55-59 | CR11: 0.004877085482 | CS11: 0.01236833836 | CT11: 0.01938948341 | CU11: 0.02449836422 | CV11: 0.0412767674 | CW11: 0.04535107896 | CX11: 0.03085482904 | CY11: 0.01097129325
C12: 60-64 | D12: ='Means parameters'!C11 -> 12.52 | E12: ='Means parameters'!D11 -> 12.55 | F12: ='Means parameters'!E11 -> 11.6 | G12: ='Means parameters'!F11 -> 10.19 | H12: ='Means parameters'!G11 -> 9.19 | I12: ='Means parameters'!H11 -> 9.21 | J12: ='Means parameters'!I11 -> 10.13 | K12: ='Means parameters'!J11 -> 11.52 | L12: ='Means parameters'!K11 -> 11.12 | N12: 11 | P12: 60-64 | R12: =INDIRECT("'"&$Q$6&" parameters'!"&R$6&$N12) -> -0.2227 | S12: =INDIRECT("'"&$Q$6&" parameters'!"&S$6&$N12) -> -0.2282 | T12: =INDIRECT("'"&$Q$6&" parameters'!"&T$6&$N12) -> -0.2314 | U12: =INDIRECT("'"&$Q$6&" parameters'!"&U$6&$N12) -> -0.3171 | V12: =INDIRECT("'"&$Q$6&" parameters'!"&V$6&$N12) -> -0.3205 | W12: =INDIRECT("'"&$Q$6&" parameters'!"&W$6&$N12) -> -0.3185 | X12: =INDIRECT("'"&$Q$6&" parameters'!"&X$6&$N12) -> -0.2489 | Y12: =INDIRECT("'"&$Q$6&" parameters'!"&Y$6&$N12) -> -0.188 | Z12: =INDIRECT("'"&$Q$6&" parameters'!"&Z$6&$N12) -> -0.2643 | AC12: 60-64 | AD12: -0.02788204 | AE12: -0.0286391 | AF12: -0.0268424 | AG12: -0.03231249 | AH12: -0.02945395 | AI12: -0.02933385 | AJ12: -0.02521357 | AK12: -0.0216576 | AL12: -0.02939016 | AN12: 60-64 | AO12: -0.2227 | AP12: -0.2282 | AQ12: -0.2314 | AR12: -0.3171 | AS12: -0.3205 | AT12: -0.3185 | AU12: -0.2489 | AV12: -0.188 | AW12: -0.2643 | AY12: 60-64 | AZ12: 0.8003549198 | BA12: 0.7959650509 | BB12: 0.7934220337 | BC12: 0.7282579257 | BD12: 0.7257860533 | BE12: 0.727239078 | BF12: 0.7796579353 | BG12: 0.8286147072 | BH12: 0.7677431822 | BJ12: Mortality | BK12: =1-BK11 -> 0.02255095042 | BL12: =1-BL11 -> 0.02305472655 | BM12: 0.02297440641 | BN12: 0.0201036787 | BO12: 0.01662424131 | BP12: 0.01539016042 | BQ12: =1-BQ11 -> 0.01406592537 | BR12: 0.01367519911 | BS12: 0.01354140947 | BU12: 60-64 | BV12: 0.0240446383 | BW12: 0.02606691889 | BX12: 0.02406660324 | BY12: 0.02317004935 | BZ12: 0.01767725686 | CA12: 0.01512104333 | CB12: 0.01310118353 | CC12: 0.01382562201 | CD12: 0.0141401435 | CF12: 60-64 | CG12: =GRADRANGE(BV12:CD12,$CG$5:$CO$5,$CG$3,$CG$4) -> 0.02487864907 | CH12: 0.02430590343 | CI12: 0.02301699119 | CJ12: 0.02113928853 | CK12: 0.0189516645 | CL12: 0.01685134603 | CM12: 0.01519616821 | CN12: 0.01420764848 | CO12: 0.01396136244 | CQ12: 60-64 | CR12: 0.005805758164 | CS12: 0.01352928773 | CT12: 0.02105012836 | CU12: 0.0269408334 | CV12: 0.04589780524 | CW12: 0.05038022936 | CX12: 0.03307218057 | CY12: 0.008705265798
C13: 65-69 | D13: ='Means parameters'!C12 -> 10.79 | E13: ='Means parameters'!D12 -> 10.93 | F13: ='Means parameters'!E12 -> 10.82 | G13: ='Means parameters'!F12 -> 9.75 | H13: ='Means parameters'!G12 -> 8.71 | I13: ='Means parameters'!H12 -> 7.87 | J13: ='Means parameters'!I12 -> 7.88 | K13: ='Means parameters'!J12 -> 8.55 | L13: ='Means parameters'!K12 -> 8.1 | N13: 12 | P13: 65-69 | R13: =INDIRECT("'"&$Q$6&" parameters'!"&R$6&$N13) -> 0 | S13: =INDIRECT("'"&$Q$6&" parameters'!"&S$6&$N13) -> 0 | T13: =INDIRECT("'"&$Q$6&" parameters'!"&T$6&$N13) -> 0 | U13: =INDIRECT("'"&$Q$6&" parameters'!"&U$6&$N13) -> 0 | V13: =INDIRECT("'"&$Q$6&" parameters'!"&V$6&$N13) -> 0 | W13: =INDIRECT("'"&$Q$6&" parameters'!"&W$6&$N13) -> 0 | X13: =INDIRECT("'"&$Q$6&" parameters'!"&X$6&$N13) -> 0 | Y13: =INDIRECT("'"&$Q$6&" parameters'!"&Y$6&$N13) -> 0 | Z13: =INDIRECT("'"&$Q$6&" parameters'!"&Z$6&$N13) -> 0 | AC13: 65-69 | AD13: 0 | AE13: 0 | AF13: 0 | AG13: 0 | AH13: 0 | AI13: 0 | AJ13: 0 | AK13: 0 | AL13: 0 | AN13: 65-69 | AO13: 0 | AP13: 0 | AQ13: 0 | AR13: 0 | AS13: 0 | AT13: 0 | AU13: 0 | AV13: 0 | AW13: 0 | AY13: 65-69 | AZ13: 1 | BA13: 1 | BB13: 1 | BC13: 1 | BD13: 1 | BE13: 1 | BF13: 1 | BG13: 1 | BH13: 1 | BJ13: Starting year (1/1) | BK13: 1980 | BL13: =BK13+4 -> 1984 | BM13: =BL13+4 -> 1988 | BN13: 1992 | BO13: 1996 | BP13: 2000 | BQ13: =BP13+4 -> 2004 | BR13: =BQ13+4 -> 2008 | BS13: =BR13+4 -> 2012 | BU13: 65-69 | BV13: 0.03004246955 | BW13: 0.03274882341 | BX13: 0.03033266309 | BY13: 0.03181571876 | BZ13: 0.02435601618 | CA13: 0.02079239659 | CB13: 0.01680375834 | CC13: 0.01668522402 | CD13: 0.01841780406 | CF13: 65-69 | CG13: =GRADRANGE(BV13:CD13,$CG$5:$CO$5,$CG$3,$CG$4) -> 0.0309464303 | CH13: 0.03103086309 | CI13: 0.0300328337 | CJ13: 0.02809040157 | CK13: 0.02551701014 | CL13: 0.022822457 | CM13: 0.02050526508 | CN13: 0.01890046487 | CO13: 0.0181298025 | CQ13: 65-69 | CR13: -0.0006813915889 | CS13: 0.008139457045 | CT13: 0.01657689155 | CU13: 0.02373446077 | CV13: 0.04365840679 | CW13: 0.05212406978 | CX13: 0.0399285632 | CY13: 0.02059956293
C14: 70-74 | D14: ='Means parameters'!C13 -> 8.43 | E14: ='Means parameters'!D13 -> 8.61 | F14: ='Means parameters'!E13 -> 8.46 | G14: ='Means parameters'!F13 -> 8.44 | H14: ='Means parameters'!G13 -> 7.82 | I14: ='Means parameters'!H13 -> 7.04 | J14: ='Means parameters'!I13 -> 6.4 | K14: ='Means parameters'!J13 -> 6.39 | L14: ='Means parameters'!K13 -> 5.97 | N14: 13 | P14: 70-74 | R14: =INDIRECT("'"&$Q$6&" parameters'!"&R$6&$N14) -> 0.3213 | S14: =INDIRECT("'"&$Q$6&" parameters'!"&S$6&$N14) -> 0.3577 | T14: =INDIRECT("'"&$Q$6&" parameters'!"&T$6&$N14) -> 0.3465 | U14: =INDIRECT("'"&$Q$6&" parameters'!"&U$6&$N14) -> 0.3375 | V14: =INDIRECT("'"&$Q$6&" parameters'!"&V$6&$N14) -> 0.3869 | W14: =INDIRECT("'"&$Q$6&" parameters'!"&W$6&$N14) -> 0.4002 | X14: =INDIRECT("'"&$Q$6&" parameters'!"&X$6&$N14) -> 0.3921 | Y14: =INDIRECT("'"&$Q$6&" parameters'!"&Y$6&$N14) -> 0.3853 | Z14: =INDIRECT("'"&$Q$6&" parameters'!"&Z$6&$N14) -> 0.3318 | AC14: 70-74 | AD14: 0.02708559 | AE14: 0.03079797 | AF14: 0.0293139 | AG14: 0.028485 | AH14: 0.03025558 | AI14: 0.02817408 | AJ14: 0.0250944 | AK14: 0.02462067 | AL14: 0.01980846 | AN14: 70-74 | AO14: 0.3213 | AP14: 0.3577 | AQ14: 0.3465 | AR14: 0.3375 | AS14: 0.3869 | AT14: 0.4002 | AU14: 0.3921 | AV14: 0.3853 | AW14: 0.3318 | AY14: 70-74 | AZ14: 1.378919195 | BA14: 1.430036545 | BB14: 1.414109494 | BC14: 1.401439608 | BD14: 1.472409243 | BE14: 1.492123092 | BF14: 1.480085713 | BG14: 1.470055272 | BH14: 1.393474126 | BJ14: Ending Year (1/1) | BK14: =1984+11 -> 1995 | BL14: =BK14+4 -> 1999 | BM14: 2003 | BN14: 2007 | BO14: 2011 | BP14: 2012 | BQ14: 2012 | BR14: 2012 | BS14: 2012 | BU14: 70-74 | BV14: 0.04142613791 | BW14: 0.04683201428 | BX14: 0.04289370685 | BY14: 0.04458780844 | BZ14: 0.03586202335 | CA14: 0.0310248151 | CB14: 0.02487100263 | CC14: 0.02452820153 | CD14: 0.02566473341 | CF14: 70-74 | CG14: =GRADRANGE(BV14:CD14,$CG$5:$CO$5,$CG$3,$CG$4) -> 0.04277700533 | CH14: 0.04359113954 | CI14: 0.04273840409 | CJ14: 0.0404251133 | CK14: 0.03708017692 | CL14: 0.03336291036 | CM14: 0.02991540663 | CN14: 0.02717304754 | CO14: 0.02529298238 | CQ14: 70-74 | CR14: -0.004724427219 | CS14: 0.004926822882 | CT14: 0.01381535513 | CU14: 0.02136073179 | CV14: 0.0413747757 | CW14: 0.05307519993 | CX14: 0.04693675979 | CY14: 0.03521432509
C15: 75-79 | D15: ='Means parameters'!C14 -> 5.71 | E15: ='Means parameters'!D14 -> 6.04 | F15: ='Means parameters'!E14 -> 6.2 | G15: ='Means parameters'!F14 -> 5.97 | H15: ='Means parameters'!G14 -> 6.21 | I15: ='Means parameters'!H14 -> 6.13 | J15: ='Means parameters'!I14 -> 5.79 | K15: ='Means parameters'!J14 -> 5.38 | L15: ='Means parameters'!K14 -> 4.6 | N15: 14 | P15: 75-79 | R15: =INDIRECT("'"&$Q$6&" parameters'!"&R$6&$N15) -> 0.696 | S15: =INDIRECT("'"&$Q$6&" parameters'!"&S$6&$N15) -> 0.7157 | T15: =INDIRECT("'"&$Q$6&" parameters'!"&T$6&$N15) -> 0.7265 | U15: =INDIRECT("'"&$Q$6&" parameters'!"&U$6&$N15) -> 0.7802 | V15: =INDIRECT("'"&$Q$6&" parameters'!"&V$6&$N15) -> 0.7563 | W15: =INDIRECT("'"&$Q$6&" parameters'!"&W$6&$N15) -> 0.7782 | X15: =INDIRECT("'"&$Q$6&" parameters'!"&X$6&$N15) -> 0.7443 | Y15: =INDIRECT("'"&$Q$6&" parameters'!"&Y$6&$N15) -> 0.7284 | Z15: =INDIRECT("'"&$Q$6&" parameters'!"&Z$6&$N15) -> 0.789 | AC15: 75-79 | AD15: 0.0397416 | AE15: 0.04322828 | AF15: 0.045043 | AG15: 0.04657794 | AH15: 0.04696623 | AI15: 0.04770366 | AJ15: 0.04309497 | AK15: 0.03918792 | AL15: 0.036294 | AN15: 75-79 | AO15: 0.696 | AP15: 0.7157 | AQ15: 0.7265 | AR15: 0.7802 | AS15: 0.7563 | AT15: 0.7782 | AU15: 0.7443 | AV15: 0.7284 | AW15: 0.789 | AY15: 75-79 | AZ15: 2.005713785 | BA15: 2.045618114 | BB15: 2.067830521 | BC15: 2.181908604 | BD15: 2.130379217 | BE15: 2.177549147 | BF15: 2.104967442 | BG15: 2.071763133 | BH15: 2.201194131 | BJ15: Midpoint | BK15: =(BK13+BK14)/2 -> 1987.5 | BL15: =(BL13+BL14)/2 -> 1991.5 | BM15: 1995.5 | BN15: 1999.5 | BO15: 2003.5 | BP15: 2006 | BQ15: =(BQ13+BQ14)/2 -> 2008 | BR15: 2010 | BS15: 2012 | BU15: 75-79 | BV15: 0.06025659531 | BW15: 0.06699158637 | BX15: 0.06272280651 | BY15: 0.06941899049 | BZ15: 0.05188755068 | CA15: 0.04527646547 | CB15: 0.03537136421 | CC15: 0.03456783199 | CD15: 0.0405411622 | CF15: 75-79 | CG15: =GRADRANGE(BV15:CD15,$CG$5:$CO$5,$CG$3,$CG$4) -> 0.06212017983 | CH15: 0.06381213254 | CI15: 0.06289586921 | CJ15: 0.05965601001 | CK15: 0.05475998389 | CL15: 0.04936565687 | CM15: 0.04462986847 | CN15: 0.04135406147 | CO15: 0.03983622995 | CQ15: 75-79 | CR15: -0.006740728219 | CS15: 0.003609183259 | CT15: 0.01313437902 | CU15: 0.02118125636 | CV15: 0.04063329216 | CW15: 0.04917554451 | CX15: 0.03739906094 | CY15: 0.01852321683
C16: 80-84 | D16: ='Means parameters'!C15 -> 3.41 | E16: ='Means parameters'!D15 -> 3.63 | F16: ='Means parameters'!E15 -> 3.71 | G16: ='Means parameters'!F15 -> 3.9 | H16: ='Means parameters'!G15 -> 3.96 | I16: ='Means parameters'!H15 -> 4.61 | J16: ='Means parameters'!I15 -> 4.1 | K16: ='Means parameters'!J15 -> 4.04 | L16: ='Means parameters'!K15 -> 3.05 | N16: 15 | P16: 80-84 | R16: =INDIRECT("'"&$Q$6&" parameters'!"&R$6&$N16) -> 1.051 | S16: =INDIRECT("'"&$Q$6&" parameters'!"&S$6&$N16) -> 1.143 | T16: =INDIRECT("'"&$Q$6&" parameters'!"&T$6&$N16) -> 1.12 | U16: =INDIRECT("'"&$Q$6&" parameters'!"&U$6&$N16) -> 1.15 | V16: =INDIRECT("'"&$Q$6&" parameters'!"&V$6&$N16) -> 1.136 | W16: =INDIRECT("'"&$Q$6&" parameters'!"&W$6&$N16) -> 1.194 | X16: =INDIRECT("'"&$Q$6&" parameters'!"&X$6&$N16) -> 1.148 | Y16: =INDIRECT("'"&$Q$6&" parameters'!"&Y$6&$N16) -> 1.07 | Z16: =INDIRECT("'"&$Q$6&" parameters'!"&Z$6&$N16) -> 1.24 | AC16: 80-84 | AD16: 0.0358391 | AE16: 0.0414909 | AF16: 0.041552 | AG16: 0.04485 | AH16: 0.0449856 | AI16: 0.0550434 | AJ16: 0.047068 | AK16: 0.043228 | AL16: 0.03782 | AN16: 80-84 | AO16: 1.051 | AP16: 1.143 | AQ16: 1.12 | AR16: 1.15 | AS16: 1.136 | AT16: 1.194 | AU16: 1.148 | AV16: 1.07 | AW16: 1.24 | AY16: 80-84 | AZ16: 2.860510198 | BA16: 3.136162755 | BB16: 3.064854203 | BC16: 3.15819291 | BD16: 3.114286273 | BE16: 3.300255864 | BF16: 3.151882836 | BG16: 2.9153795 | BH16: 3.455613465 | BJ16: MI years | BL16: =BL15-BK15 -> 4 | BM16: =BM15-BL15 -> 4 | BN16: 4 | BO16: 4 | BP16: 2.5 | BQ16: =BQ15-BP15 -> 2 | BR16: =BR15-BQ15 -> 2 | BS16: =BS15-BR15 -> 2 | BU16: 80-84 | BV16: 0.08593679053 | BW16: 0.1027056402 | BX16: 0.09296518996 | BY16: 0.1004801774 | BZ16: 0.07585160685 | CA16: 0.06862022877 | CB16: 0.05296347749 | CC16: 0.04864376005 | CD16: 0.06364481169 | CF16: 80-84 | CG16: =GRADRANGE(BV16:CD16,$CG$5:$CO$5,$CG$3,$CG$4) -> 0.08982963576 | CH16: 0.09337541906 | CI16: 0.09259182636 | CJ16: 0.08807340131 | CK16: 0.08105668457 | CL16: 0.07344730194 | CM16: 0.06708572759 | CN16: 0.06326147141 | CO16: 0.06247081417 | CQ16: 80-84 | CR16: -0.009725283901 | CS16: 0.00210459768 | CT16: 0.01242967963 | CU16: 0.02054155118 | CV16: 0.0386648892 | CW16: 0.04428776955 | CX16: 0.02892096665 | CY16: 0.006268770259
C17: 85+ | D17: ='Means parameters'!C16 -> 2.13 | E17: ='Means parameters'!D16 -> 2.4 | F17: ='Means parameters'!E16 -> 2.44 | G17: ='Means parameters'!F16 -> 2.69 | H17: ='Means parameters'!G16 -> 2.67 | I17: ='Means parameters'!H16 -> 2.09 | J17: ='Means parameters'!I16 -> 2.93 | K17: ='Means parameters'!J16 -> 3.24 | L17: ='Means parameters'!K16 -> 2.04 | N17: 16 | P17: 85+ | R17: =INDIRECT("'"&$Q$6&" parameters'!"&R$6&$N17) -> 1.436 | S17: =INDIRECT("'"&$Q$6&" parameters'!"&S$6&$N17) -> 1.491 | T17: =INDIRECT("'"&$Q$6&" parameters'!"&T$6&$N17) -> 1.53 | U17: =INDIRECT("'"&$Q$6&" parameters'!"&U$6&$N17) -> 1.508 | V17: =INDIRECT("'"&$Q$6&" parameters'!"&V$6&$N17) -> 1.498 | W17: =INDIRECT("'"&$Q$6&" parameters'!"&W$6&$N17) -> 1.582 | X17: =INDIRECT("'"&$Q$6&" parameters'!"&X$6&$N17) -> 1.683 | Y17: =INDIRECT("'"&$Q$6&" parameters'!"&Y$6&$N17) -> 1.679 | Z17: =INDIRECT("'"&$Q$6&" parameters'!"&Z$6&$N17) -> 1.798 | AC17: 85+ | AD17: 0.0305868 | AE17: 0.035784 | AF17: 0.037332 | AG17: 0.0405652 | AH17: 0.0399966 | AI17: 0.0330638 | AJ17: 0.0493119 | AK17: 0.0543996 | AL17: 0.0366792 | AN17: 85+ | AO17: 1.436 | AP17: 1.491 | AQ17: 1.53 | AR17: 1.508 | AS17: 1.498 | AT17: 1.582 | AU17: 1.683 | AV17: 1.679 | AW17: 1.798 | AY17: 85+ | AZ17: 4.203846754 | BA17: 4.441534834 | BB17: 4.618176822 | BC17: 4.51768638 | BD17: 4.47273465 | BE17: 4.864675439 | BF17: 5.381676808 | BG17: 5.360193097 | BH17: 6.037560261 | BU17: 85+ | BV17: 0.1262939381 | BW17: 0.1454550399 | BX17: 0.1400816016 | BY17: 0.1437334393 | BZ17: 0.1089379975 | CA17: 0.101148261 | CB17: 0.09043239654 | CC17: 0.08943602259 | CD17: 0.1111986019 | CF17: 85+ | CG17: =GRADRANGE(BV17:CD17,$CG$5:$CO$5,$CG$3,$CG$4) -> 0.1317073303 | CH17: 0.1351566894 | CI17: 0.1334622062 | CJ17: 0.1274506535 | CK17: 0.1189984913 | CL17: 0.1108937239 | CM17: 0.105698586 | CN17: 0.1050923883 | CO17: 0.1097060662 | CQ17: 85+ | CR17: -0.006484056312 | CS17: 0.003149138295 | CT17: 0.01145614285 | CU17: 0.01700830834 | CV17: 0.0278210686 | CW17: 0.02370491051 | CX17: 0.002871700727 | CY17: -0.0217148142
B18: Gender | C18: Male | D18: ='Means parameters'!C17 -> 45.7 | E18: ='Means parameters'!D17 -> 45.78 | F18: ='Means parameters'!E17 -> 46.08 | G18: ='Means parameters'!F17 -> 46.36 | H18: ='Means parameters'!G17 -> 46.66 | I18: ='Means parameters'!H17 -> 46.87 | J18: ='Means parameters'!I17 -> 46.97 | K18: ='Means parameters'!J17 -> 47.16 | L18: ='Means parameters'!K17 -> 47.82 | N18: 17 | O18: Gender | P18: Male | Q18: =IF(sex=P18,1,0) -> 1 | R18: =INDIRECT("'"&$Q$6&" parameters'!"&R$6&$N18) -> 0 | S18: =INDIRECT("'"&$Q$6&" parameters'!"&S$6&$N18) -> 0 | T18: =INDIRECT("'"&$Q$6&" parameters'!"&T$6&$N18) -> 0 | U18: =INDIRECT("'"&$Q$6&" parameters'!"&U$6&$N18) -> 0 | V18: =INDIRECT("'"&$Q$6&" parameters'!"&V$6&$N18) -> 0 | W18: =INDIRECT("'"&$Q$6&" parameters'!"&W$6&$N18) -> 0 | X18: =INDIRECT("'"&$Q$6&" parameters'!"&X$6&$N18) -> 0 | Y18: =INDIRECT("'"&$Q$6&" parameters'!"&Y$6&$N18) -> 0 | Z18: =INDIRECT("'"&$Q$6&" parameters'!"&Z$6&$N18) -> 0 | AB18: Gender | AC18: Male | AD18: 0 | AE18: 0 | AF18: 0 | AG18: 0 | AH18: 0 | AI18: 0 | AJ18: 0 | AK18: 0 | AL18: 0
C19: Female | D19: ='Means parameters'!C18 -> 54.3 | E19: ='Means parameters'!D18 -> 54.22 | F19: ='Means parameters'!E18 -> 53.92 | G19: ='Means parameters'!F18 -> 53.64 | H19: ='Means parameters'!G18 -> 53.34 | I19: ='Means parameters'!H18 -> 53.13 | J19: ='Means parameters'!I18 -> 53.03 | K19: ='Means parameters'!J18 -> 52.84 | L19: ='Means parameters'!K18 -> 52.18 | N19: 18 | P19: Female | Q19: =IF(sex=P19,1,0) -> 0 | R19: =INDIRECT("'"&$Q$6&" parameters'!"&R$6&$N19) -> -0.7136 | S19: =INDIRECT("'"&$Q$6&" parameters'!"&S$6&$N19) -> -0.6965 | T19: =INDIRECT("'"&$Q$6&" parameters'!"&T$6&$N19) -> -0.6099 | U19: =INDIRECT("'"&$Q$6&" parameters'!"&U$6&$N19) -> -0.5206 | V19: =INDIRECT("'"&$Q$6&" parameters'!"&V$6&$N19) -> -0.4881 | W19: =INDIRECT("'"&$Q$6&" parameters'!"&W$6&$N19) -> -0.3936 | X19: =INDIRECT("'"&$Q$6&" parameters'!"&X$6&$N19) -> -0.499 | Y19: =INDIRECT("'"&$Q$6&" parameters'!"&Y$6&$N19) -> -0.5594 | Z19: =INDIRECT("'"&$Q$6&" parameters'!"&Z$6&$N19) -> -0.4953 | AC19: Female | AD19: -0.3874848 | AE19: -0.3776423 | AF19: -0.32885808 | AG19: -0.27924984 | AH19: -0.26035254 | AI19: -0.20911968 | AJ19: -0.2646197 | AK19: -0.29558696 | AL19: -0.25844754 | CF19: Deaths | CG19: =CG5 -> 56000 | CH19: 21500 | CI19: 20000 | CJ19: 22500 | CK19: 17500 | CL19: 18500 | CM19: =CO5 -> 155000 | CQ19: MI years | CR19: =CR5 -> 4 | CS19: =CS5 -> 4 | CT19: 4 | CU19: 4 | CV19: 2.5 | CW19: =SUM(CW5:CY5) -> 6
B20: Smoker status | C20: Never | D20: 0 | E20: 0 | F20: 0 | G20: ='Means parameters'!F19 -> 23.03 | H20: ='Means parameters'!G19 -> 29.37 | I20: ='Means parameters'!H19 -> 39.14 | J20: ='Means parameters'!I19 -> 19.43 | K20: ='Means parameters'!J19 -> 21.08 | L20: 0 | N20: 19 | O20: Smoker status | P20: Never | Q20: =IF(smoker_status=P20,1,0) -> 0 | R20: =INDIRECT("'"&$Q$6&" parameters'!"&R$6&$N20) -> 0 | S20: =INDIRECT("'"&$Q$6&" parameters'!"&S$6&$N20) -> 0 | T20: =INDIRECT("'"&$Q$6&" parameters'!"&T$6&$N20) -> 0 | U20: =INDIRECT("'"&$Q$6&" parameters'!"&U$6&$N20) -> -0.2763 | V20: =INDIRECT("'"&$Q$6&" parameters'!"&V$6&$N20) -> -0.2291 | W20: =INDIRECT("'"&$Q$6&" parameters'!"&W$6&$N20) -> -0.2095 | X20: =INDIRECT("'"&$Q$6&" parameters'!"&X$6&$N20) -> -0.3196 | Y20: =INDIRECT("'"&$Q$6&" parameters'!"&Y$6&$N20) -> -0.7089 | Z20: =INDIRECT("'"&$Q$6&" parameters'!"&Z$6&$N20) -> 0 | AB20: Smoker status | AC20: Never | AD20: 0 | AE20: 0 | AF20: 0 | AG20: -0.06363189 | AH20: -0.06728667 | AI20: -0.0819983 | AJ20: -0.06209828 | AK20: -0.14943612 | AL20: 0 | BU20: Modeled mortality (pulmonary and stroke) | CF20: Smoothed mortality (pulmonary and stroke) | CQ20: Mortality improvement (Pulmonary and Stroke)
C21: Current | D21: 0 | E21: 0 | F21: 0 | G21: ='Means parameters'!F20 -> 9.82 | H21: ='Means parameters'!G20 -> 11.2 | I21: ='Means parameters'!H20 -> 13.27 | J21: ='Means parameters'!I20 -> 5.5 | K21: ='Means parameters'!J20 -> 4.86 | L21: 0 | N21: 20 | P21: Current | Q21: =IF(smoker_status=P21,1,0) -> 0 | R21: =INDIRECT("'"&$Q$6&" parameters'!"&R$6&$N21) -> 0 | S21: =INDIRECT("'"&$Q$6&" parameters'!"&S$6&$N21) -> 0 | T21: =INDIRECT("'"&$Q$6&" parameters'!"&T$6&$N21) -> 0 | U21: =INDIRECT("'"&$Q$6&" parameters'!"&U$6&$N21) -> 0.382 | V21: =INDIRECT("'"&$Q$6&" parameters'!"&V$6&$N21) -> 0.4491 | W21: =INDIRECT("'"&$Q$6&" parameters'!"&W$6&$N21) -> 0.4955 | X21: =INDIRECT("'"&$Q$6&" parameters'!"&X$6&$N21) -> 0.388 | Y21: =INDIRECT("'"&$Q$6&" parameters'!"&Y$6&$N21) -> -0.0109 | Z21: =INDIRECT("'"&$Q$6&" parameters'!"&Z$6&$N21) -> 0 | AC21: Current | AD21: 0 | AE21: 0 | AF21: 0 | AG21: 0.0375124 | AH21: 0.0502992 | AI21: 0.06575285 | AJ21: 0.02134 | AK21: -0.00052974 | AL21: 0 | BV21: 1980-1983 | BW21: 1984-1987 | BX21: 1988-1991 | BY21: 1992-1995 | BZ21: 1996-1999 | CA21: 2000-2003 | CB21: 2008-11 (MDAC) | CG21: 1980-1983 | CH21: 1984-1987 | CI21: 1988-1991 | CJ21: 1992-1995 | CK21: 1996-1999 | CL21: 2000-2003 | CM21: 2008-11 (MDAC) | CR21: 1987.5-1991.5 | CS21: 1991.5-1995.5 | CT21: 1995.5-1999.5 | CU21: 1999.5-2003.5 | CV21: 2003.5-2006 | CW21: 2006-2012
C22: Former | D22: 0 | E22: 0 | F22: 0 | G22: ='Means parameters'!F21 -> 15.29 | H22: ='Means parameters'!G21 -> 17.38 | I22: ='Means parameters'!H21 -> 21.71 | J22: ='Means parameters'!I21 -> 9.04 | K22: ='Means parameters'!J21 -> 8.31 | L22: 0 | N22: 21 | P22: Former | Q22: =IF(smoker_status=P22,1,0) -> 0 | R22: =INDIRECT("'"&$Q$6&" parameters'!"&R$6&$N22) -> 0 | S22: =INDIRECT("'"&$Q$6&" parameters'!"&S$6&$N22) -> 0 | T22: =INDIRECT("'"&$Q$6&" parameters'!"&T$6&$N22) -> 0 | U22: =INDIRECT("'"&$Q$6&" parameters'!"&U$6&$N22) -> -0.0317 | V22: =INDIRECT("'"&$Q$6&" parameters'!"&V$6&$N22) -> 0.0323 | W22: =INDIRECT("'"&$Q$6&" parameters'!"&W$6&$N22) -> 0.0736 | X22: =INDIRECT("'"&$Q$6&" parameters'!"&X$6&$N22) -> -0.0298 | Y22: =INDIRECT("'"&$Q$6&" parameters'!"&Y$6&$N22) -> -0.6506 | Z22: =INDIRECT("'"&$Q$6&" parameters'!"&Z$6&$N22) -> 0 | AC22: Former | AD22: 0 | AE22: 0 | AF22: 0 | AG22: -0.00484693 | AH22: 0.00561374 | AI22: 0.01597856 | AJ22: -0.00269392 | AK22: -0.05406486 | AL22: 0 | BU22: 40-44 | BV22: =BV8 -> 0.005015895813 | BW22: 0.005572629554 | BX22: 0.005176996809 | BY22: 0.004772930459 | BZ22: 0.003910944442 | CA22: 0.004248590884 | CB22: =CD8 -> 0.003648506145 | CF22: 40-44 | CG22: =GRADRANGE(BV22:CB22,$CG$19:$CM$19,$CG$3,$CG$4) -> 0.005133041037 | CH22: 0.005144209179 | CI22: 0.005027613604 | CJ22: 0.004798019885 | CK22: 0.004478992496 | CL22: 0.0040902035 | CM22: 0.003636011844 | CQ22: 40-44 | CR22: =1-(CH22/CG22)^(1/CR$19) -> -0.0005434907547 | CS22: =1-(CI22/CH22)^(1/CS$19) -> 0.005715158923 | CT22: 0.01161752187 | CU22: 0.01705419663 | CV22: 0.03566965636 | CW22: 0.01942670337
C23: Not Asked | D23: 0 | E23: 0 | F23: 0 | G23: ='Means parameters'!F22 -> 51.86 | H23: ='Means parameters'!G22 -> 42.05 | I23: ='Means parameters'!H22 -> 25.89 | J23: ='Means parameters'!I22 -> 66.03 | K23: ='Means parameters'!J22 -> 65.74 | L23: 0 | N23: 22 | P23: Not Asked | Q23: =IF(smoker_status=P23,1,0) -> 1 | R23: =INDIRECT("'"&$Q$6&" parameters'!"&R$6&$N23) -> 0 | S23: =INDIRECT("'"&$Q$6&" parameters'!"&S$6&$N23) -> 0 | T23: =INDIRECT("'"&$Q$6&" parameters'!"&T$6&$N23) -> 0 | U23: =INDIRECT("'"&$Q$6&" parameters'!"&U$6&$N23) -> 0 | V23: =INDIRECT("'"&$Q$6&" parameters'!"&V$6&$N23) -> 0 | W23: =INDIRECT("'"&$Q$6&" parameters'!"&W$6&$N23) -> 0 | X23: =INDIRECT("'"&$Q$6&" parameters'!"&X$6&$N23) -> 0 | Y23: =INDIRECT("'"&$Q$6&" parameters'!"&Y$6&$N23) -> 0 | Z23: =INDIRECT("'"&$Q$6&" parameters'!"&Z$6&$N23) -> 0 | AC23: Not Asked | AD23: 0 | AE23: 0 | AF23: 0 | AG23: 0 | AH23: 0 | AI23: 0 | AJ23: 0 | AK23: 0 | AL23: 0 | BU23: 45-49 | BV23: 0.007874360949 | BW23: 0.008059625044 | BX23: 0.008119147181 | BY23: 0.007227986234 | BZ23: 0.006109096501 | CA23: 0.006016991427 | CB23: 0.005356537666 | CF23: 45-49 | CG23: =GRADRANGE(BV23:CB23,$CG$19:$CM$19,$CG$3,$CG$4) -> 0.007969031554 | CH23: 0.007896180078 | CI23: 0.007651347804 | CJ23: 0.00724646749 | CK23: 0.006709427935 | CL23: 0.006067038769 | CM23: 0.005328931191 | CQ23: 45-49 | CR23: =1-(CH23/CG23)^(1/CR$19) -> 0.002293332781 | CS23: =1-(CI23/CH23)^(1/CS$19) -> 0.007843401801 | CT23: =1-(CJ23/CI23)^(1/CT$19) -> 0.01349997395 | CU23: =1-(CK23/CJ23)^(1/CU$19) -> 0.01906600384 | CV23: =1-(CL23/CK23)^(1/CV$19) -> 0.03945766434 | CW23: =1-(CM23/CL23)^(1/CW$19) -> 0.02138795457
B24: Income Decile | C24: 1 | D24: ='Means parameters'!C28 -> 12.08 | E24: ='Means parameters'!D28 -> 10.33 | F24: ='Means parameters'!E28 -> 9.47 | G24: ='Means parameters'!F28 -> 10.18 | H24: ='Means parameters'!G28 -> 9.3 | I24: ='Means parameters'!H28 -> 9.02 | J24: ='Means parameters'!I28 -> 9.5 | K24: ='Means parameters'!J28 -> 9.49 | L24: ='Means parameters'!K28 -> 5.36 | N24: 28 | O24: Income Decile | P24: 1 | Q24: =IF(income_decile=P24,1,0) -> 0 | R24: =INDIRECT("'"&$Q$6&" parameters'!"&R$6&$N24) -> 0.3129 | S24: =INDIRECT("'"&$Q$6&" parameters'!"&S$6&$N24) -> 0.2523 | T24: =INDIRECT("'"&$Q$6&" parameters'!"&T$6&$N24) -> 0.4036 | U24: =INDIRECT("'"&$Q$6&" parameters'!"&U$6&$N24) -> 0.2433 | V24: =INDIRECT("'"&$Q$6&" parameters'!"&V$6&$N24) -> 0.4073 | W24: =INDIRECT("'"&$Q$6&" parameters'!"&W$6&$N24) -> 0.2039 | X24: =INDIRECT("'"&$Q$6&" parameters'!"&X$6&$N24) -> 0.2912 | Y24: =INDIRECT("'"&$Q$6&" parameters'!"&Y$6&$N24) -> 0.3297 | Z24: =INDIRECT("'"&$Q$6&" parameters'!"&Z$6&$N24) -> 0.3575 | AB24: Income Decile | AC24: 1 | AD24: 0.03779832 | AE24: 0.02606259 | AF24: 0.03822092 | AG24: 0.02476794 | AH24: 0.0378789 | AI24: 0.01839178 | AJ24: 0.027664 | AK24: 0.03128853 | AL24: 0.019162 | BU24: 50-54 | BV24: 0.01224370628 | BW24: 0.01342430721 | BX24: 0.01180974599 | BY24: 0.01171605904 | BZ24: 0.008489065216 | CA24: 0.008360241978 | CB24: 0.00797265697 | CF24: 50-54 | CG24: =GRADRANGE(BV24:CB24,$CG$19:$CM$19,$CG$3,$CG$4) -> 0.01256258166 | CH24: 0.01230494007 | CI24: 0.01176682493 | CJ24: 0.01098842889 | CK24: 0.01003616117 | CL24: 0.008986739366 | CM24: 0.00787443175 | CQ24: 50-54 | CR24: 0.005167072678 | CS24: 0.01111691733 | CT24: 0.01696478094 | CU24: 0.02240717306 | CV24: 0.04321621243 | CW24: 0.02178080727
C25: 2 | D25: ='Means parameters'!C29 -> 15.16 | E25: ='Means parameters'!D29 -> 11.1 | F25: ='Means parameters'!E29 -> 10.41 | G25: ='Means parameters'!F29 -> 11.06 | H25: ='Means parameters'!G29 -> 10.57 | I25: ='Means parameters'!H29 -> 10.3 | J25: ='Means parameters'!I29 -> 10.32 | K25: ='Means parameters'!J29 -> 10.23 | L25: ='Means parameters'!K29 -> 8.44 | N25: 29 | P25: 2 | Q25: 0 | R25: =INDIRECT("'"&$Q$6&" parameters'!"&R$6&$N25) -> 0.3221 | S25: =INDIRECT("'"&$Q$6&" parameters'!"&S$6&$N25) -> 0.2617 | T25: =INDIRECT("'"&$Q$6&" parameters'!"&T$6&$N25) -> 0.4144 | U25: =INDIRECT("'"&$Q$6&" parameters'!"&U$6&$N25) -> 0.2207 | V25: =INDIRECT("'"&$Q$6&" parameters'!"&V$6&$N25) -> 0.3565 | W25: =INDIRECT("'"&$Q$6&" parameters'!"&W$6&$N25) -> 0.2454 | X25: =INDIRECT("'"&$Q$6&" parameters'!"&X$6&$N25) -> 0.2346 | Y25: =INDIRECT("'"&$Q$6&" parameters'!"&Y$6&$N25) -> 0.2523 | Z25: =INDIRECT("'"&$Q$6&" parameters'!"&Z$6&$N25) -> 0.3808 | AC25: 2 | AD25: 0.04883036 | AE25: 0.0290487 | AF25: 0.04313904 | AG25: 0.02440942 | AH25: 0.03768205 | AI25: 0.0252762 | AJ25: 0.02421072 | AK25: 0.02581029 | AL25: 0.03213952 | BU25: 55-59 | BV25: 0.01778778582 | BW25: 0.01978189321 | BX25: 0.01826204974 | BY25: 0.01664584221 | BZ25: 0.0135120096 | CA25: 0.01206353627 | CB25: 0.0109749764 | CF25: 55-59 | CG25: =GRADRANGE(BV25:CB25,$CG$19:$CM$19,$CG$3,$CG$4) -> 0.01824984199 | CH25: 0.01824524958 | CI25: 0.01764683878 | CJ25: 0.01651284948 | CK25: 0.0149436396 | CL25: 0.01303786894 | CM25: 0.01084194781 | CQ25: 55-59 | CR25: 6.291622391e-05 | CS25: 0.008302365315 | CT25: 0.01646736274 | CU25: 0.02465426165 | CV25: 0.05310877798 | CW25: 0.03027159533
C26: 3 | D26: ='Means parameters'!C30 -> 9.17 | E26: ='Means parameters'!D30 -> 10.58 | F26: ='Means parameters'!E30 -> 10.43 | G26: ='Means parameters'!F30 -> 10.92 | H26: ='Means parameters'!G30 -> 10.19 | I26: ='Means parameters'!H30 -> 9.88 | J26: ='Means parameters'!I30 -> 10.32 | K26: ='Means parameters'!J30 -> 10.28 | L26: ='Means parameters'!K30 -> 9.95 | N26: 30 | P26: 3 | Q26: 0 | R26: =INDIRECT("'"&$Q$6&" parameters'!"&R$6&$N26) -> 0.2564 | S26: =INDIRECT("'"&$Q$6&" parameters'!"&S$6&$N26) -> 0.2512 | T26: =INDIRECT("'"&$Q$6&" parameters'!"&T$6&$N26) -> 0.3094 | U26: =INDIRECT("'"&$Q$6&" parameters'!"&U$6&$N26) -> 0.2025 | V26: =INDIRECT("'"&$Q$6&" parameters'!"&V$6&$N26) -> 0.3568 | W26: =INDIRECT("'"&$Q$6&" parameters'!"&W$6&$N26) -> 0.1669 | X26: =INDIRECT("'"&$Q$6&" parameters'!"&X$6&$N26) -> 0.2661 | Y26: =INDIRECT("'"&$Q$6&" parameters'!"&Y$6&$N26) -> 0.2047 | Z26: =INDIRECT("'"&$Q$6&" parameters'!"&Z$6&$N26) -> 0.3259 | AC26: 3 | AD26: 0.02351188 | AE26: 0.02657696 | AF26: 0.03227042 | AG26: 0.022113 | AH26: 0.03635792 | AI26: 0.01648972 | AJ26: 0.02746152 | AK26: 0.02104316 | AL26: 0.03242705 | BU26: 60-64 | BV26: 0.0240446383 | BW26: 0.02606691889 | BX26: 0.02406660324 | BY26: 0.02317004935 | BZ26: 0.01767725686 | CA26: 0.01512104333 | CB26: 0.0141401435 | CF26: 60-64 | CG26: =GRADRANGE(BV26:CB26,$CG$19:$CM$19,$CG$3,$CG$4) -> 0.0245585906 | CH26: 0.0244963128 | CI26: 0.02362665428 | CJ26: 0.02201439618 | CK26: 0.01977787666 | CL26: 0.01705796204 | CM26: 0.01392849211 | CQ26: 60-64 | CR26: 0.0006345754103 | CS26: 0.008996069678 | CT26: 0.01751452645 | CU26: 0.02642767166 | CV26: 0.05746173262 | CW26: 0.03321591359
C27: 4 | D27: ='Means parameters'!C31 -> 9.72 | E27: ='Means parameters'!D31 -> 10.01 | F27: ='Means parameters'!E31 -> 9.88 | G27: ='Means parameters'!F31 -> 9.85 | H27: ='Means parameters'!G31 -> 9.67 | I27: ='Means parameters'!H31 -> 9.71 | J27: ='Means parameters'!I31 -> 9.37 | K27: ='Means parameters'!J31 -> 9.55 | L27: ='Means parameters'!K31 -> 11.17 | N27: 31 | P27: 4 | Q27: 0 | R27: =INDIRECT("'"&$Q$6&" parameters'!"&R$6&$N27) -> 0.2159 | S27: =INDIRECT("'"&$Q$6&" parameters'!"&S$6&$N27) -> 0.1783 | T27: =INDIRECT("'"&$Q$6&" parameters'!"&T$6&$N27) -> 0.2741 | U27: =INDIRECT("'"&$Q$6&" parameters'!"&U$6&$N27) -> 0.1535 | V27: =INDIRECT("'"&$Q$6&" parameters'!"&V$6&$N27) -> 0.3144 | W27: =INDIRECT("'"&$Q$6&" parameters'!"&W$6&$N27) -> 0.1596 | X27: =INDIRECT("'"&$Q$6&" parameters'!"&X$6&$N27) -> 0.2705 | Y27: =INDIRECT("'"&$Q$6&" parameters'!"&Y$6&$N27) -> 0.1519 | Z27: =INDIRECT("'"&$Q$6&" parameters'!"&Z$6&$N27) -> 0.3059 | AC27: 4 | AD27: 0.02098548 | AE27: 0.01784783 | AF27: 0.02708108 | AG27: 0.01511975 | AH27: 0.03040248 | AI27: 0.01549716 | AJ27: 0.02534585 | AK27: 0.01450645 | AL27: 0.03416903 | BU27: 65-69 | BV27: 0.03004246955 | BW27: 0.03274882341 | BX27: 0.03033266309 | BY27: 0.03181571876 | BZ27: 0.02435601618 | CA27: 0.02079239659 | CB27: 0.01841780406 | CF27: 65-69 | CG27: =GRADRANGE(BV27:CB27,$CG$19:$CM$19,$CG$3,$CG$4) -> 0.03044055015 | CH27: 0.03137224206 | CI27: 0.03101736947 | CJ27: 0.02942610844 | CK27: 0.02668237129 | CL27: 0.02291818953 | CM27: 0.01820707958 | CQ27: 65-69 | CR27: -0.00756544576 | CS27: 0.002839994114 | CT27: 0.01307996161 | CU27: 0.02417284797 | CV27: 0.05901575207 | CW27: 0.03762722042
C28: 5 | D28: ='Means parameters'!C32 -> 10.94 | E28: ='Means parameters'!D32 -> 9.18 | F28: ='Means parameters'!E32 -> 9.34 | G28: ='Means parameters'!F32 -> 9.47 | H28: ='Means parameters'!G32 -> 9 | I28: ='Means parameters'!H32 -> 9 | J28: ='Means parameters'!I32 -> 8.69 | K28: ='Means parameters'!J32 -> 8.99 | L28: ='Means parameters'!K32 -> 10.91 | N28: 32 | P28: 5 | Q28: 0 | R28: =INDIRECT("'"&$Q$6&" parameters'!"&R$6&$N28) -> 0.1963 | S28: =INDIRECT("'"&$Q$6&" parameters'!"&S$6&$N28) -> 0.1413 | T28: =INDIRECT("'"&$Q$6&" parameters'!"&T$6&$N28) -> 0.2699 | U28: =INDIRECT("'"&$Q$6&" parameters'!"&U$6&$N28) -> 0.1532 | V28: =INDIRECT("'"&$Q$6&" parameters'!"&V$6&$N28) -> 0.2916 | W28: =INDIRECT("'"&$Q$6&" parameters'!"&W$6&$N28) -> 0.1946 | X28: =INDIRECT("'"&$Q$6&" parameters'!"&X$6&$N28) -> 0.2098 | Y28: =INDIRECT("'"&$Q$6&" parameters'!"&Y$6&$N28) -> 0.2319 | Z28: =INDIRECT("'"&$Q$6&" parameters'!"&Z$6&$N28) -> 0.2722 | AC28: 5 | AD28: 0.02147522 | AE28: 0.01297134 | AF28: 0.02520866 | AG28: 0.01450804 | AH28: 0.026244 | AI28: 0.017514 | AJ28: 0.01823162 | AK28: 0.02084781 | AL28: 0.02969702 | BU28: 70-74 | BV28: 0.04142613791 | BW28: 0.04683201428 | BX28: 0.04289370685 | BY28: 0.04458780844 | BZ28: 0.03586202335 | CA28: 0.0310248151 | CB28: 0.02566473341 | CF28: 70-74 | CG28: =GRADRANGE(BV28:CB28,$CG$19:$CM$19,$CG$3,$CG$4) -> 0.04203519546 | CH28: 0.04419463656 | CI28: 0.04426050444 | CJ28: 0.04230956774 | CK28: 0.03844450376 | CL28: 0.03280456616 | CM28: 0.02546087573 | CQ28: 70-74 | CR28: -0.01260279994 | CS28: -0.0003723929888 | CT28: 0.01120660376 | CU28: 0.02366486642 | CV28: 0.06148759861 | CW28: 0.04135788067
C29: 6 | D29: ='Means parameters'!C33 -> 11.06 | E29: ='Means parameters'!D33 -> 9.28 | F29: ='Means parameters'!E33 -> 9.25 | G29: ='Means parameters'!F33 -> 8.77 | H29: ='Means parameters'!G33 -> 8.92 | I29: ='Means parameters'!H33 -> 8.64 | J29: ='Means parameters'!I33 -> 8.63 | K29: ='Means parameters'!J33 -> 8.48 | L29: ='Means parameters'!K33 -> 10.72 | N29: 33 | P29: 6 | Q29: 0 | R29: =INDIRECT("'"&$Q$6&" parameters'!"&R$6&$N29) -> 0.1661 | S29: =INDIRECT("'"&$Q$6&" parameters'!"&S$6&$N29) -> 0.1382 | T29: =INDIRECT("'"&$Q$6&" parameters'!"&T$6&$N29) -> 0.2588 | U29: =INDIRECT("'"&$Q$6&" parameters'!"&U$6&$N29) -> 0.1394 | V29: =INDIRECT("'"&$Q$6&" parameters'!"&V$6&$N29) -> 0.3017 | W29: =INDIRECT("'"&$Q$6&" parameters'!"&W$6&$N29) -> 0.0503 | X29: =INDIRECT("'"&$Q$6&" parameters'!"&X$6&$N29) -> 0.2043 | Y29: =INDIRECT("'"&$Q$6&" parameters'!"&Y$6&$N29) -> 0.1851 | Z29: =INDIRECT("'"&$Q$6&" parameters'!"&Z$6&$N29) -> 0.2043 | AC29: 6 | AD29: 0.01837066 | AE29: 0.01282496 | AF29: 0.023939 | AG29: 0.01222538 | AH29: 0.02691164 | AI29: 0.00434592 | AJ29: 0.01763109 | AK29: 0.01569648 | AL29: 0.02190096 | BU29: 75-79 | BV29: 0.06025659531 | BW29: 0.06699158637 | BX29: 0.06272280651 | BY29: 0.06941899049 | BZ29: 0.05188755068 | CA29: 0.04527646547 | CB29: 0.0405411622 | CF29: 75-79 | CG29: =GRADRANGE(BV29:CB29,$CG$19:$CM$19,$CG$3,$CG$4) -> 0.06096564747 | CH29: 0.06453160105 | CI29: 0.06509170992 | CJ29: 0.06273534659 | CK29: 0.0576115842 | CL29: 0.05000616353 | CM29: 0.0400799795 | CQ29: 75-79 | CR29: -0.01431258138 | CS29: -0.002162874361 | CT29: 0.00917568589 | CU29: 0.02107509188 | CV29: 0.0550572709 | CW29: 0.03620650152
C30: 7 | D30: ='Means parameters'!C34 -> 5.55 | E30: ='Means parameters'!D34 -> 10.51 | F30: ='Means parameters'!E34 -> 10.14 | G30: ='Means parameters'!F34 -> 9.73 | H30: ='Means parameters'!G34 -> 10.06 | I30: ='Means parameters'!H34 -> 9.62 | J30: ='Means parameters'!I34 -> 9.61 | K30: ='Means parameters'!J34 -> 9.4 | L30: ='Means parameters'!K34 -> 11.83 | N30: 34 | P30: 7 | Q30: 0 | R30: =INDIRECT("'"&$Q$6&" parameters'!"&R$6&$N30) -> 0.0803 | S30: =INDIRECT("'"&$Q$6&" parameters'!"&S$6&$N30) -> 0.031 | T30: =INDIRECT("'"&$Q$6&" parameters'!"&T$6&$N30) -> 0.185 | U30: =INDIRECT("'"&$Q$6&" parameters'!"&U$6&$N30) -> 0.1016 | V30: =INDIRECT("'"&$Q$6&" parameters'!"&V$6&$N30) -> 0.2378 | W30: =INDIRECT("'"&$Q$6&" parameters'!"&W$6&$N30) -> 0.1166 | X30: =INDIRECT("'"&$Q$6&" parameters'!"&X$6&$N30) -> 0.0764 | Y30: =INDIRECT("'"&$Q$6&" parameters'!"&Y$6&$N30) -> 0.1685 | Z30: =INDIRECT("'"&$Q$6&" parameters'!"&Z$6&$N30) -> 0.1717 | AC30: 7 | AD30: 0.00445665 | AE30: 0.0032581 | AF30: 0.018759 | AG30: 0.00988568 | AH30: 0.02392268 | AI30: 0.01121692 | AJ30: 0.00734204 | AK30: 0.015839 | AL30: 0.02031211 | BU30: 80-84 | BV30: 0.08593679053 | BW30: 0.1027056402 | BX30: 0.09296518996 | BY30: 0.1004801774 | BZ30: 0.07585160685 | CA30: 0.06862022877 | CB30: 0.06364481169 | CF30: 80-84 | CG30: =GRADRANGE(BV30:CB30,$CG$19:$CM$19,$CG$3,$CG$4) -> 0.08817006206 | CH30: 0.09415690154 | CI30: 0.09556650779 | CJ30: 0.09268037357 | CK30: 0.08592928413 | CL30: 0.07587821812 | CM30: 0.06281624234 | CQ30: 80-84 | CR30: -0.0165593823 | CS30: -0.003721875472 | CT30: 0.007637110801 | CU30: 0.01873037735 | CV30: 0.04854035717 | CW30: 0.03099547529
C31: 8 | D31: ='Means parameters'!C35 -> 14.63 | E31: ='Means parameters'!D35 -> 8.94 | F31: ='Means parameters'!E35 -> 8.75 | G31: ='Means parameters'!F35 -> 8.91 | H31: ='Means parameters'!G35 -> 8.79 | I31: ='Means parameters'!H35 -> 8.84 | J31: ='Means parameters'!I35 -> 8.55 | K31: ='Means parameters'!J35 -> 8.5 | L31: ='Means parameters'!K35 -> 9.77 | N31: 35 | P31: 8 | Q31: 0 | R31: =INDIRECT("'"&$Q$6&" parameters'!"&R$6&$N31) -> 0.12 | S31: =INDIRECT("'"&$Q$6&" parameters'!"&S$6&$N31) -> 0.0507 | T31: =INDIRECT("'"&$Q$6&" parameters'!"&T$6&$N31) -> 0.1574 | U31: =INDIRECT("'"&$Q$6&" parameters'!"&U$6&$N31) -> 0.0323 | V31: =INDIRECT("'"&$Q$6&" parameters'!"&V$6&$N31) -> 0.2063 | W31: =INDIRECT("'"&$Q$6&" parameters'!"&W$6&$N31) -> 0.0898 | X31: =INDIRECT("'"&$Q$6&" parameters'!"&X$6&$N31) -> 0.0625 | Y31: =INDIRECT("'"&$Q$6&" parameters'!"&Y$6&$N31) -> 0.179 | Z31: =INDIRECT("'"&$Q$6&" parameters'!"&Z$6&$N31) -> 0.1174 | AC31: 8 | AD31: 0.017556 | AE31: 0.00453258 | AF31: 0.0137725 | AG31: 0.00287793 | AH31: 0.01813377 | AI31: 0.00793832 | AJ31: 0.00534375 | AK31: 0.015215 | AL31: 0.01146998 | BU31: 85+ | BV31: 0.1262939381 | BW31: 0.1454550399 | BX31: 0.1400816016 | BY31: 0.1437334393 | BZ31: 0.1089379975 | CA31: 0.101148261 | CB31: 0.1111986019 | CF31: 85+ | CG31: =GRADRANGE(BV31:CB31,$CG$19:$CM$19,$CG$3,$CG$4) -> 0.1300814607 | CH31: 0.1351219652 | CI31: 0.1357993068 | CJ31: 0.1325908839 | CK31: 0.1264288506 | CL31: 0.1184847016 | CM31: 0.1093895641 | CQ31: 85+ | CR31: -0.009549543887 | CS31: -0.001250855193 | CT31: 0.005959616515 | CU31: 0.01182666431 | CV31: 0.02562431971 | CW31: 0.0132231882
C32: 9 | D32: ='Means parameters'!C36 -> 5.32 | E32: ='Means parameters'!D36 -> 10.85 | F32: ='Means parameters'!E36 -> 11.31 | G32: ='Means parameters'!F36 -> 10.52 | H32: ='Means parameters'!G36 -> 11 | I32: ='Means parameters'!H36 -> 11.44 | J32: ='Means parameters'!I36 -> 11.35 | K32: ='Means parameters'!J36 -> 11.24 | L32: ='Means parameters'!K36 -> 10.92 | N32: 36 | P32: 9 | Q32: 0 | R32: =INDIRECT("'"&$Q$6&" parameters'!"&R$6&$N32) -> 0.0243 | S32: =INDIRECT("'"&$Q$6&" parameters'!"&S$6&$N32) -> 0.0452 | T32: =INDIRECT("'"&$Q$6&" parameters'!"&T$6&$N32) -> 0.1307 | U32: =INDIRECT("'"&$Q$6&" parameters'!"&U$6&$N32) -> 0.0261 | V32: =INDIRECT("'"&$Q$6&" parameters'!"&V$6&$N32) -> 0.234 | W32: =INDIRECT("'"&$Q$6&" parameters'!"&W$6&$N32) -> 0.0685 | X32: =INDIRECT("'"&$Q$6&" parameters'!"&X$6&$N32) -> 0.1231 | Y32: =INDIRECT("'"&$Q$6&" parameters'!"&Y$6&$N32) -> 0.2159 | Z32: =INDIRECT("'"&$Q$6&" parameters'!"&Z$6&$N32) -> 0.0863 | AC32: 9 | AD32: 0.00129276 | AE32: 0.0049042 | AF32: 0.01478217 | AG32: 0.00274572 | AH32: 0.02574 | AI32: 0.0078364 | AJ32: 0.01397185 | AK32: 0.02426716 | AL32: 0.00942396
C33: 10 | D33: ='Means parameters'!C37 -> 6.36 | E33: ='Means parameters'!D37 -> 9.22 | F33: ='Means parameters'!E37 -> 11.02 | G33: ='Means parameters'!F37 -> 10.59 | H33: ='Means parameters'!G37 -> 12.5 | I33: ='Means parameters'!H37 -> 13.55 | J33: ='Means parameters'!I37 -> 13.67 | K33: ='Means parameters'!J37 -> 13.85 | L33: ='Means parameters'!K37 -> 10.93 | N33: 37 | P33: 10 | Q33: 1 | R33: =INDIRECT("'"&$Q$6&" parameters'!"&R$6&$N33) -> 0 | S33: =INDIRECT("'"&$Q$6&" parameters'!"&S$6&$N33) -> 0 | T33: =INDIRECT("'"&$Q$6&" parameters'!"&T$6&$N33) -> 0 | U33: =INDIRECT("'"&$Q$6&" parameters'!"&U$6&$N33) -> 0 | V33: =INDIRECT("'"&$Q$6&" parameters'!"&V$6&$N33) -> 0 | W33: =INDIRECT("'"&$Q$6&" parameters'!"&W$6&$N33) -> 0 | X33: =INDIRECT("'"&$Q$6&" parameters'!"&X$6&$N33) -> 0 | Y33: =INDIRECT("'"&$Q$6&" parameters'!"&Y$6&$N33) -> 0 | Z33: =INDIRECT("'"&$Q$6&" parameters'!"&Z$6&$N33) -> 0 | AC33: 10 | AD33: 0 | AE33: 0 | AF33: 0 | AG33: 0 | AH33: 0 | AI33: 0 | AJ33: 0 | AK33: 0 | AL33: 0
B34: Education | C34: No High School diploma | D34: ='Means parameters'!C38 -> 39.28 | E34: ='Means parameters'!D38 -> 33.93 | F34: ='Means parameters'!E38 -> 28.85 | G34: ='Means parameters'!F38 -> 23.6 | H34: ='Means parameters'!G38 -> 20.33 | I34: ='Means parameters'!H38 -> 17.7 | J34: ='Means parameters'!I38 -> 16.01 | K34: ='Means parameters'!J38 -> 13.78 | L34: ='Means parameters'!K38 -> 15.05 | N34: 38 | O34: Education | P34: No High School diploma | Q34: =IF(education=P34,1,0) -> 0 | R34: =INDIRECT("'"&$Q$6&" parameters'!"&R$6&$N34) -> 0.1121 | S34: =INDIRECT("'"&$Q$6&" parameters'!"&S$6&$N34) -> 0.0877 | T34: =INDIRECT("'"&$Q$6&" parameters'!"&T$6&$N34) -> 0.0966 | U34: =INDIRECT("'"&$Q$6&" parameters'!"&U$6&$N34) -> 0.1621 | V34: =INDIRECT("'"&$Q$6&" parameters'!"&V$6&$N34) -> 0.1299 | W34: =INDIRECT("'"&$Q$6&" parameters'!"&W$6&$N34) -> 0.1149 | X34: =INDIRECT("'"&$Q$6&" parameters'!"&X$6&$N34) -> 0.0714 | Y34: =INDIRECT("'"&$Q$6&" parameters'!"&Y$6&$N34) -> 0.1708 | Z34: =INDIRECT("'"&$Q$6&" parameters'!"&Z$6&$N34) -> 0.1225 | AB34: Education | AC34: No High School diploma | AD34: 0.04403288 | AE34: 0.02975661 | AF34: 0.0278691 | AG34: 0.0382556 | AH34: 0.02640867 | AI34: 0.0203373 | AJ34: 0.01143114 | AK34: 0.02353624 | AL34: 0.01843625
C35: High School diploma | D35: ='Means parameters'!C39 -> 35.61 | E35: ='Means parameters'!D39 -> 37.28 | F35: ='Means parameters'!E39 -> 37.81 | G35: ='Means parameters'!F39 -> 34.69 | H35: ='Means parameters'!G39 -> 34.45 | I35: ='Means parameters'!H39 -> 33.71 | J35: ='Means parameters'!I39 -> 32.98 | K35: ='Means parameters'!J39 -> 32.65 | L35: ='Means parameters'!K39 -> 30.28 | N35: 39 | P35: High School diploma | Q35: =IF(education=P35,1,0) -> 1 | R35: =INDIRECT("'"&$Q$6&" parameters'!"&R$6&$N35) -> 0 | S35: =INDIRECT("'"&$Q$6&" parameters'!"&S$6&$N35) -> 0 | T35: =INDIRECT("'"&$Q$6&" parameters'!"&T$6&$N35) -> 0 | U35: =INDIRECT("'"&$Q$6&" parameters'!"&U$6&$N35) -> 0 | V35: =INDIRECT("'"&$Q$6&" parameters'!"&V$6&$N35) -> 0 | W35: =INDIRECT("'"&$Q$6&" parameters'!"&W$6&$N35) -> 0 | X35: =INDIRECT("'"&$Q$6&" parameters'!"&X$6&$N35) -> 0 | Y35: =INDIRECT("'"&$Q$6&" parameters'!"&Y$6&$N35) -> 0 | Z35: =INDIRECT("'"&$Q$6&" parameters'!"&Z$6&$N35) -> 0 | AC35: High School diploma | AD35: 0 | AE35: 0 | AF35: 0 | AG35: 0 | AH35: 0 | AI35: 0 | AJ35: 0 | AK35: 0 | AL35: 0
C36: Some College/AA | D36: ='Means parameters'!C40 -> 11.66 | E36: ='Means parameters'!D40 -> 13.38 | F36: ='Means parameters'!E40 -> 15.2 | G36: ='Means parameters'!F40 -> 21.14 | H36: ='Means parameters'!G40 -> 22.45 | I36: ='Means parameters'!H40 -> 24.06 | J36: ='Means parameters'!I40 -> 24.58 | K36: ='Means parameters'!J40 -> 25.28 | L36: ='Means parameters'!K40 -> 28.62 | N36: 40 | P36: Some College/AA | Q36: =IF(education=P36,1,0) -> 0 | R36: =INDIRECT("'"&$Q$6&" parameters'!"&R$6&$N36) -> 0.0076 | S36: =INDIRECT("'"&$Q$6&" parameters'!"&S$6&$N36) -> -0.044 | T36: =INDIRECT("'"&$Q$6&" parameters'!"&T$6&$N36) -> -0.0566 | U36: =INDIRECT("'"&$Q$6&" parameters'!"&U$6&$N36) -> -0.0558 | V36: =INDIRECT("'"&$Q$6&" parameters'!"&V$6&$N36) -> -0.0588 | W36: =INDIRECT("'"&$Q$6&" parameters'!"&W$6&$N36) -> -0.0637 | X36: =INDIRECT("'"&$Q$6&" parameters'!"&X$6&$N36) -> -0.1199 | Y36: =INDIRECT("'"&$Q$6&" parameters'!"&Y$6&$N36) -> -0.1219 | Z36: =INDIRECT("'"&$Q$6&" parameters'!"&Z$6&$N36) -> -0.0945 | AC36: Some College/AA | AD36: 0.00088616 | AE36: -0.0058872 | AF36: -0.0086032 | AG36: -0.01179612 | AH36: -0.0132006 | AI36: -0.01532622 | AJ36: -0.02947142 | AK36: -0.03081632 | AL36: -0.0270459
C37: College Degree | D37: ='Means parameters'!C41 -> 7.57 | E37: ='Means parameters'!D41 -> 8.21 | F37: ='Means parameters'!E41 -> 9.57 | G37: ='Means parameters'!F41 -> 12.34 | H37: ='Means parameters'!G41 -> 14.11 | I37: ='Means parameters'!H41 -> 15.15 | J37: ='Means parameters'!I41 -> 16.47 | K37: ='Means parameters'!J41 -> 17.43 | L37: ='Means parameters'!K41 -> 17.09 | N37: 41 | P37: College Degree | Q37: =IF(education=P37,1,0) -> 0 | R37: =INDIRECT("'"&$Q$6&" parameters'!"&R$6&$N37) -> -0.0966 | S37: =INDIRECT("'"&$Q$6&" parameters'!"&S$6&$N37) -> -0.0974 | T37: =INDIRECT("'"&$Q$6&" parameters'!"&T$6&$N37) -> -0.1342 | U37: =INDIRECT("'"&$Q$6&" parameters'!"&U$6&$N37) -> -0.1021 | V37: =INDIRECT("'"&$Q$6&" parameters'!"&V$6&$N37) -> -0.1514 | W37: =INDIRECT("'"&$Q$6&" parameters'!"&W$6&$N37) -> -0.1614 | X37: =INDIRECT("'"&$Q$6&" parameters'!"&X$6&$N37) -> -0.2762 | Y37: =INDIRECT("'"&$Q$6&" parameters'!"&Y$6&$N37) -> -0.3037 | Z37: =INDIRECT("'"&$Q$6&" parameters'!"&Z$6&$N37) -> -0.2768 | AC37: College Degree | AD37: -0.00731262 | AE37: -0.00799654 | AF37: -0.01284294 | AG37: -0.01259914 | AH37: -0.02136254 | AI37: -0.0244521 | AJ37: -0.04549014 | AK37: -0.05293491 | AL37: -0.04730512
C38: Graduate Degree | D38: ='Means parameters'!C42 -> 5.88 | E38: ='Means parameters'!D42 -> 7.2 | F38: ='Means parameters'!E42 -> 8.58 | G38: ='Means parameters'!F42 -> 8.23 | H38: ='Means parameters'!G42 -> 8.65 | I38: ='Means parameters'!H42 -> 9.37 | J38: ='Means parameters'!I42 -> 9.96 | K38: ='Means parameters'!J42 -> 10.85 | L38: ='Means parameters'!K42 -> 8.96 | N38: 42 | P38: Graduate Degree | Q38: =IF(education=P38,1,0) -> 0 | R38: =INDIRECT("'"&$Q$6&" parameters'!"&R$6&$N38) -> -0.1838 | S38: =INDIRECT("'"&$Q$6&" parameters'!"&S$6&$N38) -> -0.2228 | T38: =INDIRECT("'"&$Q$6&" parameters'!"&T$6&$N38) -> -0.2018 | U38: =INDIRECT("'"&$Q$6&" parameters'!"&U$6&$N38) -> -0.1474 | V38: =INDIRECT("'"&$Q$6&" parameters'!"&V$6&$N38) -> -0.2704 | W38: =INDIRECT("'"&$Q$6&" parameters'!"&W$6&$N38) -> -0.2803 | X38: =INDIRECT("'"&$Q$6&" parameters'!"&X$6&$N38) -> -0.3388 | Y38: =INDIRECT("'"&$Q$6&" parameters'!"&Y$6&$N38) -> -0.358 | Z38: =INDIRECT("'"&$Q$6&" parameters'!"&Z$6&$N38) -> -0.3505 | AC38: Graduate Degree | AD38: -0.01080744 | AE38: -0.0160416 | AF38: -0.01731444 | AG38: -0.01213102 | AH38: -0.0233896 | AI38: -0.02626411 | AJ38: -0.03374448 | AK38: -0.038843 | AL38: -0.0314048
B39: Ethnicity/Race | C39: White Non-Hispanic | D39: ='Means parameters'!C43 -> 83.48 | E39: ='Means parameters'!D43 -> 41.05 | F39: ='Means parameters'!E43 -> 78.68 | G39: ='Means parameters'!F43 -> 78.02 | H39: ='Means parameters'!G43 -> 76.13 | I39: ='Means parameters'!H43 -> 74.67 | J39: ='Means parameters'!I43 -> 74.86 | K39: ='Means parameters'!J43 -> 73.06 | L39: ='Means parameters'!K43 -> 73.08 | N39: 43 | O39: Ethnicity/Race | P39: White Non-Hispanic | Q39: =IF(race=P39,1,0) -> 1 | R39: =INDIRECT("'"&$Q$6&" parameters'!"&R$6&$N39) -> 0 | S39: =INDIRECT("'"&$Q$6&" parameters'!"&S$6&$N39) -> 0 | T39: =INDIRECT("'"&$Q$6&" parameters'!"&T$6&$N39) -> 0 | U39: =INDIRECT("'"&$Q$6&" parameters'!"&U$6&$N39) -> 0 | V39: =INDIRECT("'"&$Q$6&" parameters'!"&V$6&$N39) -> 0 | W39: =INDIRECT("'"&$Q$6&" parameters'!"&W$6&$N39) -> 0 | X39: =INDIRECT("'"&$Q$6&" parameters'!"&X$6&$N39) -> 0 | Y39: =INDIRECT("'"&$Q$6&" parameters'!"&Y$6&$N39) -> 0 | Z39: =INDIRECT("'"&$Q$6&" parameters'!"&Z$6&$N39) -> 0 | AB39: Ethnicity/Race | AC39: White Non-Hispanic | AD39: 0 | AE39: 0 | AF39: 0 | AG39: 0 | AH39: 0 | AI39: 0 | AJ39: 0 | AK39: 0 | AL39: 0
C40: Black Non-Hispanic | D40: ='Means parameters'!C44 -> 9.28 | E40: ='Means parameters'!D44 -> 4.74 | F40: ='Means parameters'!E44 -> 9.4 | G40: ='Means parameters'!F44 -> 9.64 | H40: ='Means parameters'!G44 -> 9.94 | I40: ='Means parameters'!H44 -> 9.8 | J40: ='Means parameters'!I44 -> 10.24 | K40: ='Means parameters'!J44 -> 10.42 | L40: ='Means parameters'!K44 -> 9.71 | N40: 44 | P40: Black Non-Hispanic | Q40: =IF(race=P40,1,0) -> 0 | R40: =INDIRECT("'"&$Q$6&" parameters'!"&R$6&$N40) -> 0.1013 | S40: =INDIRECT("'"&$Q$6&" parameters'!"&S$6&$N40) -> 0.066 | T40: =INDIRECT("'"&$Q$6&" parameters'!"&T$6&$N40) -> 0.1259 | U40: =INDIRECT("'"&$Q$6&" parameters'!"&U$6&$N40) -> 0.0963 | V40: =INDIRECT("'"&$Q$6&" parameters'!"&V$6&$N40) -> 0.004 | W40: =INDIRECT("'"&$Q$6&" parameters'!"&W$6&$N40) -> 0.0289 | X40: =INDIRECT("'"&$Q$6&" parameters'!"&X$6&$N40) -> 0.0003 | Y40: =INDIRECT("'"&$Q$6&" parameters'!"&Y$6&$N40) -> -0.0608 | Z40: =INDIRECT("'"&$Q$6&" parameters'!"&Z$6&$N40) -> -0.0522 | AC40: Black Non-Hispanic | AD40: 0.00940064 | AE40: 0.0031284 | AF40: 0.0118346 | AG40: 0.00928332 | AH40: 0.0003976 | AI40: 0.0028322 | AJ40: 3.072e-05 | AK40: -0.00633536 | AL40: -0.00506862
C41: Asian Non-Hispanic | D41: ='Means parameters'!C45 -> 1.37 | E41: ='Means parameters'!D45 -> 0.78 | F41: ='Means parameters'!E45 -> 2.11 | G41: ='Means parameters'!F45 -> 2.37 | H41: ='Means parameters'!G45 -> 3.01 | I41: ='Means parameters'!H45 -> 3.58 | J41: ='Means parameters'!I45 -> 3.93 | K41: ='Means parameters'!J45 -> 4.26 | L41: ='Means parameters'!K45 -> 4.79 | N41: 45 | P41: Asian Non-Hispanic | Q41: =IF(race=P41,1,0) -> 0 | R41: =INDIRECT("'"&$Q$6&" parameters'!"&R$6&$N41) -> -0.4514 | S41: =INDIRECT("'"&$Q$6&" parameters'!"&S$6&$N41) -> -0.557 | T41: =INDIRECT("'"&$Q$6&" parameters'!"&T$6&$N41) -> -0.412 | U41: =INDIRECT("'"&$Q$6&" parameters'!"&U$6&$N41) -> -0.5471 | V41: =INDIRECT("'"&$Q$6&" parameters'!"&V$6&$N41) -> -0.573 | W41: =INDIRECT("'"&$Q$6&" parameters'!"&W$6&$N41) -> -0.4346 | X41: =INDIRECT("'"&$Q$6&" parameters'!"&X$6&$N41) -> -0.5953 | Y41: =INDIRECT("'"&$Q$6&" parameters'!"&Y$6&$N41) -> -0.7994 | Z41: =INDIRECT("'"&$Q$6&" parameters'!"&Z$6&$N41) -> -0.2081 | AC41: Asian Non-Hispanic | AD41: -0.00618418 | AE41: -0.0043446 | AF41: -0.0086932 | AG41: -0.01296627 | AH41: -0.0172473 | AI41: -0.01555868 | AJ41: -0.02339529 | AK41: -0.03405444 | AL41: -0.00996799
C42: Hispanic | D42: ='Means parameters'!C46 -> 3.6 | E42: ='Means parameters'!D46 -> 4.44 | F42: ='Means parameters'!E46 -> 5.17 | G42: ='Means parameters'!F46 -> 6.27 | H42: ='Means parameters'!G46 -> 7.08 | I42: ='Means parameters'!H46 -> 7.94 | J42: ='Means parameters'!I46 -> 9.59 | K42: ='Means parameters'!J46 -> 10.81 | L42: ='Means parameters'!K46 -> 10.98 | N42: 46 | P42: Hispanic | Q42: =IF(race=P42,1,0) -> 0 | R42: =INDIRECT("'"&$Q$6&" parameters'!"&R$6&$N42) -> -0.4141 | S42: =INDIRECT("'"&$Q$6&" parameters'!"&S$6&$N42) -> -0.3224 | T42: =INDIRECT("'"&$Q$6&" parameters'!"&T$6&$N42) -> -0.2202 | U42: =INDIRECT("'"&$Q$6&" parameters'!"&U$6&$N42) -> -0.4282 | V42: =INDIRECT("'"&$Q$6&" parameters'!"&V$6&$N42) -> -0.537 | W42: =INDIRECT("'"&$Q$6&" parameters'!"&W$6&$N42) -> -0.5615 | X42: =INDIRECT("'"&$Q$6&" parameters'!"&X$6&$N42) -> -0.4463 | Y42: =INDIRECT("'"&$Q$6&" parameters'!"&Y$6&$N42) -> -0.4857 | Z42: =INDIRECT("'"&$Q$6&" parameters'!"&Z$6&$N42) -> -0.4454 | AC42: Hispanic | AD42: -0.0149076 | AE42: -0.01431456 | AF42: -0.01138434 | AG42: -0.02684814 | AH42: -0.0380196 | AI42: -0.0445831 | AJ42: -0.04280017 | AK42: -0.05250417 | AL42: -0.04890492
C43: Other Non-Hispanic | D43: ='Means parameters'!C47 -> 2.28 | E43: ='Means parameters'!D47 -> 48.99 | F43: ='Means parameters'!E47 -> 4.64 | G43: ='Means parameters'!F47 -> 3.7 | H43: ='Means parameters'!G47 -> 3.84 | I43: ='Means parameters'!H47 -> 4 | J43: ='Means parameters'!I47 -> 1.39 | K43: ='Means parameters'!J47 -> 1.44 | L43: ='Means parameters'!K47 -> 1.45 | N43: 47 | P43: Other Non-Hispanic | Q43: =IF(race=P43,1,0) -> 0 | R43: =INDIRECT("'"&$Q$6&" parameters'!"&R$6&$N43) -> -0.021 | S43: =INDIRECT("'"&$Q$6&" parameters'!"&S$6&$N43) -> -0.092 | T43: =INDIRECT("'"&$Q$6&" parameters'!"&T$6&$N43) -> 0.0009 | U43: =INDIRECT("'"&$Q$6&" parameters'!"&U$6&$N43) -> -0.0369 | V43: =INDIRECT("'"&$Q$6&" parameters'!"&V$6&$N43) -> -0.0842 | W43: =INDIRECT("'"&$Q$6&" parameters'!"&W$6&$N43) -> 0.0254 | X43: =INDIRECT("'"&$Q$6&" parameters'!"&X$6&$N43) -> 0.2728 | Y43: =INDIRECT("'"&$Q$6&" parameters'!"&Y$6&$N43) -> 0.0749 | Z43: =INDIRECT("'"&$Q$6&" parameters'!"&Z$6&$N43) -> 0.0263 | AC43: Other Non-Hispanic | AD43: -0.0004788 | AE43: -0.0450708 | AF43: 4.176e-05 | AG43: -0.0013653 | AH43: -0.00323328 | AI43: 0.001016 | AJ43: 0.00379192 | AK43: 0.00107856 | AL43: 0.00038135
B44: Employment | C44: Employed | D44: ='Means parameters'!C48 -> 49.42 | E44: ='Means parameters'!D48 -> 49.19 | F44: ='Means parameters'!E48 -> 52.19 | G44: ='Means parameters'!F48 -> 53.27 | H44: ='Means parameters'!G48 -> 56.37 | I44: ='Means parameters'!H48 -> 57.9 | J44: ='Means parameters'!I48 -> 58.02 | K44: ='Means parameters'!J48 -> 56.57 | L44: ='Means parameters'!K48 -> 60.5 | N44: 48 | O44: Employment | P44: Employed | Q44: =IF(employment_status=P44,1,0) -> 1 | R44: =INDIRECT("'"&$Q$6&" parameters'!"&R$6&$N44) -> 0 | S44: =INDIRECT("'"&$Q$6&" parameters'!"&S$6&$N44) -> 0 | T44: =INDIRECT("'"&$Q$6&" parameters'!"&T$6&$N44) -> 0 | U44: =INDIRECT("'"&$Q$6&" parameters'!"&U$6&$N44) -> 0 | V44: =INDIRECT("'"&$Q$6&" parameters'!"&V$6&$N44) -> 0 | W44: =INDIRECT("'"&$Q$6&" parameters'!"&W$6&$N44) -> 0 | X44: =INDIRECT("'"&$Q$6&" parameters'!"&X$6&$N44) -> 0 | Y44: =INDIRECT("'"&$Q$6&" parameters'!"&Y$6&$N44) -> 0 | Z44: =INDIRECT("'"&$Q$6&" parameters'!"&Z$6&$N44) -> 0 | AB44: Employment | AC44: Employed | AD44: 0 | AE44: 0 | AF44: 0 | AG44: 0 | AH44: 0 | AI44: 0 | AJ44: 0 | AK44: 0 | AL44: 0
C45: Unemployed | D45: ='Means parameters'!C49 -> 2.49 | E45: ='Means parameters'!D49 -> 2.58 | F45: ='Means parameters'!E49 -> 2.16 | G45: ='Means parameters'!F49 -> 2.65 | H45: ='Means parameters'!G49 -> 1.62 | I45: ='Means parameters'!H49 -> 1.9 | J45: ='Means parameters'!I49 -> 1.96 | K45: ='Means parameters'!J49 -> 3.56 | L45: ='Means parameters'!K49 -> 2.63 | N45: 49 | P45: Unemployed | Q45: =IF(employment_status=P45,1,0) -> 0 | R45: =INDIRECT("'"&$Q$6&" parameters'!"&R$6&$N45) -> 0.1755 | S45: =INDIRECT("'"&$Q$6&" parameters'!"&S$6&$N45) -> 0.1781 | T45: =INDIRECT("'"&$Q$6&" parameters'!"&T$6&$N45) -> 0.0112 | U45: =INDIRECT("'"&$Q$6&" parameters'!"&U$6&$N45) -> 0.3906 | V45: =INDIRECT("'"&$Q$6&" parameters'!"&V$6&$N45) -> 0.3358 | W45: =INDIRECT("'"&$Q$6&" parameters'!"&W$6&$N45) -> 0.3727 | X45: =INDIRECT("'"&$Q$6&" parameters'!"&X$6&$N45) -> 0.3268 | Y45: =INDIRECT("'"&$Q$6&" parameters'!"&Y$6&$N45) -> 0.0901 | Z45: =INDIRECT("'"&$Q$6&" parameters'!"&Z$6&$N45) -> 0.34 | AC45: Unemployed | AD45: 0.00436995 | AE45: 0.00459498 | AF45: 0.00024192 | AG45: 0.0103509 | AH45: 0.00543996 | AI45: 0.0070813 | AJ45: 0.00640528 | AK45: 0.00320756 | AL45: 0.008942
C46: NILF | D46: ='Means parameters'!C50 -> 48.08 | E46: ='Means parameters'!D50 -> 48.23 | F46: ='Means parameters'!E50 -> 45.65 | G46: ='Means parameters'!F50 -> 44.08 | H46: ='Means parameters'!G50 -> 42.01 | I46: ='Means parameters'!H50 -> 40.19 | J46: ='Means parameters'!I50 -> 40.02 | K46: ='Means parameters'!J50 -> 39.87 | L46: ='Means parameters'!K50 -> 36.88 | N46: 50 | P46: NILF | Q46: =IF(employment_status=P46,1,0) -> 0 | R46: =INDIRECT("'"&$Q$6&" parameters'!"&R$6&$N46) -> 0.4022 | S46: =INDIRECT("'"&$Q$6&" parameters'!"&S$6&$N46) -> 0.3205 | T46: =INDIRECT("'"&$Q$6&" parameters'!"&T$6&$N46) -> 0.4419 | U46: =INDIRECT("'"&$Q$6&" parameters'!"&U$6&$N46) -> 0.518 | V46: =INDIRECT("'"&$Q$6&" parameters'!"&V$6&$N46) -> 0.5476 | W46: =INDIRECT("'"&$Q$6&" parameters'!"&W$6&$N46) -> 0.3272 | X46: =INDIRECT("'"&$Q$6&" parameters'!"&X$6&$N46) -> 0.7725 | Y46: =INDIRECT("'"&$Q$6&" parameters'!"&Y$6&$N46) -> 1.2409 | Z46: =INDIRECT("'"&$Q$6&" parameters'!"&Z$6&$N46) -> 0.5929 | AC46: NILF | AD46: 0.19337776 | AE46: 0.15457715 | AF46: 0.20172735 | AG46: 0.2283344 | AH46: 0.23004676 | AI46: 0.13150168 | AJ46: 0.3091545 | AK46: 0.49474683 | AL46: 0.21866152
B47: Marital Status | C47: Married | D47: ='Means parameters'!C23 -> 71.12 | E47: ='Means parameters'!D23 -> 69.39 | F47: ='Means parameters'!E23 -> 69.06 | G47: ='Means parameters'!F23 -> 67.39 | H47: ='Means parameters'!G23 -> 66.02 | I47: ='Means parameters'!H23 -> 65.55 | J47: ='Means parameters'!I23 -> 65.2 | K47: ='Means parameters'!J23 -> 64.08 | L47: ='Means parameters'!K23 -> 79.99 | N47: 23 | O47: Marital Status | P47: Married | Q47: =IF(marital_status=P47,1,0) -> 1 | R47: =INDIRECT("'"&$Q$6&" parameters'!"&R$6&$N47) -> 0 | S47: =INDIRECT("'"&$Q$6&" parameters'!"&S$6&$N47) -> 0 | T47: =INDIRECT("'"&$Q$6&" parameters'!"&T$6&$N47) -> 0 | U47: =INDIRECT("'"&$Q$6&" parameters'!"&U$6&$N47) -> 0 | V47: =INDIRECT("'"&$Q$6&" parameters'!"&V$6&$N47) -> 0 | W47: =INDIRECT("'"&$Q$6&" parameters'!"&W$6&$N47) -> 0 | X47: =INDIRECT("'"&$Q$6&" parameters'!"&X$6&$N47) -> 0 | Y47: =INDIRECT("'"&$Q$6&" parameters'!"&Y$6&$N47) -> 0 | Z47: =INDIRECT("'"&$Q$6&" parameters'!"&Z$6&$N47) -> 0 | AB47: Marital Status | AC47: Married | AD47: 0 | AE47: 0 | AF47: 0 | AG47: 0 | AH47: 0 | AI47: 0 | AJ47: 0 | AK47: 0 | AL47: 0
C48: Widowed | D48: ='Means parameters'!C24 -> 15.11 | E48: ='Means parameters'!D24 -> 14.99 | F48: ='Means parameters'!E24 -> 14.16 | G48: ='Means parameters'!F24 -> 13.15 | H48: ='Means parameters'!G24 -> 12.35 | I48: ='Means parameters'!H24 -> 11.22 | J48: ='Means parameters'!I24 -> 10.63 | K48: ='Means parameters'!J24 -> 10.28 | L48: ='Means parameters'!K24 -> 4.77 | N48: 24 | P48: Widowed | Q48: =IF(marital_status=P48,1,0) -> 0 | R48: =INDIRECT("'"&$Q$6&" parameters'!"&R$6&$N48) -> 0.2061 | S48: =INDIRECT("'"&$Q$6&" parameters'!"&S$6&$N48) -> 0.2216 | T48: =INDIRECT("'"&$Q$6&" parameters'!"&T$6&$N48) -> 0.2042 | U48: =INDIRECT("'"&$Q$6&" parameters'!"&U$6&$N48) -> 0.2319 | V48: =INDIRECT("'"&$Q$6&" parameters'!"&V$6&$N48) -> 0.2137 | W48: =INDIRECT("'"&$Q$6&" parameters'!"&W$6&$N48) -> 0.2191 | X48: =INDIRECT("'"&$Q$6&" parameters'!"&X$6&$N48) -> 0.2972 | Y48: =INDIRECT("'"&$Q$6&" parameters'!"&Y$6&$N48) -> 0.3041 | Z48: =INDIRECT("'"&$Q$6&" parameters'!"&Z$6&$N48) -> 0.4221 | AC48: Widowed | AD48: 0.03114171 | AE48: 0.03321784 | AF48: 0.02891472 | AG48: 0.03049485 | AH48: 0.02639195 | AI48: 0.02458302 | AJ48: 0.03159236 | AK48: 0.03126148 | AL48: 0.02013417
C49: Divorced | D49: ='Means parameters'!C25 -> 6.62 | E49: ='Means parameters'!D25 -> 8.28 | F49: ='Means parameters'!E25 -> 9.33 | G49: ='Means parameters'!F25 -> 10.99 | H49: ='Means parameters'!G25 -> 12.35 | I49: ='Means parameters'!H25 -> 13.17 | J49: ='Means parameters'!I25 -> 13.58 | K49: ='Means parameters'!J25 -> 14.11 | L49: ='Means parameters'!K25 -> 8.04 | N49: 25 | P49: Divorced | Q49: =IF(marital_status=P49,1,0) -> 0 | R49: =INDIRECT("'"&$Q$6&" parameters'!"&R$6&$N49) -> 0.2892 | S49: =INDIRECT("'"&$Q$6&" parameters'!"&S$6&$N49) -> 0.2919 | T49: =INDIRECT("'"&$Q$6&" parameters'!"&T$6&$N49) -> 0.2394 | U49: =INDIRECT("'"&$Q$6&" parameters'!"&U$6&$N49) -> 0.3164 | V49: =INDIRECT("'"&$Q$6&" parameters'!"&V$6&$N49) -> 0.2966 | W49: =INDIRECT("'"&$Q$6&" parameters'!"&W$6&$N49) -> 0.3381 | X49: =INDIRECT("'"&$Q$6&" parameters'!"&X$6&$N49) -> 0.3829 | Y49: =INDIRECT("'"&$Q$6&" parameters'!"&Y$6&$N49) -> 0.398 | Z49: =INDIRECT("'"&$Q$6&" parameters'!"&Z$6&$N49) -> 0.4647 | AC49: Divorced | AD49: 0.01914504 | AE49: 0.02416932 | AF49: 0.02233602 | AG49: 0.03477236 | AH49: 0.0366301 | AI49: 0.04452777 | AJ49: 0.05199782 | AK49: 0.0561578 | AL49: 0.03736188
C50: Separated | D50: ='Means parameters'!C26 -> 2.16 | E50: ='Means parameters'!D26 -> 2.17 | F50: ='Means parameters'!E26 -> 2.19 | G50: ='Means parameters'!F26 -> 2.28 | H50: ='Means parameters'!G26 -> 2.23 | I50: ='Means parameters'!H26 -> 2.1 | J50: ='Means parameters'!I26 -> 2.32 | K50: ='Means parameters'!J26 -> 2.39 | L50: ='Means parameters'!K26 -> 1.7 | N50: 26 | P50: Separated | Q50: =IF(marital_status=P50,1,0) -> 0 | R50: =INDIRECT("'"&$Q$6&" parameters'!"&R$6&$N50) -> 0.3108 | S50: =INDIRECT("'"&$Q$6&" parameters'!"&S$6&$N50) -> 0.2209 | T50: =INDIRECT("'"&$Q$6&" parameters'!"&T$6&$N50) -> 0.3265 | U50: =INDIRECT("'"&$Q$6&" parameters'!"&U$6&$N50) -> 0.3843 | V50: =INDIRECT("'"&$Q$6&" parameters'!"&V$6&$N50) -> 0.2763 | W50: =INDIRECT("'"&$Q$6&" parameters'!"&W$6&$N50) -> 0.2346 | X50: =INDIRECT("'"&$Q$6&" parameters'!"&X$6&$N50) -> 0.5403 | Y50: =INDIRECT("'"&$Q$6&" parameters'!"&Y$6&$N50) -> 0.2782 | Z50: =INDIRECT("'"&$Q$6&" parameters'!"&Z$6&$N50) -> 0.433 | AC50: Separated | AD50: 0.00671328 | AE50: 0.00479353 | AF50: 0.00715035 | AG50: 0.00876204 | AH50: 0.00616149 | AI50: 0.0049266 | AJ50: 0.01253496 | AK50: 0.00664898 | AL50: 0.007361
C51: Never Married | D51: ='Means parameters'!C27 -> 5 | E51: ='Means parameters'!D27 -> 5.17 | F51: ='Means parameters'!E27 -> 5.26 | G51: ='Means parameters'!F27 -> 6.18 | H51: ='Means parameters'!G27 -> 7.06 | I51: ='Means parameters'!H27 -> 7.96 | J51: ='Means parameters'!I27 -> 8.27 | K51: ='Means parameters'!J27 -> 9.14 | L51: ='Means parameters'!K27 -> 5.5 | N51: 27 | P51: Never Married | Q51: =IF(marital_status=P51,1,0) -> 0 | R51: =INDIRECT("'"&$Q$6&" parameters'!"&R$6&$N51) -> 0.2667 | S51: =INDIRECT("'"&$Q$6&" parameters'!"&S$6&$N51) -> 0.3172 | T51: =INDIRECT("'"&$Q$6&" parameters'!"&T$6&$N51) -> 0.2534 | U51: =INDIRECT("'"&$Q$6&" parameters'!"&U$6&$N51) -> 0.2235 | V51: =INDIRECT("'"&$Q$6&" parameters'!"&V$6&$N51) -> 0.2649 | W51: =INDIRECT("'"&$Q$6&" parameters'!"&W$6&$N51) -> 0.3243 | X51: =INDIRECT("'"&$Q$6&" parameters'!"&X$6&$N51) -> 0.4267 | Y51: =INDIRECT("'"&$Q$6&" parameters'!"&Y$6&$N51) -> 0.5034 | Z51: =INDIRECT("'"&$Q$6&" parameters'!"&Z$6&$N51) -> 0.4342 | AC51: Never Married | AD51: 0.013335 | AE51: 0.01639924 | AF51: 0.01332884 | AG51: 0.0138123 | AH51: 0.01870194 | AI51: 0.02581428 | AJ51: 0.03528809 | AK51: 0.04601076 | AL51: 0.023881
B52: Occupation | C52: Professional | D52: ='Means parameters'!C51 -> 7.38 | E52: ='Means parameters'!D51 -> 8.29 | F52: ='Means parameters'!E51 -> 9.12 | G52: ='Means parameters'!F51 -> 9.83 | H52: ='Means parameters'!G51 -> 10.06 | I52: ='Means parameters'!H51 -> 11.48 | J52: ='Means parameters'!I51 -> 13.3 | K52: ='Means parameters'!J51 -> 13.35 | L52: ='Means parameters'!K51 -> 15.3 | N52: 51 | O52: Occupation | P52: Professional | Q52: =IF(occupation=P52,1,0) -> 1 | R52: =INDIRECT("'"&$Q$6&" parameters'!"&R$6&$N52) -> 0 | S52: =INDIRECT("'"&$Q$6&" parameters'!"&S$6&$N52) -> 0 | T52: =INDIRECT("'"&$Q$6&" parameters'!"&T$6&$N52) -> 0 | U52: =INDIRECT("'"&$Q$6&" parameters'!"&U$6&$N52) -> 0 | V52: =INDIRECT("'"&$Q$6&" parameters'!"&V$6&$N52) -> 0 | W52: =INDIRECT("'"&$Q$6&" parameters'!"&W$6&$N52) -> 0 | X52: =INDIRECT("'"&$Q$6&" parameters'!"&X$6&$N52) -> 0 | Y52: =INDIRECT("'"&$Q$6&" parameters'!"&Y$6&$N52) -> 0 | Z52: =INDIRECT("'"&$Q$6&" parameters'!"&Z$6&$N52) -> 0 | AB52: Occupation | AC52: Professional | AD52: 0 | AE52: 0 | AF52: 0 | AG52: 0 | AH52: 0 | AI52: 0 | AJ52: 0 | AK52: 0 | AL52: 0
C53: Skilled/Sales | D53: ='Means parameters'!C52 -> 15.22 | E53: ='Means parameters'!D52 -> 17.28 | F53: ='Means parameters'!E52 -> 18.59 | G53: ='Means parameters'!F52 -> 18.71 | H53: ='Means parameters'!G52 -> 19.2 | I53: ='Means parameters'!H52 -> 18.93 | J53: ='Means parameters'!I52 -> 16.36 | K53: ='Means parameters'!J52 -> 15.73 | L53: ='Means parameters'!K52 -> 20.2 | N53: 52 | P53: Skilled/Sales | Q53: 0 | R53: =INDIRECT("'"&$Q$6&" parameters'!"&R$6&$N53) -> 0.129 | S53: =INDIRECT("'"&$Q$6&" parameters'!"&S$6&$N53) -> 0.1259 | T53: =INDIRECT("'"&$Q$6&" parameters'!"&T$6&$N53) -> 0.0421 | U53: =INDIRECT("'"&$Q$6&" parameters'!"&U$6&$N53) -> -0.0213 | V53: =INDIRECT("'"&$Q$6&" parameters'!"&V$6&$N53) -> 0.0382 | W53: =INDIRECT("'"&$Q$6&" parameters'!"&W$6&$N53) -> 0.0428 | X53: =INDIRECT("'"&$Q$6&" parameters'!"&X$6&$N53) -> 0.0963 | Y53: =INDIRECT("'"&$Q$6&" parameters'!"&Y$6&$N53) -> 0.1715 | Z53: =INDIRECT("'"&$Q$6&" parameters'!"&Z$6&$N53) -> 0.1123 | AC53: Skilled/Sales | AD53: 0.0196338 | AE53: 0.02175552 | AF53: 0.00782639 | AG53: -0.00398523 | AH53: 0.0073344 | AI53: 0.00810204 | AJ53: 0.01575468 | AK53: 0.02697695 | AL53: 0.0226846
C54: Blue Collar (light physical duties) | D54: ='Means parameters'!C53 -> 11.43 | E54: ='Means parameters'!D53 -> 10.71 | F54: ='Means parameters'!E53 -> 10.69 | G54: ='Means parameters'!F53 -> 10.51 | H54: ='Means parameters'!G53 -> 10.5 | I54: ='Means parameters'!H53 -> 10.84 | J54: ='Means parameters'!I53 -> 11.91 | K54: ='Means parameters'!J53 -> 11.94 | L54: ='Means parameters'!K53 -> 14.89 | N54: 53 | P54: Blue Collar (light physical duties) | Q54: 0 | R54: =INDIRECT("'"&$Q$6&" parameters'!"&R$6&$N54) -> 0.1184 | S54: =INDIRECT("'"&$Q$6&" parameters'!"&S$6&$N54) -> 0.1386 | T54: =INDIRECT("'"&$Q$6&" parameters'!"&T$6&$N54) -> 0.0498 | U54: =INDIRECT("'"&$Q$6&" parameters'!"&U$6&$N54) -> 0.1451 | V54: =INDIRECT("'"&$Q$6&" parameters'!"&V$6&$N54) -> 0.0239 | W54: =INDIRECT("'"&$Q$6&" parameters'!"&W$6&$N54) -> 0.1571 | X54: =INDIRECT("'"&$Q$6&" parameters'!"&X$6&$N54) -> 0.2495 | Y54: =INDIRECT("'"&$Q$6&" parameters'!"&Y$6&$N54) -> 0.1054 | Z54: =INDIRECT("'"&$Q$6&" parameters'!"&Z$6&$N54) -> 0.2233 | AC54: Blue Collar (light physical duties) | AD54: 0.01353312 | AE54: 0.01484406 | AF54: 0.00532362 | AG54: 0.01525001 | AH54: 0.0025095 | AI54: 0.01702964 | AJ54: 0.02971545 | AK54: 0.01258476 | AL54: 0.03324937
C55: Blue Collar (heavy physical duties) | D55: ='Means parameters'!C54 -> 17.44 | E55: ='Means parameters'!D54 -> 15.85 | F55: ='Means parameters'!E54 -> 15.03 | G55: ='Means parameters'!F54 -> 14.36 | H55: ='Means parameters'!G54 -> 14.35 | I55: ='Means parameters'!H54 -> 14.36 | J55: ='Means parameters'!I54 -> 14.08 | K55: ='Means parameters'!J54 -> 13.39 | L55: ='Means parameters'!K54 -> 17.35 | N55: 54 | P55: Blue Collar (heavy physical duties) | Q55: 0 | R55: =INDIRECT("'"&$Q$6&" parameters'!"&R$6&$N55) -> 0.1233 | S55: =INDIRECT("'"&$Q$6&" parameters'!"&S$6&$N55) -> 0.1904 | T55: =INDIRECT("'"&$Q$6&" parameters'!"&T$6&$N55) -> 0.1422 | U55: =INDIRECT("'"&$Q$6&" parameters'!"&U$6&$N55) -> 0.1388 | V55: =INDIRECT("'"&$Q$6&" parameters'!"&V$6&$N55) -> 0.0776 | W55: =INDIRECT("'"&$Q$6&" parameters'!"&W$6&$N55) -> 0.1189 | X55: =INDIRECT("'"&$Q$6&" parameters'!"&X$6&$N55) -> 0.2303 | Y55: =INDIRECT("'"&$Q$6&" parameters'!"&Y$6&$N55) -> 0.1881 | Z55: =INDIRECT("'"&$Q$6&" parameters'!"&Z$6&$N55) -> 0.1852 | AC55: Blue Collar (heavy physical duties) | AD55: 0.02150352 | AE55: 0.0301784 | AF55: 0.02137266 | AG55: 0.01993168 | AH55: 0.0111356 | AI55: 0.01707404 | AJ55: 0.03242624 | AK55: 0.02518659 | AL55: 0.0321322
C56: Medical | D56: ='Means parameters'!C55 -> 2.82 | E56: ='Means parameters'!D55 -> 2.91 | F56: ='Means parameters'!E55 -> 3.37 | G56: ='Means parameters'!F55 -> 3.94 | H56: ='Means parameters'!G55 -> 4.49 | I56: ='Means parameters'!H55 -> 4.72 | J56: ='Means parameters'!I55 -> 4.87 | K56: ='Means parameters'!J55 -> 4.63 | L56: ='Means parameters'!K55 -> 5.3 | N56: 55 | P56: Medical | Q56: 0 | R56: =INDIRECT("'"&$Q$6&" parameters'!"&R$6&$N56) -> 0.149 | S56: =INDIRECT("'"&$Q$6&" parameters'!"&S$6&$N56) -> 0.2523 | T56: =INDIRECT("'"&$Q$6&" parameters'!"&T$6&$N56) -> -0.0799 | U56: =INDIRECT("'"&$Q$6&" parameters'!"&U$6&$N56) -> 0.0344 | V56: =INDIRECT("'"&$Q$6&" parameters'!"&V$6&$N56) -> -0.1346 | W56: =INDIRECT("'"&$Q$6&" parameters'!"&W$6&$N56) -> 0.0302 | X56: =INDIRECT("'"&$Q$6&" parameters'!"&X$6&$N56) -> 0.2183 | Y56: =INDIRECT("'"&$Q$6&" parameters'!"&Y$6&$N56) -> 0.195 | Z56: =INDIRECT("'"&$Q$6&" parameters'!"&Z$6&$N56) -> 0.1226 | AC56: Medical | AD56: 0.0042018 | AE56: 0.00734193 | AF56: -0.00269263 | AG56: 0.00135536 | AH56: -0.00604354 | AI56: 0.00142544 | AJ56: 0.01063121 | AK56: 0.0090285 | AL56: 0.0064978
C57: N/A | D57: ='Means parameters'!C56 -> 45.72 | E57: ='Means parameters'!D56 -> 44.96 | F57: ='Means parameters'!E56 -> 43.2 | G57: ='Means parameters'!F56 -> 42.64 | H57: ='Means parameters'!G56 -> 41.41 | I57: ='Means parameters'!H56 -> 39.66 | J57: ='Means parameters'!I56 -> 39.47 | K57: ='Means parameters'!J56 -> 40.97 | L57: ='Means parameters'!K56 -> 26.96 | N57: 56 | P57: N/A | Q57: 0 | R57: =INDIRECT("'"&$Q$6&" parameters'!"&R$6&$N57) -> 0.244 | S57: =INDIRECT("'"&$Q$6&" parameters'!"&S$6&$N57) -> 0.3912 | T57: =INDIRECT("'"&$Q$6&" parameters'!"&T$6&$N57) -> 0.214 | U57: =INDIRECT("'"&$Q$6&" parameters'!"&U$6&$N57) -> 0.1657 | V57: =INDIRECT("'"&$Q$6&" parameters'!"&V$6&$N57) -> 0.121 | W57: =INDIRECT("'"&$Q$6&" parameters'!"&W$6&$N57) -> 0.4686 | X57: =INDIRECT("'"&$Q$6&" parameters'!"&X$6&$N57) -> 0.2825 | Y57: =INDIRECT("'"&$Q$6&" parameters'!"&Y$6&$N57) -> 0.0436 | Z57: =INDIRECT("'"&$Q$6&" parameters'!"&Z$6&$N57) -> 0.321 | AC57: N/A | AD57: 0.1115568 | AE57: 0.17588352 | AF57: 0.092448 | AG57: 0.07065448 | AH57: 0.0501061 | AI57: 0.18584676 | AJ57: 0.11150275 | AK57: 0.01786292 | AL57: 0.0865416
P58: B'X (without age) | R58: =SUMPRODUCT($Q$18:$Q$57,R18:R57) -> 0 | S58: =SUMPRODUCT($Q$18:$Q$57,S18:S57) -> 0 | T58: 0 | U58: 0 | V58: 0 | W58: 0 | X58: =SUMPRODUCT($Q$18:$Q$57,X18:X57) -> 0 | Y58: =SUMPRODUCT($Q$18:$Q$57,Y18:Y57) -> 0 | Z58: =SUMPRODUCT($Q$18:$Q$57,Z18:Z57) -> 0 | AC58: Base B'X | AD58: =SUM(AD8:AD57) -> -0.28683482 | AE58: =SUM(AE8:AE57) -> -0.35099623 | AF58: =SUM(AF8:AF57) -> -0.27784429 | AG58: -0.45905765 | AH58: -0.38191694 | AI58: -0.300859 | AJ58: =SUM(AJ8:AJ57) -> -0.17784734 | AK58: -0.19893963 | AL58: -0.30756545
AC59: HR(B'X) is e^(B'X) = | AD59: =EXP(AD58) -> 0.7506357086 | AE59: =EXP(AE58) -> 0.7039864079 | AF59: =EXP(AF58) -> 0.7574147494 | AG59: 0.631878816 | AH59: 0.6825517436 | AI59: 0.7401821311 | AJ59: =EXP(AJ58) -> 0.8370702009 | AK59: 0.8195993711 | AL59: 0.7352347449

Sheet Variance
A2: SOA MI Trends
A3: Detailed model parameter results
A4: Variance
B6: Implied exposure count (all cause, cancer, and heart)
B7: Adjustment scalar (age) | C7: 1.295876272 | D7: 1.337824898 | E7: 1.305043727 | F7: 1.400471739 | G7: 1.525808654 | H7: 1.477946352 | I7: 1.582042909 | J7: 1.555077982 | K7: 1.315107573
B8: Adjustment scalar (gender) | C8: 1.5318483 | D8: 1.520512292 | E8: 1.526033834 | F8: 1.565571714 | G8: 1.690501922 | H8: 1.739974358 | I8: 1.741864507 | J8: 1.597542893 | K8: 1.311551353
B9: Adjustment scalar (smoker status) | C9: 1.5318483 | D9: 1.555873043 | E9: 1.503143327 | F9: 1.544972086 | G9: 1.680951063 | H9: 1.739974358 | I9: 1.741864507 | J9: 1.597542893 | K9: 1.307400874
B10: Adjustment scalar (marital status) | C10: 1.534588636 | D10: 1.545093322 | E10: 1.499394839 | F10: 1.579612716 | G10: 1.690501922 | H10: 1.739974358 | I10: 1.754218156 | J10: 1.581725637 | K10: 1.31071915
B11: Adjustment scalar (income) | C11: 1.529117732 | D11: 1.537989444 | E11: 1.503143327 | F11: 1.569058511 | G11: 1.700161933 | H11: 1.749329059 | I11: 1.760460925 | J11: 1.597542893 | K11: 1.308228867
B12: Adjustment scalar (education) | C12: 1.540098829 | D12: 1.541533199 | E12: 1.510696811 | F12: 1.56210038 | G12: 1.690501922 | H12: 1.735334426 | I12: 1.748019505 | J12: 1.597542893 | K12: 1.311551353
B13: Adjustment scalar (race) | C13: 1.535962485 | D13: 1.545093322 | E13: 1.488260719 | F13: 1.572560873 | G13: 1.690501922 | H13: 1.739974358 | I13: 1.766748286 | J13: 1.61367969 | K13: 1.307400874
B14: Adjustment scalar (employment) | C14: 1.538717574 | D14: 1.52745527 | E14: 1.510696811 | F14: 1.565571714 | G14: 1.692425132 | H14: 1.749329059 | I14: 1.735752702 | J14: 1.594354185 | K14: 1.306573928
B15: Adjustment scalar (collar) | C15: 1.529117732 | D15: 1.552263128 | E15: 1.503143327 | F15: 1.576078907 | G15: 1.680951063 | H15: 1.735334426 | I15: 1.729683636 | J15: 1.581725637 | K15: 1.312384613
C16: 1980-1983 | D16: 1984-1987 | E16: 1988-1991 | F16: 1992-1995 | G16: 1996-1999 | H16: 2000-2003 | I16: 2004-2007 | J16: 2008-11 (NLMS) | K16: 2008-11 (MDAC)
B17: age 40-44 | C17: ='Deaths and Exposures'!C16/Calculation!CG8*C$7 -> 375545.9901 | D17: ='Deaths and Exposures'!D16/Calculation!CH8*D$7 -> 157012.9803 | E17: ='Deaths and Exposures'!E16/Calculation!CI8*E$7 -> 158540.9206 | F17: ='Deaths and Exposures'!F16/Calculation!CJ8*F$7 -> 209453.2369 | G17: ='Deaths and Exposures'!G16/Calculation!CK8*G$7 -> 191463.7053 | H17: ='Deaths and Exposures'!H16/Calculation!CL8*H$7 -> 270385.9653 | I17: ='Deaths and Exposures'!I16/Calculation!CM8*I$7 -> 204514.2496 | J17: ='Deaths and Exposures'!J16/Calculation!CN8*J$7 -> 62836.35365 | K17: ='Deaths and Exposures'!K16/Calculation!CO8*K$7 -> 1410037.151
B18: age 45-49 | C18: ='Deaths and Exposures'!C17/Calculation!CG9*C$7 -> 354763.392 | D18: ='Deaths and Exposures'!D17/Calculation!CH9*D$7 -> 127882.4388 | E18: ='Deaths and Exposures'!E17/Calculation!CI9*E$7 -> 130232.5505 | F18: ='Deaths and Exposures'!F17/Calculation!CJ9*F$7 -> 168379.8135 | G18: ='Deaths and Exposures'!G17/Calculation!CK9*G$7 -> 185794.6502 | H18: ='Deaths and Exposures'!H17/Calculation!CL9*H$7 -> 230405.7014 | I18: ='Deaths and Exposures'!I17/Calculation!CM9*I$7 -> 194114.8426 | J18: ='Deaths and Exposures'!J17/Calculation!CN9*J$7 -> 71409.41981 | K18: ='Deaths and Exposures'!K17/Calculation!CO9*K$7 -> 1555949.824
B19: age 50-54 | C19: ='Deaths and Exposures'!C18/Calculation!CG10*C$7 -> 368098.9933 | D19: ='Deaths and Exposures'!D18/Calculation!CH10*D$7 -> 130967.3044 | E19: ='Deaths and Exposures'!E18/Calculation!CI10*E$7 -> 112810.1686 | F19: ='Deaths and Exposures'!F18/Calculation!CJ10*F$7 -> 157489.7798 | G19: ='Deaths and Exposures'!G18/Calculation!CK10*G$7 -> 141658.6705 | H19: ='Deaths and Exposures'!H18/Calculation!CL10*H$7 -> 201240.0109 | I19: ='Deaths and Exposures'!I18/Calculation!CM10*I$7 -> 174255.65 | J19: ='Deaths and Exposures'!J18/Calculation!CN10*J$7 -> 49493.76294 | K19: ='Deaths and Exposures'!K18/Calculation!CO10*K$7 -> 1548773.441
B20: age 55-59 | C20: ='Deaths and Exposures'!C19/Calculation!CG11*C$7 -> 378991.3305 | D20: ='Deaths and Exposures'!D19/Calculation!CH11*D$7 -> 140384.1078 | E20: ='Deaths and Exposures'!E19/Calculation!CI11*E$7 -> 113632.19 | F20: ='Deaths and Exposures'!F19/Calculation!CJ11*F$7 -> 131875.6084 | G20: ='Deaths and Exposures'!G19/Calculation!CK11*G$7 -> 116353.5449 | H20: ='Deaths and Exposures'!H19/Calculation!CL11*H$7 -> 147997.9681 | I20: ='Deaths and Exposures'!I19/Calculation!CM11*I$7 -> 147088.0202 | J20: ='Deaths and Exposures'!J19/Calculation!CN11*J$7 -> 55975.86975 | K20: ='Deaths and Exposures'!K19/Calculation!CO11*K$7 -> 1451822.145
B21: age 60-64 | C21: ='Deaths and Exposures'!C20/Calculation!CG12*C$7 -> 364615.2118 | D21: ='Deaths and Exposures'!D20/Calculation!CH12*D$7 -> 143106.9923 | E21: ='Deaths and Exposures'!E20/Calculation!CI12*E$7 -> 130408.0342 | F21: ='Deaths and Exposures'!F20/Calculation!CJ12*F$7 -> 139124.3914 | G21: ='Deaths and Exposures'!G20/Calculation!CK12*G$7 -> 120765.803 | H21: ='Deaths and Exposures'!H20/Calculation!CL12*H$7 -> 140327.9096 | I21: ='Deaths and Exposures'!I20/Calculation!CM12*I$7 -> 124929.618 | J21: ='Deaths and Exposures'!J20/Calculation!CN12*J$7 -> 49254.11078 | K21: ='Deaths and Exposures'!K20/Calculation!CO12*K$7 -> 1412943.305
B22: age 65-69 (age group) | C22: ='Deaths and Exposures'!C21/Calculation!CG13*C$7 -> 355935.9901 | D22: ='Deaths and Exposures'!D21/Calculation!CH13*D$7 -> 142271.9746 | E22: ='Deaths and Exposures'!E21/Calculation!CI13*E$7 -> 134707.0874 | F22: ='Deaths and Exposures'!F21/Calculation!CJ13*F$7 -> 149567.6452 | G22: ='Deaths and Exposures'!G21/Calculation!CK13*G$7 -> 131550.641 | H22: ='Deaths and Exposures'!H21/Calculation!CL13*H$7 -> 129516.8484 | I22: ='Deaths and Exposures'!I21/Calculation!CM13*I$7 -> 108014.2131 | J22: ='Deaths and Exposures'!J21/Calculation!CN13*J$7 -> 41138.61729 | K22: ='Deaths and Exposures'!K21/Calculation!CO13*K$7 -> 1305691.902
B23: age 70-74 | C23: ='Deaths and Exposures'!C22/Calculation!CG14*C$7 -> 269614.4512 | D23: ='Deaths and Exposures'!D22/Calculation!CH14*D$7 -> 113554.0887 | E23: ='Deaths and Exposures'!E22/Calculation!CI14*E$7 -> 103821.1128 | F23: ='Deaths and Exposures'!F22/Calculation!CJ14*F$7 -> 131645.7067 | G23: ='Deaths and Exposures'!G22/Calculation!CK14*G$7 -> 119331.8227 | H23: ='Deaths and Exposures'!H22/Calculation!CL14*H$7 -> 119607.5254 | I23: ='Deaths and Exposures'!I22/Calculation!CM14*I$7 -> 89902.60363 | J23: ='Deaths and Exposures'!J22/Calculation!CN14*J$7 -> 31475.78088 | K23: ='Deaths and Exposures'!K22/Calculation!CO14*K$7 -> 1091894.131
B24: age 75-79 | C24: ='Deaths and Exposures'!C23/Calculation!CG15*C$7 -> 173144.5898 | D24: ='Deaths and Exposures'!D23/Calculation!CH15*D$7 -> 69184.68305 | E24: ='Deaths and Exposures'!E23/Calculation!CI15*E$7 -> 66397.68208 | F24: ='Deaths and Exposures'!F23/Calculation!CJ15*F$7 -> 89207.98769 | G24: ='Deaths and Exposures'!G23/Calculation!CK15*G$7 -> 86377.06758 | H24: ='Deaths and Exposures'!H23/Calculation!CL15*H$7 -> 95804.01893 | I24: ='Deaths and Exposures'!I23/Calculation!CM15*I$7 -> 77985.76421 | J24: ='Deaths and Exposures'!J23/Calculation!CN15*J$7 -> 26322.79754 | K24: ='Deaths and Exposures'!K23/Calculation!CO15*K$7 -> 825321.3056
B25: age 80-84 | C25: ='Deaths and Exposures'!C24/Calculation!CG16*C$7 -> 87998.1889 | D25: ='Deaths and Exposures'!D24/Calculation!CH16*D$7 -> 35818.44429 | E25: ='Deaths and Exposures'!E24/Calculation!CI16*E$7 -> 33827.01334 | F25: ='Deaths and Exposures'!F24/Calculation!CJ16*F$7 -> 50883.80257 | G25: ='Deaths and Exposures'!G24/Calculation!CK16*G$7 -> 47059.92672 | H25: ='Deaths and Exposures'!H24/Calculation!CL16*H$7 -> 66404.38561 | I25: ='Deaths and Exposures'!I24/Calculation!CM16*I$7 -> 49523.05397 | J25: ='Deaths and Exposures'!J24/Calculation!CN16*J$7 -> 18436.31614 | K25: ='Deaths and Exposures'!K24/Calculation!CO16*K$7 -> 515763.016
B26: age 85+ | C26: ='Deaths and Exposures'!C25/Calculation!CG17*C$7 -> 43291.8622 | D26: ='Deaths and Exposures'!D25/Calculation!CH17*D$7 -> 17816.98581 | E26: ='Deaths and Exposures'!E25/Calculation!CI17*E$7 -> 16623.24039 | F26: ='Deaths and Exposures'!F25/Calculation!CJ17*F$7 -> 26372.02776 | G26: ='Deaths and Exposures'!G25/Calculation!CK17*G$7 -> 25644.16805 | H26: ='Deaths and Exposures'!H25/Calculation!CL17*H$7 -> 23989.66631 | I26: ='Deaths and Exposures'!I25/Calculation!CM17*I$7 -> 35921.98461 | J26: ='Deaths and Exposures'!J25/Calculation!CN17*J$7 -> 16276.97123 | K26: ='Deaths and Exposures'!K25/Calculation!CO17*K$7 -> 275713.7797
B27: Male (Sex) | C27: ='Deaths and Exposures'!C26/Calculation!CG$13*C$8 -> 1460250 | D27: ='Deaths and Exposures'!D26/Calculation!CH$13*D$8 -> 563500 | E27: ='Deaths and Exposures'!E26/Calculation!CI$13*E$8 -> 508121.8274 | F27: ='Deaths and Exposures'!F26/Calculation!CJ$13*F$8 -> 613066.6667 | G27: ='Deaths and Exposures'!G26/Calculation!CK$13*G$8 -> 576375 | H27: ='Deaths and Exposures'!H26/Calculation!CL$13*H$8 -> 709028.0214 | I27: ='Deaths and Exposures'!I26/Calculation!CM$13*I$8 -> 611619.7183 | J27: ='Deaths and Exposures'!J26/Calculation!CN$13*J$8 -> 219762.4 | K27: ='Deaths and Exposures'!K26/Calculation!CO$13*K$8 -> 6366121.143
B28: Female | C28: ='Deaths and Exposures'!C27/Calculation!CG$13*C$8 -> 1311750 | D28: ='Deaths and Exposures'!D27/Calculation!CH$13*D$8 -> 514500 | E28: ='Deaths and Exposures'!E27/Calculation!CI$13*E$8 -> 492878.1726 | F28: ='Deaths and Exposures'!F27/Calculation!CJ$13*F$8 -> 640933.3333 | G28: ='Deaths and Exposures'!G27/Calculation!CK$13*G$8 -> 589625 | H28: ='Deaths and Exposures'!H27/Calculation!CL$13*H$8 -> 716651.9786 | I28: ='Deaths and Exposures'!I27/Calculation!CM$13*I$8 -> 594630.2817 | J28: ='Deaths and Exposures'!J27/Calculation!CN$13*J$8 -> 202857.6 | K28: ='Deaths and Exposures'!K27/Calculation!CO$13*K$8 -> 5027788.857
B29: 1-Never | C29: ='Deaths and Exposures'!C28/Calculation!CG$13*C$9 -> 0 | D29: ='Deaths and Exposures'!D28/Calculation!CH$13*D$9 -> 0 | E29: ='Deaths and Exposures'!E28/Calculation!CI$13*E$9 -> 0 | F29: ='Deaths and Exposures'!F28/Calculation!CJ$13*F$9 -> 231000 | G29: ='Deaths and Exposures'!G28/Calculation!CK$13*G$9 -> 296440.678 | H29: ='Deaths and Exposures'!H28/Calculation!CL$13*H$9 -> 487933.262 | I29: ='Deaths and Exposures'!I28/Calculation!CM$13*I$9 -> 169894.3662 | J29: ='Deaths and Exposures'!J28/Calculation!CN$13*J$9 -> 38035.8 | K29: ='Deaths and Exposures'!K28/Calculation!CO$13*K$9 -> 0
B30: 2-Current | C30: ='Deaths and Exposures'!C29/Calculation!CG$13*C$9 -> 0 | D30: ='Deaths and Exposures'!D29/Calculation!CH$13*D$9 -> 0 | E30: ='Deaths and Exposures'!E29/Calculation!CI$13*E$9 -> 0 | F30: ='Deaths and Exposures'!F29/Calculation!CJ$13*F$9 -> 110000 | G30: ='Deaths and Exposures'!G29/Calculation!CK$13*G$9 -> 138338.9831 | H30: ='Deaths and Exposures'!H29/Calculation!CL$13*H$9 -> 205846.8449 | I30: ='Deaths and Exposures'!I29/Calculation!CM$13*I$9 -> 67957.74648 | J30: ='Deaths and Exposures'!J29/Calculation!CN$13*J$9 -> 12678.6 | K30: ='Deaths and Exposures'!K29/Calculation!CO$13*K$9 -> 0
B31: 3-Former | C31: ='Deaths and Exposures'!C30/Calculation!CG$13*C$9 -> 0 | D31: ='Deaths and Exposures'!D30/Calculation!CH$13*D$9 -> 0 | E31: ='Deaths and Exposures'!E30/Calculation!CI$13*E$9 -> 0 | F31: ='Deaths and Exposures'!F30/Calculation!CJ$13*F$9 -> 198000 | G31: ='Deaths and Exposures'!G30/Calculation!CK$13*G$9 -> 256915.2542 | H31: ='Deaths and Exposures'!H30/Calculation!CL$13*H$9 -> 404069.7326 | I31: ='Deaths and Exposures'!I30/Calculation!CM$13*I$9 -> 127420.7746 | J31: ='Deaths and Exposures'!J30/Calculation!CN$13*J$9 -> 25357.2 | K31: ='Deaths and Exposures'!K30/Calculation!CO$13*K$9 -> 0
B32: 4-Not_Asked (smoker) | C32: ='Deaths and Exposures'!C31/Calculation!CG$13*C$9 -> 2772000 | D32: ='Deaths and Exposures'!D31/Calculation!CH$13*D$9 -> 1078000 | E32: ='Deaths and Exposures'!E31/Calculation!CI$13*E$9 -> 1001000 | F32: ='Deaths and Exposures'!F31/Calculation!CJ$13*F$9 -> 715000 | G32: ='Deaths and Exposures'!G31/Calculation!CK$13*G$9 -> 474305.0847 | H32: ='Deaths and Exposures'!H31/Calculation!CL$13*H$9 -> 327830.1604 | I32: ='Deaths and Exposures'!I31/Calculation!CM$13*I$9 -> 840977.1127 | J32: ='Deaths and Exposures'!J31/Calculation!CN$13*J$9 -> 346548.4 | K32: ='Deaths and Exposures'!K31/Calculation!CO$13*K$9 -> 11393910
B33: 1-Married (marital status) | C33: ='Deaths and Exposures'!C32/Calculation!CG$13*C$10 -> 1636422.182 | D33: ='Deaths and Exposures'!D32/Calculation!CH$13*D$10 -> 622401.8476 | E33: ='Deaths and Exposures'!E32/Calculation!CI$13*E$10 -> 574139.6509 | F33: ='Deaths and Exposures'!F32/Calculation!CJ$13*F$10 -> 674798.2063 | G33: ='Deaths and Exposures'!G32/Calculation!CK$13*G$10 -> 616125 | H33: ='Deaths and Exposures'!H32/Calculation!CL$13*H$10 -> 739523.8503 | I33: ='Deaths and Exposures'!I32/Calculation!CM$13*I$10 -> 581737.5887 | J33: ='Deaths and Exposures'!J32/Calculation!CN$13*J$10 -> 192480.396 | K33: ='Deaths and Exposures'!K32/Calculation!CO$13*K$10 -> 8675565.99
B34: 2-Widowed | C34: ='Deaths and Exposures'!C33/Calculation!CG$13*C$10 -> 768622.5403 | D34: ='Deaths and Exposures'!D33/Calculation!CH$13*D$10 -> 308711.3164 | E34: ='Deaths and Exposures'!E33/Calculation!CI$13*E$10 -> 284573.5661 | F34: ='Deaths and Exposures'!F33/Calculation!CJ$13*F$10 -> 382385.6502 | G34: ='Deaths and Exposures'!G33/Calculation!CK$13*G$10 -> 351125 | H34: ='Deaths and Exposures'!H33/Calculation!CL$13*H$10 -> 411693.6898 | I34: ='Deaths and Exposures'!I33/Calculation!CM$13*I$10 -> 367863.4752 | J34: ='Deaths and Exposures'!J33/Calculation!CN$13*J$10 -> 133899.4059 | K34: ='Deaths and Exposures'!K33/Calculation!CO$13*K$10 -> 1590520.431
B35: 3-Divorced | C35: ='Deaths and Exposures'!C34/Calculation!CG$13*C$10 -> 153724.5081 | D35: ='Deaths and Exposures'!D34/Calculation!CH$13*D$10 -> 64729.79215 | E35: ='Deaths and Exposures'!E34/Calculation!CI$13*E$10 -> 69895.26185 | F35: ='Deaths and Exposures'!F34/Calculation!CJ$13*F$10 -> 101219.7309 | G35: ='Deaths and Exposures'!G34/Calculation!CK$13*G$10 -> 112625 | H35: ='Deaths and Exposures'!H34/Calculation!CL$13*H$10 -> 160103.1016 | I35: ='Deaths and Exposures'!I34/Calculation!CM$13*I$10 -> 145434.3972 | J35: ='Deaths and Exposures'!J34/Calculation!CN$13*J$10 -> 54396.63366 | K35: ='Deaths and Exposures'!K34/Calculation!CO$13*K$10 -> 636208.1726
B36: 4-Separated | C36: ='Deaths and Exposures'!C35/Calculation!CG$13*C$10 -> 49588.55098 | D36: ='Deaths and Exposures'!D35/Calculation!CH$13*D$10 -> 17427.25173 | E36: ='Deaths and Exposures'!E35/Calculation!CI$13*E$10 -> 17473.81546 | F36: ='Deaths and Exposures'!F35/Calculation!CJ$13*F$10 -> 22493.27354 | G36: ='Deaths and Exposures'!G35/Calculation!CK$13*G$10 -> 19875 | H36: ='Deaths and Exposures'!H35/Calculation!CL$13*H$10 -> 22871.87166 | I36: ='Deaths and Exposures'!I35/Calculation!CM$13*I$10 -> 25664.89362 | J36: ='Deaths and Exposures'!J35/Calculation!CN$13*J$10 -> 8368.712871 | K36: ='Deaths and Exposures'!K35/Calculation!CO$13*K$10 -> 101214.9365
B37: 5-NeverMar. | C37: ='Deaths and Exposures'!C36/Calculation!CG$13*C$10 -> 163642.2182 | D37: ='Deaths and Exposures'!D36/Calculation!CH$13*D$10 -> 64729.79215 | E37: ='Deaths and Exposures'!E36/Calculation!CI$13*E$10 -> 54917.70574 | F37: ='Deaths and Exposures'!F36/Calculation!CJ$13*F$10 -> 73103.13901 | G37: ='Deaths and Exposures'!G36/Calculation!CK$13*G$10 -> 66250 | H37: ='Deaths and Exposures'!H36/Calculation!CL$13*H$10 -> 91487.48663 | I37: ='Deaths and Exposures'!I36/Calculation!CM$13*I$10 -> 85549.64539 | J37: ='Deaths and Exposures'!J36/Calculation!CN$13*J$10 -> 33474.85149 | K37: ='Deaths and Exposures'!K36/Calculation!CO$13*K$10 -> 390400.4695
B38: 1-Lowest inc. | C38: ='Deaths and Exposures'!C37/Calculation!CG$13*C$11 -> 642352.9412 | D38: ='Deaths and Exposures'!D37/Calculation!CH$13*D$11 -> 183383.908 | E38: ='Deaths and Exposures'!E37/Calculation!CI$13*E$11 -> 165165 | F38: ='Deaths and Exposures'!F37/Calculation!CJ$13*F$11 -> 234601.3363 | G38: ='Deaths and Exposures'!G37/Calculation!CK$13*G$11 -> 199885.7143 | H38: ='Deaths and Exposures'!H37/Calculation!CL$13*H$11 -> 237613.3333 | I38: ='Deaths and Exposures'!I37/Calculation!CM$13*I$11 -> 231806.0498 | J38: ='Deaths and Exposures'!J37/Calculation!CN$13*J$11 -> 84524 | K38: ='Deaths and Exposures'!K37/Calculation!CO$13*K$11 -> 901987.8087
B39: 2-Second dec. | C39: ='Deaths and Exposures'!C38/Calculation!CG$13*C$11 -> 716470.5882 | D39: ='Deaths and Exposures'!D38/Calculation!CH$13*D$11 -> 198252.8736 | E39: ='Deaths and Exposures'!E38/Calculation!CI$13*E$11 -> 185185 | F39: ='Deaths and Exposures'!F38/Calculation!CJ$13*F$11 -> 245772.8285 | G39: ='Deaths and Exposures'!G38/Calculation!CK$13*G$11 -> 226537.1429 | H39: ='Deaths and Exposures'!H38/Calculation!CL$13*H$11 -> 275938.0645 | I39: ='Deaths and Exposures'!I38/Calculation!CM$13*I$11 -> 231806.0498 | J39: ='Deaths and Exposures'!J38/Calculation!CN$13*J$11 -> 84524 | K39: ='Deaths and Exposures'!K38/Calculation!CO$13*K$11 -> 1840055.13
B40: 3-Third dec. | C40: ='Deaths and Exposures'!C39/Calculation!CG$13*C$11 -> 281647.0588 | D40: ='Deaths and Exposures'!D39/Calculation!CH$13*D$11 -> 158602.2989 | E40: ='Deaths and Exposures'!E39/Calculation!CI$13*E$11 -> 150150 | F40: ='Deaths and Exposures'!F39/Calculation!CJ$13*F$11 -> 195501.1136 | G40: ='Deaths and Exposures'!G39/Calculation!CK$13*G$11 -> 179897.1429 | H40: ='Deaths and Exposures'!H39/Calculation!CL$13*H$11 -> 206953.5484 | I40: ='Deaths and Exposures'!I39/Calculation!CM$13*I$11 -> 188879.0036 | J40: ='Deaths and Exposures'!J39/Calculation!CN$13*J$11 -> 59166.8 | K40: ='Deaths and Exposures'!K39/Calculation!CO$13*K$11 -> 1840055.13
B41: 4-Fourth dec. | C41: ='Deaths and Exposures'!C40/Calculation!CG$13*C$11 -> 266823.5294 | D41: ='Deaths and Exposures'!D40/Calculation!CH$13*D$11 -> 128864.3678 | E41: ='Deaths and Exposures'!E40/Calculation!CI$13*E$11 -> 115115 | F41: ='Deaths and Exposures'!F40/Calculation!CJ$13*F$11 -> 145229.3987 | G41: ='Deaths and Exposures'!G40/Calculation!CK$13*G$11 -> 133257.1429 | H41: ='Deaths and Exposures'!H40/Calculation!CL$13*H$11 -> 168628.8172 | I41: ='Deaths and Exposures'!I40/Calculation!CM$13*I$11 -> 128781.1388 | J41: ='Deaths and Exposures'!J40/Calculation!CN$13*J$11 -> 42262 | K41: ='Deaths and Exposures'!K40/Calculation!CO$13*K$11 -> 1659657.568
B42: 5-Fifth dec. | C42: ='Deaths and Exposures'!C41/Calculation!CG$13*C$11 -> 256941.1765 | D42: ='Deaths and Exposures'!D41/Calculation!CH$13*D$11 -> 94170.11494 | E42: ='Deaths and Exposures'!E41/Calculation!CI$13*E$11 -> 90090 | F42: ='Deaths and Exposures'!F41/Calculation!CJ$13*F$11 -> 111714.922 | G42: ='Deaths and Exposures'!G41/Calculation!CK$13*G$11 -> 99942.85714 | H42: ='Deaths and Exposures'!H41/Calculation!CL$13*H$11 -> 130304.086 | I42: ='Deaths and Exposures'!I41/Calculation!CM$13*I$11 -> 94439.50178 | J42: ='Deaths and Exposures'!J41/Calculation!CN$13*J$11 -> 33809.6 | K42: ='Deaths and Exposures'!K41/Calculation!CO$13*K$11 -> 1334941.957
B43: 6-Sixth dec. | C43: ='Deaths and Exposures'!C42/Calculation!CG$13*C$11 -> 207529.4118 | D43: ='Deaths and Exposures'!D42/Calculation!CH$13*D$11 -> 79301.14943 | E43: ='Deaths and Exposures'!E42/Calculation!CI$13*E$11 -> 80080 | F43: ='Deaths and Exposures'!F42/Calculation!CJ$13*F$11 -> 83786.19154 | G43: ='Deaths and Exposures'!G42/Calculation!CK$13*G$11 -> 86617.14286 | H43: ='Deaths and Exposures'!H42/Calculation!CL$13*H$11 -> 91979.35484 | I43: ='Deaths and Exposures'!I42/Calculation!CM$13*I$11 -> 81561.3879 | J43: ='Deaths and Exposures'!J42/Calculation!CN$13*J$11 -> 25357.2 | K43: ='Deaths and Exposures'!K42/Calculation!CO$13*K$11 -> 1046305.858
B44: 7-Seventh dec. | C44: ='Deaths and Exposures'!C43/Calculation!CG$13*C$11 -> 54352.94118 | D44: ='Deaths and Exposures'!D43/Calculation!CH$13*D$11 -> 74344.82759 | E44: ='Deaths and Exposures'!E43/Calculation!CI$13*E$11 -> 65065 | F44: ='Deaths and Exposures'!F43/Calculation!CJ$13*F$11 -> 72614.69933 | G44: ='Deaths and Exposures'!G43/Calculation!CK$13*G$11 -> 73291.42857 | H44: ='Deaths and Exposures'!H43/Calculation!CL$13*H$11 -> 91979.35484 | I44: ='Deaths and Exposures'!I43/Calculation!CM$13*I$11 -> 72975.97865 | J44: ='Deaths and Exposures'!J43/Calculation!CN$13*J$11 -> 25357.2 | K44: ='Deaths and Exposures'!K43/Calculation!CO$13*K$11 -> 938067.3211
B45: 8-Eighth dec. | C45: ='Deaths and Exposures'!C44/Calculation!CG$13*C$11 -> 232235.2941 | D45: ='Deaths and Exposures'!D44/Calculation!CH$13*D$11 -> 54519.54023 | E45: ='Deaths and Exposures'!E44/Calculation!CI$13*E$11 -> 50050 | F45: ='Deaths and Exposures'!F44/Calculation!CJ$13*F$11 -> 55857.46102 | G45: ='Deaths and Exposures'!G44/Calculation!CK$13*G$11 -> 53302.85714 | H45: ='Deaths and Exposures'!H44/Calculation!CL$13*H$11 -> 68984.51613 | I45: ='Deaths and Exposures'!I44/Calculation!CM$13*I$11 -> 51512.45552 | J45: ='Deaths and Exposures'!J44/Calculation!CN$13*J$11 -> 21131 | K45: ='Deaths and Exposures'!K44/Calculation!CO$13*K$11 -> 642215.3198
B46: 9-Ninth dec. | C46: ='Deaths and Exposures'!C45/Calculation!CG$13*C$11 -> 39529.41176 | D46: ='Deaths and Exposures'!D45/Calculation!CH$13*D$11 -> 59475.86207 | E46: ='Deaths and Exposures'!E45/Calculation!CI$13*E$11 -> 55055 | F46: ='Deaths and Exposures'!F45/Calculation!CJ$13*F$11 -> 55857.46102 | G46: ='Deaths and Exposures'!G45/Calculation!CK$13*G$11 -> 59965.71429 | H46: ='Deaths and Exposures'!H45/Calculation!CL$13*H$11 -> 76649.46237 | I46: ='Deaths and Exposures'!I45/Calculation!CM$13*I$11 -> 64390.5694 | J46: ='Deaths and Exposures'!J45/Calculation!CN$13*J$11 -> 25357.2 | K46: ='Deaths and Exposures'!K45/Calculation!CO$13*K$11 -> 627783.5149
B47: 10-Highest dec. (family income in 2008$) | C47: ='Deaths and Exposures'!C46/Calculation!CG$13*C$11 -> 74117.64706 | D47: ='Deaths and Exposures'!D46/Calculation!CH$13*D$11 -> 47085.05747 | E47: ='Deaths and Exposures'!E46/Calculation!CI$13*E$11 -> 45045 | F47: ='Deaths and Exposures'!F46/Calculation!CJ$13*F$11 -> 53064.58797 | G47: ='Deaths and Exposures'!G46/Calculation!CK$13*G$11 -> 53302.85714 | H47: ='Deaths and Exposures'!H46/Calculation!CL$13*H$11 -> 76649.46237 | I47: ='Deaths and Exposures'!I46/Calculation!CM$13*I$11 -> 60097.86477 | J47: ='Deaths and Exposures'!J46/Calculation!CN$13*J$11 -> 21131 | K47: ='Deaths and Exposures'!K46/Calculation!CO$13*K$11 -> 562840.3927
B48: 1-Dropout | C48: ='Deaths and Exposures'!C47/Calculation!CG$13*C$12 -> 1567648.115 | D48: ='Deaths and Exposures'!D47/Calculation!CH$13*D$12 -> 546451.6129 | E48: ='Deaths and Exposures'!E47/Calculation!CI$13*E$12 -> 452713.5678 | F48: ='Deaths and Exposures'!F47/Calculation!CJ$13*F$12 -> 511609.7561 | G48: ='Deaths and Exposures'!G47/Calculation!CK$13*G$12 -> 417375 | H48: ='Deaths and Exposures'!H47/Calculation!CL$13*H$12 -> 456217.6 | I48: ='Deaths and Exposures'!I47/Calculation!CM$13*I$12 -> 366563.6042 | J48: ='Deaths and Exposures'!J47/Calculation!CN$13*J$12 -> 118333.6 | K48: ='Deaths and Exposures'!K47/Calculation!CO$13*K$12 -> 2966033.714
B49: 2-H.S.Diploma (education) | C49: ='Deaths and Exposures'!C48/Calculation!CG$13*C$12 -> 721615.7989 | D49: ='Deaths and Exposures'!D48/Calculation!CH$13*D$12 -> 322903.2258 | E49: ='Deaths and Exposures'!E48/Calculation!CI$13*E$12 -> 331989.9497 | F49: ='Deaths and Exposures'!F48/Calculation!CJ$13*F$12 -> 405951.2195 | G49: ='Deaths and Exposures'!G48/Calculation!CK$13*G$12 -> 397500 | H49: ='Deaths and Exposures'!H48/Calculation!CL$13*H$12 -> 501839.36 | I49: ='Deaths and Exposures'!I48/Calculation!CM$13*I$12 -> 434761.4841 | J49: ='Deaths and Exposures'!J48/Calculation!CN$13*J$12 -> 160595.6 | K49: ='Deaths and Exposures'!K48/Calculation!CO$13*K$12 -> 4159681.429
B50: 3-SomeColl/AA | C50: ='Deaths and Exposures'!C49/Calculation!CG$13*C$12 -> 253809.6948 | D50: ='Deaths and Exposures'!D49/Calculation!CH$13*D$12 -> 109290.3226 | E50: ='Deaths and Exposures'!E49/Calculation!CI$13*E$12 -> 110663.3166 | F50: ='Deaths and Exposures'!F49/Calculation!CJ$13*F$12 -> 194634.1463 | G50: ='Deaths and Exposures'!G49/Calculation!CK$13*G$12 -> 198750 | H50: ='Deaths and Exposures'!H49/Calculation!CL$13*H$12 -> 266126.9333 | I50: ='Deaths and Exposures'!I49/Calculation!CM$13*I$12 -> 230167.8445 | J50: ='Deaths and Exposures'!J49/Calculation!CN$13*J$12 -> 84524 | K50: ='Deaths and Exposures'!K49/Calculation!CO$13*K$12 -> 2568151.143
B51: 4-4yr.Degree | C51: ='Deaths and Exposures'!C50/Calculation!CG$13*C$12 -> 139346.4991 | D51: ='Deaths and Exposures'!D50/Calculation!CH$13*D$12 -> 59612.90323 | E51: ='Deaths and Exposures'!E50/Calculation!CI$13*E$12 -> 60361.80905 | F51: ='Deaths and Exposures'!F50/Calculation!CJ$13*F$12 -> 88975.60976 | G51: ='Deaths and Exposures'!G50/Calculation!CK$13*G$12 -> 99375 | H51: ='Deaths and Exposures'!H50/Calculation!CL$13*H$12 -> 129261.6533 | I51: ='Deaths and Exposures'!I50/Calculation!CM$13*I$12 -> 110821.5548 | J51: ='Deaths and Exposures'!J50/Calculation!CN$13*J$12 -> 38035.8 | K51: ='Deaths and Exposures'!K50/Calculation!CO$13*K$12 -> 1121305.429
B52: 5-Grad.Degree | C52: ='Deaths and Exposures'!C51/Calculation!CG$13*C$12 -> 89579.89228 | D52: ='Deaths and Exposures'!D51/Calculation!CH$13*D$12 -> 39741.93548 | E52: ='Deaths and Exposures'!E51/Calculation!CI$13*E$12 -> 45271.35678 | F52: ='Deaths and Exposures'!F51/Calculation!CJ$13*F$12 -> 52829.26829 | G52: ='Deaths and Exposures'!G51/Calculation!CK$13*G$12 -> 53000 | H52: ='Deaths and Exposures'!H51/Calculation!CL$13*H$12 -> 72234.45333 | I52: ='Deaths and Exposures'!I51/Calculation!CM$13*I$12 -> 63935.51237 | J52: ='Deaths and Exposures'!J51/Calculation!CN$13*J$12 -> 21131 | K52: ='Deaths and Exposures'!K51/Calculation!CO$13*K$12 -> 578738.2857
B53: 1-White NH (ethnic/race) | C53: ='Deaths and Exposures'!C52/Calculation!CG$13*C$13 -> 2332748.433 | D53: ='Deaths and Exposures'!D52/Calculation!CH$13*D$13 -> 487963.0485 | E53: ='Deaths and Exposures'!E52/Calculation!CI$13*E$13 -> 817648.5149 | F53: ='Deaths and Exposures'!F52/Calculation!CJ$13*F$13 -> 1007678.571 | G53: ='Deaths and Exposures'!G52/Calculation!CK$13*G$13 -> 927500 | H53: ='Deaths and Exposures'!H52/Calculation!CL$13*H$13 -> 1067354.011 | I53: ='Deaths and Exposures'!I52/Calculation!CM$13*I$13 -> 861607.1429 | J53: ='Deaths and Exposures'!J52/Calculation!CN$13*J$13 -> 298822.2222 | K53: ='Deaths and Exposures'!K52/Calculation!CO$13*K$13 -> 9374736.076
B54: 2-Black NH | C54: ='Deaths and Exposures'!C53/Calculation!CG$13*C$13 -> 272981.1996 | D54: ='Deaths and Exposures'!D53/Calculation!CH$13*D$13 -> 59750.57737 | E54: ='Deaths and Exposures'!E53/Calculation!CI$13*E$13 -> 79287.12871 | F54: ='Deaths and Exposures'!F53/Calculation!CJ$13*F$13 -> 111964.2857 | G54: ='Deaths and Exposures'!G53/Calculation!CK$13*G$13 -> 99375 | H54: ='Deaths and Exposures'!H53/Calculation!CL$13*H$13 -> 152479.1444 | I54: ='Deaths and Exposures'!I53/Calculation!CM$13*I$13 -> 180937.5 | J54: ='Deaths and Exposures'!J53/Calculation!CN$13*J$13 -> 68302.22222 | K54: ='Deaths and Exposures'!K53/Calculation!CO$13*K$13 -> 901416.9304
B55: 3-Asian NH | C55: ='Deaths and Exposures'!C54/Calculation!CG$13*C$13 -> 27298.11996 | D55: ='Deaths and Exposures'!D54/Calculation!CH$13*D$13 -> 4979.214781 | E55: ='Deaths and Exposures'!E54/Calculation!CI$13*E$13 -> 9910.891089 | F55: ='Deaths and Exposures'!F54/Calculation!CJ$13*F$13 -> 13995.53571 | G55: ='Deaths and Exposures'!G54/Calculation!CK$13*G$13 -> 16562.5 | H55: ='Deaths and Exposures'!H54/Calculation!CL$13*H$13 -> 30495.82888 | I55: ='Deaths and Exposures'!I54/Calculation!CM$13*I$13 -> 38772.32143 | J55: ='Deaths and Exposures'!J54/Calculation!CN$13*J$13 -> 12806.66667 | K55: ='Deaths and Exposures'!K54/Calculation!CO$13*K$13 -> 346144.1013
B56: 4-Hispanic | C56: ='Deaths and Exposures'!C55/Calculation!CG$13*C$13 -> 69486.12355 | D56: ='Deaths and Exposures'!D55/Calculation!CH$13*D$13 -> 42323.32564 | E56: ='Deaths and Exposures'!E55/Calculation!CI$13*E$13 -> 44599.0099 | F56: ='Deaths and Exposures'!F55/Calculation!CJ$13*F$13 -> 67178.57143 | G56: ='Deaths and Exposures'!G55/Calculation!CK$13*G$13 -> 72875 | H56: ='Deaths and Exposures'!H55/Calculation!CL$13*H$13 -> 106735.4011 | I56: ='Deaths and Exposures'!I55/Calculation!CM$13*I$13 -> 81852.67857 | J56: ='Deaths and Exposures'!J55/Calculation!CN$13*J$13 -> 29882.22222 | K56: ='Deaths and Exposures'!K55/Calculation!CO$13*K$13 -> 605752.1772
B57: 5-Other NH | C57: ='Deaths and Exposures'!C56/Calculation!CG$13*C$13 -> 69486.12355 | D57: ='Deaths and Exposures'!D56/Calculation!CH$13*D$13 -> 482983.8337 | E57: ='Deaths and Exposures'!E56/Calculation!CI$13*E$13 -> 49554.45545 | F57: ='Deaths and Exposures'!F56/Calculation!CJ$13*F$13 -> 53183.03571 | G57: ='Deaths and Exposures'!G56/Calculation!CK$13*G$13 -> 49687.5 | H57: ='Deaths and Exposures'!H56/Calculation!CL$13*H$13 -> 68615.61497 | I57: ='Deaths and Exposures'!I56/Calculation!CM$13*I$13 -> 43080.35714 | J57: ='Deaths and Exposures'!J56/Calculation!CN$13*J$13 -> 12806.66667 | K57: ='Deaths and Exposures'!K56/Calculation!CO$13*K$13 -> 165860.7152
B58: 1-Employed (Labor force) | C58: ='Deaths and Exposures'!C57/Calculation!CG$13*C$14 -> 646385.6502 | D58: ='Deaths and Exposures'!D57/Calculation!CH$13*D$14 -> 226429.2237 | E58: ='Deaths and Exposures'!E57/Calculation!CI$13*E$14 -> 211266.3317 | F58: ='Deaths and Exposures'!F57/Calculation!CJ$13*F$14 -> 234080 | G58: ='Deaths and Exposures'!G57/Calculation!CK$13*G$14 -> 227496.0182 | H58: ='Deaths and Exposures'!H57/Calculation!CL$13*H$14 -> 298932.9032 | I58: ='Deaths and Exposures'!I57/Calculation!CM$13*I$14 -> 220087.7193 | J58: ='Deaths and Exposures'!J57/Calculation!CN$13*J$14 -> 63266.46707 | K58: ='Deaths and Exposures'!K57/Calculation!CO$13*K$14 -> 2378235.484
B59: 2-Unemployed | C59: ='Deaths and Exposures'!C58/Calculation!CG$13*C$14 -> 37291.47982 | D59: ='Deaths and Exposures'!D58/Calculation!CH$13*D$14 -> 14767.12329 | E59: ='Deaths and Exposures'!E58/Calculation!CI$13*E$14 -> 10060.30151 | F59: ='Deaths and Exposures'!F58/Calculation!CJ$13*F$14 -> 16720 | G59: ='Deaths and Exposures'!G58/Calculation!CK$13*G$14 -> 9948.805461 | H59: ='Deaths and Exposures'!H58/Calculation!CL$13*H$14 -> 15329.89247 | I59: ='Deaths and Exposures'!I58/Calculation!CM$13*I$14 -> 12697.36842 | J59: ='Deaths and Exposures'!J58/Calculation!CN$13*J$14 -> 5061.317365 | K59: ='Deaths and Exposures'!K58/Calculation!CO$13*K$14 -> 151342.2581
B60: 3-NILF | C60: ='Deaths and Exposures'!C59/Calculation!CG$13*C$14 -> 2088322.87 | D60: ='Deaths and Exposures'!D59/Calculation!CH$13*D$14 -> 836803.653 | E60: ='Deaths and Exposures'!E59/Calculation!CI$13*E$14 -> 779673.3668 | F60: ='Deaths and Exposures'!F59/Calculation!CJ$13*F$14 -> 1003200 | G60: ='Deaths and Exposures'!G59/Calculation!CK$13*G$14 -> 928555.1763 | H60: ='Deaths and Exposures'!H59/Calculation!CL$13*H$14 -> 1111417.204 | I60: ='Deaths and Exposures'!I59/Calculation!CM$13*I$14 -> 973464.9123 | J60: ='Deaths and Exposures'!J59/Calculation!CN$13*J$14 -> 354292.2156 | K60: ='Deaths and Exposures'!K59/Calculation!CO$13*K$14 -> 8864332.258
B61: 1-Prof./Managerial (occ.) | C61: ='Deaths and Exposures'!C60/Calculation!CG$13*C$15 -> 74117.64706 | D61: ='Deaths and Exposures'!D60/Calculation!CH$13*D$15 -> 30013.92111 | E61: ='Deaths and Exposures'!E60/Calculation!CI$13*E$15 -> 30030 | F61: ='Deaths and Exposures'!F60/Calculation!CJ$13*F$15 -> 33664.42953 | G61: ='Deaths and Exposures'!G60/Calculation!CK$13*G$15 -> 32937.85311 | H61: ='Deaths and Exposures'!H60/Calculation!CL$13*H$15 -> 45621.76 | I61: ='Deaths and Exposures'!I60/Calculation!CM$13*I$15 -> 33741.25874 | J61: ='Deaths and Exposures'!J60/Calculation!CN$13*J$15 -> 12553.06931 | K61: ='Deaths and Exposures'!K60/Calculation!CO$13*K$15 -> 586344.7967
B62: 2-Sklld/Sales | C62: ='Deaths and Exposures'!C61/Calculation!CG$13*C$15 -> 187764.7059 | D62: ='Deaths and Exposures'!D61/Calculation!CH$13*D$15 -> 75034.80278 | E62: ='Deaths and Exposures'!E61/Calculation!CI$13*E$15 -> 70070 | F62: ='Deaths and Exposures'!F61/Calculation!CJ$13*F$15 -> 78550.33557 | G62: ='Deaths and Exposures'!G61/Calculation!CK$13*G$15 -> 72463.27684 | H62: ='Deaths and Exposures'!H61/Calculation!CL$13*H$15 -> 91243.52 | I62: ='Deaths and Exposures'!I61/Calculation!CM$13*I$15 -> 54829.54545 | J62: ='Deaths and Exposures'!J61/Calculation!CN$13*J$15 -> 16737.42574 | K62: ='Deaths and Exposures'!K61/Calculation!CO$13*K$15 -> 977241.3278
B63: 3-BlueCol.Lgt | C63: ='Deaths and Exposures'!C62/Calculation!CG$13*C$15 -> 158117.6471 | D63: ='Deaths and Exposures'!D62/Calculation!CH$13*D$15 -> 55025.52204 | E63: ='Deaths and Exposures'!E62/Calculation!CI$13*E$15 -> 50050 | F63: ='Deaths and Exposures'!F62/Calculation!CJ$13*F$15 -> 56107.38255 | G63: ='Deaths and Exposures'!G62/Calculation!CK$13*G$15 -> 46112.99435 | H63: ='Deaths and Exposures'!H62/Calculation!CL$13*H$15 -> 68432.64 | I63: ='Deaths and Exposures'!I62/Calculation!CM$13*I$15 -> 59047.2028 | J63: ='Deaths and Exposures'!J62/Calculation!CN$13*J$15 -> 16737.42574 | K63: ='Deaths and Exposures'!K62/Calculation!CO$13*K$15 -> 977241.3278
B64: 4-BlueCol.Hvy | C64: ='Deaths and Exposures'!C63/Calculation!CG$13*C$15 -> 321176.4706 | D64: ='Deaths and Exposures'!D63/Calculation!CH$13*D$15 -> 105048.7239 | E64: ='Deaths and Exposures'!E63/Calculation!CI$13*E$15 -> 90090 | F64: ='Deaths and Exposures'!F63/Calculation!CJ$13*F$15 -> 89771.81208 | G64: ='Deaths and Exposures'!G63/Calculation!CK$13*G$15 -> 79050.84746 | H64: ='Deaths and Exposures'!H63/Calculation!CL$13*H$15 -> 98847.14667 | I64: ='Deaths and Exposures'!I63/Calculation!CM$13*I$15 -> 75917.83217 | J64: ='Deaths and Exposures'!J63/Calculation!CN$13*J$15 -> 20921.78218 | K64: ='Deaths and Exposures'!K63/Calculation!CO$13*K$15 -> 1194406.067
B65: 5-Medical.Occ | C65: ='Deaths and Exposures'!C64/Calculation!CG$13*C$15 -> 29647.05882 | D65: ='Deaths and Exposures'!D64/Calculation!CH$13*D$15 -> 12505.80046 | E65: ='Deaths and Exposures'!E64/Calculation!CI$13*E$15 -> 10010 | F65: ='Deaths and Exposures'!F64/Calculation!CJ$13*F$15 -> 14026.84564 | G65: ='Deaths and Exposures'!G64/Calculation!CK$13*G$15 -> 13175.14124 | H65: ='Deaths and Exposures'!H64/Calculation!CL$13*H$15 -> 19009.06667 | I65: ='Deaths and Exposures'!I64/Calculation!CM$13*I$15 -> 12652.97203 | J65: ='Deaths and Exposures'!J64/Calculation!CN$13*J$15 -> 4184.356436 | K65: ='Deaths and Exposures'!K64/Calculation!CO$13*K$15 -> 202687.0902
B66: 6-N/A | C66: ='Deaths and Exposures'!C65/Calculation!CG$13*C$15 -> 2001176.471 | D66: ='Deaths and Exposures'!D65/Calculation!CH$13*D$15 -> 800371.2297 | E66: ='Deaths and Exposures'!E65/Calculation!CI$13*E$15 -> 750750 | F66: ='Deaths and Exposures'!F65/Calculation!CJ$13*F$15 -> 981879.1946 | G66: ='Deaths and Exposures'!G65/Calculation!CK$13*G$15 -> 922259.887 | H66: ='Deaths and Exposures'!H65/Calculation!CL$13*H$15 -> 1102525.867 | I66: ='Deaths and Exposures'!I65/Calculation!CM$13*I$15 -> 970061.1888 | J66: ='Deaths and Exposures'!J65/Calculation!CN$13*J$15 -> 351485.9406 | K66: ='Deaths and Exposures'!K65/Calculation!CO$13*K$15 -> 7455989.39
B68: Variance (dynamic, all cause, heart, and cancer)
C69: 1987.5-1991.5 | D69: 1991.5-1995.5 | E69: 1995.5-1999.5 | F69: 1999.5-2003.5 | G69: 2003.5-2006 | H69: 2006-2008 | I69: 2008-2010 | J69: 2010-2012
B70: age 40-44 | C70: =IFERROR(Calculation!CH8/Calculation!CG8/Calculation!CG8/D17+(Calculation!CH8^2)/(Calculation!CG8^3)/C17,"N/A") -> 0.001717205852 | D70: =IFERROR(Calculation!CI8/Calculation!CH8/Calculation!CH8/E17+(Calculation!CI8^2)/(Calculation!CH8^3)/D17,"N/A") -> 0.002354723556 | E70: =IFERROR(Calculation!CJ8/Calculation!CI8/Calculation!CI8/F17+(Calculation!CJ8^2)/(Calculation!CI8^3)/E17,"N/A") -> 0.002062966414 | F70: =IFERROR(Calculation!CK8/Calculation!CJ8/Calculation!CJ8/G17+(Calculation!CK8^2)/(Calculation!CJ8^3)/F17,"N/A") -> 0.00193956729 | G70: =IFERROR(Calculation!CL8/Calculation!CK8/Calculation!CK8/H17+(Calculation!CL8^2)/(Calculation!CK8^3)/G17,"N/A") -> 0.00183167406 | H70: =IFERROR(Calculation!CM8/Calculation!CL8/Calculation!CL8/I17+(Calculation!CM8^2)/(Calculation!CL8^3)/H17,"N/A") -> 0.001928344446 | I70: =IFERROR(Calculation!CN8/Calculation!CM8/Calculation!CM8/J17+(Calculation!CN8^2)/(Calculation!CM8^3)/I17,"N/A") -> 0.005113566024 | J70: =IFERROR(Calculation!CO8/Calculation!CN8/Calculation!CN8/K17+(Calculation!CO8^2)/(Calculation!CN8^3)/J17,"N/A") -> 0.004303263297
B71: age 45-49 | C71: =IFERROR(Calculation!CH9/Calculation!CG9/Calculation!CG9/D18+(Calculation!CH9^2)/(Calculation!CG9^3)/C18,"N/A") -> 0.001284407335 | D71: =IFERROR(Calculation!CI9/Calculation!CH9/Calculation!CH9/E18+(Calculation!CI9^2)/(Calculation!CH9^3)/D18,"N/A") -> 0.001851928779 | E71: =IFERROR(Calculation!CJ9/Calculation!CI9/Calculation!CI9/F18+(Calculation!CJ9^2)/(Calculation!CI9^3)/E18,"N/A") -> 0.001647364429 | F71: =IFERROR(Calculation!CK9/Calculation!CJ9/Calculation!CJ9/G18+(Calculation!CK9^2)/(Calculation!CJ9^3)/F18,"N/A") -> 0.001432945634 | G71: =IFERROR(Calculation!CL9/Calculation!CK9/Calculation!CK9/H18+(Calculation!CL9^2)/(Calculation!CK9^3)/G18,"N/A") -> 0.001317562002 | H71: =IFERROR(Calculation!CM9/Calculation!CL9/Calculation!CL9/I18+(Calculation!CM9^2)/(Calculation!CL9^3)/H18,"N/A") -> 0.001415689436 | I71: =IFERROR(Calculation!CN9/Calculation!CM9/Calculation!CM9/J18+(Calculation!CN9^2)/(Calculation!CM9^3)/I18,"N/A") -> 0.003164749057 | J71: =IFERROR(Calculation!CO9/Calculation!CN9/Calculation!CN9/K18+(Calculation!CO9^2)/(Calculation!CN9^3)/J18,"N/A") -> 0.002576095106
B72: age 50-54 | C72: =IFERROR(Calculation!CH10/Calculation!CG10/Calculation!CG10/D19+(Calculation!CH10^2)/(Calculation!CG10^3)/C19,"N/A") -> 0.0007832332893 | D72: =IFERROR(Calculation!CI10/Calculation!CH10/Calculation!CH10/E19+(Calculation!CI10^2)/(Calculation!CH10^3)/D19,"N/A") -> 0.001237287085 | E72: =IFERROR(Calculation!CJ10/Calculation!CI10/Calculation!CI10/F19+(Calculation!CJ10^2)/(Calculation!CI10^3)/E19,"N/A") -> 0.001158257709 | F72: =IFERROR(Calculation!CK10/Calculation!CJ10/Calculation!CJ10/G19+(Calculation!CK10^2)/(Calculation!CJ10^3)/F19,"N/A") -> 0.001092028432 | G72: =IFERROR(Calculation!CL10/Calculation!CK10/Calculation!CK10/H19+(Calculation!CL10^2)/(Calculation!CK10^3)/G19,"N/A") -> 0.001067908188 | H72: =IFERROR(Calculation!CM10/Calculation!CL10/Calculation!CL10/I19+(Calculation!CM10^2)/(Calculation!CL10^3)/H19,"N/A") -> 0.001088402222 | I72: =IFERROR(Calculation!CN10/Calculation!CM10/Calculation!CM10/J19+(Calculation!CN10^2)/(Calculation!CM10^3)/I19,"N/A") -> 0.003026123068 | J72: =IFERROR(Calculation!CO10/Calculation!CN10/Calculation!CN10/K19+(Calculation!CO10^2)/(Calculation!CN10^3)/J19,"N/A") -> 0.002682421838
B73: age 55-59 | C73: =IFERROR(Calculation!CH11/Calculation!CG11/Calculation!CG11/D20+(Calculation!CH11^2)/(Calculation!CG11^3)/C20,"N/A") -> 0.0005157435065 | D73: =IFERROR(Calculation!CI11/Calculation!CH11/Calculation!CH11/E20+(Calculation!CI11^2)/(Calculation!CH11^3)/D20,"N/A") -> 0.0008185564117 | E73: =IFERROR(Calculation!CJ11/Calculation!CI11/Calculation!CI11/F20+(Calculation!CJ11^2)/(Calculation!CI11^3)/E20,"N/A") -> 0.0008437848459 | F73: =IFERROR(Calculation!CK11/Calculation!CJ11/Calculation!CJ11/G20+(Calculation!CK11^2)/(Calculation!CJ11^3)/F20,"N/A") -> 0.0008789288146 | G73: =IFERROR(Calculation!CL11/Calculation!CK11/Calculation!CK11/H20+(Calculation!CL11^2)/(Calculation!CK11^3)/G20,"N/A") -> 0.0009041493438 | H73: =IFERROR(Calculation!CM11/Calculation!CL11/Calculation!CL11/I20+(Calculation!CM11^2)/(Calculation!CL11^3)/H20,"N/A") -> 0.000909557175 | I73: =IFERROR(Calculation!CN11/Calculation!CM11/Calculation!CM11/J20+(Calculation!CN11^2)/(Calculation!CM11^3)/I20,"N/A") -> 0.001925144419 | J73: =IFERROR(Calculation!CO11/Calculation!CN11/Calculation!CN11/K20+(Calculation!CO11^2)/(Calculation!CN11^3)/J20,"N/A") -> 0.001598868376
B74: age 60-64 | C74: =IFERROR(Calculation!CH12/Calculation!CG12/Calculation!CG12/D21+(Calculation!CH12^2)/(Calculation!CG12^3)/C21,"N/A") -> 0.0003796307923 | D74: =IFERROR(Calculation!CI12/Calculation!CH12/Calculation!CH12/E21+(Calculation!CI12^2)/(Calculation!CH12^3)/D21,"N/A") -> 0.0005565694767 | E74: =IFERROR(Calculation!CJ12/Calculation!CI12/Calculation!CI12/F21+(Calculation!CJ12^2)/(Calculation!CI12^3)/E21,"N/A") -> 0.0005678229529 | F74: =IFERROR(Calculation!CK12/Calculation!CJ12/Calculation!CJ12/G21+(Calculation!CK12^2)/(Calculation!CJ12^3)/F21,"N/A") -> 0.0006244621026 | G74: =IFERROR(Calculation!CL12/Calculation!CK12/Calculation!CK12/H21+(Calculation!CL12^2)/(Calculation!CK12^3)/G21,"N/A") -> 0.0006797941264 | H74: =IFERROR(Calculation!CM12/Calculation!CL12/Calculation!CL12/I21+(Calculation!CM12^2)/(Calculation!CL12^3)/H21,"N/A") -> 0.0007722413329 | I74: =IFERROR(Calculation!CN12/Calculation!CM12/Calculation!CM12/J21+(Calculation!CN12^2)/(Calculation!CM12^3)/I21,"N/A") -> 0.001709585102 | J74: =IFERROR(Calculation!CO12/Calculation!CN12/Calculation!CN12/K21+(Calculation!CO12^2)/(Calculation!CN12^3)/J21,"N/A") -> 0.001428847164
B75: age 65-69 (age group) | C75: =IFERROR(Calculation!CH13/Calculation!CG13/Calculation!CG13/D22+(Calculation!CH13^2)/(Calculation!CG13^3)/C22,"N/A") -> 0.0003190291588 | D75: =IFERROR(Calculation!CI13/Calculation!CH13/Calculation!CH13/E22+(Calculation!CI13^2)/(Calculation!CH13^3)/D22,"N/A") -> 0.0004437095742 | E75: =IFERROR(Calculation!CJ13/Calculation!CI13/Calculation!CI13/F22+(Calculation!CJ13^2)/(Calculation!CI13^3)/E22,"N/A") -> 0.0004244627464 | F75: =IFERROR(Calculation!CK13/Calculation!CJ13/Calculation!CJ13/G22+(Calculation!CK13^2)/(Calculation!CJ13^3)/F22,"N/A") -> 0.0004422250787 | G75: =IFERROR(Calculation!CL13/Calculation!CK13/Calculation!CK13/H22+(Calculation!CL13^2)/(Calculation!CK13^3)/G22,"N/A") -> 0.0005089404966 | H75: =IFERROR(Calculation!CM13/Calculation!CL13/Calculation!CL13/I22+(Calculation!CM13^2)/(Calculation!CL13^3)/H22,"N/A") -> 0.0006375654803 | I75: =IFERROR(Calculation!CN13/Calculation!CM13/Calculation!CM13/J22+(Calculation!CN13^2)/(Calculation!CM13^3)/I22,"N/A") -> 0.001476268102 | J75: =IFERROR(Calculation!CO13/Calculation!CN13/Calculation!CN13/K22+(Calculation!CO13^2)/(Calculation!CN13^3)/J22,"N/A") -> 0.001222235115
B76: age 70-74 | C76: =IFERROR(Calculation!CH14/Calculation!CG14/Calculation!CG14/D23+(Calculation!CH14^2)/(Calculation!CG14^3)/C23,"N/A") -> 0.0002998223587 | D76: =IFERROR(Calculation!CI14/Calculation!CH14/Calculation!CH14/E23+(Calculation!CI14^2)/(Calculation!CH14^3)/D23,"N/A") -> 0.0004108342665 | E76: =IFERROR(Calculation!CJ14/Calculation!CI14/Calculation!CI14/F23+(Calculation!CJ14^2)/(Calculation!CI14^3)/E23,"N/A") -> 0.0003697487102 | F76: =IFERROR(Calculation!CK14/Calculation!CJ14/Calculation!CJ14/G23+(Calculation!CK14^2)/(Calculation!CJ14^3)/F23,"N/A") -> 0.0003482410064 | G76: =IFERROR(Calculation!CL14/Calculation!CK14/Calculation!CK14/H23+(Calculation!CL14^2)/(Calculation!CK14^3)/G23,"N/A") -> 0.0003858276715 | H76: =IFERROR(Calculation!CM14/Calculation!CL14/Calculation!CL14/I23+(Calculation!CM14^2)/(Calculation!CL14^3)/H23,"N/A") -> 0.0005004309223 | I76: =IFERROR(Calculation!CN14/Calculation!CM14/Calculation!CM14/J23+(Calculation!CN14^2)/(Calculation!CM14^3)/I23,"N/A") -> 0.001271429799 | J76: =IFERROR(Calculation!CO14/Calculation!CN14/Calculation!CN14/K23+(Calculation!CO14^2)/(Calculation!CN14^3)/J23,"N/A") -> 0.001044369895
B77: age 75-79 | C77: =IFERROR(Calculation!CH15/Calculation!CG15/Calculation!CG15/D24+(Calculation!CH15^2)/(Calculation!CG15^3)/C24,"N/A") -> 0.0003371233897 | D77: =IFERROR(Calculation!CI15/Calculation!CH15/Calculation!CH15/E24+(Calculation!CI15^2)/(Calculation!CH15^3)/D24,"N/A") -> 0.0004526799676 | E77: =IFERROR(Calculation!CJ15/Calculation!CI15/Calculation!CI15/F24+(Calculation!CJ15^2)/(Calculation!CI15^3)/E24,"N/A") -> 0.0003844680472 | F77: =IFERROR(Calculation!CK15/Calculation!CJ15/Calculation!CJ15/G24+(Calculation!CK15^2)/(Calculation!CJ15^3)/F24,"N/A") -> 0.0003364668778 | G77: =IFERROR(Calculation!CL15/Calculation!CK15/Calculation!CK15/H24+(Calculation!CL15^2)/(Calculation!CK15^3)/G24,"N/A") -> 0.0003436513114 | H77: =IFERROR(Calculation!CM15/Calculation!CL15/Calculation!CL15/I24+(Calculation!CM15^2)/(Calculation!CL15^3)/H24,"N/A") -> 0.0004076531998 | I77: =IFERROR(Calculation!CN15/Calculation!CM15/Calculation!CM15/J24+(Calculation!CN15^2)/(Calculation!CM15^3)/I24,"N/A") -> 0.001035427718 | J77: =IFERROR(Calculation!CO15/Calculation!CN15/Calculation!CN15/K24+(Calculation!CO15^2)/(Calculation!CN15^3)/J24,"N/A") -> 0.0008806759723
B78: age 80-84 | C78: =IFERROR(Calculation!CH16/Calculation!CG16/Calculation!CG16/D25+(Calculation!CH16^2)/(Calculation!CG16^3)/C25,"N/A") -> 0.0004597511706 | D78: =IFERROR(Calculation!CI16/Calculation!CH16/Calculation!CH16/E25+(Calculation!CI16^2)/(Calculation!CH16^3)/D25,"N/A") -> 0.0006079336265 | E78: =IFERROR(Calculation!CJ16/Calculation!CI16/Calculation!CI16/F25+(Calculation!CJ16^2)/(Calculation!CI16^3)/E25,"N/A") -> 0.0004907660224 | F78: =IFERROR(Calculation!CK16/Calculation!CJ16/Calculation!CJ16/G25+(Calculation!CK16^2)/(Calculation!CJ16^3)/F25,"N/A") -> 0.0004110494781 | G78: =IFERROR(Calculation!CL16/Calculation!CK16/Calculation!CK16/H25+(Calculation!CL16^2)/(Calculation!CK16^3)/G25,"N/A") -> 0.0003835908911 | H78: =IFERROR(Calculation!CM16/Calculation!CL16/Calculation!CL16/I25+(Calculation!CM16^2)/(Calculation!CL16^3)/H25,"N/A") -> 0.0004221691313 | I78: =IFERROR(Calculation!CN16/Calculation!CM16/Calculation!CM16/J25+(Calculation!CN16^2)/(Calculation!CM16^3)/I25,"N/A") -> 0.001030096922 | J78: =IFERROR(Calculation!CO16/Calculation!CN16/Calculation!CN16/K25+(Calculation!CO16^2)/(Calculation!CN16^3)/J25,"N/A") -> 0.0008663734208
B79: age 85+ | C79: =IFERROR(Calculation!CH17/Calculation!CG17/Calculation!CG17/D26+(Calculation!CH17^2)/(Calculation!CG17^3)/C26,"N/A") -> 0.000621992097 | D79: =IFERROR(Calculation!CI17/Calculation!CH17/Calculation!CH17/E26+(Calculation!CI17^2)/(Calculation!CH17^3)/D26,"N/A") -> 0.0008444292156 | E79: =IFERROR(Calculation!CJ17/Calculation!CI17/Calculation!CI17/F26+(Calculation!CJ17^2)/(Calculation!CI17^3)/E26,"N/A") -> 0.0006823690394 | F79: =IFERROR(Calculation!CK17/Calculation!CJ17/Calculation!CJ17/G26+(Calculation!CK17^2)/(Calculation!CJ17^3)/F26,"N/A") -> 0.0005450387638 | G79: =IFERROR(Calculation!CL17/Calculation!CK17/Calculation!CK17/H26+(Calculation!CL17^2)/(Calculation!CK17^3)/G26,"N/A") -> 0.0006110151143 | H79: =IFERROR(Calculation!CM17/Calculation!CL17/Calculation!CL17/I26+(Calculation!CM17^2)/(Calculation!CL17^3)/H26,"N/A") -> 0.0005807756696 | I79: =IFERROR(Calculation!CN17/Calculation!CM17/Calculation!CM17/J26+(Calculation!CN17^2)/(Calculation!CM17^3)/I26,"N/A") -> 0.0008382690469 | J79: =IFERROR(Calculation!CO17/Calculation!CN17/Calculation!CN17/K26+(Calculation!CO17^2)/(Calculation!CN17^3)/J26,"N/A") -> 0.0006730776918
B80: Male (Sex) | C80: =IFERROR(Calculation!CH$13/Calculation!CG$13/Calculation!CG$13/D27+(Calculation!CH$13^2)/(Calculation!CG$13^3)/C27,"N/A") -> 7.975139103e-05 | D80: =IFERROR(Calculation!CI$13/Calculation!CH$13/Calculation!CH$13/E27+(Calculation!CI$13^2)/(Calculation!CH$13^3)/D27,"N/A") -> 0.0001149514034 | E80: =IFERROR(Calculation!CJ$13/Calculation!CI$13/Calculation!CI$13/F27+(Calculation!CJ$13^2)/(Calculation!CI$13^3)/E27,"N/A") -> 0.0001081262737 | F80: =IFERROR(Calculation!CK$13/Calculation!CJ$13/Calculation!CJ$13/G27+(Calculation!CK$13^2)/(Calculation!CJ$13^3)/F27,"N/A") -> 0.0001040216495 | G80: =IFERROR(Calculation!CL$13/Calculation!CK$13/Calculation!CK$13/H27+(Calculation!CL$13^2)/(Calculation!CK$13^3)/G27,"N/A") -> 0.0001038269643 | H80: =IFERROR(Calculation!CM$13/Calculation!CL$13/Calculation!CL$13/I27+(Calculation!CM$13^2)/(Calculation!CL$13^3)/H27,"N/A") -> 0.0001142525569 | I80: =IFERROR(Calculation!CN$13/Calculation!CM$13/Calculation!CM$13/J27+(Calculation!CN$13^2)/(Calculation!CM$13^3)/I27,"N/A") -> 0.0002722881956 | J80: =IFERROR(Calculation!CO$13/Calculation!CN$13/Calculation!CN$13/K27+(Calculation!CO$13^2)/(Calculation!CN$13^3)/J27,"N/A") -> 0.0002294933101
B81: Female | C81: =IFERROR(Calculation!CH$13/Calculation!CG$13/Calculation!CG$13/D28+(Calculation!CH$13^2)/(Calculation!CG$13^3)/C28,"N/A") -> 8.77465808e-05 | D81: =IFERROR(Calculation!CI$13/Calculation!CH$13/Calculation!CH$13/E28+(Calculation!CI$13^2)/(Calculation!CH$13^3)/D28,"N/A") -> 0.0001219516663 | E81: =IFERROR(Calculation!CJ$13/Calculation!CI$13/Calculation!CI$13/F28+(Calculation!CJ$13^2)/(Calculation!CI$13^3)/E28,"N/A") -> 0.0001076906086 | F81: =IFERROR(Calculation!CK$13/Calculation!CJ$13/Calculation!CJ$13/G28+(Calculation!CK$13^2)/(Calculation!CJ$13^3)/F28,"N/A") -> 0.0001006775499 | G81: =IFERROR(Calculation!CL$13/Calculation!CK$13/Calculation!CK$13/H28+(Calculation!CL$13^2)/(Calculation!CK$13^3)/G28,"N/A") -> 0.0001020787753 | H81: =IFERROR(Calculation!CM$13/Calculation!CL$13/Calculation!CL$13/I28+(Calculation!CM$13^2)/(Calculation!CL$13^3)/H28,"N/A") -> 0.0001155608925 | I81: =IFERROR(Calculation!CN$13/Calculation!CM$13/Calculation!CM$13/J28+(Calculation!CN$13^2)/(Calculation!CM$13^3)/I28,"N/A") -> 0.000291269118 | J81: =IFERROR(Calculation!CO$13/Calculation!CN$13/Calculation!CN$13/K28+(Calculation!CO$13^2)/(Calculation!CN$13^3)/J28,"N/A") -> 0.0002500754823
B82: 1-Never | C82: =IFERROR(Calculation!CH$13/Calculation!CG$13/Calculation!CG$13/D29+(Calculation!CH$13^2)/(Calculation!CG$13^3)/C29,"N/A") -> N/A | D82: =IFERROR(Calculation!CI$13/Calculation!CH$13/Calculation!CH$13/E29+(Calculation!CI$13^2)/(Calculation!CH$13^3)/D29,"N/A") -> N/A | E82: =IFERROR(Calculation!CJ$13/Calculation!CI$13/Calculation!CI$13/F29+(Calculation!CJ$13^2)/(Calculation!CI$13^3)/E29,"N/A") -> N/A | F82: =IFERROR(Calculation!CK$13/Calculation!CJ$13/Calculation!CJ$13/G29+(Calculation!CK$13^2)/(Calculation!CJ$13^3)/F29,"N/A") -> 0.0002362545791 | G82: =IFERROR(Calculation!CL$13/Calculation!CK$13/Calculation!CK$13/H29+(Calculation!CL$13^2)/(Calculation!CK$13^3)/G29,"N/A") -> 0.0001775902463 | H82: =IFERROR(Calculation!CM$13/Calculation!CL$13/Calculation!CL$13/I29+(Calculation!CM$13^2)/(Calculation!CL$13^3)/H29,"N/A") -> 0.0003042098282 | I82: =IFERROR(Calculation!CN$13/Calculation!CM$13/Calculation!CM$13/J29+(Calculation!CN$13^2)/(Calculation!CM$13^3)/I29,"N/A") -> 0.001425690499 | J82: =IFERROR(Calculation!CO$13/Calculation!CN$13/Calculation!CN$13/K29+(Calculation!CO$13^2)/(Calculation!CN$13^3)/J29,"N/A") -> N/A
B83: 2-Current | C83: =IFERROR(Calculation!CH$13/Calculation!CG$13/Calculation!CG$13/D30+(Calculation!CH$13^2)/(Calculation!CG$13^3)/C30,"N/A") -> N/A | D83: =IFERROR(Calculation!CI$13/Calculation!CH$13/Calculation!CH$13/E30+(Calculation!CI$13^2)/(Calculation!CH$13^3)/D30,"N/A") -> N/A | E83: =IFERROR(Calculation!CJ$13/Calculation!CI$13/Calculation!CI$13/F30+(Calculation!CJ$13^2)/(Calculation!CI$13^3)/E30,"N/A") -> N/A | F83: =IFERROR(Calculation!CK$13/Calculation!CJ$13/Calculation!CJ$13/G30+(Calculation!CK$13^2)/(Calculation!CJ$13^3)/F30,"N/A") -> 0.0005008098066 | G83: =IFERROR(Calculation!CL$13/Calculation!CK$13/Calculation!CK$13/H30+(Calculation!CL$13^2)/(Calculation!CK$13^3)/G30,"N/A") -> 0.0003968941777 | H83: =IFERROR(Calculation!CM$13/Calculation!CL$13/Calculation!CL$13/I30+(Calculation!CM$13^2)/(Calculation!CL$13^3)/H30,"N/A") -> 0.0007511276093 | I83: =IFERROR(Calculation!CN$13/Calculation!CM$13/Calculation!CM$13/J30+(Calculation!CN$13^2)/(Calculation!CM$13^3)/I30,"N/A") -> 0.004155133281 | J83: =IFERROR(Calculation!CO$13/Calculation!CN$13/Calculation!CN$13/K30+(Calculation!CO$13^2)/(Calculation!CN$13^3)/J30,"N/A") -> N/A
B84: 3-Former | C84: =IFERROR(Calculation!CH$13/Calculation!CG$13/Calculation!CG$13/D31+(Calculation!CH$13^2)/(Calculation!CG$13^3)/C31,"N/A") -> N/A | D84: =IFERROR(Calculation!CI$13/Calculation!CH$13/Calculation!CH$13/E31+(Calculation!CI$13^2)/(Calculation!CH$13^3)/D31,"N/A") -> N/A | E84: =IFERROR(Calculation!CJ$13/Calculation!CI$13/Calculation!CI$13/F31+(Calculation!CJ$13^2)/(Calculation!CI$13^3)/E31,"N/A") -> N/A | F84: =IFERROR(Calculation!CK$13/Calculation!CJ$13/Calculation!CJ$13/G31+(Calculation!CK$13^2)/(Calculation!CJ$13^3)/F31,"N/A") -> 0.0002742317811 | G84: =IFERROR(Calculation!CL$13/Calculation!CK$13/Calculation!CK$13/H31+(Calculation!CL$13^2)/(Calculation!CK$13^3)/G31,"N/A") -> 0.0002087694911 | H84: =IFERROR(Calculation!CM$13/Calculation!CL$13/Calculation!CL$13/I31+(Calculation!CM$13^2)/(Calculation!CL$13^3)/H31,"N/A") -> 0.0003964947591 | I84: =IFERROR(Calculation!CN$13/Calculation!CM$13/Calculation!CM$13/J31+(Calculation!CN$13^2)/(Calculation!CM$13^3)/I31,"N/A") -> 0.002097889676 | J84: =IFERROR(Calculation!CO$13/Calculation!CN$13/Calculation!CN$13/K31+(Calculation!CO$13^2)/(Calculation!CN$13^3)/J31,"N/A") -> N/A
B85: 4-Not_Asked (smoker) | C85: =IFERROR(Calculation!CH$13/Calculation!CG$13/Calculation!CG$13/D32+(Calculation!CH$13^2)/(Calculation!CG$13^3)/C32,"N/A") -> 4.17785272e-05 | D85: =IFERROR(Calculation!CI$13/Calculation!CH$13/Calculation!CH$13/E32+(Calculation!CI$13^2)/(Calculation!CH$13^3)/D32,"N/A") -> 5.916056437e-05 | E85: =IFERROR(Calculation!CJ$13/Calculation!CI$13/Calculation!CI$13/F32+(Calculation!CJ$13^2)/(Calculation!CI$13^3)/E32,"N/A") -> 7.265712571e-05 | F85: =IFERROR(Calculation!CK$13/Calculation!CJ$13/Calculation!CJ$13/G32+(Calculation!CK$13^2)/(Calculation!CJ$13^3)/F32,"N/A") -> 0.0001092645199 | G85: =IFERROR(Calculation!CL$13/Calculation!CK$13/Calculation!CK$13/H32+(Calculation!CL$13^2)/(Calculation!CK$13^3)/G32,"N/A") -> 0.0001730151386 | H85: =IFERROR(Calculation!CM$13/Calculation!CL$13/Calculation!CL$13/I32+(Calculation!CM$13^2)/(Calculation!CL$13^3)/H32,"N/A") -> 0.0001547052657 | I85: =IFERROR(Calculation!CN$13/Calculation!CM$13/Calculation!CM$13/J32+(Calculation!CN$13^2)/(Calculation!CM$13^3)/I32,"N/A") -> 0.000178979266 | J85: =IFERROR(Calculation!CO$13/Calculation!CN$13/Calculation!CN$13/K32+(Calculation!CO$13^2)/(Calculation!CN$13^3)/J32,"N/A") -> 0.000144931117
B86: 1-Married (marital status) | C86: =IFERROR(Calculation!CH$13/Calculation!CG$13/Calculation!CG$13/D33+(Calculation!CH$13^2)/(Calculation!CG$13^3)/C33,"N/A") -> 7.191430266e-05 | D86: =IFERROR(Calculation!CI$13/Calculation!CH$13/Calculation!CH$13/E33+(Calculation!CI$13^2)/(Calculation!CH$13^3)/D33,"N/A") -> 0.0001028237412 | E86: =IFERROR(Calculation!CJ$13/Calculation!CI$13/Calculation!CI$13/F33+(Calculation!CJ$13^2)/(Calculation!CI$13^3)/E33,"N/A") -> 9.688729864e-05 | F86: =IFERROR(Calculation!CK$13/Calculation!CJ$13/Calculation!CJ$13/G33+(Calculation!CK$13^2)/(Calculation!CJ$13^3)/F33,"N/A") -> 9.601851104e-05 | G86: =IFERROR(Calculation!CL$13/Calculation!CK$13/Calculation!CK$13/H33+(Calculation!CL$13^2)/(Calculation!CK$13^3)/G33,"N/A") -> 9.827926159e-05 | H86: =IFERROR(Calculation!CM$13/Calculation!CL$13/Calculation!CL$13/I33+(Calculation!CM$13^2)/(Calculation!CL$13^3)/H33,"N/A") -> 0.0001155017049 | I86: =IFERROR(Calculation!CN$13/Calculation!CM$13/Calculation!CM$13/J33+(Calculation!CN$13^2)/(Calculation!CM$13^3)/I33,"N/A") -> 0.0003047599692 | J86: =IFERROR(Calculation!CO$13/Calculation!CN$13/Calculation!CN$13/K33+(Calculation!CO$13^2)/(Calculation!CN$13^3)/J33,"N/A") -> 0.0002587693489
B87: 2-Widowed | C87: =IFERROR(Calculation!CH$13/Calculation!CG$13/Calculation!CG$13/D34+(Calculation!CH$13^2)/(Calculation!CG$13^3)/C34,"N/A") -> 0.0001472301594 | D87: =IFERROR(Calculation!CI$13/Calculation!CH$13/Calculation!CH$13/E34+(Calculation!CI$13^2)/(Calculation!CH$13^3)/D34,"N/A") -> 0.0002073827888 | E87: =IFERROR(Calculation!CJ$13/Calculation!CI$13/Calculation!CI$13/F34+(Calculation!CJ$13^2)/(Calculation!CI$13^3)/E34,"N/A") -> 0.0001838053725 | F87: =IFERROR(Calculation!CK$13/Calculation!CJ$13/Calculation!CJ$13/G34+(Calculation!CK$13^2)/(Calculation!CJ$13^3)/F34,"N/A") -> 0.0001689201519 | G87: =IFERROR(Calculation!CL$13/Calculation!CK$13/Calculation!CK$13/H34+(Calculation!CL$13^2)/(Calculation!CK$13^3)/G34,"N/A") -> 0.000174423023 | H87: =IFERROR(Calculation!CM$13/Calculation!CL$13/Calculation!CL$13/I34+(Calculation!CM$13^2)/(Calculation!CL$13^3)/H34,"N/A") -> 0.0001929323586 | I87: =IFERROR(Calculation!CN$13/Calculation!CM$13/Calculation!CM$13/J34+(Calculation!CN$13^2)/(Calculation!CM$13^3)/I34,"N/A") -> 0.0004483411477 | J87: =IFERROR(Calculation!CO$13/Calculation!CN$13/Calculation!CN$13/K34+(Calculation!CO$13^2)/(Calculation!CN$13^3)/J34,"N/A") -> 0.0003954803529
B88: 3-Divorced | C88: =IFERROR(Calculation!CH$13/Calculation!CG$13/Calculation!CG$13/D35+(Calculation!CH$13^2)/(Calculation!CG$13^3)/C35,"N/A") -> 0.0007119294613 | D88: =IFERROR(Calculation!CI$13/Calculation!CH$13/Calculation!CH$13/E35+(Calculation!CI$13^2)/(Calculation!CH$13^3)/D35,"N/A") -> 0.000912576642 | E88: =IFERROR(Calculation!CJ$13/Calculation!CI$13/Calculation!CI$13/F35+(Calculation!CJ$13^2)/(Calculation!CI$13^3)/E35,"N/A") -> 0.0007244340942 | F88: =IFERROR(Calculation!CK$13/Calculation!CJ$13/Calculation!CJ$13/G35+(Calculation!CK$13^2)/(Calculation!CJ$13^3)/F35,"N/A") -> 0.0005773458055 | G88: =IFERROR(Calculation!CL$13/Calculation!CK$13/Calculation!CK$13/H35+(Calculation!CL$13^2)/(Calculation!CK$13^3)/G35,"N/A") -> 0.0004972849215 | H88: =IFERROR(Calculation!CM$13/Calculation!CL$13/Calculation!CL$13/I35+(Calculation!CM$13^2)/(Calculation!CL$13^3)/H35,"N/A") -> 0.0004916152547 | I88: =IFERROR(Calculation!CN$13/Calculation!CM$13/Calculation!CM$13/J35+(Calculation!CN$13^2)/(Calculation!CM$13^3)/I35,"N/A") -> 0.001111253691 | J88: =IFERROR(Calculation!CO$13/Calculation!CN$13/Calculation!CN$13/K35+(Calculation!CO$13^2)/(Calculation!CN$13^3)/J35,"N/A") -> 0.0009747173563
B89: 4-Separated | C89: =IFERROR(Calculation!CH$13/Calculation!CG$13/Calculation!CG$13/D36+(Calculation!CH$13^2)/(Calculation!CG$13^3)/C36,"N/A") -> 0.002514476953 | D89: =IFERROR(Calculation!CI$13/Calculation!CH$13/Calculation!CH$13/E36+(Calculation!CI$13^2)/(Calculation!CH$13^3)/D36,"N/A") -> 0.003517065287 | E89: =IFERROR(Calculation!CJ$13/Calculation!CI$13/Calculation!CI$13/F36+(Calculation!CJ$13^2)/(Calculation!CI$13^3)/E36,"N/A") -> 0.003051576688 | F89: =IFERROR(Calculation!CK$13/Calculation!CJ$13/Calculation!CJ$13/G36+(Calculation!CK$13^2)/(Calculation!CJ$13^3)/F36,"N/A") -> 0.002933041522 | G89: =IFERROR(Calculation!CL$13/Calculation!CK$13/Calculation!CK$13/H36+(Calculation!CL$13^2)/(Calculation!CK$13^3)/G36,"N/A") -> 0.003109853078 | H89: =IFERROR(Calculation!CM$13/Calculation!CL$13/Calculation!CL$13/I36+(Calculation!CM$13^2)/(Calculation!CL$13^3)/H36,"N/A") -> 0.003080385747 | I89: =IFERROR(Calculation!CN$13/Calculation!CM$13/Calculation!CM$13/J36+(Calculation!CN$13^2)/(Calculation!CM$13^3)/I36,"N/A") -> 0.006985738214 | J89: =IFERROR(Calculation!CO$13/Calculation!CN$13/Calculation!CN$13/K36+(Calculation!CO$13^2)/(Calculation!CN$13^3)/J36,"N/A") -> 0.00631856888
B90: 5-NeverMar. | C90: =IFERROR(Calculation!CH$13/Calculation!CG$13/Calculation!CG$13/D37+(Calculation!CH$13^2)/(Calculation!CG$13^3)/C37,"N/A") -> 0.0006991200558 | D90: =IFERROR(Calculation!CI$13/Calculation!CH$13/Calculation!CH$13/E37+(Calculation!CI$13^2)/(Calculation!CH$13^3)/D37,"N/A") -> 0.001034276321 | E90: =IFERROR(Calculation!CJ$13/Calculation!CI$13/Calculation!CI$13/F37+(Calculation!CJ$13^2)/(Calculation!CI$13^3)/E37,"N/A") -> 0.0009564328329 | F90: =IFERROR(Calculation!CK$13/Calculation!CJ$13/Calculation!CJ$13/G37+(Calculation!CK$13^2)/(Calculation!CJ$13^3)/F37,"N/A") -> 0.0008899583767 | G90: =IFERROR(Calculation!CL$13/Calculation!CK$13/Calculation!CK$13/H37+(Calculation!CL$13^2)/(Calculation!CK$13^3)/G37,"N/A") -> 0.0008563308111 | H90: =IFERROR(Calculation!CM$13/Calculation!CL$13/Calculation!CL$13/I37+(Calculation!CM$13^2)/(Calculation!CL$13^3)/H37,"N/A") -> 0.0008467921569 | I90: =IFERROR(Calculation!CN$13/Calculation!CM$13/Calculation!CM$13/J37+(Calculation!CN$13^2)/(Calculation!CM$13^3)/I37,"N/A") -> 0.001827154217 | J90: =IFERROR(Calculation!CO$13/Calculation!CN$13/Calculation!CN$13/K37+(Calculation!CO$13^2)/(Calculation!CN$13^3)/J37,"N/A") -> 0.001584285017
B91: 1-Lowest inc. | C91: =IFERROR(Calculation!CH$13/Calculation!CG$13/Calculation!CG$13/D38+(Calculation!CH$13^2)/(Calculation!CG$13^3)/C38,"N/A") -> 0.0002272702196 | D91: =IFERROR(Calculation!CI$13/Calculation!CH$13/Calculation!CH$13/E38+(Calculation!CI$13^2)/(Calculation!CH$13^3)/D38,"N/A") -> 0.0003534460973 | E91: =IFERROR(Calculation!CJ$13/Calculation!CI$13/Calculation!CI$13/F38+(Calculation!CJ$13^2)/(Calculation!CI$13^3)/E38,"N/A") -> 0.0003091136898 | F91: =IFERROR(Calculation!CK$13/Calculation!CJ$13/Calculation!CJ$13/G38+(Calculation!CK$13^2)/(Calculation!CJ$13^3)/F38,"N/A") -> 0.0002869974004 | G91: =IFERROR(Calculation!CL$13/Calculation!CK$13/Calculation!CK$13/H38+(Calculation!CL$13^2)/(Calculation!CK$13^3)/G38,"N/A") -> 0.0003043524463 | H91: =IFERROR(Calculation!CM$13/Calculation!CL$13/Calculation!CL$13/I38+(Calculation!CM$13^2)/(Calculation!CL$13^3)/H38,"N/A") -> 0.0003186887587 | I91: =IFERROR(Calculation!CN$13/Calculation!CM$13/Calculation!CM$13/J38+(Calculation!CN$13^2)/(Calculation!CM$13^3)/I38,"N/A") -> 0.0007105572724 | J91: =IFERROR(Calculation!CO$13/Calculation!CN$13/Calculation!CN$13/K38+(Calculation!CO$13^2)/(Calculation!CN$13^3)/J38,"N/A") -> 0.0006322213044
B92: 2-Second dec. | C92: =IFERROR(Calculation!CH$13/Calculation!CG$13/Calculation!CG$13/D39+(Calculation!CH$13^2)/(Calculation!CG$13^3)/C39,"N/A") -> 0.0002087860278 | D92: =IFERROR(Calculation!CI$13/Calculation!CH$13/Calculation!CH$13/E39+(Calculation!CI$13^2)/(Calculation!CH$13^3)/D39,"N/A") -> 0.000320685554 | E92: =IFERROR(Calculation!CJ$13/Calculation!CI$13/Calculation!CI$13/F39+(Calculation!CJ$13^2)/(Calculation!CI$13^3)/E39,"N/A") -> 0.00028401326 | F92: =IFERROR(Calculation!CK$13/Calculation!CJ$13/Calculation!CJ$13/G39+(Calculation!CK$13^2)/(Calculation!CJ$13^3)/F39,"N/A") -> 0.0002622725628 | G92: =IFERROR(Calculation!CL$13/Calculation!CK$13/Calculation!CK$13/H39+(Calculation!CL$13^2)/(Calculation!CK$13^3)/G39,"N/A") -> 0.0002654128177 | H92: =IFERROR(Calculation!CM$13/Calculation!CL$13/Calculation!CL$13/I39+(Calculation!CM$13^2)/(Calculation!CL$13^3)/H39,"N/A") -> 0.0002980140081 | I92: =IFERROR(Calculation!CN$13/Calculation!CM$13/Calculation!CM$13/J39+(Calculation!CN$13^2)/(Calculation!CM$13^3)/I39,"N/A") -> 0.0007105572724 | J92: =IFERROR(Calculation!CO$13/Calculation!CN$13/Calculation!CN$13/K39+(Calculation!CO$13^2)/(Calculation!CN$13^3)/J39,"N/A") -> 0.0006035365851
B93: 3-Third dec. | C93: =IFERROR(Calculation!CH$13/Calculation!CG$13/Calculation!CG$13/D40+(Calculation!CH$13^2)/(Calculation!CG$13^3)/C40,"N/A") -> 0.000319656418 | D93: =IFERROR(Calculation!CI$13/Calculation!CH$13/Calculation!CH$13/E40+(Calculation!CI$13^2)/(Calculation!CH$13^3)/D40,"N/A") -> 0.0003980498834 | E93: =IFERROR(Calculation!CJ$13/Calculation!CI$13/Calculation!CI$13/F40+(Calculation!CJ$13^2)/(Calculation!CI$13^3)/E40,"N/A") -> 0.0003533000683 | F93: =IFERROR(Calculation!CK$13/Calculation!CJ$13/Calculation!CJ$13/G40+(Calculation!CK$13^2)/(Calculation!CJ$13^3)/F40,"N/A") -> 0.0003300161943 | G93: =IFERROR(Calculation!CL$13/Calculation!CK$13/Calculation!CK$13/H40+(Calculation!CL$13^2)/(Calculation!CK$13^3)/G40,"N/A") -> 0.0003436328509 | H93: =IFERROR(Calculation!CM$13/Calculation!CL$13/Calculation!CL$13/I40+(Calculation!CM$13^2)/(Calculation!CL$13^3)/H40,"N/A") -> 0.0003793396793 | I93: =IFERROR(Calculation!CN$13/Calculation!CM$13/Calculation!CM$13/J40+(Calculation!CN$13^2)/(Calculation!CM$13^3)/I40,"N/A") -> 0.0009791014983 | J93: =IFERROR(Calculation!CO$13/Calculation!CN$13/Calculation!CN$13/K40+(Calculation!CO$13^2)/(Calculation!CN$13^3)/J40,"N/A") -> 0.0008503744954
B94: 4-Fourth dec. | C94: =IFERROR(Calculation!CH$13/Calculation!CG$13/Calculation!CG$13/D41+(Calculation!CH$13^2)/(Calculation!CG$13^3)/C41,"N/A") -> 0.0003732108407 | D94: =IFERROR(Calculation!CI$13/Calculation!CH$13/Calculation!CH$13/E41+(Calculation!CI$13^2)/(Calculation!CH$13^3)/D41,"N/A") -> 0.0005051914689 | E94: =IFERROR(Calculation!CJ$13/Calculation!CI$13/Calculation!CI$13/F41+(Calculation!CJ$13^2)/(Calculation!CI$13^3)/E41,"N/A") -> 0.0004674858799 | F94: =IFERROR(Calculation!CK$13/Calculation!CJ$13/Calculation!CJ$13/G41+(Calculation!CK$13^2)/(Calculation!CJ$13^3)/F41,"N/A") -> 0.0004449439483 | G94: =IFERROR(Calculation!CL$13/Calculation!CK$13/Calculation!CK$13/H41+(Calculation!CL$13^2)/(Calculation!CK$13^3)/G41,"N/A") -> 0.0004431183436 | H94: =IFERROR(Calculation!CM$13/Calculation!CL$13/Calculation!CL$13/I41+(Calculation!CM$13^2)/(Calculation!CL$13^3)/H41,"N/A") -> 0.0005154497403 | I94: =IFERROR(Calculation!CN$13/Calculation!CM$13/Calculation!CM$13/J41+(Calculation!CN$13^2)/(Calculation!CM$13^3)/I41,"N/A") -> 0.001385366357 | J94: =IFERROR(Calculation!CO$13/Calculation!CN$13/Calculation!CN$13/K41+(Calculation!CO$13^2)/(Calculation!CN$13^3)/J41,"N/A") -> 0.001182489694
B95: 5-Fifth dec. | C95: =IFERROR(Calculation!CH$13/Calculation!CG$13/Calculation!CG$13/D42+(Calculation!CH$13^2)/(Calculation!CG$13^3)/C42,"N/A") -> 0.0004705311785 | D95: =IFERROR(Calculation!CI$13/Calculation!CH$13/Calculation!CH$13/E42+(Calculation!CI$13^2)/(Calculation!CH$13^3)/D42,"N/A") -> 0.0006667555516 | E95: =IFERROR(Calculation!CJ$13/Calculation!CI$13/Calculation!CI$13/F42+(Calculation!CJ$13^2)/(Calculation!CI$13^3)/E42,"N/A") -> 0.0006021084568 | F95: =IFERROR(Calculation!CK$13/Calculation!CJ$13/Calculation!CJ$13/G42+(Calculation!CK$13^2)/(Calculation!CJ$13^3)/F42,"N/A") -> 0.0005865162689 | G95: =IFERROR(Calculation!CL$13/Calculation!CK$13/Calculation!CK$13/H42+(Calculation!CL$13^2)/(Calculation!CK$13^3)/G42,"N/A") -> 0.0005826730835 | H95: =IFERROR(Calculation!CM$13/Calculation!CL$13/Calculation!CL$13/I42+(Calculation!CM$13^2)/(Calculation!CL$13^3)/H42,"N/A") -> 0.0006883041289 | I95: =IFERROR(Calculation!CN$13/Calculation!CM$13/Calculation!CM$13/J42+(Calculation!CN$13^2)/(Calculation!CM$13^3)/I42,"N/A") -> 0.001768268593 | J95: =IFERROR(Calculation!CO$13/Calculation!CN$13/Calculation!CN$13/K42+(Calculation!CO$13^2)/(Calculation!CN$13^3)/J42,"N/A") -> 0.0014779055
B96: 6-Sixth dec. | C96: =IFERROR(Calculation!CH$13/Calculation!CG$13/Calculation!CG$13/D43+(Calculation!CH$13^2)/(Calculation!CG$13^3)/C43,"N/A") -> 0.0005651535937 | D96: =IFERROR(Calculation!CI$13/Calculation!CH$13/Calculation!CH$13/E43+(Calculation!CI$13^2)/(Calculation!CH$13^3)/D43,"N/A") -> 0.0007701344709 | E96: =IFERROR(Calculation!CJ$13/Calculation!CI$13/Calculation!CI$13/F43+(Calculation!CJ$13^2)/(Calculation!CI$13^3)/E43,"N/A") -> 0.0007354501809 | F96: =IFERROR(Calculation!CK$13/Calculation!CJ$13/Calculation!CJ$13/G43+(Calculation!CK$13^2)/(Calculation!CJ$13^3)/F43,"N/A") -> 0.0007239458434 | G96: =IFERROR(Calculation!CL$13/Calculation!CK$13/Calculation!CK$13/H43+(Calculation!CL$13^2)/(Calculation!CK$13^3)/G43,"N/A") -> 0.0007430125951 | H96: =IFERROR(Calculation!CM$13/Calculation!CL$13/Calculation!CL$13/I43+(Calculation!CM$13^2)/(Calculation!CL$13^3)/H43,"N/A") -> 0.0008672266736 | I96: =IFERROR(Calculation!CN$13/Calculation!CM$13/Calculation!CM$13/J43+(Calculation!CN$13^2)/(Calculation!CM$13^3)/I43,"N/A") -> 0.002280721674 | J96: =IFERROR(Calculation!CO$13/Calculation!CN$13/Calculation!CN$13/K43+(Calculation!CO$13^2)/(Calculation!CN$13^3)/J43,"N/A") -> 0.001968355742
B97: 7-Seventh dec. | C97: =IFERROR(Calculation!CH$13/Calculation!CG$13/Calculation!CG$13/D44+(Calculation!CH$13^2)/(Calculation!CG$13^3)/C44,"N/A") -> 0.001033603311 | D97: =IFERROR(Calculation!CI$13/Calculation!CH$13/Calculation!CH$13/E44+(Calculation!CI$13^2)/(Calculation!CH$13^3)/D44,"N/A") -> 0.0008853913437 | E97: =IFERROR(Calculation!CJ$13/Calculation!CI$13/Calculation!CI$13/F44+(Calculation!CJ$13^2)/(Calculation!CI$13^3)/E44,"N/A") -> 0.000876577125 | F97: =IFERROR(Calculation!CK$13/Calculation!CJ$13/Calculation!CJ$13/G44+(Calculation!CK$13^2)/(Calculation!CJ$13^3)/F44,"N/A") -> 0.0008457653365 | G97: =IFERROR(Calculation!CL$13/Calculation!CK$13/Calculation!CK$13/H44+(Calculation!CL$13^2)/(Calculation!CK$13^3)/G44,"N/A") -> 0.0008088191103 | H97: =IFERROR(Calculation!CM$13/Calculation!CL$13/Calculation!CL$13/I44+(Calculation!CM$13^2)/(Calculation!CL$13^3)/H44,"N/A") -> 0.000924012122 | I97: =IFERROR(Calculation!CN$13/Calculation!CM$13/Calculation!CM$13/J44+(Calculation!CN$13^2)/(Calculation!CM$13^3)/I44,"N/A") -> 0.002340486447 | J97: =IFERROR(Calculation!CO$13/Calculation!CN$13/Calculation!CN$13/K44+(Calculation!CO$13^2)/(Calculation!CN$13^3)/J44,"N/A") -> 0.00197395251
B98: 8-Eighth dec. | C98: =IFERROR(Calculation!CH$13/Calculation!CG$13/Calculation!CG$13/D45+(Calculation!CH$13^2)/(Calculation!CG$13^3)/C45,"N/A") -> 0.0007342235326 | D98: =IFERROR(Calculation!CI$13/Calculation!CH$13/Calculation!CH$13/E45+(Calculation!CI$13^2)/(Calculation!CH$13^3)/D45,"N/A") -> 0.001176847149 | E98: =IFERROR(Calculation!CJ$13/Calculation!CI$13/Calculation!CI$13/F45+(Calculation!CJ$13^2)/(Calculation!CI$13^3)/E45,"N/A") -> 0.001139550263 | F98: =IFERROR(Calculation!CK$13/Calculation!CJ$13/Calculation!CJ$13/G45+(Calculation!CK$13^2)/(Calculation!CJ$13^3)/F45,"N/A") -> 0.001132586858 | G98: =IFERROR(Calculation!CL$13/Calculation!CK$13/Calculation!CK$13/H45+(Calculation!CL$13^2)/(Calculation!CK$13^3)/G45,"N/A") -> 0.001096248078 | H98: =IFERROR(Calculation!CM$13/Calculation!CL$13/Calculation!CL$13/I45+(Calculation!CM$13^2)/(Calculation!CL$13^3)/H45,"N/A") -> 0.001276971309 | I98: =IFERROR(Calculation!CN$13/Calculation!CM$13/Calculation!CM$13/J45+(Calculation!CN$13^2)/(Calculation!CM$13^3)/I45,"N/A") -> 0.002931599561 | J98: =IFERROR(Calculation!CO$13/Calculation!CN$13/Calculation!CN$13/K45+(Calculation!CO$13^2)/(Calculation!CN$13^3)/J45,"N/A") -> 0.002382846031
B99: 9-Ninth dec. | C99: =IFERROR(Calculation!CH$13/Calculation!CG$13/Calculation!CG$13/D46+(Calculation!CH$13^2)/(Calculation!CG$13^3)/C46,"N/A") -> 0.001366725194 | D99: =IFERROR(Calculation!CI$13/Calculation!CH$13/Calculation!CH$13/E46+(Calculation!CI$13^2)/(Calculation!CH$13^3)/D46,"N/A") -> 0.00107405559 | E99: =IFERROR(Calculation!CJ$13/Calculation!CI$13/Calculation!CI$13/F46+(Calculation!CJ$13^2)/(Calculation!CI$13^3)/E46,"N/A") -> 0.001086641184 | F99: =IFERROR(Calculation!CK$13/Calculation!CJ$13/Calculation!CJ$13/G46+(Calculation!CK$13^2)/(Calculation!CJ$13^3)/F46,"N/A") -> 0.001065177391 | G99: =IFERROR(Calculation!CL$13/Calculation!CK$13/Calculation!CK$13/H46+(Calculation!CL$13^2)/(Calculation!CK$13^3)/G46,"N/A") -> 0.0009800883179 | H99: =IFERROR(Calculation!CM$13/Calculation!CL$13/Calculation!CL$13/I46+(Calculation!CM$13^2)/(Calculation!CL$13^3)/H46,"N/A") -> 0.001072850429 | I99: =IFERROR(Calculation!CN$13/Calculation!CM$13/Calculation!CM$13/J46+(Calculation!CN$13^2)/(Calculation!CM$13^3)/I46,"N/A") -> 0.002416188493 | J99: =IFERROR(Calculation!CO$13/Calculation!CN$13/Calculation!CN$13/K46+(Calculation!CO$13^2)/(Calculation!CN$13^3)/J46,"N/A") -> 0.002000692627
B100: 10-Highest dec. (family income in 2008$) | C100: =IFERROR(Calculation!CH$13/Calculation!CG$13/Calculation!CG$13/D47+(Calculation!CH$13^2)/(Calculation!CG$13^3)/C47,"N/A") -> 0.001126523847 | D100: =IFERROR(Calculation!CI$13/Calculation!CH$13/Calculation!CH$13/E47+(Calculation!CI$13^2)/(Calculation!CH$13^3)/D47,"N/A") -> 0.001333511103 | E100: =IFERROR(Calculation!CJ$13/Calculation!CI$13/Calculation!CI$13/F47+(Calculation!CJ$13^2)/(Calculation!CI$13^3)/E47,"N/A") -> 0.001233561672 | F100: =IFERROR(Calculation!CK$13/Calculation!CJ$13/Calculation!CJ$13/G47+(Calculation!CK$13^2)/(Calculation!CJ$13^3)/F47,"N/A") -> 0.001160265892 | G100: =IFERROR(Calculation!CL$13/Calculation!CK$13/Calculation!CK$13/H47+(Calculation!CL$13^2)/(Calculation!CK$13^3)/G47,"N/A") -> 0.001045437843 | H100: =IFERROR(Calculation!CM$13/Calculation!CL$13/Calculation!CL$13/I47+(Calculation!CM$13^2)/(Calculation!CL$13^3)/H47,"N/A") -> 0.001116521143 | I100: =IFERROR(Calculation!CN$13/Calculation!CM$13/Calculation!CM$13/J47+(Calculation!CN$13^2)/(Calculation!CM$13^3)/I47,"N/A") -> 0.00281669467 | J100: =IFERROR(Calculation!CO$13/Calculation!CN$13/Calculation!CN$13/K47+(Calculation!CO$13^2)/(Calculation!CN$13^3)/J47,"N/A") -> 0.002393990657
B101: 1-Dropout | C101: =IFERROR(Calculation!CH$13/Calculation!CG$13/Calculation!CG$13/D48+(Calculation!CH$13^2)/(Calculation!CG$13^3)/C48,"N/A") -> 8.00210187e-05 | D101: =IFERROR(Calculation!CI$13/Calculation!CH$13/Calculation!CH$13/E48+(Calculation!CI$13^2)/(Calculation!CH$13^3)/D48,"N/A") -> 0.0001241353071 | E101: =IFERROR(Calculation!CJ$13/Calculation!CI$13/Calculation!CI$13/F48+(Calculation!CJ$13^2)/(Calculation!CI$13^3)/E48,"N/A") -> 0.0001252165704 | F101: =IFERROR(Calculation!CK$13/Calculation!CJ$13/Calculation!CJ$13/G48+(Calculation!CK$13^2)/(Calculation!CJ$13^3)/F48,"N/A") -> 0.0001348974639 | G101: =IFERROR(Calculation!CL$13/Calculation!CK$13/Calculation!CK$13/H48+(Calculation!CL$13^2)/(Calculation!CK$13^3)/G48,"N/A") -> 0.0001519419367 | H101: =IFERROR(Calculation!CM$13/Calculation!CL$13/Calculation!CL$13/I48+(Calculation!CM$13^2)/(Calculation!CL$13^3)/H48,"N/A") -> 0.0001849270925 | I101: =IFERROR(Calculation!CN$13/Calculation!CM$13/Calculation!CM$13/J48+(Calculation!CN$13^2)/(Calculation!CM$13^3)/I48,"N/A") -> 0.0004929003011 | J101: =IFERROR(Calculation!CO$13/Calculation!CN$13/Calculation!CN$13/K48+(Calculation!CO$13^2)/(Calculation!CN$13^3)/J48,"N/A") -> 0.0004285073843
B102: 2-H.S.Diploma (education) | C102: =IFERROR(Calculation!CH$13/Calculation!CG$13/Calculation!CG$13/D49+(Calculation!CH$13^2)/(Calculation!CG$13^3)/C49,"N/A") -> 0.0001453706801 | D102: =IFERROR(Calculation!CI$13/Calculation!CH$13/Calculation!CH$13/E49+(Calculation!CI$13^2)/(Calculation!CH$13^3)/D49,"N/A") -> 0.0001874314602 | E102: =IFERROR(Calculation!CJ$13/Calculation!CI$13/Calculation!CI$13/F49+(Calculation!CJ$13^2)/(Calculation!CI$13^3)/E49,"N/A") -> 0.0001644578638 | F102: =IFERROR(Calculation!CK$13/Calculation!CJ$13/Calculation!CJ$13/G49+(Calculation!CK$13^2)/(Calculation!CJ$13^3)/F49,"N/A") -> 0.0001537158161 | G102: =IFERROR(Calculation!CL$13/Calculation!CK$13/Calculation!CK$13/H49+(Calculation!CL$13^2)/(Calculation!CK$13^3)/G49,"N/A") -> 0.0001487129891 | H102: =IFERROR(Calculation!CM$13/Calculation!CL$13/Calculation!CL$13/I49+(Calculation!CM$13^2)/(Calculation!CL$13^3)/H49,"N/A") -> 0.0001610323287 | I102: =IFERROR(Calculation!CN$13/Calculation!CM$13/Calculation!CM$13/J49+(Calculation!CN$13^2)/(Calculation!CM$13^3)/I49,"N/A") -> 0.0003752043951 | J102: =IFERROR(Calculation!CO$13/Calculation!CN$13/Calculation!CN$13/K49+(Calculation!CO$13^2)/(Calculation!CN$13^3)/J49,"N/A") -> 0.0003153350681
B103: 3-SomeColl/AA | C103: =IFERROR(Calculation!CH$13/Calculation!CG$13/Calculation!CG$13/D50+(Calculation!CH$13^2)/(Calculation!CG$13^3)/C50,"N/A") -> 0.0004244881711 | D103: =IFERROR(Calculation!CI$13/Calculation!CH$13/Calculation!CH$13/E50+(Calculation!CI$13^2)/(Calculation!CH$13^3)/D50,"N/A") -> 0.0005580450943 | E103: =IFERROR(Calculation!CJ$13/Calculation!CI$13/Calculation!CI$13/F50+(Calculation!CJ$13^2)/(Calculation!CI$13^3)/E50,"N/A") -> 0.0004232323563 | F103: =IFERROR(Calculation!CK$13/Calculation!CJ$13/Calculation!CJ$13/G50+(Calculation!CK$13^2)/(Calculation!CJ$13^3)/F50,"N/A") -> 0.0003136341081 | G103: =IFERROR(Calculation!CL$13/Calculation!CK$13/Calculation!CK$13/H50+(Calculation!CL$13^2)/(Calculation!CK$13^3)/G50,"N/A") -> 0.0002894436414 | H103: =IFERROR(Calculation!CM$13/Calculation!CL$13/Calculation!CL$13/I50+(Calculation!CM$13^2)/(Calculation!CL$13^3)/H50,"N/A") -> 0.0003039484238 | I103: =IFERROR(Calculation!CN$13/Calculation!CM$13/Calculation!CM$13/J50+(Calculation!CN$13^2)/(Calculation!CM$13^3)/I50,"N/A") -> 0.00071182945 | J103: =IFERROR(Calculation!CO$13/Calculation!CN$13/Calculation!CN$13/K50+(Calculation!CO$13^2)/(Calculation!CN$13^3)/J50,"N/A") -> 0.0005957169707
B104: 4-4yr.Degree | C104: =IFERROR(Calculation!CH$13/Calculation!CG$13/Calculation!CG$13/D51+(Calculation!CH$13^2)/(Calculation!CG$13^3)/C51,"N/A") -> 0.0007767043713 | D104: =IFERROR(Calculation!CI$13/Calculation!CH$13/Calculation!CH$13/E51+(Calculation!CI$13^2)/(Calculation!CH$13^3)/D51,"N/A") -> 0.001023082673 | E104: =IFERROR(Calculation!CJ$13/Calculation!CI$13/Calculation!CI$13/F51+(Calculation!CJ$13^2)/(Calculation!CI$13^3)/E51,"N/A") -> 0.0008325960859 | F104: =IFERROR(Calculation!CK$13/Calculation!CJ$13/Calculation!CJ$13/G51+(Calculation!CK$13^2)/(Calculation!CJ$13^3)/F51,"N/A") -> 0.0006555670127 | G104: =IFERROR(Calculation!CL$13/Calculation!CK$13/Calculation!CK$13/H51+(Calculation!CL$13^2)/(Calculation!CK$13^3)/G51,"N/A") -> 0.000586634845 | H104: =IFERROR(Calculation!CM$13/Calculation!CL$13/Calculation!CL$13/I51+(Calculation!CM$13^2)/(Calculation!CL$13^3)/H51,"N/A") -> 0.0006288719007 | I104: =IFERROR(Calculation!CN$13/Calculation!CM$13/Calculation!CM$13/J51+(Calculation!CN$13^2)/(Calculation!CM$13^3)/I51,"N/A") -> 0.00155568747 | J104: =IFERROR(Calculation!CO$13/Calculation!CN$13/Calculation!CN$13/K51+(Calculation!CO$13^2)/(Calculation!CN$13^3)/J51,"N/A") -> 0.001325161279
B105: 5-Grad.Degree | C105: =IFERROR(Calculation!CH$13/Calculation!CG$13/Calculation!CG$13/D52+(Calculation!CH$13^2)/(Calculation!CG$13^3)/C52,"N/A") -> 0.001178010067 | D105: =IFERROR(Calculation!CI$13/Calculation!CH$13/Calculation!CH$13/E52+(Calculation!CI$13^2)/(Calculation!CH$13^3)/D52,"N/A") -> 0.001448505778 | E105: =IFERROR(Calculation!CJ$13/Calculation!CI$13/Calculation!CI$13/F52+(Calculation!CJ$13^2)/(Calculation!CI$13^3)/E52,"N/A") -> 0.001232942571 | F105: =IFERROR(Calculation!CK$13/Calculation!CJ$13/Calculation!CJ$13/G52+(Calculation!CK$13^2)/(Calculation!CJ$13^3)/F52,"N/A") -> 0.001166198503 | G105: =IFERROR(Calculation!CL$13/Calculation!CK$13/Calculation!CK$13/H52+(Calculation!CL$13^2)/(Calculation!CK$13^3)/G52,"N/A") -> 0.001076748619 | H105: =IFERROR(Calculation!CM$13/Calculation!CL$13/Calculation!CL$13/I52+(Calculation!CM$13^2)/(Calculation!CL$13^3)/H52,"N/A") -> 0.001105406672 | I105: =IFERROR(Calculation!CN$13/Calculation!CM$13/Calculation!CM$13/J52+(Calculation!CN$13^2)/(Calculation!CM$13^3)/I52,"N/A") -> 0.002775312552 | J105: =IFERROR(Calculation!CO$13/Calculation!CN$13/Calculation!CN$13/K52+(Calculation!CO$13^2)/(Calculation!CN$13^3)/J52,"N/A") -> 0.00239151369
B106: 1-White NH (ethnic/race) | C106: =IFERROR(Calculation!CH$13/Calculation!CG$13/Calculation!CG$13/D53+(Calculation!CH$13^2)/(Calculation!CG$13^3)/C53,"N/A") -> 8.0330689e-05 | D106: =IFERROR(Calculation!CI$13/Calculation!CH$13/Calculation!CH$13/E53+(Calculation!CI$13^2)/(Calculation!CH$13^3)/D53,"N/A") -> 0.0001000074037 | E106: =IFERROR(Calculation!CJ$13/Calculation!CI$13/Calculation!CI$13/F53+(Calculation!CJ$13^2)/(Calculation!CI$13^3)/E53,"N/A") -> 6.653148165e-05 | F106: =IFERROR(Calculation!CK$13/Calculation!CJ$13/Calculation!CJ$13/G53+(Calculation!CK$13^2)/(Calculation!CJ$13^3)/F53,"N/A") -> 6.401751503e-05 | G106: =IFERROR(Calculation!CL$13/Calculation!CK$13/Calculation!CK$13/H53+(Calculation!CL$13^2)/(Calculation!CK$13^3)/G53,"N/A") -> 6.663970882e-05 | H106: =IFERROR(Calculation!CM$13/Calculation!CL$13/Calculation!CL$13/I53+(Calculation!CM$13^2)/(Calculation!CL$13^3)/H53,"N/A") -> 7.882973897e-05 | I106: =IFERROR(Calculation!CN$13/Calculation!CM$13/Calculation!CM$13/J53+(Calculation!CN$13^2)/(Calculation!CM$13^3)/I53,"N/A") -> 0.0001985163581 | J106: =IFERROR(Calculation!CO$13/Calculation!CN$13/Calculation!CN$13/K53+(Calculation!CO$13^2)/(Calculation!CN$13^3)/J53,"N/A") -> 0.0001683266568
B107: 2-Black NH | C107: =IFERROR(Calculation!CH$13/Calculation!CG$13/Calculation!CG$13/D54+(Calculation!CH$13^2)/(Calculation!CG$13^3)/C54,"N/A") -> 0.0006613097101 | D107: =IFERROR(Calculation!CI$13/Calculation!CH$13/Calculation!CH$13/E54+(Calculation!CI$13^2)/(Calculation!CH$13^3)/D54,"N/A") -> 0.0008985807584 | E107: =IFERROR(Calculation!CJ$13/Calculation!CI$13/Calculation!CI$13/F54+(Calculation!CJ$13^2)/(Calculation!CI$13^3)/E54,"N/A") -> 0.0006455417327 | F107: =IFERROR(Calculation!CK$13/Calculation!CJ$13/Calculation!CJ$13/G54+(Calculation!CK$13^2)/(Calculation!CJ$13^3)/F54,"N/A") -> 0.0005877795777 | G107: =IFERROR(Calculation!CL$13/Calculation!CK$13/Calculation!CK$13/H54+(Calculation!CL$13^2)/(Calculation!CK$13^3)/G54,"N/A") -> 0.0005453455033 | H107: =IFERROR(Calculation!CM$13/Calculation!CL$13/Calculation!CL$13/I54+(Calculation!CM$13^2)/(Calculation!CL$13^3)/H54,"N/A") -> 0.0004495472128 | I107: =IFERROR(Calculation!CN$13/Calculation!CM$13/Calculation!CM$13/J54+(Calculation!CN$13^2)/(Calculation!CM$13^3)/I54,"N/A") -> 0.0008871146631 | J107: =IFERROR(Calculation!CO$13/Calculation!CN$13/Calculation!CN$13/K54+(Calculation!CO$13^2)/(Calculation!CN$13^3)/J54,"N/A") -> 0.0007690462805
B108: 3-Asian NH | C108: =IFERROR(Calculation!CH$13/Calculation!CG$13/Calculation!CG$13/D55+(Calculation!CH$13^2)/(Calculation!CG$13^3)/C55,"N/A") -> 0.007697674686 | D108: =IFERROR(Calculation!CI$13/Calculation!CH$13/Calculation!CH$13/E55+(Calculation!CI$13^2)/(Calculation!CH$13^3)/D55,"N/A") -> 0.009209472165 | E108: =IFERROR(Calculation!CJ$13/Calculation!CI$13/Calculation!CI$13/F55+(Calculation!CJ$13^2)/(Calculation!CI$13^3)/E55,"N/A") -> 0.005164333861 | F108: =IFERROR(Calculation!CK$13/Calculation!CJ$13/Calculation!CJ$13/G55+(Calculation!CK$13^2)/(Calculation!CJ$13^3)/F55,"N/A") -> 0.004051407848 | G108: =IFERROR(Calculation!CL$13/Calculation!CK$13/Calculation!CK$13/H55+(Calculation!CL$13^2)/(Calculation!CK$13^3)/G55,"N/A") -> 0.003042197683 | H108: =IFERROR(Calculation!CM$13/Calculation!CL$13/Calculation!CL$13/I55+(Calculation!CM$13^2)/(Calculation!CL$13^3)/H55,"N/A") -> 0.00217521056 | I108: =IFERROR(Calculation!CN$13/Calculation!CM$13/Calculation!CM$13/J55+(Calculation!CN$13^2)/(Calculation!CM$13^3)/I55,"N/A") -> 0.0045786169 | J108: =IFERROR(Calculation!CO$13/Calculation!CN$13/Calculation!CN$13/K55+(Calculation!CO$13^2)/(Calculation!CN$13^3)/J55,"N/A") -> 0.003947923128
B109: 4-Hispanic | C109: =IFERROR(Calculation!CH$13/Calculation!CG$13/Calculation!CG$13/D56+(Calculation!CH$13^2)/(Calculation!CG$13^3)/C56,"N/A") -> 0.001233166353 | D109: =IFERROR(Calculation!CI$13/Calculation!CH$13/Calculation!CH$13/E56+(Calculation!CI$13^2)/(Calculation!CH$13^3)/D56,"N/A") -> 0.001412564712 | E109: =IFERROR(Calculation!CJ$13/Calculation!CI$13/Calculation!CI$13/F56+(Calculation!CJ$13^2)/(Calculation!CI$13^3)/E56,"N/A") -> 0.001116723711 | F109: =IFERROR(Calculation!CK$13/Calculation!CJ$13/Calculation!CJ$13/G56+(Calculation!CK$13^2)/(Calculation!CJ$13^3)/F56,"N/A") -> 0.0008810222093 | G109: =IFERROR(Calculation!CL$13/Calculation!CK$13/Calculation!CK$13/H56+(Calculation!CL$13^2)/(Calculation!CK$13^3)/G56,"N/A") -> 0.000758579929 | H109: =IFERROR(Calculation!CM$13/Calculation!CL$13/Calculation!CL$13/I56+(Calculation!CM$13^2)/(Calculation!CL$13^3)/H56,"N/A") -> 0.0008123453198 | I109: =IFERROR(Calculation!CN$13/Calculation!CM$13/Calculation!CM$13/J56+(Calculation!CN$13^2)/(Calculation!CM$13^3)/I56,"N/A") -> 0.002010473218 | J109: =IFERROR(Calculation!CO$13/Calculation!CN$13/Calculation!CN$13/K56+(Calculation!CO$13^2)/(Calculation!CN$13^3)/J56,"N/A") -> 0.00171291267
B110: 5-Other NH | C110: =IFERROR(Calculation!CH$13/Calculation!CG$13/Calculation!CG$13/D57+(Calculation!CH$13^2)/(Calculation!CG$13^3)/C57,"N/A") -> 0.0005346694481 | D110: =IFERROR(Calculation!CI$13/Calculation!CH$13/Calculation!CH$13/E57+(Calculation!CI$13^2)/(Calculation!CH$13^3)/D57,"N/A") -> 0.0006918985504 | E110: =IFERROR(Calculation!CJ$13/Calculation!CI$13/Calculation!CI$13/F57+(Calculation!CJ$13^2)/(Calculation!CI$13^3)/E57,"N/A") -> 0.001173407903 | F110: =IFERROR(Calculation!CK$13/Calculation!CJ$13/Calculation!CJ$13/G57+(Calculation!CK$13^2)/(Calculation!CJ$13^3)/F57,"N/A") -> 0.001203176544 | G110: =IFERROR(Calculation!CL$13/Calculation!CK$13/Calculation!CK$13/H57+(Calculation!CL$13^2)/(Calculation!CK$13^3)/G57,"N/A") -> 0.001141774415 | H110: =IFERROR(Calculation!CM$13/Calculation!CL$13/Calculation!CL$13/I57+(Calculation!CM$13^2)/(Calculation!CL$13^3)/H57,"N/A") -> 0.001429311794 | I110: =IFERROR(Calculation!CN$13/Calculation!CM$13/Calculation!CM$13/J57+(Calculation!CN$13^2)/(Calculation!CM$13^3)/I57,"N/A") -> 0.004471753988 | J110: =IFERROR(Calculation!CO$13/Calculation!CN$13/Calculation!CN$13/K57+(Calculation!CO$13^2)/(Calculation!CN$13^3)/J57,"N/A") -> 0.004107291941
B111: 1-Employed (Labor force) | C111: =IFERROR(Calculation!CH$13/Calculation!CG$13/Calculation!CG$13/D58+(Calculation!CH$13^2)/(Calculation!CG$13^3)/C58,"N/A") -> 0.0001933650479 | D111: =IFERROR(Calculation!CI$13/Calculation!CH$13/Calculation!CH$13/E58+(Calculation!CI$13^2)/(Calculation!CH$13^3)/D58,"N/A") -> 0.0002809461198 | E111: =IFERROR(Calculation!CJ$13/Calculation!CI$13/Calculation!CI$13/F58+(Calculation!CJ$13^2)/(Calculation!CI$13^3)/E58,"N/A") -> 0.0002709242913 | F111: =IFERROR(Calculation!CK$13/Calculation!CJ$13/Calculation!CJ$13/G58+(Calculation!CK$13^2)/(Calculation!CJ$13^3)/F58,"N/A") -> 0.0002676413376 | G111: =IFERROR(Calculation!CL$13/Calculation!CK$13/Calculation!CK$13/H58+(Calculation!CL$13^2)/(Calculation!CK$13^3)/G58,"N/A") -> 0.0002550583289 | H111: =IFERROR(Calculation!CM$13/Calculation!CL$13/Calculation!CL$13/I58+(Calculation!CM$13^2)/(Calculation!CL$13^3)/H58,"N/A") -> 0.000297196185 | I111: =IFERROR(Calculation!CN$13/Calculation!CM$13/Calculation!CM$13/J58+(Calculation!CN$13^2)/(Calculation!CM$13^3)/I58,"N/A") -> 0.000898764426 | J111: =IFERROR(Calculation!CO$13/Calculation!CN$13/Calculation!CN$13/K58+(Calculation!CO$13^2)/(Calculation!CN$13^3)/J58,"N/A") -> 0.0007908159885
B112: 2-Unemployed | C112: =IFERROR(Calculation!CH$13/Calculation!CG$13/Calculation!CG$13/D59+(Calculation!CH$13^2)/(Calculation!CG$13^3)/C59,"N/A") -> 0.003065460419 | D112: =IFERROR(Calculation!CI$13/Calculation!CH$13/Calculation!CH$13/E59+(Calculation!CI$13^2)/(Calculation!CH$13^3)/D59,"N/A") -> 0.005144417611 | E112: =IFERROR(Calculation!CJ$13/Calculation!CI$13/Calculation!CI$13/F59+(Calculation!CJ$13^2)/(Calculation!CI$13^3)/E59,"N/A") -> 0.004758089846 | F112: =IFERROR(Calculation!CK$13/Calculation!CJ$13/Calculation!CJ$13/G59+(Calculation!CK$13^2)/(Calculation!CJ$13^3)/F59,"N/A") -> 0.005007355736 | G112: =IFERROR(Calculation!CL$13/Calculation!CK$13/Calculation!CK$13/H59+(Calculation!CL$13^2)/(Calculation!CK$13^3)/G59,"N/A") -> 0.005437577346 | H112: =IFERROR(Calculation!CM$13/Calculation!CL$13/Calculation!CL$13/I59+(Calculation!CM$13^2)/(Calculation!CL$13^3)/H59,"N/A") -> 0.005407767447 | I112: =IFERROR(Calculation!CN$13/Calculation!CM$13/Calculation!CM$13/J59+(Calculation!CN$13^2)/(Calculation!CM$13^3)/I59,"N/A") -> 0.01214446807 | J112: =IFERROR(Calculation!CO$13/Calculation!CN$13/Calculation!CN$13/K59+(Calculation!CO$13^2)/(Calculation!CN$13^3)/J59,"N/A") -> 0.009953792528
B113: 3-NILF | C113: =IFERROR(Calculation!CH$13/Calculation!CG$13/Calculation!CG$13/D60+(Calculation!CH$13^2)/(Calculation!CG$13^3)/C60,"N/A") -> 5.427939757e-05 | D113: =IFERROR(Calculation!CI$13/Calculation!CH$13/Calculation!CH$13/E60+(Calculation!CI$13^2)/(Calculation!CH$13^3)/D60,"N/A") -> 7.607674181e-05 | E113: =IFERROR(Calculation!CJ$13/Calculation!CI$13/Calculation!CI$13/F60+(Calculation!CJ$13^2)/(Calculation!CI$13^3)/E60,"N/A") -> 6.840464522e-05 | F113: =IFERROR(Calculation!CK$13/Calculation!CJ$13/Calculation!CJ$13/G60+(Calculation!CK$13^2)/(Calculation!CJ$13^3)/F60,"N/A") -> 6.410803624e-05 | G113: =IFERROR(Calculation!CL$13/Calculation!CK$13/Calculation!CK$13/H60+(Calculation!CL$13^2)/(Calculation!CK$13^3)/G60,"N/A") -> 6.529935263e-05 | H113: =IFERROR(Calculation!CM$13/Calculation!CL$13/Calculation!CL$13/I60+(Calculation!CM$13^2)/(Calculation!CL$13^3)/H60,"N/A") -> 7.226570896e-05 | I113: =IFERROR(Calculation!CN$13/Calculation!CM$13/Calculation!CM$13/J60+(Calculation!CN$13^2)/(Calculation!CM$13^3)/I60,"N/A") -> 0.0001694388167 | J113: =IFERROR(Calculation!CO$13/Calculation!CN$13/Calculation!CN$13/K60+(Calculation!CO$13^2)/(Calculation!CN$13^3)/J60,"N/A") -> 0.0001431317872
B114: 1-Prof./Managerial (occ.) | C114: =IFERROR(Calculation!CH$13/Calculation!CG$13/Calculation!CG$13/D61+(Calculation!CH$13^2)/(Calculation!CG$13^3)/C61,"N/A") -> 0.001517931511 | D114: =IFERROR(Calculation!CI$13/Calculation!CH$13/Calculation!CH$13/E61+(Calculation!CI$13^2)/(Calculation!CH$13^3)/D61,"N/A") -> 0.002044357853 | E114: =IFERROR(Calculation!CJ$13/Calculation!CI$13/Calculation!CI$13/F61+(Calculation!CJ$13^2)/(Calculation!CI$13^3)/E61,"N/A") -> 0.001895111236 | F114: =IFERROR(Calculation!CK$13/Calculation!CJ$13/Calculation!CJ$13/G61+(Calculation!CK$13^2)/(Calculation!CJ$13^3)/F61,"N/A") -> 0.001854388511 | G114: =IFERROR(Calculation!CL$13/Calculation!CK$13/Calculation!CK$13/H61+(Calculation!CL$13^2)/(Calculation!CK$13^3)/G61,"N/A") -> 0.001720087754 | H114: =IFERROR(Calculation!CM$13/Calculation!CL$13/Calculation!CL$13/I61+(Calculation!CM$13^2)/(Calculation!CL$13^3)/H61,"N/A") -> 0.001942057187 | I114: =IFERROR(Calculation!CN$13/Calculation!CM$13/Calculation!CM$13/J61+(Calculation!CN$13^2)/(Calculation!CM$13^3)/I61,"N/A") -> 0.004808865979 | J114: =IFERROR(Calculation!CO$13/Calculation!CN$13/Calculation!CN$13/K61+(Calculation!CO$13^2)/(Calculation!CN$13^3)/J61,"N/A") -> 0.003964653407
B115: 2-Sklld/Sales | C115: =IFERROR(Calculation!CH$13/Calculation!CG$13/Calculation!CG$13/D62+(Calculation!CH$13^2)/(Calculation!CG$13^3)/C62,"N/A") -> 0.0006048654279 | D115: =IFERROR(Calculation!CI$13/Calculation!CH$13/Calculation!CH$13/E62+(Calculation!CI$13^2)/(Calculation!CH$13^3)/D62,"N/A") -> 0.0008474177651 | E115: =IFERROR(Calculation!CJ$13/Calculation!CI$13/Calculation!CI$13/F62+(Calculation!CJ$13^2)/(Calculation!CI$13^3)/E62,"N/A") -> 0.0008121905299 | F115: =IFERROR(Calculation!CK$13/Calculation!CJ$13/Calculation!CJ$13/G62+(Calculation!CK$13^2)/(Calculation!CJ$13^3)/F62,"N/A") -> 0.0008202389721 | G115: =IFERROR(Calculation!CL$13/Calculation!CK$13/Calculation!CK$13/H62+(Calculation!CL$13^2)/(Calculation!CK$13^3)/G62,"N/A") -> 0.000816780794 | H115: =IFERROR(Calculation!CM$13/Calculation!CL$13/Calculation!CL$13/I62+(Calculation!CM$13^2)/(Calculation!CL$13^3)/H62,"N/A") -> 0.00110565406 | I115: =IFERROR(Calculation!CN$13/Calculation!CM$13/Calculation!CM$13/J62+(Calculation!CN$13^2)/(Calculation!CM$13^3)/I62,"N/A") -> 0.003441345918 | J115: =IFERROR(Calculation!CO$13/Calculation!CN$13/Calculation!CN$13/K62+(Calculation!CO$13^2)/(Calculation!CN$13^3)/J62,"N/A") -> 0.00296050672
B116: 3-BlueCol.Lgt | C116: =IFERROR(Calculation!CH$13/Calculation!CG$13/Calculation!CG$13/D63+(Calculation!CH$13^2)/(Calculation!CG$13^3)/C63,"N/A") -> 0.0007943381676 | D116: =IFERROR(Calculation!CI$13/Calculation!CH$13/Calculation!CH$13/E63+(Calculation!CI$13^2)/(Calculation!CH$13^3)/D63,"N/A") -> 0.001171755838 | E116: =IFERROR(Calculation!CJ$13/Calculation!CI$13/Calculation!CI$13/F63+(Calculation!CJ$13^2)/(Calculation!CI$13^3)/E63,"N/A") -> 0.001137066742 | F116: =IFERROR(Calculation!CK$13/Calculation!CJ$13/Calculation!CJ$13/G63+(Calculation!CK$13^2)/(Calculation!CJ$13^3)/F63,"N/A") -> 0.001224837677 | G116: =IFERROR(Calculation!CL$13/Calculation!CK$13/Calculation!CK$13/H63+(Calculation!CL$13^2)/(Calculation!CK$13^3)/G63,"N/A") -> 0.0011920484 | H116: =IFERROR(Calculation!CM$13/Calculation!CL$13/Calculation!CL$13/I63+(Calculation!CM$13^2)/(Calculation!CL$13^3)/H63,"N/A") -> 0.001183585359 | I116: =IFERROR(Calculation!CN$13/Calculation!CM$13/Calculation!CM$13/J63+(Calculation!CN$13^2)/(Calculation!CM$13^3)/I63,"N/A") -> 0.003387369243 | J116: =IFERROR(Calculation!CO$13/Calculation!CN$13/Calculation!CN$13/K63+(Calculation!CO$13^2)/(Calculation!CN$13^3)/J63,"N/A") -> 0.00296050672
B117: 4-BlueCol.Hvy | C117: =IFERROR(Calculation!CH$13/Calculation!CG$13/Calculation!CG$13/D64+(Calculation!CH$13^2)/(Calculation!CG$13^3)/C64,"N/A") -> 0.0004096088096 | D117: =IFERROR(Calculation!CI$13/Calculation!CH$13/Calculation!CH$13/E64+(Calculation!CI$13^2)/(Calculation!CH$13^3)/D64,"N/A") -> 0.0006335599502 | E117: =IFERROR(Calculation!CJ$13/Calculation!CI$13/Calculation!CI$13/F64+(Calculation!CJ$13^2)/(Calculation!CI$13^3)/E64,"N/A") -> 0.0006702500567 | F117: =IFERROR(Calculation!CK$13/Calculation!CJ$13/Calculation!CJ$13/G64+(Calculation!CK$13^2)/(Calculation!CJ$13^3)/F64,"N/A") -> 0.0007363036081 | G117: =IFERROR(Calculation!CL$13/Calculation!CK$13/Calculation!CK$13/H64+(Calculation!CL$13^2)/(Calculation!CK$13^3)/G64,"N/A") -> 0.0007511782275 | H117: =IFERROR(Calculation!CM$13/Calculation!CL$13/Calculation!CL$13/I64+(Calculation!CM$13^2)/(Calculation!CL$13^3)/H64,"N/A") -> 0.0008763895729 | I117: =IFERROR(Calculation!CN$13/Calculation!CM$13/Calculation!CM$13/J64+(Calculation!CN$13^2)/(Calculation!CM$13^3)/I64,"N/A") -> 0.002694302132 | J117: =IFERROR(Calculation!CO$13/Calculation!CN$13/Calculation!CN$13/K64+(Calculation!CO$13^2)/(Calculation!CN$13^3)/J64,"N/A") -> 0.002369349618
B118: 5-Medical.Occ | C118: =IFERROR(Calculation!CH$13/Calculation!CG$13/Calculation!CG$13/D65+(Calculation!CH$13^2)/(Calculation!CG$13^3)/C65,"N/A") -> 0.003686871978 | D118: =IFERROR(Calculation!CI$13/Calculation!CH$13/Calculation!CH$13/E65+(Calculation!CI$13^2)/(Calculation!CH$13^3)/D65,"N/A") -> 0.00552962595 | E118: =IFERROR(Calculation!CJ$13/Calculation!CI$13/Calculation!CI$13/F65+(Calculation!CJ$13^2)/(Calculation!CI$13^3)/E65,"N/A") -> 0.005130266827 | F118: =IFERROR(Calculation!CK$13/Calculation!CJ$13/Calculation!CJ$13/G65+(Calculation!CK$13^2)/(Calculation!CJ$13^3)/F65,"N/A") -> 0.004548711426 | G118: =IFERROR(Calculation!CL$13/Calculation!CK$13/Calculation!CK$13/H65+(Calculation!CL$13^2)/(Calculation!CK$13^3)/G65,"N/A") -> 0.004223389394 | H118: =IFERROR(Calculation!CM$13/Calculation!CL$13/Calculation!CL$13/I65+(Calculation!CM$13^2)/(Calculation!CL$13^3)/H65,"N/A") -> 0.004972071659 | I118: =IFERROR(Calculation!CN$13/Calculation!CM$13/Calculation!CM$13/J65+(Calculation!CN$13^2)/(Calculation!CM$13^3)/I65,"N/A") -> 0.01401727482 | J118: =IFERROR(Calculation!CO$13/Calculation!CN$13/Calculation!CN$13/K65+(Calculation!CO$13^2)/(Calculation!CN$13^3)/J65,"N/A") -> 0.01188468641
B119: 6-N/A | C119: =IFERROR(Calculation!CH$13/Calculation!CG$13/Calculation!CG$13/D66+(Calculation!CH$13^2)/(Calculation!CG$13^3)/C66,"N/A") -> 5.671948558e-05 | D119: =IFERROR(Calculation!CI$13/Calculation!CH$13/Calculation!CH$13/E66+(Calculation!CI$13^2)/(Calculation!CH$13^3)/D66,"N/A") -> 7.925994907e-05 | E119: =IFERROR(Calculation!CJ$13/Calculation!CI$13/Calculation!CI$13/F66+(Calculation!CJ$13^2)/(Calculation!CI$13^3)/E66,"N/A") -> 7.05180982e-05 | F119: =IFERROR(Calculation!CK$13/Calculation!CJ$13/Calculation!CJ$13/G66+(Calculation!CK$13^2)/(Calculation!CJ$13^3)/F66,"N/A") -> 6.49815918e-05 | G119: =IFERROR(Calculation!CL$13/Calculation!CK$13/Calculation!CK$13/H66+(Calculation!CL$13^2)/(Calculation!CK$13^3)/G66,"N/A") -> 6.57841435e-05 | H119: =IFERROR(Calculation!CM$13/Calculation!CL$13/Calculation!CL$13/I66+(Calculation!CM$13^2)/(Calculation!CL$13^3)/H66,"N/A") -> 7.266425876e-05 | I119: =IFERROR(Calculation!CN$13/Calculation!CM$13/Calculation!CM$13/J66+(Calculation!CN$13^2)/(Calculation!CM$13^3)/I66,"N/A") -> 0.0001706011427 | J119: =IFERROR(Calculation!CO$13/Calculation!CN$13/Calculation!CN$13/K66+(Calculation!CO$13^2)/(Calculation!CN$13^3)/J66,"N/A") -> 0.0001453102915
B121: Variance (all cause) | L121: Standard deviation (all cause) | V121: 75% CI (all cause)
C122: 1987.5-1991.5 | D122: 1991.5-1995.5 | E122: 1995.5-1999.5 | F122: 1999.5-2003.5 | G122: 2003.5-2006 | H122: 2006-2008 | I122: 2008-2010 | J122: 2010-2012 | M122: 1987.5-1991.5 | N122: 1991.5-1995.5 | O122: 1995.5-1999.5 | P122: 1999.5-2003.5 | Q122: 2003.5-2006 | R122: 2006-2008 | S122: 2008-2010 | T122: 2010-2012 | W122: 1987.5-1991.5 | X122: 1991.5-1995.5 | Y122: 1995.5-1999.5 | Z122: 1999.5-2003.5 | AA122: 2003.5-2006 | AB122: 2006-2008 | AC122: 2008-2010 | AD122: 2010-2012
B123: age 40-44 | C123: 0.001717205852 | D123: 0.002354723556 | E123: 0.002062966414 | F123: 0.00193956729 | G123: 0.00183167406 | H123: 0.001928344446 | I123: 0.005113566024 | J123: 0.004303263297 | L123: age 40-44 | M123: =IFERROR(SQRT(C123),"N/A") -> 0.04143918256 | N123: =IFERROR(SQRT(D123),"N/A") -> 0.04852549388 | O123: =IFERROR(SQRT(E123),"N/A") -> 0.04541989007 | P123: =IFERROR(SQRT(F123),"N/A") -> 0.04404051873 | Q123: =IFERROR(SQRT(G123),"N/A") -> 0.0427980614 | R123: =IFERROR(SQRT(H123),"N/A") -> 0.0439129189 | S123: =IFERROR(SQRT(I123),"N/A") -> 0.07150920237 | T123: =IFERROR(SQRT(J123),"N/A") -> 0.06559926293 | V123: age 40-44 | W123: =IFERROR(1.15*M123,"N/A") -> 0.04765505995 | X123: =IFERROR(1.15*N123,"N/A") -> 0.05580431796 | Y123: =IFERROR(1.15*O123,"N/A") -> 0.05223287359 | Z123: =IFERROR(1.15*P123,"N/A") -> 0.05064659654 | AA123: =IFERROR(1.15*Q123,"N/A") -> 0.04921777061 | AB123: =IFERROR(1.15*R123,"N/A") -> 0.05049985674 | AC123: =IFERROR(1.15*S123,"N/A") -> 0.08223558273 | AD123: =IFERROR(1.15*T123,"N/A") -> 0.07543915237
B124: age 45-49 | C124: 0.001284407335 | D124: 0.001851928779 | E124: 0.001647364429 | F124: 0.001432945634 | G124: 0.001317562002 | H124: 0.001415689436 | I124: 0.003164749057 | J124: 0.002576095106 | L124: age 45-49 | M124: =IFERROR(SQRT(C124),"N/A") -> 0.03583862909 | N124: 0.04303404209 | O124: 0.04058773743 | P124: 0.03785426837 | Q124: 0.0362982369 | R124: 0.03762564865 | S124: 0.0562561024 | T124: 0.05075524708 | V124: age 45-49 | W124: =IFERROR(1.15*M124,"N/A") -> 0.04121442346 | X124: 0.0494891484 | Y124: 0.04667589804 | Z124: 0.04353240863 | AA124: 0.04174297243 | AB124: 0.04326949594 | AC124: 0.06469451776 | AD124: 0.05836853414
B125: age 50-54 | C125: 0.0007832332893 | D125: 0.001237287085 | E125: 0.001158257709 | F125: 0.001092028432 | G125: 0.001067908188 | H125: 0.001088402222 | I125: 0.003026123068 | J125: 0.002682421838 | L125: age 50-54 | M125: 0.02798630539 | N125: 0.03517509182 | O125: 0.0340331854 | P125: 0.03304585347 | Q125: 0.03267886454 | R125: 0.03299094152 | S125: 0.05501020876 | T125: 0.05179210208 | V125: age 50-54 | W125: 0.0321842512 | X125: 0.0404513556 | Y125: 0.03913816321 | Z125: 0.03800273149 | AA125: 0.03758069423 | AB125: 0.03793958274 | AC125: 0.06326174008 | AD125: 0.05956091739
B126: age 55-59 | C126: 0.0005157435065 | D126: 0.0008185564117 | E126: 0.0008437848459 | F126: 0.0008789288146 | G126: 0.0009041493438 | H126: 0.000909557175 | I126: 0.001925144419 | J126: 0.001598868376 | L126: age 55-59 | M126: 0.02270998693 | N126: 0.02861042488 | O126: 0.0290479749 | P126: 0.02964673362 | Q126: 0.0300690762 | R126: 0.03015886561 | S126: 0.04387646772 | T126: 0.0399858522 | V126: age 55-59 | W126: 0.02611648497 | X126: 0.03290198861 | Y126: 0.03340517114 | Z126: 0.03409374367 | AA126: 0.03457943763 | AB126: 0.03468269545 | AC126: 0.05045793787 | AD126: 0.04598373003
B127: age 60-64 | C127: 0.0003796307923 | D127: 0.0005565694767 | E127: 0.0005678229529 | F127: 0.0006244621026 | G127: 0.0006797941264 | H127: 0.0007722413329 | I127: 0.001709585102 | J127: 0.001428847164 | L127: age 60-64 | M127: 0.01948411641 | N127: 0.02359172475 | O127: 0.02382903592 | P127: 0.02498923974 | Q127: 0.02607286188 | R127: 0.02778923052 | S127: 0.04134712931 | T127: 0.03780009477 | V127: age 60-64 | W127: 0.02240673387 | X127: 0.02713048346 | Y127: 0.02740339131 | Z127: 0.0287376257 | AA127: 0.02998379116 | AB127: 0.0319576151 | AC127: 0.0475491987 | AD127: 0.04347010898
B128: age 65-69 (age group) | C128: 0.0003190291588 | D128: 0.0004437095742 | E128: 0.0004244627464 | F128: 0.0004422250787 | G128: 0.0005089404966 | H128: 0.0006375654803 | I128: 0.001476268102 | J128: 0.001222235115 | L128: age 65-69 (age group) | M128: 0.01786138737 | N128: 0.02106441488 | O128: 0.02060249369 | P128: 0.02102914831 | Q128: 0.02255970959 | R128: 0.02525005901 | S128: 0.03842223447 | T128: 0.03496047933 | V128: age 65-69 (age group) | W128: 0.02054059548 | X128: 0.02422407711 | Y128: 0.02369286775 | Z128: 0.02418352056 | AA128: 0.02594366602 | AB128: 0.02903756787 | AC128: 0.04418556964 | AD128: 0.04020455123
B129: age 70-74 | C129: 0.0002998223587 | D129: 0.0004108342665 | E129: 0.0003697487102 | F129: 0.0003482410064 | G129: 0.0003858276715 | H129: 0.0005004309223 | I129: 0.001271429799 | J129: 0.001044369895 | L129: age 70-74 | M129: 0.01731537925 | N129: 0.02026904701 | O129: 0.01922885099 | P129: 0.01866121664 | Q129: 0.01964249657 | R129: 0.02237031342 | S129: 0.03565711428 | T129: 0.03231671231 | V129: age 70-74 | W129: 0.01991268614 | X129: 0.02330940406 | Y129: 0.02211317863 | Z129: 0.02146039913 | AA129: 0.02258887105 | AB129: 0.02572586043 | AC129: 0.04100568142 | AD129: 0.03716421916
B130: age 75-79 | C130: 0.0003371233897 | D130: 0.0004526799676 | E130: 0.0003844680472 | F130: 0.0003364668778 | G130: 0.0003436513114 | H130: 0.0004076531998 | I130: 0.001035427718 | J130: 0.0008806759723 | L130: age 75-79 | M130: 0.01836092017 | N130: 0.02127627711 | O130: 0.01960785677 | P130: 0.0183430335 | Q130: 0.01853783459 | R130: 0.02019042347 | S130: 0.03217806269 | T130: 0.02967618527 | V130: age 75-79 | W130: 0.0211150582 | X130: 0.02446771867 | Y130: 0.02254903529 | Z130: 0.02109448852 | AA130: 0.02131850978 | AB130: 0.02321898699 | AC130: 0.03700477209 | AD130: 0.03412761306
B131: age 80-84 | C131: 0.0004597511706 | D131: 0.0006079336265 | E131: 0.0004907660224 | F131: 0.0004110494781 | G131: 0.0003835908911 | H131: 0.0004221691313 | I131: 0.001030096922 | J131: 0.0008663734208 | L131: age 80-84 | M131: 0.02144180894 | N131: 0.02465631008 | O131: 0.02215323955 | P131: 0.02027435518 | Q131: 0.01958547653 | R131: 0.02054675476 | S131: 0.03209512303 | T131: 0.02943422193 | V131: age 80-84 | W131: 0.02465808028 | X131: 0.02835475659 | Y131: 0.02547622548 | Z131: 0.02331550846 | AA131: 0.02252329801 | AB131: 0.02362876798 | AC131: 0.03690939148 | AD131: 0.03384935522
B132: age 85+ | C132: 0.000621992097 | D132: 0.0008444292156 | E132: 0.0006823690394 | F132: 0.0005450387638 | G132: 0.0006110151143 | H132: 0.0005807756696 | I132: 0.0008382690469 | J132: 0.0006730776918 | L132: age 85+ | M132: 0.02493976939 | N132: 0.02905906426 | O132: 0.02612219438 | P132: 0.02334606527 | Q132: 0.02471871992 | R132: 0.02409928774 | S132: 0.02895287631 | T132: 0.0259437409 | V132: age 85+ | W132: 0.02868073479 | X132: 0.0334179239 | Y132: 0.03004052354 | Z132: 0.02684797507 | AA132: 0.0284265279 | AB132: 0.0277141809 | AC132: 0.03329580776 | AD132: 0.02983530203
B133: Male (Sex) | C133: 7.975139103e-05 | D133: 0.0001149514034 | E133: 0.0001081262737 | F133: 0.0001040216495 | G133: 0.0001038269643 | H133: 0.0001142525569 | I133: 0.0002722881956 | J133: 0.0002294933101 | L133: Male (Sex) | M133: 0.008930363432 | N133: 0.01072153923 | O133: 0.01039837842 | P133: 0.01019910043 | Q133: 0.01018955172 | R133: 0.01068889877 | S133: 0.0165011574 | T133: 0.01514903661 | V133: Male (Sex) | W133: 0.01026991795 | X133: 0.01232977011 | Y133: 0.01195813518 | Z133: 0.01172896549 | AA133: 0.01171798448 | AB133: 0.01229223358 | AC133: 0.01897633101 | AD133: 0.0174213921
B134: Female | C134: 0.0001018494646 | D134: 0.0001375095596 | E134: 0.0001192433389 | F134: 0.0001096584748 | G134: 0.0001087921671 | H134: 0.0001190519091 | I134: 0.0002861379494 | J134: 0.0002316207441 | L134: Female | M134: 0.01009204957 | N134: 0.01172644701 | O134: 0.01091985984 | P134: 0.01047179425 | Q134: 0.01043034837 | R134: 0.01091109111 | S134: 0.01691561259 | T134: 0.01521909143 | V134: Female | W134: 0.01160585701 | X134: 0.01348541407 | Y134: 0.01255783882 | Z134: 0.01204256338 | AA134: 0.01199490062 | AB134: 0.01254775477 | AC134: 0.01945295448 | AD134: 0.01750195515
B135: 1-Never | C135: N/A | D135: N/A | E135: N/A | F135: 0.0002122556311 | G135: 0.000166909302 | H135: 0.0003139861713 | I135: 0.001688323928 | J135: N/A | L135: 1-Never | M135: N/A | N135: N/A | O135: N/A | P135: 0.01456899554 | Q135: 0.0129193383 | R135: 0.01771965494 | S135: 0.04108921912 | T135: N/A | V135: 1-Never | W135: N/A | X135: N/A | Y135: N/A | Z135: 0.01675434487 | AA135: 0.01485723904 | AB135: 0.02037760318 | AC135: 0.04725260199 | AD135: N/A
B136: 2-Current | C136: N/A | D136: N/A | E136: N/A | F136: 0.0005767590874 | G136: 0.0004241921906 | H136: 0.0007119050425 | I136: 0.003268142598 | J136: N/A | L136: 2-Current | M136: N/A | N136: N/A | O136: N/A | P136: 0.02401580911 | Q136: 0.02059592655 | R136: 0.02668154873 | S136: 0.05716767092 | T136: N/A | V136: 2-Current | W136: N/A | X136: N/A | Y136: N/A | Z136: 0.02761818048 | AA136: 0.02368531554 | AB136: 0.03068378104 | AC136: 0.06574282155 | AD136: N/A
B137: 3-Former | C137: N/A | D137: N/A | E137: N/A | F137: 0.0002742856052 | G137: 0.0002080003817 | H137: 0.0003932616042 | I137: 0.002084097758 | J137: N/A | L137: 3-Former | M137: N/A | N137: N/A | O137: N/A | P137: 0.01656157013 | Q137: 0.01442221833 | R137: 0.0198308246 | S137: 0.04565191955 | T137: N/A | V137: 3-Former | W137: N/A | X137: N/A | Y137: N/A | Z137: 0.01904580565 | AA137: 0.01658555109 | AB137: 0.02280544829 | AC137: 0.05249970748 | AD137: N/A
B138: 4-Not_Asked (smoker) | C138: 4.17785272e-05 | D138: 5.916056437e-05 | E138: 7.265712571e-05 | F138: 0.0001092645199 | G138: 0.0001730151386 | H138: 0.0001547052657 | I138: 0.000178979266 | J138: 0.000144931117 | L138: 4-Not_Asked (smoker) | M138: 0.006463631116 | N138: 0.007691590497 | O138: 0.008523914929 | P138: 0.01045296704 | Q138: 0.01315352191 | R138: 0.01243805715 | S138: 0.01337831327 | T138: 0.01203873403 | V138: 4-Not_Asked (smoker) | W138: 0.007433175783 | X138: 0.008845329071 | Y138: 0.009802502168 | Z138: 0.01202091209 | AA138: 0.01512655019 | AB138: 0.01430376573 | AC138: 0.01538506026 | AD138: 0.01384454413
B139: 1-Married (marital status) | C139: 7.191430266e-05 | D139: 0.0001028237412 | E139: 9.688729864e-05 | F139: 9.601851104e-05 | G139: 9.827926159e-05 | H139: 0.0001155017049 | I139: 0.0003047599692 | J139: 0.0002587693489 | L139: 1-Married (marital status) | M139: 0.008480230107 | N139: 0.0101402042 | O139: 0.009843134594 | P139: 0.009798903563 | Q139: 0.009913589743 | R139: 0.01074717195 | S139: 0.01745737578 | T139: 0.01608630936 | V139: 1-Married (marital status) | W139: 0.009752264623 | X139: 0.01166123483 | Y139: 0.01131960478 | Z139: 0.0112687391 | AA139: 0.0114006282 | AB139: 0.01235924774 | AC139: 0.02007598215 | AD139: 0.01849925577
B140: 2-Widowed | C140: 0.000146323907 | D140: 0.0002071788157 | E140: 0.0001849926185 | F140: 0.0001723090044 | G140: 0.0001823833564 | H140: 0.0002093749469 | I140: 0.0005070824327 | J140: 0.0004614032793 | L140: 2-Widowed | M140: 0.01209644191 | N140: 0.0143937075 | O140: 0.01360119916 | P140: 0.01312665245 | Q140: 0.01350493822 | R140: 0.01446979429 | S140: 0.02251849091 | T140: 0.02148029979 | V140: 2-Widowed | W140: 0.0139109082 | X140: 0.01655276363 | Y140: 0.01564137903 | Z140: 0.01509565031 | AA140: 0.01553067896 | AB140: 0.01664026344 | AC140: 0.02589626454 | AD140: 0.02470234476
B141: 3-Divorced | C141: 0.0007025661253 | D141: 0.0009126161664 | E141: 0.0007349673904 | F141: 0.0005952262997 | G141: 0.0005231420055 | H141: 0.0005293029742 | I141: 0.001221721344 | J141: 0.001084042617 | L141: 3-Divorced | M141: 0.02650596396 | N141: 0.03020953767 | O141: 0.027110282 | P141: 0.02439726009 | Q141: 0.02287229777 | R141: 0.02300658545 | S141: 0.03495313068 | T141: 0.03292480246 | V141: 3-Divorced | W141: 0.03048185855 | X141: 0.03474096832 | Y141: 0.03117682431 | Z141: 0.0280568491 | AA141: 0.02630314244 | AB141: 0.02645757327 | AC141: 0.04019610028 | AD141: 0.03786352283
B142: 4-Separated | C142: 0.002523525386 | D142: 0.003559669722 | E142: 0.003107793474 | F142: 0.003005671511 | G142: 0.0032246546 | H142: 0.003243363738 | I142: 0.007432589379 | J142: 0.006748718613 | L142: 4-Separated | M142: 0.050234703 | N142: 0.05966296776 | O142: 0.05574758716 | P142: 0.05482400488 | Q142: 0.0567860423 | R142: 0.05695053764 | S142: 0.08621246649 | T142: 0.08215058498 | V142: 4-Separated | W142: 0.05776990845 | X142: 0.06861241293 | Y142: 0.06410972524 | Z142: 0.06304760561 | AA142: 0.06530394864 | AB142: 0.06549311829 | AC142: 0.09914433647 | AD142: 0.09447317273
B143: 5-NeverMar. | C143: 0.0006842390172 | D143: 0.001025639922 | E143: 0.0009644717844 | F143: 0.0009180196864 | G143: 0.0009064503956 | H143: 0.0009171019099 | I143: 0.002003888079 | J143: 0.001736042443 | L143: 5-NeverMar. | M143: 0.02615796279 | N143: 0.03202561353 | O143: 0.03105594604 | P143: 0.03029883969 | Q143: 0.03010731465 | R143: 0.03028369049 | S143: 0.04476480849 | T143: 0.04166584264 | V143: 5-NeverMar. | W143: 0.03008165721 | X143: 0.03682945556 | Y143: 0.03571433795 | Z143: 0.03484366564 | AA143: 0.03462341185 | AB143: 0.03482624407 | AC143: 0.05147952977 | AD143: 0.04791571903
B144: 1-Lowest inc. | C144: 0.000227327236 | D144: 0.0003527157273 | E144: 0.0003072539334 | F144: 0.0002850249131 | G144: 0.0003033771416 | H144: 0.0003224815738 | I144: 0.000736956856 | J144: 0.00067349229 | L144: 1-Lowest inc. | M144: 0.01507737497 | N144: 0.01878072755 | O144: 0.01752866034 | P144: 0.01688268086 | Q144: 0.01741772492 | R144: 0.01795777196 | S144: 0.02714694929 | T144: 0.02595173 | V144: 1-Lowest inc. | W144: 0.01733898122 | X144: 0.02159783668 | Y144: 0.02015795939 | Z144: 0.01941508299 | AA144: 0.02003038366 | AB144: 0.02065143775 | AC144: 0.03121899169 | AD144: 0.0298444895
B145: 2-Second dec. | C145: 0.0002049364893 | D145: 0.0003148227495 | E145: 0.0002782800239 | F145: 0.0002577833372 | G145: 0.0002638577807 | H145: 0.0003044762996 | I145: 0.0007575807563 | J145: 0.0006728477139 | L145: 2-Second dec. | M145: 0.014315603 | N145: 0.01774324518 | O145: 0.01668172724 | P145: 0.01605563257 | Q145: 0.01624369972 | R145: 0.01744924926 | S145: 0.02752418493 | T145: 0.02593930828 | V145: 2-Second dec. | W145: 0.01646294345 | X145: 0.02040473195 | Y145: 0.01918398633 | Z145: 0.01846397746 | AA145: 0.01868025468 | AB145: 0.02006663664 | AC145: 0.03165281267 | AD145: 0.02983020452
B146: 3-Third dec. | C146: 0.0003198460217 | D146: 0.0003969491417 | E146: 0.0003512894142 | F146: 0.0003284097108 | G146: 0.0003439901139 | H146: 0.0003864821976 | I146: 0.001025276028 | J146: 0.0009168782552 | L146: 3-Third dec. | M146: 0.01788423948 | N146: 0.01992358255 | O146: 0.0187427163 | P146: 0.01812207799 | Q146: 0.01854697048 | R146: 0.01965915048 | S146: 0.03201993173 | T146: 0.03027999761 | V146: 3-Third dec. | W146: 0.0205668754 | X146: 0.02291211994 | Y146: 0.02155412374 | Z146: 0.02084038969 | AA146: 0.02132901605 | AB146: 0.02260802305 | AC146: 0.03682292149 | AD146: 0.03482199725
B147: 4-Fourth dec. | C147: 0.0003719961468 | D147: 0.0005051498018 | E147: 0.0004686931115 | F147: 0.0004486123453 | G147: 0.0004506562757 | H147: 0.0005326534905 | I147: 0.001461329598 | J147: 0.001271518843 | L147: 4-Fourth dec. | M147: 0.01928720163 | N147: 0.02247553785 | O147: 0.02164932127 | P147: 0.02118047085 | Q147: 0.02122866637 | R147: 0.02307928704 | S147: 0.03822734097 | T147: 0.03565836288 | V147: 4-Fourth dec. | W147: 0.02218028188 | X147: 0.02584686853 | Y147: 0.02489671946 | Z147: 0.02435754147 | AA147: 0.02441296632 | AB147: 0.0265411801 | AC147: 0.04396144212 | AD147: 0.04100711731
B148: 5-Fifth dec. | C148: 0.0004750780774 | D148: 0.0006741681311 | E148: 0.0006091849572 | F148: 0.0005948639041 | G148: 0.0005929281553 | H148: 0.0007052770816 | I148: 0.001828880065 | J148: 0.001540688536 | L148: 5-Fifth dec. | M148: 0.02179628586 | N148: 0.02596474785 | O148: 0.0246816725 | P148: 0.02438983198 | Q148: 0.02435011613 | R148: 0.02655705333 | S148: 0.04276540734 | T148: 0.03925160553 | V148: 5-Fifth dec. | W148: 0.02506572874 | X148: 0.02985946003 | Y148: 0.02838392337 | Z148: 0.02804830678 | AA148: 0.02800263354 | AB148: 0.03054061133 | AC148: 0.04918021844 | AD148: 0.04513934636
B149: 6-Sixth dec. | C149: 0.0005799037437 | D149: 0.0007820407878 | E149: 0.000739406447 | F149: 0.0007226497009 | G149: 0.0007386501801 | H149: 0.0008663819887 | I149: 0.002305503536 | J149: 0.002019770944 | L149: 6-Sixth dec. | M149: 0.02408119066 | N149: 0.02796499218 | O149: 0.02719202911 | P149: 0.02688214465 | Q149: 0.02717811951 | R149: 0.02943436748 | S149: 0.04801565928 | T149: 0.04494186182 | V149: 6-Sixth dec. | W149: 0.02769336926 | X149: 0.03215974101 | Y149: 0.03127083347 | Z149: 0.03091446635 | AA149: 0.03125483744 | AB149: 0.0338495226 | AC149: 0.05521800817 | AD149: 0.05168314109
B150: 7-Seventh dec. | C150: 0.00108953649 | D150: 0.0009225310652 | E150: 0.0009040089945 | F150: 0.0008647734242 | G150: 0.0008203608602 | H150: 0.0009335206389 | I150: 0.002365095233 | J150: 0.001996780136 | L150: 7-Seventh dec. | M150: 0.03300812764 | N150: 0.03037319649 | O150: 0.03006674233 | P150: 0.02940703018 | Q150: 0.02864194233 | R150: 0.03055356999 | S150: 0.04863224479 | T150: 0.04468534588 | V150: 7-Seventh dec. | W150: 0.03795934678 | X150: 0.03492917597 | Y150: 0.03457675368 | Z150: 0.03381808471 | AA150: 0.03293823367 | AB150: 0.03513660548 | AC150: 0.05592708151 | AD150: 0.05138814776
B151: 8-Eighth dec. | C151: 0.0007235514144 | D151: 0.001170256448 | E151: 0.001140345756 | F151: 0.001139275715 | G151: 0.001104249267 | H151: 0.001286936565 | I151: 0.002954679668 | J151: 0.002398049835 | L151: 8-Eighth dec. | M151: 0.02689891103 | N151: 0.03420901121 | O151: 0.03376900585 | P151: 0.0337531586 | Q151: 0.03323024627 | R151: 0.0358738981 | S151: 0.05435696522 | T151: 0.04896988702 | V151: 8-Eighth dec. | W151: 0.03093374768 | X151: 0.03934036289 | Y151: 0.03883435672 | Z151: 0.03881613239 | AA151: 0.03821478321 | AB151: 0.04125498281 | AC151: 0.06251051 | AD151: 0.05631537008
B152: 9-Ninth dec. | C152: 0.001460837785 | D152: 0.001129646525 | E152: 0.001130039159 | F152: 0.001098267799 | G152: 0.0009977990919 | H152: 0.00107326372 | I152: 0.002357084511 | J152: 0.001892344469 | L152: 9-Ninth dec. | M152: 0.0382209077 | N152: 0.03361021459 | O152: 0.03361605508 | P152: 0.0331401237 | Q152: 0.03158795802 | R152: 0.03276070389 | S152: 0.04854981473 | T152: 0.04350108584 | V152: 9-Ninth dec. | W152: 0.04395404385 | X152: 0.03865174678 | Y152: 0.03865846334 | Z152: 0.03811114226 | AA152: 0.03632615172 | AB152: 0.03767480948 | AC152: 0.05583228694 | AD152: 0.05002624872
B153: 10-Highest dec. (family income in 2008$) | C153: 0.001126523847 | D153: 0.001333511103 | E153: 0.001233561672 | F153: 0.001160265892 | G153: 0.001045437843 | H153: 0.001116521143 | I153: 0.00281669467 | J153: 0.002393990657 | L153: 10-Highest dec. (family income in 2008$) | M153: 0.03356372814 | N153: 0.0365172713 | O153: 0.03512209663 | P153: 0.03406267594 | Q153: 0.03233323125 | R153: 0.03341438527 | S153: 0.05307254158 | T153: 0.04892842382 | V153: 10-Highest dec. (family income in 2008$) | W153: 0.03859828736 | X153: 0.041994862 | Y153: 0.04039041112 | Z153: 0.03917207733 | AA153: 0.03718321594 | AB153: 0.03842654306 | AC153: 0.06103342281 | AD153: 0.05626768739
B154: 1-Dropout | C154: 8.100919622e-05 | D154: 0.0001255320646 | E154: 0.0001263868363 | F154: 0.0001355907856 | G154: 0.0001520586392 | H154: 0.0001845405 | I154: 0.0004914681684 | J154: 0.0004272400998 | L154: 1-Dropout | M154: 0.009000510887 | N154: 0.01120410927 | O154: 0.01124219002 | P154: 0.01164434565 | Q154: 0.01233120591 | R154: 0.01358456845 | S154: 0.02216908136 | T154: 0.02066978713 | V154: 1-Dropout | W154: 0.01035058752 | X154: 0.01288472566 | Y154: 0.01292851852 | Z154: 0.01339099749 | AA154: 0.01418088679 | AB154: 0.01562225372 | AC154: 0.02549444357 | AD154: 0.02377025519
B155: 2-H.S.Diploma (education) | C155: 0.0001453706801 | D155: 0.0001874314602 | E155: 0.0001644578638 | F155: 0.0001537158161 | G155: 0.0001487129891 | H155: 0.0001610323287 | I155: 0.0003752043951 | J155: 0.0003153350681 | L155: 2-H.S.Diploma (education) | M155: 0.01205697641 | N155: 0.01369056099 | O155: 0.01282411259 | P155: 0.01239821826 | Q155: 0.01219479353 | R155: 0.01268985141 | S155: 0.01937019347 | T155: 0.01775767631 | V155: 2-H.S.Diploma (education) | W155: 0.01386552287 | X155: 0.01574414514 | Y155: 0.01474772948 | Z155: 0.014257951 | AA155: 0.01402401255 | AB155: 0.01459332912 | AC155: 0.02227572249 | AD155: 0.02042132776
B156: 3-SomeColl/AA | C156: 0.000402796646 | D156: 0.0005368787192 | E156: 0.0004111710272 | F156: 0.0003064622949 | G156: 0.0002836904891 | H156: 0.0002988340759 | I156: 0.0007043904275 | J156: 0.0005955044161 | L156: 3-SomeColl/AA | M156: 0.02006979437 | N156: 0.02317064348 | O156: 0.02027735257 | P156: 0.01750606452 | Q156: 0.016843114 | R156: 0.01728681798 | S156: 0.0265403547 | T156: 0.02440295917 | V156: 3-SomeColl/AA | W156: 0.02308026352 | X156: 0.02664624 | Y156: 0.02331895545 | Z156: 0.0201319742 | AA156: 0.0193695811 | AB156: 0.01987984068 | AC156: 0.0305214079 | AD156: 0.02806340304
B157: 4-4yr.Degree | C157: 0.000766598257 | D157: 0.001004584266 | E157: 0.0008113296584 | F157: 0.0006312049274 | G157: 0.0005562108246 | H157: 0.0005870439727 | I157: 0.001439077747 | J157: 0.001228522921 | L157: 4-4yr.Degree | M157: 0.02768751085 | N157: 0.03169517733 | O157: 0.02848384908 | P157: 0.02512379206 | Q157: 0.0235841223 | R157: 0.02422899034 | S157: 0.03793517823 | T157: 0.03505029131 | V157: 4-4yr.Degree | W157: 0.03184063748 | X157: 0.03644945393 | Y157: 0.03275642644 | Z157: 0.02889236087 | AA157: 0.02712174064 | AB157: 0.02786333889 | AC157: 0.04362545497 | AD157: 0.04030783501
B158: 5-Grad.Degree | C158: 0.001172547334 | D158: 0.001431422504 | E158: 0.001205228813 | F158: 0.00112227551 | G158: 0.001019520531 | H158: 0.001033250567 | I158: 0.002583803522 | J158: 0.00224551011 | L158: 5-Grad.Degree | M158: 0.0342424785 | N158: 0.03783414469 | O158: 0.03471640553 | P158: 0.03350038074 | Q158: 0.03192993159 | R158: 0.03214421515 | S158: 0.05083112749 | T158: 0.04738681367 | V158: 5-Grad.Degree | W158: 0.03937885027 | X158: 0.04350926639 | Y158: 0.03992386636 | Z158: 0.03852543786 | AA158: 0.03671942133 | AB158: 0.03696584742 | AC158: 0.05845579662 | AD158: 0.05449483572
B159: 1-White NH (ethnic/race) | C159: 8.0330689e-05 | D159: 0.0001000074037 | E159: 6.653148165e-05 | F159: 6.401751503e-05 | G159: 6.663970882e-05 | H159: 7.882973897e-05 | I159: 0.0001985163581 | J159: 0.0001683266568 | L159: 1-White NH (ethnic/race) | M159: 0.008962738923 | N159: 0.01000037018 | O159: 0.008156683251 | P159: 0.008001094615 | Q159: 0.008163314818 | R159: 0.00887861132 | S159: 0.01408958332 | T159: 0.01297407634 | V159: 1-White NH (ethnic/race) | W159: 0.01030714976 | X159: 0.0115004257 | Y159: 0.009380185738 | Z159: 0.009201258807 | AA159: 0.009387812041 | AB159: 0.01021040302 | AC159: 0.01620302082 | AD159: 0.01492018779
B160: 2-Black NH | C160: 0.0006565777531 | D160: 0.0008861190089 | E160: 0.0006303981427 | F160: 0.0005672528926 | G160: 0.0005201077739 | H160: 0.0004241986604 | I160: 0.0008324460594 | J160: 0.0007242866739 | L160: 2-Black NH | M160: 0.0256237732 | N160: 0.02976775116 | O160: 0.02510773074 | P160: 0.02381707145 | Q160: 0.02280587148 | R160: 0.02059608362 | S160: 0.02885214133 | T160: 0.02691257464 | V160: 2-Black NH | W160: 0.02946733918 | X160: 0.03423291383 | Y160: 0.02887389035 | Z160: 0.02738963217 | AA160: 0.0262267522 | AB160: 0.02368549616 | AC160: 0.03317996253 | AD160: 0.03094946084
B161: 3-Asian NH | C161: 0.007167685378 | D161: 0.008735527185 | E161: 0.004976395128 | F161: 0.004005723621 | G161: 0.003157613496 | H161: 0.002442472774 | I161: 0.005667378613 | J161: 0.005272478388 | L161: 3-Asian NH | M161: 0.08466218387 | N161: 0.09346404221 | O161: 0.07054356901 | P161: 0.06329078623 | Q161: 0.05619264628 | R161: 0.04942137973 | S161: 0.07528199395 | T161: 0.07261183366 | V161: 3-Asian NH | W161: 0.09736151145 | X161: 0.1074836485 | Y161: 0.08112510436 | Z161: 0.07278440416 | AA161: 0.06462154323 | AB161: 0.05683458669 | AC161: 0.08657429304 | AD161: 0.08350360871
B162: 4-Hispanic | C162: 0.001279497944 | D162: 0.001403651376 | E162: 0.00106771931 | F162: 0.0008211107419 | G162: 0.0007034078243 | H162: 0.0007710280742 | I162: 0.002013452896 | J162: 0.001843579057 | L162: 4-Hispanic | M162: 0.0357700705 | N162: 0.03746533566 | O162: 0.03267597451 | P162: 0.02865502996 | Q162: 0.02652183675 | R162: 0.02776739228 | S162: 0.04487151542 | T162: 0.04293691951 | V162: 4-Hispanic | W162: 0.04113558108 | X162: 0.043085136 | Y162: 0.03757737069 | Z162: 0.03295328445 | AA162: 0.03050011226 | AB162: 0.03193250113 | AC162: 0.05160224273 | AD162: 0.04937745744
B163: 5-Other NH | C163: 0.0005279817584 | D163: 0.0006975015969 | E163: 0.001205566431 | F163: 0.001258070834 | G163: 0.001206610016 | H163: 0.001497545944 | I163: 0.004523443301 | J163: 0.003941210969 | L163: 5-Other NH | M163: 0.02297785365 | N163: 0.02641025553 | O163: 0.0347212677 | P163: 0.03546929424 | Q163: 0.03473629249 | R163: 0.03869813876 | S163: 0.06725654839 | T163: 0.06277906474 | V163: 5-Other NH | W163: 0.0264245317 | X163: 0.03037179385 | Y163: 0.03992945785 | Z163: 0.04078968838 | AA163: 0.03994673637 | AB163: 0.04450285957 | AC163: 0.07734503064 | AD163: 0.07219592445
B164: 1-Employed (Labor force) | C164: 0.0001933650479 | D164: 0.0002809461198 | E164: 0.0002709242913 | F164: 0.0002676413376 | G164: 0.0002550583289 | H164: 0.000297196185 | I164: 0.000898764426 | J164: 0.0007908159885 | L164: 1-Employed (Labor force) | M164: 0.01390557614 | N164: 0.01676144743 | O164: 0.01645977799 | P164: 0.01635974748 | Q164: 0.01597054567 | R164: 0.0172393789 | S164: 0.02997940003 | T164: 0.02812145068 | V164: 1-Employed (Labor force) | W164: 0.01599141257 | X164: 0.01927566454 | Y164: 0.01892874468 | Z164: 0.0188137096 | AA164: 0.01836612752 | AB164: 0.01982528574 | AC164: 0.03447631003 | AD164: 0.03233966828
B165: 2-Unemployed | C165: 0.003291002053 | D165: 0.005542766201 | E165: 0.005153714379 | F165: 0.005397822793 | G165: 0.005780125472 | H165: 0.005610175174 | I165: 0.01217457568 | J165: 0.009572035671 | L165: 2-Unemployed | M165: 0.05736725593 | N165: 0.07444975622 | O165: 0.07178937511 | P165: 0.07346987677 | Q165: 0.07602713642 | R165: 0.07490110262 | S165: 0.1103384597 | T165: 0.09783678077 | V165: 2-Unemployed | W165: 0.06597234432 | X165: 0.08561721965 | Y165: 0.08255778138 | Z165: 0.08449035829 | AA165: 0.08743120688 | AB165: 0.08613626801 | AC165: 0.1268892286 | AD165: 0.1125122979
B166: 3-NILF | C166: 5.701823047e-05 | D166: 8.091924562e-05 | E166: 7.368027474e-05 | F166: 6.980120824e-05 | G166: 7.155812556e-05 | H166: 7.854864348e-05 | I166: 0.0001768049514 | J166: 0.0001392637818 | L166: 3-NILF | M166: 0.007551041681 | N166: 0.008995512527 | O166: 0.008583721497 | P166: 0.008354711739 | Q166: 0.008459203601 | R166: 0.008862767258 | S166: 0.0132968023 | T166: 0.01180100766 | V166: 3-NILF | W166: 0.008683697933 | X166: 0.01034483941 | Y166: 0.009871279722 | Z166: 0.0096079185 | AA166: 0.009728084141 | AB166: 0.01019218235 | AC166: 0.01529132264 | AD166: 0.01357115881
B167: 1-Prof./Managerial (occ.) | C167: 0.001517931511 | D167: 0.002044357853 | E167: 0.001895111236 | F167: 0.001854388511 | G167: 0.001720087754 | H167: 0.001942057187 | I167: 0.004808865979 | J167: 0.003964653407 | L167: 1-Prof./Managerial (occ.) | M167: 0.03896064053 | N167: 0.04521457567 | O167: 0.04353287535 | P167: 0.04306261152 | Q167: 0.04147394067 | R167: 0.04406877792 | S167: 0.06934598748 | T167: 0.06296549378 | V167: 1-Prof./Managerial (occ.) | W167: 0.04480473661 | X167: 0.05199676202 | Y167: 0.05006280665 | Z167: 0.04952200325 | AA167: 0.04769503177 | AB167: 0.0506790946 | AC167: 0.0797478856 | AD167: 0.07241031785
B168: 2-Sklld/Sales | C168: 0.0005523734337 | D168: 0.000792571474 | E168: 0.0007776366837 | F168: 0.0008059472429 | G168: 0.0008248405393 | H168: 0.001148110617 | I168: 0.003663489852 | J168: 0.003207911519 | L168: 2-Sklld/Sales | M168: 0.0235026261 | N168: 0.02815264595 | O168: 0.02788613784 | P168: 0.02838920997 | Q168: 0.02872003724 | R168: 0.03388378104 | S168: 0.06052676972 | T168: 0.05663842794 | V168: 2-Sklld/Sales | W168: 0.02702802002 | X168: 0.03237554284 | Y168: 0.03206905852 | Z168: 0.03264759147 | AA168: 0.03302804283 | AB168: 0.03896634819 | AC168: 0.06960578517 | AD168: 0.06513419213
B169: 3-BlueCol.Lgt | C169: 0.0007749577686 | D169: 0.001157802451 | E169: 0.00113922658 | F169: 0.001246187276 | G169: 0.001236029188 | H169: 0.001249400686 | I169: 0.00362024483 | J169: 0.003179452701 | L169: 3-BlueCol.Lgt | M169: 0.02783806331 | N169: 0.03402649631 | O169: 0.03375243073 | P169: 0.03530137782 | Q169: 0.03515720677 | R169: 0.03534686247 | S169: 0.0601684704 | T169: 0.05638663584 | V169: 3-BlueCol.Lgt | W169: 0.0320137728 | X169: 0.03913047076 | Y169: 0.03881529533 | Z169: 0.04059658449 | AA169: 0.04043078779 | AB169: 0.04064889184 | AC169: 0.06919374096 | AD169: 0.06484463122
B170: 4-BlueCol.Hvy | C170: 0.0004123934236 | D170: 0.0006333132757 | E170: 0.0006676077375 | F170: 0.0007348855082 | G170: 0.0007562770864 | H170: 0.0008935983742 | I170: 0.002781552653 | J170: 0.002470292645 | L170: 4-BlueCol.Hvy | M170: 0.02030747211 | N170: 0.02516571628 | O170: 0.02583810631 | P170: 0.02710877179 | Q170: 0.02750049248 | R170: 0.02989311583 | S170: 0.05274042712 | T170: 0.04970203864 | V170: 4-BlueCol.Hvy | W170: 0.02335359293 | X170: 0.02894057372 | Y170: 0.02971382225 | Z170: 0.03117508756 | AA170: 0.03162556635 | AB170: 0.03437708321 | AC170: 0.06065149119 | AD170: 0.05715734443
B171: 5-Medical.Occ | C171: 0.003252144686 | D171: 0.00500145471 | E171: 0.004779609876 | F171: 0.004393557363 | G171: 0.004262723507 | H171: 0.005242178054 | I171: 0.01529210944 | J171: 0.01324649158 | L171: 5-Medical.Occ | M171: 0.05702757829 | N171: 0.07072096373 | O171: 0.06913472265 | P171: 0.06628391482 | Q171: 0.06528953597 | R171: 0.07240288706 | S171: 0.123661269 | T171: 0.1150934037 | V171: 5-Medical.Occ | W171: 0.06558171503 | X171: 0.08132910828 | Y171: 0.07950493104 | Z171: 0.07622650204 | AA171: 0.07508296637 | AB171: 0.08326332011 | AC171: 0.1422104593 | AD171: 0.1323574143
B172: 6-N/A | C172: 5.552507097e-05 | D172: 7.779704337e-05 | E172: 6.987591569e-05 | F172: 6.551474875e-05 | G172: 6.754451015e-05 | H172: 7.534840534e-05 | I172: 0.0001777563294 | J172: 0.0001515175693 | L172: 6-N/A | M172: 0.007451514676 | N172: 0.008820263225 | O172: 0.00835918152 | P172: 0.008094118157 | Q172: 0.008218546717 | R172: 0.008680345923 | S172: 0.013332529 | T172: 0.01230924731 | V172: 6-N/A | W172: 0.008569241878 | X172: 0.01014330271 | Y172: 0.009613058748 | Z172: 0.009308235881 | AA172: 0.009451328725 | AB172: 0.009982397811 | AC172: 0.01533240835 | AD172: 0.01415563441
B174: Variance (cancer) | L174: Standard deviation (cancer) | V174: 75% CI (cancer)
C175: 1987.5-1991.5 | D175: 1991.5-1995.5 | E175: 1995.5-1999.5 | F175: 1999.5-2003.5 | G175: 2003.5-2006 | H175: 2006-2008 | I175: 2008-2010 | J175: 2010-2012 | M175: 1987.5-1991.5 | N175: 1991.5-1995.5 | O175: 1995.5-1999.5 | P175: 1999.5-2003.5 | Q175: 2003.5-2006 | R175: 2006-2008 | S175: 2008-2010 | T175: 2010-2012 | W175: 1987.5-1991.5 | X175: 1991.5-1995.5 | Y175: 1995.5-1999.5 | Z175: 1999.5-2003.5 | AA175: 2003.5-2006 | AB175: 2006-2008 | AC175: 2008-2010 | AD175: 2010-2012
B176: age 40-44 | C176: 0.006058098986 | D176: 0.007652536791 | E176: 0.006747294868 | F176: 0.006689916297 | G176: 0.006268388542 | H176: 0.007846835426 | I176: 0.01871194105 | J176: 0.01471084695 | L176: age 40-44 | M176: =IFERROR(SQRT(C176),"N/A") -> 0.07783379077 | N176: =IFERROR(SQRT(D176),"N/A") -> 0.08747877909 | O176: =IFERROR(SQRT(E176),"N/A") -> 0.08214191907 | P176: =IFERROR(SQRT(F176),"N/A") -> 0.0817919085 | Q176: =IFERROR(SQRT(G176),"N/A") -> 0.07917315544 | R176: =IFERROR(SQRT(H176),"N/A") -> 0.08858236521 | S176: =IFERROR(SQRT(I176),"N/A") -> 0.1367915972 | T176: =IFERROR(SQRT(J176),"N/A") -> 0.1212882803 | V176: age 40-44 | W176: =IFERROR(1.15*M176,"N/A") -> 0.08950885939 | X176: =IFERROR(1.15*N176,"N/A") -> 0.100600596 | Y176: =IFERROR(1.15*O176,"N/A") -> 0.09446320693 | Z176: =IFERROR(1.15*P176,"N/A") -> 0.09406069478 | AA176: =IFERROR(1.15*Q176,"N/A") -> 0.09104912875 | AB176: =IFERROR(1.15*R176,"N/A") -> 0.10186972 | AC176: =IFERROR(1.15*S176,"N/A") -> 0.1573103367 | AD176: =IFERROR(1.15*T176,"N/A") -> 0.1394815224
B177: age 45-49 | C177: 0.004692339036 | D177: 0.005781045554 | E177: 0.004616589313 | F177: 0.004307043899 | G177: 0.004009032366 | H177: 0.004410845803 | I177: 0.01153047355 | J177: 0.009549312986 | L177: age 45-49 | M177: 0.0685006499 | N177: 0.07603318719 | O177: 0.06794548781 | P177: 0.06562807249 | Q177: 0.06331692006 | R177: 0.0664141988 | S177: 0.1073800426 | T177: 0.09772058629 | V177: age 45-49 | W177: 0.07877574738 | X177: 0.08743816526 | Y177: 0.07813731098 | Z177: 0.07547228336 | AA177: 0.07281445807 | AB177: 0.07637632862 | AC177: 0.123487049 | AD177: 0.1123786742
B178: age 50-54 | C178: 0.002859490078 | D178: 0.003851496087 | E178: 0.003313648216 | F178: 0.003229219727 | G178: 0.003133690447 | H178: 0.003010257627 | I178: 0.006790014863 | J178: 0.00538471392 | L178: age 50-54 | M178: 0.05347420011 | N178: 0.06206042287 | O178: 0.05756429636 | P178: 0.05682622393 | Q178: 0.0559793752 | R178: 0.05486581474 | S178: 0.08240154648 | T178: 0.07338060998 | V178: age 50-54 | W178: 0.06149533013 | X178: 0.0713694863 | Y178: 0.06619894081 | Z178: 0.06535015752 | AA178: 0.06437628148 | AB178: 0.06309568695 | AC178: 0.09476177846 | AD178: 0.08438770147
B179: age 55-59 | C179: 0.00186273662 | D179: 0.002679617125 | E179: 0.002606532623 | F179: 0.002435502729 | G179: 0.002343434048 | H179: 0.002380381101 | I179: 0.004711464267 | J179: 0.003555137756 | L179: age 55-59 | M179: 0.04315943258 | N179: 0.05176501835 | O179: 0.05105421259 | P179: 0.04935081285 | Q179: 0.04840902858 | R179: 0.04878914942 | S179: 0.06864010684 | T179: 0.05962497594 | V179: age 55-59 | W179: 0.04963334746 | X179: 0.0595297711 | Y179: 0.05871234448 | Z179: 0.05675343477 | AA179: 0.05567038286 | AB179: 0.05610752183 | AC179: 0.07893612286 | AD179: 0.06856872233
B180: age 60-64 | C180: 0.00162494569 | D180: 0.002010343924 | E180: 0.001878042571 | F180: 0.001860760062 | G180: 0.001875532211 | H180: 0.002190008329 | I180: 0.004622061653 | J180: 0.003395313237 | L180: age 60-64 | M180: 0.0403106151 | N180: 0.04483685898 | O180: 0.04333638854 | P180: 0.04313652817 | Q180: 0.04330741519 | R180: 0.04679752482 | S180: 0.06798574596 | T180: 0.05826931643 | V180: age 60-64 | W180: 0.04635720736 | X180: 0.05156238783 | Y180: 0.04983684682 | Z180: 0.04960700739 | AA180: 0.04980352747 | AB180: 0.05381715354 | AC180: 0.07818360785 | AD180: 0.0670097139
B181: age 65-69 (age group) | C181: 0.001594425062 | D181: 0.001836353793 | E181: 0.001585183075 | F181: 0.001576221733 | G181: 0.001709186719 | H181: 0.001808454873 | I181: 0.004359690718 | J181: 0.003436661834 | L181: age 65-69 (age group) | M181: 0.03993025246 | N181: 0.04285269878 | O181: 0.03981435764 | P181: 0.03970165907 | Q181: 0.04134231149 | R181: 0.04252593177 | S181: 0.06602795406 | T181: 0.05862304866 | V181: age 65-69 (age group) | W181: 0.04591979033 | X181: 0.04928060359 | Y181: 0.04578651129 | Z181: 0.04565690793 | AA181: 0.04754365821 | AB181: 0.04890482154 | AC181: 0.07593214717 | AD181: 0.06741650595
B182: age 70-74 | C182: 0.001756610597 | D182: 0.002035598642 | E182: 0.001620216645 | F182: 0.001474286607 | G182: 0.001590055536 | H182: 0.001733263135 | I182: 0.003484249748 | J182: 0.002476056979 | L182: age 70-74 | M182: 0.04191193859 | N182: 0.045117609 | O182: 0.0402519148 | P182: 0.03839644003 | Q182: 0.03987550045 | R182: 0.04163247693 | S182: 0.05902753381 | T182: 0.04975999376 | V182: age 70-74 | W182: 0.04819872938 | X182: 0.05188525035 | Y182: 0.04628970202 | Z182: 0.04415590603 | AA182: 0.04585682552 | AB182: 0.04787734847 | AC182: 0.06788166389 | AD182: 0.05722399283
B183: age 75-79 | C183: 0.002563419971 | D183: 0.002824448541 | E183: 0.002242601134 | F183: 0.001930864484 | G183: 0.001748151691 | H183: 0.001785387018 | I183: 0.003637463491 | J183: 0.002640062534 | L183: age 75-79 | M183: 0.05063022784 | N183: 0.05314554112 | O183: 0.04735610978 | P183: 0.04394160312 | Q183: 0.04181090397 | R183: 0.04225384028 | S183: 0.06031138774 | T183: 0.05138153884 | V183: age 75-79 | W183: 0.05822476201 | X183: 0.06111737229 | Y183: 0.05445952625 | Z183: 0.05053284358 | AA183: 0.04808253956 | AB183: 0.04859191632 | AC183: 0.0693580959 | AD183: 0.05908876967
B184: age 80-84 | C184: 0.004943304529 | D184: 0.005574415547 | E184: 0.004047520123 | F184: 0.003090760227 | G184: 0.002704102047 | H184: 0.002551378168 | I184: 0.005211404113 | J184: 0.003877966079 | L184: age 80-84 | M184: 0.07030863765 | N184: 0.07466200873 | O184: 0.06362012357 | P184: 0.05559460609 | Q184: 0.05200098121 | R184: 0.05051116875 | S184: 0.0721900555 | T184: 0.06227331755 | V184: age 80-84 | W184: 0.0808549333 | X184: 0.08586131003 | Y184: 0.07316314211 | Z184: 0.06393379701 | AA184: 0.0598011284 | AB184: 0.05808784406 | AC184: 0.08301856383 | AD184: 0.07161431519
B185: age 85+ | C185: 0.007636719163 | D185: 0.01070795262 | E185: 0.008188729973 | F185: 0.005746997115 | G185: 0.006489353963 | H185: 0.005237132356 | I185: 0.005991633796 | J185: 0.004188487446 | L185: age 85+ | M185: 0.08738832395 | N185: 0.1034792376 | O185: 0.09049160167 | P185: 0.07580895141 | Q185: 0.08055652651 | R185: 0.07236803408 | S185: 0.07740564447 | T185: 0.06471852475 | V185: age 85+ | W185: 0.1004965725 | X185: 0.1190011233 | Y185: 0.1040653419 | Z185: 0.08718029413 | AA185: 0.09264000548 | AB185: 0.08322323919 | AC185: 0.08901649114 | AD185: 0.07442630347
B186: Male (Sex) | C186: 0.0004518917121 | D186: 0.0005373872836 | E186: 0.0004583366669 | F186: 0.0004390025666 | G186: 0.000413408344 | H186: 0.0004195344331 | I186: 0.0008995298159 | J186: 0.0006756247818 | L186: Male (Sex) | M186: 0.02125774476 | N186: 0.02318161521 | O186: 0.02140879882 | P186: 0.02095238809 | Q186: 0.0203324456 | R186: 0.02048253971 | S186: 0.02999216257 | T186: 0.02599278326 | V186: Male (Sex) | W186: 0.02444640647 | X186: 0.02665885749 | Y186: 0.02462011864 | Z186: 0.0240952463 | AA186: 0.02338231244 | AB186: 0.02355492067 | AC186: 0.03449098696 | AD186: 0.02989170075
B187: Female | C187: 0.0006316554498 | D187: 0.0006939767891 | E187: 0.0005546593469 | F187: 0.0005057648337 | G187: 0.0004788619304 | H187: 0.0004936413879 | I187: 0.001030322822 | J187: 0.0007425908822 | L187: Female | M187: 0.02513275651 | N187: 0.02634343921 | O187: 0.02355120691 | P187: 0.02248921594 | Q187: 0.02188291412 | R187: 0.02221804194 | S187: 0.03209864205 | T187: 0.02725052077 | V187: Female | W187: 0.02890266999 | X187: 0.03029495509 | Y187: 0.02708388795 | Z187: 0.02586259833 | AA187: 0.02516535124 | AB187: 0.02555074824 | AC187: 0.03691343836 | AD187: 0.03133809888
B188: 1-Never | C188: N/A | D188: N/A | E188: N/A | F188: 0.001145616444 | G188: 0.000862562715 | H188: 0.00148918014 | I188: 0.007878659304 | J188: N/A | L188: 1-Never | M188: N/A | N188: N/A | O188: N/A | P188: 0.0338469562 | Q188: 0.02936941802 | R188: 0.03858989687 | S188: 0.0887618122 | T188: N/A | V188: 1-Never | W188: N/A | X188: N/A | Y188: N/A | Z188: 0.03892399963 | AA188: 0.03377483073 | AB188: 0.0443783814 | AC188: 0.102076084 | AD188: N/A
B189: 2-Current | C189: N/A | D189: N/A | E189: N/A | F189: 0.002006016529 | G189: 0.00138083521 | H189: 0.001994772197 | I189: 0.008861369385 | J189: N/A | L189: 2-Current | M189: N/A | N189: N/A | O189: N/A | P189: 0.04478857587 | Q189: 0.0371595911 | R189: 0.0446628727 | S189: 0.09413484682 | T189: N/A | V189: 2-Current | W189: N/A | X189: N/A | Y189: N/A | Z189: 0.05150686225 | AA189: 0.04273352976 | AB189: 0.0513623036 | AC189: 0.1082550738 | AD189: N/A
B190: 3-Former | C190: N/A | D190: N/A | E190: N/A | F190: 0.001234294867 | G190: 0.0009051907687 | H190: 0.001395849776 | I190: 0.005987903856 | J190: N/A | L190: 3-Former | M190: N/A | N190: N/A | O190: N/A | P190: 0.03513253289 | Q190: 0.03008638843 | R190: 0.037361073 | S190: 0.07738154726 | T190: N/A | V190: 3-Former | W190: N/A | X190: N/A | Y190: N/A | Z190: 0.04040241282 | AA190: 0.03459934669 | AB190: 0.04296523395 | AC190: 0.08898877935 | AD190: N/A
B191: 4-Not_Asked (smoker) | C191: 0.0002390404582 | D191: 0.000287255629 | E191: 0.0003334968596 | F191: 0.0004755524075 | G191: 0.0007223089936 | H191: 0.0006137268656 | I191: 0.0006334383087 | J191: 0.0004581456647 | L191: 4-Not_Asked (smoker) | M191: 0.01546093329 | N191: 0.01694861732 | O191: 0.01826189639 | P191: 0.02180716413 | Q191: 0.02687580685 | R191: 0.02477351137 | S191: 0.02516820035 | T191: 0.02140433752 | V191: 4-Not_Asked (smoker) | W191: 0.01778007328 | X191: 0.01949090992 | Y191: 0.02100118084 | Z191: 0.02507823875 | AA191: 0.03090717787 | AB191: 0.02848953808 | AC191: 0.0289434304 | AD191: 0.02461498815
B192: 1-Married (marital status) | C192: 0.0003617342994 | D192: 0.0004411655987 | E192: 0.0003826502711 | F192: 0.0003688103574 | G192: 0.000360703988 | H192: 0.0003877771056 | I192: 0.0008937171705 | J192: 0.0006751087053 | L192: 1-Married (marital status) | M192: 0.01901931385 | N192: 0.02100394246 | O192: 0.01956144859 | P192: 0.01920443588 | Q192: 0.01899220861 | R192: 0.01969205692 | S192: 0.02989510279 | T192: 0.02598285406 | V192: 1-Married (marital status) | W192: 0.02187221093 | X192: 0.02415453383 | Y192: 0.02249566588 | Z192: 0.02208510126 | AA192: 0.02184103991 | AB192: 0.02264586545 | AC192: 0.0343793682 | AD192: 0.02988028217
B193: 2-Widowed | C193: 0.001207844239 | D193: 0.001355761216 | E193: 0.001100085397 | F193: 0.001010931016 | G193: 0.001012488671 | H193: 0.00100955706 | I193: 0.002005150308 | J193: 0.001641525536 | L193: 2-Widowed | M193: 0.03475405356 | N193: 0.0368206629 | O193: 0.03316753528 | P193: 0.03179514139 | Q193: 0.03181962713 | R193: 0.03177352766 | S193: 0.04477890472 | T193: 0.0405157443 | V193: 2-Widowed | W193: 0.03996716159 | X193: 0.04234376234 | Y193: 0.03814266557 | Z193: 0.0365644126 | AA193: 0.0365925712 | AB193: 0.03653955681 | AC193: 0.05149574043 | AD193: 0.04659310595
B194: 3-Divorced | C194: 0.003747050368 | D194: 0.004147665357 | E194: 0.002922724705 | F194: 0.002315717651 | G194: 0.002012669088 | H194: 0.001937429587 | I194: 0.003900282428 | J194: 0.003132187011 | L194: 3-Divorced | M194: 0.06121315519 | N194: 0.06440237074 | O194: 0.05406222993 | P194: 0.04812190407 | Q194: 0.04486278065 | R194: 0.04401624231 | S194: 0.06245224117 | T194: 0.0559659451 | V194: 3-Divorced | W194: 0.07039512847 | X194: 0.07406272635 | Y194: 0.06217156442 | Z194: 0.05534018968 | AA194: 0.05159219775 | AB194: 0.05061867865 | AC194: 0.07182007735 | AD194: 0.06436083686
B195: 4-Separated | C195: 0.01109230028 | D195: 0.0145715307 | E195: 0.01284737883 | F195: 0.01168769678 | G195: 0.0127504258 | H195: 0.01316656061 | I195: 0.02478781071 | J195: 0.02098531574 | L195: 4-Separated | M195: 0.1053199899 | N195: 0.1207125954 | O195: 0.1133462784 | P195: 0.1081096517 | Q195: 0.1129177834 | R195: 0.1147456344 | S195: 0.1574414517 | T195: 0.1448630931 | V195: 4-Separated | W195: 0.1211179884 | X195: 0.1388194848 | Y195: 0.1303482202 | Z195: 0.1243260994 | AA195: 0.1298554509 | AB195: 0.1319574796 | AC195: 0.1810576695 | AD195: 0.166592557
B196: 5-NeverMar. | C196: 0.004419555397 | D196: 0.006053772687 | E196: 0.005040355451 | F196: 0.004966824363 | G196: 0.004893782134 | H196: 0.004118578687 | I196: 0.00747628191 | J196: 0.005760593508 | L196: 5-NeverMar. | M196: 0.06647973674 | N196: 0.0778059939 | O196: 0.07099546078 | P196: 0.07047570051 | Q196: 0.06995557258 | R196: 0.06417615357 | S196: 0.08646549549 | T196: 0.07589857382 | V196: 5-NeverMar. | W196: 0.07645169725 | X196: 0.08947689299 | Y196: 0.0816447799 | Z196: 0.08104705559 | AA196: 0.08044890846 | AB196: 0.07380257661 | AC196: 0.09943531981 | AD196: 0.08728335989
B197: 1-Lowest inc. | C197: 0.001531907585 | D197: 0.002189691603 | E197: 0.001815086098 | F197: 0.001604177851 | G197: 0.001716529118 | H197: 0.001636261642 | I197: 0.003494202604 | J197: 0.002923089866 | L197: 1-Lowest inc. | M197: 0.03913959102 | N197: 0.04679414069 | O197: 0.04260382727 | P197: 0.04005218909 | Q197: 0.04143101638 | R197: 0.04045073104 | S197: 0.05911178058 | T197: 0.05406560705 | V197: 1-Lowest inc. | W197: 0.04501052968 | X197: 0.0538132618 | Y197: 0.04899440136 | Z197: 0.04606001746 | AA197: 0.04764566884 | AB197: 0.04651834069 | AC197: 0.06797854767 | AD197: 0.06217544811
B198: 2-Second dec. | C198: 0.001287973143 | D198: 0.001775150924 | E198: 0.001487909642 | F198: 0.001366140935 | G198: 0.001326571274 | H198: 0.001371355388 | I198: 0.002914291236 | J198: 0.002294382875 | L198: 2-Second dec. | M198: 0.03588834272 | N198: 0.04213253996 | O198: 0.03857343181 | P198: 0.0369613438 | Q198: 0.03642212615 | R198: 0.03703181589 | S198: 0.05398417579 | T198: 0.04789971686 | V198: 2-Second dec. | W198: 0.04127159413 | X198: 0.04845242096 | Y198: 0.04435944659 | Z198: 0.04250554537 | AA198: 0.04188544508 | AB198: 0.04258658827 | AC198: 0.06208180216 | AD198: 0.05508467439
B199: 3-Third dec. | C199: 0.001802056183 | D199: 0.002029117987 | E199: 0.001687320905 | F199: 0.001635086878 | G199: 0.001599627149 | H199: 0.001598353088 | I199: 0.003567190652 | J199: 0.002786921657 | L199: 3-Third dec. | M199: 0.04245063231 | N199: 0.04504573217 | O199: 0.04107701188 | P199: 0.04043620751 | Q199: 0.03999533909 | R199: 0.0399794083 | S199: 0.05972596297 | T199: 0.05279130285 | V199: 3-Third dec. | W199: 0.04881822715 | X199: 0.051802592 | Y199: 0.04723856366 | Z199: 0.04650163864 | AA199: 0.04599463995 | AB199: 0.04597631954 | AC199: 0.06868485741 | AD199: 0.06070999828
B200: 4-Fourth dec. | C200: 0.002135719213 | D200: 0.002442175215 | E200: 0.002041102808 | F200: 0.00199437008 | G200: 0.001904075404 | H200: 0.00206267799 | I200: 0.004865838667 | J200: 0.00379179152 | L200: 4-Fourth dec. | M200: 0.04621384222 | N200: 0.0494183692 | O200: 0.04517856581 | P200: 0.04465837077 | Q200: 0.04363571248 | R200: 0.04541671488 | S200: 0.0697555637 | T200: 0.06157752447 | V200: 4-Fourth dec. | W200: 0.05314591855 | X200: 0.05683112458 | Y200: 0.05195535068 | Z200: 0.05135712639 | AA200: 0.05018106936 | AB200: 0.05222922211 | AC200: 0.08021889825 | AD200: 0.07081415314
B201: 5-Fifth dec. | C201: 0.002291973219 | D201: 0.002836589862 | E201: 0.002364347657 | F201: 0.002386942394 | G201: 0.002421876835 | H201: 0.002728773502 | I201: 0.007079899083 | J201: 0.005687247432 | L201: 5-Fifth dec. | M201: 0.04787455711 | N201: 0.05325964572 | O201: 0.04862455817 | P201: 0.04885634446 | Q201: 0.04921256785 | R201: 0.05223766363 | S201: 0.08414213619 | T201: 0.07541384112 | V201: 5-Fifth dec. | W201: 0.05505574068 | X201: 0.06124859258 | Y201: 0.0559182419 | Z201: 0.05618479613 | AA201: 0.05659445303 | AB201: 0.06007331318 | AC201: 0.09676345662 | AD201: 0.08672591728
